Workbook

Sheet 填写页面
B1: 永鑫年年+智胜宝保险计划书生成器
B4: 计划书生成器使用说明：
B5: 1、请在下列黄色单元格中填写代理人、客户和投保险种的相关信息
B6: 2、信息填写完成后，后续利益演示表中的内容会通过计算自动生成（计算时间会根据您所使用电脑的性能而定，每次计算约5-20秒，计算期间电脑会出现卡顿的情况，请耐心等候）
B9: 3、计算完毕，您可查看后续利益演示表中的内容，如果觉得合适则可点击旁边的“点击生成PDF计划书按钮”来生成PDF计划书
B11: 4、已生成的计划书会放在电脑D盘的根目录中，文件名命名规则为：投保人姓名-永鑫年年年金保险计划-生成时间
B13: 5、为避免在生成PDF文件时可能出现的格式兼容问题，建议使用Excel2013或其后续版本来生成PDF计划书
B16: 代理人基本信息
B17: 代理公司名称 | D17: 永鑫 | G17: 代理人姓名 | I17: 金先生 | L17: 联系电话 | N17: 13900000000
B18: 客户基本信息
B19: 投保人姓名 | D19: 金先生
B20: 被保人姓名 | D20: 金先生 | G20: 被保人年龄 | I20: 15 | L20: 被保人性别 | N20: 男 | S20: 男
B21: 投保险种信息 | S21: 女
B22: 险种名称 | G22: 保险期间 | I22: 基本保额 | L22: 交费年期 | N22: 年交保费
B23: 珠江永鑫年年年金保险 | G23: 10年 | I23: =利益演示!F11 -> 158704.2 | L23: 5 | N23: 180000
B24: 险种名称 | G24: 保险期间 | L24: 交费年期 | N24: 一次性保费
B25: 珠江智胜宝终身寿险（万能型） | G25: 终身 | L25: 趸交 | N25: 1000

Sheet 利益演示
A3: 被保人信息 | F3: 年龄 | G3: =填写页面!I20 -> 15 | H3: 被保人性别 | I3: =填写页面!N20 -> 男 | K3: =MATCH($AX$11,'sh1'!$K$2:$K$4061,0) -> 1521 | O3: =$F$11/SUM($D$11:$D$20) -> 0.176338
A4: 珠江永鑫年年年金保险 | F4: 交费年期 | G4: =填写页面!L23 -> 5 | H4: 年交保费 | I4: =填写页面!N23 -> 180000
A5: 珠江智胜宝终身寿险（万能型） | F5: 交费年期 | G5: 趸交 | H5: 一次性保费 | I5: =填写页面!N25 -> 1000
A8: 保单年度 | B8: 年龄 | C8: 年末年龄 | D8: 年金利益演示区域 | P8: 万能利益演示区域
D9: 年度保险费 | E9: 累计保险费 | F9: 基本保额 | G9: 保单年度末现金价值 | H9: 身故保险金 | I9: 特别生存保险金（保单年度末） | J9: 生存保险金（保单年度末） | K9: 减保要求领取的现金价值 | L9: 减保后的现价 | M9: 领取现金价值对应减少的保额 | N9: 减保后的基本保额 | O9: 减少保额后的对应的原保费 | P9: 一次性交纳的保险费 | Q9: 追加保险费 | R9: 转入保险费 | S9: 累计保险费 | T9: 初始费用 | U9: 进入万能账户价值（期初） | V9: 风险保险费（期初） | Y9: 持续奖金 （期初） | Z9: 部分领取实到金额 | AA9: 部分领取实际扣除账户价值 | AB9: 部分领取累计实际扣除账户价值 | AC9: 累计保费-累计部分领取账户价值 | AD9: 基本保险金额（初） | AE9: 基本保险金额（末） | AF9: 低档（最低保证利率3%） | AL9: 中档（4.5%） | AR9: 高档（6%）
V10: 低 | W10: 中 | X10: 高 | AF10: 万能险账户价值（初） | AG10: 保单年度末 账户价值 | AH10: 保单年度末 现金价值 | AI10: 万能险身故保额（初） | AJ10: 保单年度末 身故保险金 | AK10: 风险保额（初） | AL10: 万能险账户价值（初） | AM10: 保单年度末 账户价值 | AN10: 保单年度末 现金价值 | AO10: 万能险身故保额（初） | AP10: 保单年度末 身故保险金 | AQ10: 风险保额（初） | AR10: 万能险账户价值（初） | AS10: 保单年度末 账户价值 | AT10: 保单年度末 现金价值 | AU10: 万能险身故保额（初） | AV10: 保单年度末 身故保险金 | AW10: 风险保额（初）
A11: 1 | B11: =$G$3+A11-1 -> 15 | C11: =$G$3+A11 -> 16 | D11: =IF(A11<=$G$4,$I$4,"") -> 180000 | E11: =SUM($D$11:D11) -> 180000 | F11: =SUM(($G$3='sh1'!$D$2:$D$4061)*(IF($I$3="男",0,1)='sh1'!$C$2:$C$4061)*($G$4='sh1'!$B$2:$B$4061)*(A11='sh1'!$F$2:$F$4061)*('sh1'!$G$2:$G$4061))*($I$4/1000) -> 158704.2 | G11: =SUM(($AX11='sh1'!$K$2:$K$4061)*('sh1'!$H$2:$H$4061))*($I$4/1000) -> 102778.2 | H11: =IF($A11>10,0,IF($G11<$E11,$E11,$G11)) -> 180000 | I11: =IF(OR($A11=5,$A11=6),VLOOKUP($G$4,'sh1'!$N$2:$O$4,2,0)*$O11,0) -> 0 | J11: =IF(AND($A11>=7,$A11<=10),$N11,0) -> 0 | L11: =SUM(($AX11='sh1'!$K$2:$K$4061)*('sh1'!$H$2:$H$4061))*($I$4/1000) -> 102778.2 | N11: =INDEX('sh1'!$J$2:$J$4061,$K$3+$A11-1)*$L11 -> 158704.2 | O11: =$N11/$O$3/COUNTIF($D$11:$D$20,">0") -> 180000 | P11: =$I$5 -> 1000 | R11: 0 | S11: =SUM($R$11:R11,$P$11:P11,$Q$11:Q11) -> 1000 | T11: =-($P11+$Q11)*2%-$R11*1% -> -20 | U11: =$R11+$P11+$Q11+$T11 -> 980 | V11: =SUM(($B11='sh1'!$R$3:$R$214)*(IF($I$3="男",0,1)='sh1'!$Q$3:$Q$214)*('sh1'!$S$3:$S$214))/1000*AK11 -> 0.0616 | W11: =SUM(($B11='sh1'!$R$3:$R$214)*(IF($I$3="男",0,1)='sh1'!$Q$3:$Q$214)*('sh1'!$S$3:$S$214))/1000*AQ11 -> 0.0616 | X11: =SUM(($B11='sh1'!$R$3:$R$214)*(IF($I$3="男",0,1)='sh1'!$Q$3:$Q$214)*('sh1'!$S$3:$S$214))/1000*AW11 -> 0.0616 | Y11: =IF($A11=7,(SUM(#REF!)+SUM(#REF!))*1%,IF($A11>=8,($I9+$J9)*1%,0)) -> 0 | AA11: =-$Z11/VLOOKUP($A11,'sh1'!$N$7:$O$12,2,1) -> 0 | AB11: =SUM($AA$11:AA11) -> 0 | AC11: =$S11+$AB11 -> 1000 | AD11: =$S11+$AB10 -> 1000 | AE11: =$S11+$AB11 -> 1000 | AF11: =$U11 -> 980 | AG11: =($AF11-V11)*(1+3%)-$Z11/VLOOKUP($A11,'sh1'!$N$7:$O$12,2,1) -> 1009.336552 | AH11: =IF($A11=1,95%*$AG11,IF($A11=2,97%*$AG11,IF($A11=3,98%*$AG11,IF(OR($A11=4,$A11=5),$AG11*99%,$AG11)))) -> 958.8697244 | AI11: =IF($AF11<VLOOKUP($B11,'sh1'!$N$16:$O$19,2,1)*$AD11,VLOOKUP($B11,'sh1'!$N$16:$O$19,2,1)*$AD11,$AF11) -> 1200 | AJ11: =IF($AG11<VLOOKUP($B11,'sh1'!$N$16:$O$19,2,1)*$AE11,VLOOKUP($B11,'sh1'!$N$16:$O$19,2,1)*$AE11,$AG11) -> 1200 | AK11: =AI11-AF11 -> 220 | AL11: =$U11 -> 980 | AM11: =($AL11-W11)*(1+4.5%)-$Z11/VLOOKUP($A11,'sh1'!$N$7:$O$12,2,1) -> 1024.035628 | AN11: =IF($A11=1,95%*$AM11,IF($A11=2,97%*$AM11,IF($A11=3,98%*$AM11,IF(OR($A11=4,$A11=5),$AM11*99%,$AM11)))) -> 972.8338466 | AO11: =IF($AL11<VLOOKUP($B11,'sh1'!$N$16:$O$19,2,1)*$AD11,VLOOKUP($B11,'sh1'!$N$16:$O$19,2,1)*$AD11,$AL11) -> 1200 | AP11: =IF($AM11<VLOOKUP($B11,'sh1'!$N$16:$O$19,2,1)*$AE11,VLOOKUP($B11,'sh1'!$N$16:$O$19,2,1)*$AE11,$AM11) -> 1200 | AQ11: =AO11-AL11 -> 220 | AR11: =$U11 -> 980 | AS11: =($AR11-X11)*(1+6%)-$Z11/VLOOKUP($A11,'sh1'!$N$7:$O$12,2,1) -> 1038.734704 | AT11: =IF($A11=1,95%*$AS11,IF($A11=2,97%*$AS11,IF($A11=3,98%*$AS11,IF(OR($A11=4,$A11=5),$AS11*99%,$AS11)))) -> 986.7979688 | AU11: =IF($AR11<VLOOKUP($B11,'sh1'!$N$16:$O$19,2,1)*$AD11,VLOOKUP($B11,'sh1'!$N$16:$O$19,2,1)*$AD11,$AR11) -> 1200 | AV11: =IF($AS11<VLOOKUP($B11,'sh1'!$N$16:$O$19,2,1)*$AE11,VLOOKUP($B11,'sh1'!$N$16:$O$19,2,1)*$AE11,$AS11) -> 1200 | AW11: =AU11-AR11 -> 220 | AX11: =$G$4&"|"&(IF($I$3="男",0,1))&"|"&$G$3&"|"&A11 -> 5|0|15|1
A12: 2 | B12: =$G$3+A12-1 -> 16 | C12: =$G$3+A12 -> 17 | D12: =IF(A12<=$G$4,$I$4,"") -> 180000 | E12: =SUM($D$11:D12) -> 360000 | F12: =SUM(($G$3='sh1'!$D$2:$D$4061)*(IF($I$3="男",0,1)='sh1'!$C$2:$C$4061)*($G$4='sh1'!$B$2:$B$4061)*(A12='sh1'!$F$2:$F$4061)*('sh1'!$G$2:$G$4061))*($I$4/1000) -> 158704.2 | G12: =SUM(($AX12='sh1'!$K$2:$K$4061)*('sh1'!$H$2:$H$4061))*($I$4/1000) -> 267505.2 | H12: =IF($A12>10,0,IF($G12<$E12,$E12,$G12)) -> 360000 | I12: =IF(OR($A12=5,$A12=6),VLOOKUP($G$4,'sh1'!$N$2:$O$4,2,0)*$O12,0) -> 0 | J12: =IF(AND($A12>=7,$A12<=10),$N12,0) -> 0 | L12: =SUM(($AX12='sh1'!$K$2:$K$4061)*('sh1'!$H$2:$H$4061))*($I$4/1000) -> 267505.2 | N12: =INDEX('sh1'!$J$2:$J$4061,$K$3+$A12-1)*$L12 -> 158704.2 | O12: =$N12/$O$3/COUNTIF($D$11:$D$20,">0") -> 180000 | R12: =$I11+$J11 -> 0 | S12: =SUM($R$11:R12,$P$11:P12,$Q$11:Q12) -> 1000 | T12: =-($P12+$Q12)*2%-$R12*1% -> 0 | U12: 0 | V12: =SUM(($B12='sh1'!$R$3:$R$214)*(IF($I$3="男",0,1)='sh1'!$Q$3:$Q$214)*('sh1'!$S$3:$S$214))/1000*AK12 -> 0.0571990344 | W12: =SUM(($B12='sh1'!$R$3:$R$214)*(IF($I$3="男",0,1)='sh1'!$Q$3:$Q$214)*('sh1'!$S$3:$S$214))/1000*AQ12 -> 0.0527893116 | X12: =SUM(($B12='sh1'!$R$3:$R$214)*(IF($I$3="男",0,1)='sh1'!$Q$3:$Q$214)*('sh1'!$S$3:$S$214))/1000*AW12 -> 0.0483795888 | Y12: =IF($A12=7,(SUM($I1:$I10)+SUM($J1:$J10))*1%,IF($A12>=8,($I10+$J10)*1%,0)) -> 0 | AA12: =-$Z12/VLOOKUP($A12,'sh1'!$N$7:$O$12,2,1) -> 0 | AB12: =SUM($AA$11:AA12) -> 0 | AC12: =$S12+$AB12 -> 1000 | AD12: =$S12+$AB11 -> 1000 | AE12: =$S12+$AB12 -> 1000 | AF12: =$AG11+$U12+$Y12 -> 1009.336552 | AG12: =($AF12-$V12)*(1+3%)-$Z12/VLOOKUP($A12,'sh1'!$N$7:$O$12,2,1) -> 1039.557734 | AH12: =IF($A12=1,95%*$AG12,IF($A12=2,97%*$AG12,IF($A12=3,98%*$AG12,IF(OR($A12=4,$A12=5),$AG12*99%,$AG12)))) -> 1008.371002 | AI12: =IF($AG11<VLOOKUP($B12,'sh1'!$N$16:$O$19,2,1)*$AD12,VLOOKUP($B12,'sh1'!$N$16:$O$19,2,1)*$AD12,$AG11) -> 1200 | AJ12: =IF($AG12<VLOOKUP($B12,'sh1'!$N$16:$O$19,2,1)*$AE12,VLOOKUP($B12,'sh1'!$N$16:$O$19,2,1)*$AE12,$AG12) -> 1200 | AK12: =IF(AI12-AG11-U12<0,0,AI12-AG11-U12) -> 190.663448 | AL12: =$AM11+$U12+$Y12 -> 1024.035628 | AM12: =($AL12-W12)*(1+4.5%)-$Z12/VLOOKUP($A12,'sh1'!$N$7:$O$12,2,1) -> 1070.062066 | AN12: =IF($A12=1,95%*$AM12,IF($A12=2,97%*$AM12,IF($A12=3,98%*$AM12,IF(OR($A12=4,$A12=5),$AM12*99%,$AM12)))) -> 1037.960204 | AO12: =IF($AM11<VLOOKUP($B12,'sh1'!$N$16:$O$19,2,1)*$AD12,VLOOKUP($B12,'sh1'!$N$16:$O$19,2,1)*$AD12,$AM11) -> 1200 | AP12: =IF($AM12<VLOOKUP($B12,'sh1'!$N$16:$O$19,2,1)*$AE12,VLOOKUP($B12,'sh1'!$N$16:$O$19,2,1)*$AE12,$AM12) -> 1200 | AQ12: =IF(AO12-AM11-U12<0,0,AO12-AM11-U12) -> 175.964372 | AR12: =$AS11+$U12+$Y12 -> 1038.734704 | AS12: =($AR12-X12)*(1+6%)-$Z12/VLOOKUP($A12,'sh1'!$N$7:$O$12,2,1) -> 1101.007504 | AT12: =IF($A12=1,95%*$AS12,IF($A12=2,97%*$AS12,IF($A12=3,98%*$AS12,IF(OR($A12=4,$A12=5),$AS12*99%,$AS12)))) -> 1067.977279 | AU12: =IF($AS11<VLOOKUP($B12,'sh1'!$N$16:$O$19,2,1)*$AD12,VLOOKUP($B12,'sh1'!$N$16:$O$19,2,1)*$AD12,$AS11) -> 1200 | AV12: =IF($AS12<VLOOKUP($B12,'sh1'!$N$16:$O$19,2,1)*$AE12,VLOOKUP($B12,'sh1'!$N$16:$O$19,2,1)*$AE12,$AS12) -> 1200 | AW12: =IF(AU12-AS11-U12<0,0,AU12-AS11-U12) -> 161.265296 | AX12: =$G$4&"|"&(IF($I$3="男",0,1))&"|"&$G$3&"|"&A12 -> 5|0|15|2
A13: 3 | B13: =$G$3+A13-1 -> 17 | C13: =$G$3+A13 -> 18 | D13: =IF(A13<=$G$4,$I$4,"") -> 180000 | E13: =SUM($D$11:D13) -> 540000 | F13: =SUM(($G$3='sh1'!$D$2:$D$4061)*(IF($I$3="男",0,1)='sh1'!$C$2:$C$4061)*($G$4='sh1'!$B$2:$B$4061)*(A13='sh1'!$F$2:$F$4061)*('sh1'!$G$2:$G$4061))*($I$4/1000) -> 158704.2 | G13: =SUM(($AX13='sh1'!$K$2:$K$4061)*('sh1'!$H$2:$H$4061))*($I$4/1000) -> 453223.8 | H13: =IF($A13>10,0,IF($G13<$E13,$E13,$G13)) -> 540000 | I13: =IF(OR($A13=5,$A13=6),VLOOKUP($G$4,'sh1'!$N$2:$O$4,2,0)*$O13,0) -> 0 | J13: =IF(AND($A13>=7,$A13<=10),$N13,0) -> 0 | L13: =INDEX('sh1'!$I$2:$I$4061,$K$3+$A13-1)*$L12-$K13 -> 453223.8 | M13: =IF($K13<>0,$N12-$N13,0) -> 0 | N13: =INDEX('sh1'!$J$2:$J$4061,$K$3+$A13-1)*$L13 -> 158704.2 | O13: =$N13/$O$3/COUNTIF($D$11:$D$20,">0") -> 180000 | R13: 0 | S13: =SUM($R$11:R13,$P$11:P13,$Q$11:Q13) -> 1000 | T13: =-($P13+$Q13)*2%-$R13*1% -> 0 | U13: 0 | V13: =SUM(($B13='sh1'!$R$3:$R$214)*(IF($I$3="男",0,1)='sh1'!$Q$3:$Q$214)*('sh1'!$S$3:$S$214))/1000*AK13 -> 0.05134152526 | W13: =SUM(($B13='sh1'!$R$3:$R$214)*(IF($I$3="男",0,1)='sh1'!$Q$3:$Q$214)*('sh1'!$S$3:$S$214))/1000*AQ13 -> 0.04158013874 | X13: =SUM(($B13='sh1'!$R$3:$R$214)*(IF($I$3="男",0,1)='sh1'!$Q$3:$Q$214)*('sh1'!$S$3:$S$214))/1000*AW13 -> 0.03167759876 | Y13: 0 | AA13: =-$Z13/VLOOKUP($A13,'sh1'!$N$7:$O$12,2,1) -> 0 | AB13: =SUM($AA$11:AA13) -> 0 | AC13: =$S13+$AB13 -> 1000 | AD13: =$S13+$AB12 -> 1000 | AE13: =$S13+$AB13 -> 1000 | AF13: =$AG12+$U13+$Y13 -> 1039.557734 | AG13: =($AF13-$V13)*(1+3%)-$Z13/VLOOKUP($A13,'sh1'!$N$7:$O$12,2,1) -> 1070.691584 | AH13: =IF($A13=1,95%*$AG13,IF($A13=2,97%*$AG13,IF($A13=3,98%*$AG13,IF(OR($A13=4,$A13=5),$AG13*99%,$AG13)))) -> 1049.277752 | AI13: =IF($AG12<VLOOKUP($B13,'sh1'!$N$16:$O$19,2,1)*$AD13,VLOOKUP($B13,'sh1'!$N$16:$O$19,2,1)*$AD13,$AG12) -> 1200 | AJ13: =IF($AG13<VLOOKUP($B13,'sh1'!$N$16:$O$19,2,1)*$AE13,VLOOKUP($B13,'sh1'!$N$16:$O$19,2,1)*$AE13,$AG13) -> 1200 | AK13: =IF(AI13-AG12-U13<0,0,AI13-AG12-U13) -> 160.4422664 | AL13: =$AM12+$U13+$Y13 -> 1070.062066 | AM13: =($AL13-W13)*(1+4.5%)-$Z13/VLOOKUP($A13,'sh1'!$N$7:$O$12,2,1) -> 1118.171408 | AN13: =IF($A13=1,95%*$AM13,IF($A13=2,97%*$AM13,IF($A13=3,98%*$AM13,IF(OR($A13=4,$A13=5),$AM13*99%,$AM13)))) -> 1095.80798 | AO13: =IF($AM12<VLOOKUP($B13,'sh1'!$N$16:$O$19,2,1)*$AD13,VLOOKUP($B13,'sh1'!$N$16:$O$19,2,1)*$AD13,$AM12) -> 1200 | AP13: =IF($AM13<VLOOKUP($B13,'sh1'!$N$16:$O$19,2,1)*$AE13,VLOOKUP($B13,'sh1'!$N$16:$O$19,2,1)*$AE13,$AM13) -> 1200 | AQ13: =IF(AO13-AM12-U13<0,0,AO13-AM12-U13) -> 129.9379336 | AR13: =$AS12+$U13+$Y13 -> 1101.007504 | AS13: =($AR13-X13)*(1+6%)-$Z13/VLOOKUP($A13,'sh1'!$N$7:$O$12,2,1) -> 1167.034376 | AT13: =IF($A13=1,95%*$AS13,IF($A13=2,97%*$AS13,IF($A13=3,98%*$AS13,IF(OR($A13=4,$A13=5),$AS13*99%,$AS13)))) -> 1143.693688 | AU13: =IF($AS12<VLOOKUP($B13,'sh1'!$N$16:$O$19,2,1)*$AD13,VLOOKUP($B13,'sh1'!$N$16:$O$19,2,1)*$AD13,$AS12) -> 1200 | AV13: =IF($AS13<VLOOKUP($B13,'sh1'!$N$16:$O$19,2,1)*$AE13,VLOOKUP($B13,'sh1'!$N$16:$O$19,2,1)*$AE13,$AS13) -> 1200 | AW13: =IF(AU13-AS12-U13<0,0,AU13-AS12-U13) -> 98.99249612 | AX13: =$G$4&"|"&(IF($I$3="男",0,1))&"|"&$G$3&"|"&A13 -> 5|0|15|3
A14: 4 | B14: =$G$3+A14-1 -> 18 | C14: =$G$3+A14 -> 19 | D14: 180000 | E14: =SUM($D$11:D14) -> 720000 | F14: =SUM(($G$3='sh1'!$D$2:$D$4061)*(IF($I$3="男",0,1)='sh1'!$C$2:$C$4061)*($G$4='sh1'!$B$2:$B$4061)*(A14='sh1'!$F$2:$F$4061)*('sh1'!$G$2:$G$4061))*($I$4/1000) -> 158704.2 | G14: =SUM(($AX14='sh1'!$K$2:$K$4061)*('sh1'!$H$2:$H$4061))*($I$4/1000) -> 656553.6 | H14: 720000 | I14: =IF(OR($A14=5,$A14=6),VLOOKUP($G$4,'sh1'!$N$2:$O$4,2,0)*$O14,0) -> 0 | J14: 0 | L14: =INDEX('sh1'!$I$2:$I$4061,$K$3+$A14-1)*$L13-$K14 -> 656553.6 | M14: =IF($K14<>0,$N13-$N14,0) -> 0 | N14: =INDEX('sh1'!$J$2:$J$4061,$K$3+$A14-1)*$L14 -> 158704.2 | O14: 180000 | R14: 0 | S14: =SUM($R$11:R14,$P$11:P14,$Q$11:Q14) -> 1000 | T14: =-($P14+$Q14)*2%-$R14*1% -> 0 | U14: 0 | V14: =SUM(($B14='sh1'!$R$3:$R$214)*(IF($I$3="男",0,1)='sh1'!$Q$3:$Q$214)*('sh1'!$S$3:$S$214))/1000*AK14 -> 0.1746717773 | W14: =SUM(($B14='sh1'!$R$3:$R$214)*(IF($I$3="男",0,1)='sh1'!$Q$3:$Q$214)*('sh1'!$S$3:$S$214))/1000*AQ14 -> 0.1590034353 | X14: =SUM(($B14='sh1'!$R$3:$R$214)*(IF($I$3="男",0,1)='sh1'!$Q$3:$Q$214)*('sh1'!$S$3:$S$214))/1000*AW14 -> 0.142878656 | Y14: 0 | AA14: =-$Z14/VLOOKUP($A14,'sh1'!$N$7:$O$12,2,1) -> 0 | AB14: =SUM($AA$11:AA14) -> 0 | AC14: =$S14+$AB14 -> 1000 | AD14: 1000 | AE14: 1000 | AF14: =$AG13+$U14+$Y14 -> 1070.691584 | AG14: =($AF14-$V14)*(1+3%)-$Z14/VLOOKUP($A14,'sh1'!$N$7:$O$12,2,1) -> 1102.632419 | AH14: 1091.606095 | AI14: =IF($AG13<VLOOKUP($B14,'sh1'!$N$16:$O$19,2,1)*$AD14,VLOOKUP($B14,'sh1'!$N$16:$O$19,2,1)*$AD14,$AG13) -> 1600 | AJ14: =IF($AG14<VLOOKUP($B14,'sh1'!$N$16:$O$19,2,1)*$AE14,VLOOKUP($B14,'sh1'!$N$16:$O$19,2,1)*$AE14,$AG14) -> 1600 | AK14: =IF(AI14-AG13-U14<0,0,AI14-AG13-U14) -> 529.3084162 | AL14: =$AM13+$U14+$Y14 -> 1118.171408 | AM14: =($AL14-W14)*(1+4.5%)-$Z14/VLOOKUP($A14,'sh1'!$N$7:$O$12,2,1) -> 1168.322963 | AN14: 1156.639733 | AO14: =IF($AM13<VLOOKUP($B14,'sh1'!$N$16:$O$19,2,1)*$AD14,VLOOKUP($B14,'sh1'!$N$16:$O$19,2,1)*$AD14,$AM13) -> 1600 | AP14: =IF($AM14<VLOOKUP($B14,'sh1'!$N$16:$O$19,2,1)*$AE14,VLOOKUP($B14,'sh1'!$N$16:$O$19,2,1)*$AE14,$AM14) -> 1600 | AQ14: =IF(AO14-AM13-U14<0,0,AO14-AM13-U14) -> 481.8285918 | AR14: =$AS13+$U14+$Y14 -> 1167.034376 | AS14: =($AR14-X14)*(1+6%)-$Z14/VLOOKUP($A14,'sh1'!$N$7:$O$12,2,1) -> 1236.904987 | AT14: 1224.535937 | AU14: =IF($AS13<VLOOKUP($B14,'sh1'!$N$16:$O$19,2,1)*$AD14,VLOOKUP($B14,'sh1'!$N$16:$O$19,2,1)*$AD14,$AS13) -> 1600 | AV14: =IF($AS14<VLOOKUP($B14,'sh1'!$N$16:$O$19,2,1)*$AE14,VLOOKUP($B14,'sh1'!$N$16:$O$19,2,1)*$AE14,$AS14) -> 1600 | AW14: =IF(AU14-AS13-U14<0,0,AU14-AS13-U14) -> 432.9656241 | AX14: 5|0|15|4
A15: 5 | B15: 19 | C15: 20 | D15: 180000 | E15: =SUM($D$11:D15) -> 900000 | F15: =SUM(($G$3='sh1'!$D$2:$D$4061)*(IF($I$3="男",0,1)='sh1'!$C$2:$C$4061)*($G$4='sh1'!$B$2:$B$4061)*(A15='sh1'!$F$2:$F$4061)*('sh1'!$G$2:$G$4061))*($I$4/1000) -> 158704.2 | G15: =SUM(($AX15='sh1'!$K$2:$K$4061)*('sh1'!$H$2:$H$4061))*($I$4/1000) -> 698686.2 | H15: 900000 | I15: =IF(OR($A15=5,$A15=6),VLOOKUP($G$4,'sh1'!$N$2:$O$4,2,0)*$O15,0) -> 180000 | J15: 0 | L15: =INDEX('sh1'!$I$2:$I$4061,$K$3+$A15-1)*$L14-$K15 -> 698686.2 | M15: 0 | N15: =INDEX('sh1'!$J$2:$J$4061,$K$3+$A15-1)*$L15 -> 158704.2 | O15: 180000 | R15: 0 | S15: =SUM($R$11:R15,$P$11:P15,$Q$11:Q15) -> 1000 | T15: 0 | U15: 0 | V15: =SUM(($B15='sh1'!$R$3:$R$214)*(IF($I$3="男",0,1)='sh1'!$Q$3:$Q$214)*('sh1'!$S$3:$S$214))/1000*AK15 -> 0.1740786532 | W15: =SUM(($B15='sh1'!$R$3:$R$214)*(IF($I$3="男",0,1)='sh1'!$Q$3:$Q$214)*('sh1'!$S$3:$S$214))/1000*AQ15 -> 0.151086963 | X15: =SUM(($B15='sh1'!$R$3:$R$214)*(IF($I$3="男",0,1)='sh1'!$Q$3:$Q$214)*('sh1'!$S$3:$S$214))/1000*AW15 -> 0.1270832545 | Y15: 0 | AA15: =-$Z15/VLOOKUP($A15,'sh1'!$N$7:$O$12,2,1) -> 0 | AB15: =SUM($AA$11:AA15) -> 0 | AC15: 1000 | AD15: 1000 | AE15: 1000 | AF15: 1102.632419 | AG15: =($AF15-$V15)*(1+3%)-$Z15/VLOOKUP($A15,'sh1'!$N$7:$O$12,2,1) -> 1135.532091 | AH15: 1124.17677 | AI15: =IF($AG14<VLOOKUP($B15,'sh1'!$N$16:$O$19,2,1)*$AD15,VLOOKUP($B15,'sh1'!$N$16:$O$19,2,1)*$AD15,$AG14) -> 1600 | AJ15: =IF($AG15<VLOOKUP($B15,'sh1'!$N$16:$O$19,2,1)*$AE15,VLOOKUP($B15,'sh1'!$N$16:$O$19,2,1)*$AE15,$AG15) -> 1600 | AK15: =IF(AI15-AG14-U15<0,0,AI15-AG14-U15) -> 497.3675806 | AL15: 1168.322963 | AM15: =($AL15-W15)*(1+4.5%)-$Z15/VLOOKUP($A15,'sh1'!$N$7:$O$12,2,1) -> 1220.73961 | AN15: 1208.532214 | AO15: =IF($AM14<VLOOKUP($B15,'sh1'!$N$16:$O$19,2,1)*$AD15,VLOOKUP($B15,'sh1'!$N$16:$O$19,2,1)*$AD15,$AM14) -> 1600 | AP15: =IF($AM15<VLOOKUP($B15,'sh1'!$N$16:$O$19,2,1)*$AE15,VLOOKUP($B15,'sh1'!$N$16:$O$19,2,1)*$AE15,$AM15) -> 1600 | AQ15: =IF(AO15-AM14-U15<0,0,AO15-AM14-U15) -> 431.677037 | AR15: 1236.904987 | AS15: =($AR15-X15)*(1+6%)-$Z15/VLOOKUP($A15,'sh1'!$N$7:$O$12,2,1) -> 1310.984578 | AT15: 1297.874732 | AU15: =IF($AS14<VLOOKUP($B15,'sh1'!$N$16:$O$19,2,1)*$AD15,VLOOKUP($B15,'sh1'!$N$16:$O$19,2,1)*$AD15,$AS14) -> 1600 | AV15: =IF($AS15<VLOOKUP($B15,'sh1'!$N$16:$O$19,2,1)*$AE15,VLOOKUP($B15,'sh1'!$N$16:$O$19,2,1)*$AE15,$AS15) -> 1600 | AW15: =IF(AU15-AS14-U15<0,0,AU15-AS14-U15) -> 363.095013 | AX15: 5|0|15|5
A16: 6 | B16: 20 | C16: 21 | E16: =SUM($D$11:D16) -> 900000 | F16: =SUM(($G$3='sh1'!$D$2:$D$4061)*(IF($I$3="男",0,1)='sh1'!$C$2:$C$4061)*($G$4='sh1'!$B$2:$B$4061)*(A16='sh1'!$F$2:$F$4061)*('sh1'!$G$2:$G$4061))*($I$4/1000) -> 158704.2 | G16: =SUM(($AX16='sh1'!$K$2:$K$4061)*('sh1'!$H$2:$H$4061))*($I$4/1000) -> 557046 | H16: 900000 | I16: =IF(OR($A16=5,$A16=6),VLOOKUP($G$4,'sh1'!$N$2:$O$4,2,0)*$O16,0) -> 180000 | J16: 0 | L16: =INDEX('sh1'!$I$2:$I$4061,$K$3+$A16-1)*$L15-$K16 -> 557046 | M16: 0 | N16: =INDEX('sh1'!$J$2:$J$4061,$K$3+$A16-1)*$L16 -> 158704.2 | O16: 180000 | R16: =$I15+$J15 -> 180000 | S16: =SUM($R$11:R16,$P$11:P16,$Q$11:Q16) -> 181000 | T16: -1800 | U16: 178200 | V16: =SUM(($B16='sh1'!$R$3:$R$214)*(IF($I$3="男",0,1)='sh1'!$Q$3:$Q$214)*('sh1'!$S$3:$S$214))/1000*AK16 -> 39.69520845 | W16: =SUM(($B16='sh1'!$R$3:$R$214)*(IF($I$3="男",0,1)='sh1'!$Q$3:$Q$214)*('sh1'!$S$3:$S$214))/1000*AQ16 -> 39.66453374 | X16: =SUM(($B16='sh1'!$R$3:$R$214)*(IF($I$3="男",0,1)='sh1'!$Q$3:$Q$214)*('sh1'!$S$3:$S$214))/1000*AW16 -> 39.63204555 | Y16: 0 | AA16: =-$Z16/VLOOKUP($A16,'sh1'!$N$7:$O$12,2,1) -> 0 | AB16: =SUM($AA$11:AA16) -> 0 | AC16: 181000 | AD16: 181000 | AE16: 181000 | AF16: 179335.5321 | AG16: =($AF16-$V16)*(1+3%)-$Z16/VLOOKUP($A16,'sh1'!$N$7:$O$12,2,1) -> 184674.712 | AH16: 184674.712 | AI16: =IF($AG15<VLOOKUP($B16,'sh1'!$N$16:$O$19,2,1)*$AD16,VLOOKUP($B16,'sh1'!$N$16:$O$19,2,1)*$AD16,$AG15) -> 289600 | AJ16: =IF($AG16<VLOOKUP($B16,'sh1'!$N$16:$O$19,2,1)*$AE16,VLOOKUP($B16,'sh1'!$N$16:$O$19,2,1)*$AE16,$AG16) -> 289600 | AK16: 110264.4679 | AL16: 179420.7396 | AM16: =($AL16-W16)*(1+4.5%)-$Z16/VLOOKUP($A16,'sh1'!$N$7:$O$12,2,1) -> 187453.2235 | AN16: 187453.2235 | AO16: =IF($AM15<VLOOKUP($B16,'sh1'!$N$16:$O$19,2,1)*$AD16,VLOOKUP($B16,'sh1'!$N$16:$O$19,2,1)*$AD16,$AM15) -> 289600 | AP16: =IF($AM16<VLOOKUP($B16,'sh1'!$N$16:$O$19,2,1)*$AE16,VLOOKUP($B16,'sh1'!$N$16:$O$19,2,1)*$AE16,$AM16) -> 289600 | AQ16: 110179.2604 | AR16: 179510.9846 | AS16: =($AR16-X16)*(1+6%)-$Z16/VLOOKUP($A16,'sh1'!$N$7:$O$12,2,1) -> 190239.6337 | AT16: 190239.6337 | AU16: =IF($AS15<VLOOKUP($B16,'sh1'!$N$16:$O$19,2,1)*$AD16,VLOOKUP($B16,'sh1'!$N$16:$O$19,2,1)*$AD16,$AS15) -> 289600 | AV16: =IF($AS16<VLOOKUP($B16,'sh1'!$N$16:$O$19,2,1)*$AE16,VLOOKUP($B16,'sh1'!$N$16:$O$19,2,1)*$AE16,$AS16) -> 289600 | AW16: 110089.0154 | AX16: 5|0|15|6
A17: 7 | B17: 21 | C17: 22 | E17: =SUM($D$11:D17) -> 900000 | F17: =SUM(($G$3='sh1'!$D$2:$D$4061)*(IF($I$3="男",0,1)='sh1'!$C$2:$C$4061)*($G$4='sh1'!$B$2:$B$4061)*(A17='sh1'!$F$2:$F$4061)*('sh1'!$G$2:$G$4061))*($I$4/1000) -> 158704.2 | G17: =SUM(($AX17='sh1'!$K$2:$K$4061)*('sh1'!$H$2:$H$4061))*($I$4/1000) -> 428853.6 | H17: 900000 | I17: =IF(OR($A17=5,$A17=6),VLOOKUP($G$4,'sh1'!$N$2:$O$4,2,0)*$O17,0) -> 0 | J17: 158704.2 | L17: =INDEX('sh1'!$I$2:$I$4061,$K$3+$A17-1)*$L16-$K17 -> 428853.6 | M17: 0 | N17: =INDEX('sh1'!$J$2:$J$4061,$K$3+$A17-1)*$L17 -> 158704.2 | O17: 180000 | R17: =$I16+$J16 -> 180000 | S17: =SUM($R$11:R17,$P$11:P17,$Q$11:Q17) -> 361000 | T17: -1800 | U17: =$R17+$P17+$Q17+$T17 -> 178200 | V17: =SUM(($B17='sh1'!$R$3:$R$214)*(IF($I$3="男",0,1)='sh1'!$Q$3:$Q$214)*('sh1'!$S$3:$S$214))/1000*AK17 -> 81.59560944 | W17: =SUM(($B17='sh1'!$R$3:$R$214)*(IF($I$3="男",0,1)='sh1'!$Q$3:$Q$214)*('sh1'!$S$3:$S$214))/1000*AQ17 -> 80.53977509 | X17: =SUM(($B17='sh1'!$R$3:$R$214)*(IF($I$3="男",0,1)='sh1'!$Q$3:$Q$214)*('sh1'!$S$3:$S$214))/1000*AW17 -> 79.4809392 | Y17: 1800 | AA17: =-$Z17/VLOOKUP($A17,'sh1'!$N$7:$O$12,2,1) -> 0 | AB17: =SUM($AA$11:AA17) -> 0 | AC17: 361000 | AD17: 361000 | AE17: 361000 | AF17: 364674.712 | AG17: =($AF17-$V17)*(1+3%)-$Z17/VLOOKUP($A17,'sh1'!$N$7:$O$12,2,1) -> 375530.9099 | AH17: 375530.9099 | AI17: =IF($AG16<VLOOKUP($B17,'sh1'!$N$16:$O$19,2,1)*$AD17,VLOOKUP($B17,'sh1'!$N$16:$O$19,2,1)*$AD17,$AG16) -> 577600 | AJ17: =IF($AG17<VLOOKUP($B17,'sh1'!$N$16:$O$19,2,1)*$AE17,VLOOKUP($B17,'sh1'!$N$16:$O$19,2,1)*$AE17,$AG17) -> 577600 | AK17: 214725.288 | AL17: 367453.2235 | AM17: =($AL17-W17)*(1+4.5%)-$Z17/VLOOKUP($A17,'sh1'!$N$7:$O$12,2,1) -> 383904.4544 | AN17: 383904.4544 | AO17: =IF($AM16<VLOOKUP($B17,'sh1'!$N$16:$O$19,2,1)*$AD17,VLOOKUP($B17,'sh1'!$N$16:$O$19,2,1)*$AD17,$AM16) -> 577600 | AP17: =IF($AM17<VLOOKUP($B17,'sh1'!$N$16:$O$19,2,1)*$AE17,VLOOKUP($B17,'sh1'!$N$16:$O$19,2,1)*$AE17,$AM17) -> 577600 | AQ17: 211946.7765 | AR17: 370239.6337 | AS17: =($AR17-X17)*(1+6%)-$Z17/VLOOKUP($A17,'sh1'!$N$7:$O$12,2,1) -> 392369.7619 | AT17: 392369.7619 | AU17: =IF($AS16<VLOOKUP($B17,'sh1'!$N$16:$O$19,2,1)*$AD17,VLOOKUP($B17,'sh1'!$N$16:$O$19,2,1)*$AD17,$AS16) -> 577600 | AV17: =IF($AS17<VLOOKUP($B17,'sh1'!$N$16:$O$19,2,1)*$AE17,VLOOKUP($B17,'sh1'!$N$16:$O$19,2,1)*$AE17,$AS17) -> 577600 | AW17: 209160.3663 | AX17: 5|0|15|7
A18: 8 | B18: 22 | C18: 23 | E18: =SUM($D$11:D18) -> 900000 | F18: =SUM(($G$3='sh1'!$D$2:$D$4061)*(IF($I$3="男",0,1)='sh1'!$C$2:$C$4061)*($G$4='sh1'!$B$2:$B$4061)*(A18='sh1'!$F$2:$F$4061)*('sh1'!$G$2:$G$4061))*($I$4/1000) -> 158704.2 | G18: =SUM(($AX18='sh1'!$K$2:$K$4061)*('sh1'!$H$2:$H$4061))*($I$4/1000) -> 293551.2 | H18: 900000 | I18: =IF(OR($A18=5,$A18=6),VLOOKUP($G$4,'sh1'!$N$2:$O$4,2,0)*$O18,0) -> 0 | J18: 158704.2 | L18: =INDEX('sh1'!$I$2:$I$4061,$K$3+$A18-1)*$L17-$K18 -> 293551.2 | M18: 0 | N18: =INDEX('sh1'!$J$2:$J$4061,$K$3+$A18-1)*$L18 -> 158704.2 | O18: 180000 | R18: 158704.2 | S18: =SUM($R$11:R18,$P$11:P18,$Q$11:Q18) -> 519704.2 | T18: -1587.042 | U18: =$R18+$P18+$Q18+$T18 -> 157117.158 | V18: =SUM(($B18='sh1'!$R$3:$R$214)*(IF($I$3="男",0,1)='sh1'!$Q$3:$Q$214)*('sh1'!$S$3:$S$214))/1000*AK18 -> 116.5626743 | W18: =SUM(($B18='sh1'!$R$3:$R$214)*(IF($I$3="男",0,1)='sh1'!$Q$3:$Q$214)*('sh1'!$S$3:$S$214))/1000*AQ18 -> 113.2969919 | X18: =SUM(($B18='sh1'!$R$3:$R$214)*(IF($I$3="男",0,1)='sh1'!$Q$3:$Q$214)*('sh1'!$S$3:$S$214))/1000*AW18 -> 109.995522 | Y18: =IF($A18=7,(SUM($I7:$I16)+SUM($J7:$J16))*1%,IF($A18>=8,($I16+$J16)*1%,0)) -> 1800 | AA18: =-$Z18/VLOOKUP($A18,'sh1'!$N$7:$O$12,2,1) -> 0 | AB18: =SUM($AA$11:AA18) -> 0 | AC18: 519704.2 | AD18: 519704.2 | AE18: 519704.2 | AF18: 534448.0679 | AG18: =($AF18-$V18)*(1+3%)-$Z18/VLOOKUP($A18,'sh1'!$N$7:$O$12,2,1) -> 550361.4504 | AH18: 550361.4504 | AI18: =IF($AG17<VLOOKUP($B18,'sh1'!$N$16:$O$19,2,1)*$AD18,VLOOKUP($B18,'sh1'!$N$16:$O$19,2,1)*$AD18,$AG17) -> 831526.72 | AJ18: =IF($AG18<VLOOKUP($B18,'sh1'!$N$16:$O$19,2,1)*$AE18,VLOOKUP($B18,'sh1'!$N$16:$O$19,2,1)*$AE18,$AG18) -> 831526.72 | AK18: 298878.6521 | AL18: 542821.6124 | AM18: =($AL18-W18)*(1+4.5%)-$Z18/VLOOKUP($A18,'sh1'!$N$7:$O$12,2,1) -> 567130.1896 | AN18: 567130.1896 | AO18: =IF($AM17<VLOOKUP($B18,'sh1'!$N$16:$O$19,2,1)*$AD18,VLOOKUP($B18,'sh1'!$N$16:$O$19,2,1)*$AD18,$AM17) -> 831526.72 | AP18: =IF($AM18<VLOOKUP($B18,'sh1'!$N$16:$O$19,2,1)*$AE18,VLOOKUP($B18,'sh1'!$N$16:$O$19,2,1)*$AE18,$AM18) -> 831526.72 | AQ18: 290505.1076 | AR18: 551286.9199 | AS18: =($AR18-X18)*(1+6%)-$Z18/VLOOKUP($A18,'sh1'!$N$7:$O$12,2,1) -> 584247.5399 | AT18: 584247.5399 | AU18: =IF($AS17<VLOOKUP($B18,'sh1'!$N$16:$O$19,2,1)*$AD18,VLOOKUP($B18,'sh1'!$N$16:$O$19,2,1)*$AD18,$AS17) -> 831526.72 | AV18: =IF($AS18<VLOOKUP($B18,'sh1'!$N$16:$O$19,2,1)*$AE18,VLOOKUP($B18,'sh1'!$N$16:$O$19,2,1)*$AE18,$AS18) -> 831526.72 | AW18: 282039.8001 | AX18: 5|0|15|8
A19: 9 | B19: 23 | C19: 24 | E19: =SUM($D$11:D19) -> 900000 | F19: =SUM(($G$3='sh1'!$D$2:$D$4061)*(IF($I$3="男",0,1)='sh1'!$C$2:$C$4061)*($G$4='sh1'!$B$2:$B$4061)*(A19='sh1'!$F$2:$F$4061)*('sh1'!$G$2:$G$4061))*($I$4/1000) -> 158704.2 | G19: =SUM(($AX19='sh1'!$K$2:$K$4061)*('sh1'!$H$2:$H$4061))*($I$4/1000) -> 150741 | H19: 900000 | I19: =IF(OR($A19=5,$A19=6),VLOOKUP($G$4,'sh1'!$N$2:$O$4,2,0)*$O19,0) -> 0 | J19: 158704.2 | L19: =INDEX('sh1'!$I$2:$I$4061,$K$3+$A19-1)*$L18-$K19 -> 150741 | M19: 0 | N19: =INDEX('sh1'!$J$2:$J$4061,$K$3+$A19-1)*$L19 -> 158704.2 | O19: 180000 | R19: 158704.2 | S19: =SUM($R$11:R19,$P$11:P19,$Q$11:Q19) -> 678408.4 | T19: -1587.042 | U19: =$R19+$P19+$Q19+$T19 -> 157117.158 | V19: =SUM(($B19='sh1'!$R$3:$R$214)*(IF($I$3="男",0,1)='sh1'!$Q$3:$Q$214)*('sh1'!$S$3:$S$214))/1000*AK19 -> 154.969681 | W19: =SUM(($B19='sh1'!$R$3:$R$214)*(IF($I$3="男",0,1)='sh1'!$Q$3:$Q$214)*('sh1'!$S$3:$S$214))/1000*AQ19 -> 148.0944979 | X19: =SUM(($B19='sh1'!$R$3:$R$214)*(IF($I$3="男",0,1)='sh1'!$Q$3:$Q$214)*('sh1'!$S$3:$S$214))/1000*AW19 -> 141.0763843 | Y19: =IF($A19=7,(SUM($I8:$I17)+SUM($J8:$J17))*1%,IF($A19>=8,($I17+$J17)*1%,0)) -> 1587.042 | AA19: =-$Z19/VLOOKUP($A19,'sh1'!$N$7:$O$12,2,1) -> 0 | AB19: =SUM($AA$11:AA19) -> 0 | AC19: 678408.4 | AD19: 678408.4 | AE19: 678408.4 | AF19: 709065.6504 | AG19: =($AF19-$V19)*(1+3%)-$Z19/VLOOKUP($A19,'sh1'!$N$7:$O$12,2,1) -> 730178.0011 | AH19: 730178.0011 | AI19: =IF($AG18<VLOOKUP($B19,'sh1'!$N$16:$O$19,2,1)*$AD19,VLOOKUP($B19,'sh1'!$N$16:$O$19,2,1)*$AD19,$AG18) -> 1085453.44 | AJ19: =IF($AG19<VLOOKUP($B19,'sh1'!$N$16:$O$19,2,1)*$AE19,VLOOKUP($B19,'sh1'!$N$16:$O$19,2,1)*$AE19,$AG19) -> 1085453.44 | AK19: 377974.8316 | AL19: 725834.3896 | AM19: =($AL19-W19)*(1+4.5%)-$Z19/VLOOKUP($A19,'sh1'!$N$7:$O$12,2,1) -> 758342.1784 | AN19: 758342.1784 | AO19: =IF($AM18<VLOOKUP($B19,'sh1'!$N$16:$O$19,2,1)*$AD19,VLOOKUP($B19,'sh1'!$N$16:$O$19,2,1)*$AD19,$AM18) -> 1085453.44 | AP19: =IF($AM19<VLOOKUP($B19,'sh1'!$N$16:$O$19,2,1)*$AE19,VLOOKUP($B19,'sh1'!$N$16:$O$19,2,1)*$AE19,$AM19) -> 1085453.44 | AQ19: 361206.0924 | AR19: 742951.7399 | AS19: =($AR19-X19)*(1+6%)-$Z19/VLOOKUP($A19,'sh1'!$N$7:$O$12,2,1) -> 787379.3033 | AT19: 787379.3033 | AU19: =IF($AS18<VLOOKUP($B19,'sh1'!$N$16:$O$19,2,1)*$AD19,VLOOKUP($B19,'sh1'!$N$16:$O$19,2,1)*$AD19,$AS18) -> 1085453.44 | AV19: =IF($AS19<VLOOKUP($B19,'sh1'!$N$16:$O$19,2,1)*$AE19,VLOOKUP($B19,'sh1'!$N$16:$O$19,2,1)*$AE19,$AS19) -> 1085453.44 | AW19: 344088.7421 | AX19: 5|0|15|9
A20: 10 | B20: 24 | C20: 25 | E20: =SUM($D$11:D20) -> 900000 | F20: =SUM(($G$3='sh1'!$D$2:$D$4061)*(IF($I$3="男",0,1)='sh1'!$C$2:$C$4061)*($G$4='sh1'!$B$2:$B$4061)*(A20='sh1'!$F$2:$F$4061)*('sh1'!$G$2:$G$4061))*($I$4/1000) -> 158704.2 | G20: =SUM(($AX20='sh1'!$K$2:$K$4061)*('sh1'!$H$2:$H$4061))*($I$4/1000) -> 0 | H20: 900000 | I20: =IF(OR($A20=5,$A20=6),VLOOKUP($G$4,'sh1'!$N$2:$O$4,2,0)*$O20,0) -> 0 | J20: =$N$19 -> 158704.2 | L20: =INDEX('sh1'!$I$2:$I$4061,$K$3+$A20-1)*$L19-$K20 -> 0 | N20: =INDEX('sh1'!$J$2:$J$4061,$K$3+$A20-1)*$L20 -> 0 | O20: =$N20/$O$3/COUNTIF($D$11:$D$20,">0") -> 0 | R20: 158704.2 | S20: =SUM($R$11:R20,$P$11:P20,$Q$11:Q20) -> 837112.6 | T20: -1587.042 | U20: 157117.158 | V20: =SUM(($B20='sh1'!$R$3:$R$214)*(IF($I$3="男",0,1)='sh1'!$Q$3:$Q$214)*('sh1'!$S$3:$S$214))/1000*AK20 -> 194.3965504 | W20: =SUM(($B20='sh1'!$R$3:$R$214)*(IF($I$3="男",0,1)='sh1'!$Q$3:$Q$214)*('sh1'!$S$3:$S$214))/1000*AQ20 -> 182.2859541 | X20: =SUM(($B20='sh1'!$R$3:$R$214)*(IF($I$3="男",0,1)='sh1'!$Q$3:$Q$214)*('sh1'!$S$3:$S$214))/1000*AW20 -> 169.7999905 | Y20: =IF($A20=7,(SUM($I9:$I18)+SUM($J9:$J18))*1%,IF($A20>=8,($I18+$J18)*1%,0)) -> 1587.042 | AA20: =-$Z20/VLOOKUP($A20,'sh1'!$N$7:$O$12,2,1) -> 0 | AB20: =SUM($AA$11:AA20) -> 0 | AC20: 837112.6 | AD20: 837112.6 | AE20: 837112.6 | AF20: 888882.2011 | AG20: =($AF20-$V20)*(1+3%)-$Z20/VLOOKUP($A20,'sh1'!$N$7:$O$12,2,1) -> 915348.4387 | AH20: 915348.4387 | AI20: =IF($AG19<VLOOKUP($B20,'sh1'!$N$16:$O$19,2,1)*$AD20,VLOOKUP($B20,'sh1'!$N$16:$O$19,2,1)*$AD20,$AG19) -> 1339380.16 | AJ20: =IF($AG20<VLOOKUP($B20,'sh1'!$N$16:$O$19,2,1)*$AE20,VLOOKUP($B20,'sh1'!$N$16:$O$19,2,1)*$AE20,$AG20) -> 1339380.16 | AK20: 452085.0009 | AL20: 917046.3784 | AM20: =($AL20-W20)*(1+4.5%)-$Z20/VLOOKUP($A20,'sh1'!$N$7:$O$12,2,1) -> 958122.9766 | AN20: 958122.9766 | AO20: =IF($AM19<VLOOKUP($B20,'sh1'!$N$16:$O$19,2,1)*$AD20,VLOOKUP($B20,'sh1'!$N$16:$O$19,2,1)*$AD20,$AM19) -> 1339380.16 | AP20: =IF($AM20<VLOOKUP($B20,'sh1'!$N$16:$O$19,2,1)*$AE20,VLOOKUP($B20,'sh1'!$N$16:$O$19,2,1)*$AE20,$AM20) -> 1339380.16 | AQ20: 423920.8236 | AR20: 946083.5033 | AS20: =($AR20-X20)*(1+6%)-$Z20/VLOOKUP($A20,'sh1'!$N$7:$O$12,2,1) -> 1002668.525 | AT20: 1002668.525 | AU20: =IF($AS19<VLOOKUP($B20,'sh1'!$N$16:$O$19,2,1)*$AD20,VLOOKUP($B20,'sh1'!$N$16:$O$19,2,1)*$AD20,$AS19) -> 1339380.16 | AV20: =IF($AS20<VLOOKUP($B20,'sh1'!$N$16:$O$19,2,1)*$AE20,VLOOKUP($B20,'sh1'!$N$16:$O$19,2,1)*$AE20,$AS20) -> 1339380.16 | AW20: 394883.6987 | AX20: 5|0|15|10
A21: 11 | B21: 25 | C21: 26 | O21: 0 | R21: 158704.2 | S21: =SUM($R$11:R21,$P$11:P21,$Q$11:Q21) -> 995816.8 | T21: -1587.042 | U21: 157117.158 | V21: =SUM(($B21='sh1'!$R$3:$R$214)*(IF($I$3="男",0,1)='sh1'!$Q$3:$Q$214)*('sh1'!$S$3:$S$214))/1000*AK21 -> 234.3785775 | W21: =SUM(($B21='sh1'!$R$3:$R$214)*(IF($I$3="男",0,1)='sh1'!$Q$3:$Q$214)*('sh1'!$S$3:$S$214))/1000*AQ21 -> 215.1300354 | X21: =SUM(($B21='sh1'!$R$3:$R$214)*(IF($I$3="男",0,1)='sh1'!$Q$3:$Q$214)*('sh1'!$S$3:$S$214))/1000*AW21 -> 195.0845384 | Y21: 1587.042 | AA21: =-$Z21/VLOOKUP($A21,'sh1'!$N$7:$O$12,2,1) -> 0 | AB21: =SUM($AA$11:AA21) -> 0 | AC21: 995816.8 | AD21: 995816.8 | AE21: 995816.8 | AF21: 1074052.639 | AG21: =($AF21-$V21)*(1+3%)-$Z21/VLOOKUP($A21,'sh1'!$N$7:$O$12,2,1) -> 1106032.808 | AH21: 1106032.808 | AI21: =IF($AG20<VLOOKUP($B21,'sh1'!$N$16:$O$19,2,1)*$AD21,VLOOKUP($B21,'sh1'!$N$16:$O$19,2,1)*$AD21,$AG20) -> 1593306.88 | AJ21: =IF($AG21<VLOOKUP($B21,'sh1'!$N$16:$O$19,2,1)*$AE21,VLOOKUP($B21,'sh1'!$N$16:$O$19,2,1)*$AE21,$AG21) -> 1593306.88 | AK21: 520841.2833 | AL21: 1116827.177 | AM21: =($AL21-W21)*(1+4.5%)-$Z21/VLOOKUP($A21,'sh1'!$N$7:$O$12,2,1) -> 1166859.589 | AN21: 1166859.589 | AO21: =IF($AM20<VLOOKUP($B21,'sh1'!$N$16:$O$19,2,1)*$AD21,VLOOKUP($B21,'sh1'!$N$16:$O$19,2,1)*$AD21,$AM20) -> 1593306.88 | AP21: =IF($AM21<VLOOKUP($B21,'sh1'!$N$16:$O$19,2,1)*$AE21,VLOOKUP($B21,'sh1'!$N$16:$O$19,2,1)*$AE21,$AM21) -> 1593306.88 | AQ21: 478066.7454 | AR21: 1161372.725 | AS21: =($AR21-X21)*(1+6%)-$Z21/VLOOKUP($A21,'sh1'!$N$7:$O$12,2,1) -> 1230848.299 | AT21: 1230848.299 | AU21: =IF($AS20<VLOOKUP($B21,'sh1'!$N$16:$O$19,2,1)*$AD21,VLOOKUP($B21,'sh1'!$N$16:$O$19,2,1)*$AD21,$AS20) -> 1593306.88 | AV21: =IF($AS21<VLOOKUP($B21,'sh1'!$N$16:$O$19,2,1)*$AE21,VLOOKUP($B21,'sh1'!$N$16:$O$19,2,1)*$AE21,$AS21) -> 1593306.88 | AW21: 433521.1965 | AX21: 5|0|15|11
A22: 12 | B22: 26 | C22: =$G$3+A22 -> 27 | R22: =$I21+$J21 -> 0 | S22: =SUM($R$11:R22,$P$11:P22,$Q$11:Q22) -> 995816.8 | T22: 0 | U22: 0 | V22: =SUM(($B22='sh1'!$R$3:$R$214)*(IF($I$3="男",0,1)='sh1'!$Q$3:$Q$214)*('sh1'!$S$3:$S$214))/1000*AK22 -> 229.0188139 | W22: =SUM(($B22='sh1'!$R$3:$R$214)*(IF($I$3="男",0,1)='sh1'!$Q$3:$Q$214)*('sh1'!$S$3:$S$214))/1000*AQ22 -> 200.4302269 | X22: =SUM(($B22='sh1'!$R$3:$R$214)*(IF($I$3="男",0,1)='sh1'!$Q$3:$Q$214)*('sh1'!$S$3:$S$214))/1000*AW22 -> 170.3555329 | Y22: 1587.042 | AA22: =-$Z22/VLOOKUP($A22,'sh1'!$N$7:$O$12,2,1) -> 0 | AB22: =SUM($AA$11:AA22) -> 0 | AC22: 995816.8 | AD22: =$S22+$AB21 -> 995816.8 | AE22: 995816.8 | AF22: =$AG21+$U22+$Y22 -> 1107619.85 | AG22: =($AF22-$V22)*(1+3%)-$Z22/VLOOKUP($A22,'sh1'!$N$7:$O$12,2,1) -> 1140612.556 | AH22: 1140612.556 | AI22: =IF($AG21<VLOOKUP($B22,'sh1'!$N$16:$O$19,2,1)*$AD22,VLOOKUP($B22,'sh1'!$N$16:$O$19,2,1)*$AD22,$AG21) -> 1593306.88 | AJ22: =IF($AG22<VLOOKUP($B22,'sh1'!$N$16:$O$19,2,1)*$AE22,VLOOKUP($B22,'sh1'!$N$16:$O$19,2,1)*$AE22,$AG22) -> 1593306.88 | AK22: =IF(AI22-AG21-U22<0,0,AI22-AG21-U22) -> 487274.0721 | AL22: =$AM21+$U22+$Y22 -> 1168446.631 | AM22: =($AL22-W22)*(1+4.5%)-$Z22/VLOOKUP($A22,'sh1'!$N$7:$O$12,2,1) -> 1220817.279 | AN22: 1220817.279 | AO22: =IF($AM21<VLOOKUP($B22,'sh1'!$N$16:$O$19,2,1)*$AD22,VLOOKUP($B22,'sh1'!$N$16:$O$19,2,1)*$AD22,$AM21) -> 1593306.88 | AP22: =IF($AM22<VLOOKUP($B22,'sh1'!$N$16:$O$19,2,1)*$AE22,VLOOKUP($B22,'sh1'!$N$16:$O$19,2,1)*$AE22,$AM22) -> 1593306.88 | AQ22: =IF(AO22-AM21-U22<0,0,AO22-AM21-U22) -> 426447.2913 | AR22: =$AS21+$U22+$Y22 -> 1232435.341 | AS22: =($AR22-X22)*(1+6%)-$Z22/VLOOKUP($A22,'sh1'!$N$7:$O$12,2,1) -> 1306200.885 | AT22: 1306200.885 | AU22: =IF($AS21<VLOOKUP($B22,'sh1'!$N$16:$O$19,2,1)*$AD22,VLOOKUP($B22,'sh1'!$N$16:$O$19,2,1)*$AD22,$AS21) -> 1593306.88 | AV22: =IF($AS22<VLOOKUP($B22,'sh1'!$N$16:$O$19,2,1)*$AE22,VLOOKUP($B22,'sh1'!$N$16:$O$19,2,1)*$AE22,$AS22) -> 1593306.88 | AW22: =IF(AU22-AS21-U22<0,0,AU22-AS21-U22) -> 362458.5806 | AX22: 5|0|15|12
A23: 13 | B23: 27 | C23: =$G$3+A23 -> 28 | R23: =$I22+$J22 -> 0 | S23: =SUM($R$11:R23,$P$11:P23,$Q$11:Q23) -> 995816.8 | T23: 0 | U23: 0 | V23: =SUM(($B23='sh1'!$R$3:$R$214)*(IF($I$3="男",0,1)='sh1'!$Q$3:$Q$214)*('sh1'!$S$3:$S$214))/1000*AK23 -> 226.347162 | W23: =SUM(($B23='sh1'!$R$3:$R$214)*(IF($I$3="男",0,1)='sh1'!$Q$3:$Q$214)*('sh1'!$S$3:$S$214))/1000*AQ23 -> 186.2448003 | X23: =SUM(($B23='sh1'!$R$3:$R$214)*(IF($I$3="男",0,1)='sh1'!$Q$3:$Q$214)*('sh1'!$S$3:$S$214))/1000*AW23 -> 143.5529975 | Y23: 0 | AA23: =-$Z23/VLOOKUP($A23,'sh1'!$N$7:$O$12,2,1) -> 0 | AB23: =SUM($AA$11:AA23) -> 0 | AC23: 995816.8 | AD23: =$S23+$AB22 -> 995816.8 | AE23: 995816.8 | AF23: =$AG22+$U23+$Y23 -> 1140612.556 | AG23: =($AF23-$V23)*(1+3%)-$Z23/VLOOKUP($A23,'sh1'!$N$7:$O$12,2,1) -> 1174597.795 | AH23: 1174597.795 | AI23: =IF($AG22<VLOOKUP($B23,'sh1'!$N$16:$O$19,2,1)*$AD23,VLOOKUP($B23,'sh1'!$N$16:$O$19,2,1)*$AD23,$AG22) -> 1593306.88 | AJ23: =IF($AG23<VLOOKUP($B23,'sh1'!$N$16:$O$19,2,1)*$AE23,VLOOKUP($B23,'sh1'!$N$16:$O$19,2,1)*$AE23,$AG23) -> 1593306.88 | AK23: =IF(AI23-AG22-U23<0,0,AI23-AG22-U23) -> 452694.324 | AL23: =$AM22+$U23+$Y23 -> 1220817.279 | AM23: =($AL23-W23)*(1+4.5%)-$Z23/VLOOKUP($A23,'sh1'!$N$7:$O$12,2,1) -> 1275559.431 | AN23: 1275559.431 | AO23: =IF($AM22<VLOOKUP($B23,'sh1'!$N$16:$O$19,2,1)*$AD23,VLOOKUP($B23,'sh1'!$N$16:$O$19,2,1)*$AD23,$AM22) -> 1593306.88 | AP23: =IF($AM23<VLOOKUP($B23,'sh1'!$N$16:$O$19,2,1)*$AE23,VLOOKUP($B23,'sh1'!$N$16:$O$19,2,1)*$AE23,$AM23) -> 1593306.88 | AQ23: =IF(AO23-AM22-U23<0,0,AO23-AM22-U23) -> 372489.6005 | AR23: =$AS22+$U23+$Y23 -> 1306200.885 | AS23: =($AR23-X23)*(1+6%)-$Z23/VLOOKUP($A23,'sh1'!$N$7:$O$12,2,1) -> 1384420.772 | AT23: 1384420.772 | AU23: =IF($AS22<VLOOKUP($B23,'sh1'!$N$16:$O$19,2,1)*$AD23,VLOOKUP($B23,'sh1'!$N$16:$O$19,2,1)*$AD23,$AS22) -> 1593306.88 | AV23: =IF($AS23<VLOOKUP($B23,'sh1'!$N$16:$O$19,2,1)*$AE23,VLOOKUP($B23,'sh1'!$N$16:$O$19,2,1)*$AE23,$AS23) -> 1593306.88 | AW23: =IF(AU23-AS22-U23<0,0,AU23-AS22-U23) -> 287105.995 | AX23: 5|0|15|13
A24: 14 | B24: 28 | C24: 29 | R24: 0 | S24: =SUM($R$11:R24,$P$11:P24,$Q$11:Q24) -> 995816.8 | T24: 0 | U24: 0 | V24: =SUM(($B24='sh1'!$R$3:$R$214)*(IF($I$3="男",0,1)='sh1'!$Q$3:$Q$214)*('sh1'!$S$3:$S$214))/1000*AK24 -> 221.915815 | W24: =SUM(($B24='sh1'!$R$3:$R$214)*(IF($I$3="男",0,1)='sh1'!$Q$3:$Q$214)*('sh1'!$S$3:$S$214))/1000*AQ24 -> 168.4061478 | X24: =SUM(($B24='sh1'!$R$3:$R$214)*(IF($I$3="男",0,1)='sh1'!$Q$3:$Q$214)*('sh1'!$S$3:$S$214))/1000*AW24 -> 110.7096373 | Y24: 0 | AA24: =-$Z24/VLOOKUP($A24,'sh1'!$N$7:$O$12,2,1) -> 0 | AB24: =SUM($AA$11:AA24) -> 0 | AC24: 995816.8 | AD24: 995816.8 | AE24: 995816.8 | AF24: 1174597.795 | AG24: =($AF24-$V24)*(1+3%)-$Z24/VLOOKUP($A24,'sh1'!$N$7:$O$12,2,1) -> 1209607.156 | AH24: 1209607.156 | AI24: =IF($AG23<VLOOKUP($B24,'sh1'!$N$16:$O$19,2,1)*$AD24,VLOOKUP($B24,'sh1'!$N$16:$O$19,2,1)*$AD24,$AG23) -> 1593306.88 | AJ24: =IF($AG24<VLOOKUP($B24,'sh1'!$N$16:$O$19,2,1)*$AE24,VLOOKUP($B24,'sh1'!$N$16:$O$19,2,1)*$AE24,$AG24) -> 1593306.88 | AK24: 418709.0849 | AL24: 1275559.431 | AM24: =($AL24-W24)*(1+4.5%)-$Z24/VLOOKUP($A24,'sh1'!$N$7:$O$12,2,1) -> 1332783.621 | AN24: 1332783.621 | AO24: =IF($AM23<VLOOKUP($B24,'sh1'!$N$16:$O$19,2,1)*$AD24,VLOOKUP($B24,'sh1'!$N$16:$O$19,2,1)*$AD24,$AM23) -> 1593306.88 | AP24: =IF($AM24<VLOOKUP($B24,'sh1'!$N$16:$O$19,2,1)*$AE24,VLOOKUP($B24,'sh1'!$N$16:$O$19,2,1)*$AE24,$AM24) -> 1593306.88 | AQ24: 317747.4487 | AR24: 1384420.772 | AS24: =($AR24-X24)*(1+6%)-$Z24/VLOOKUP($A24,'sh1'!$N$7:$O$12,2,1) -> 1467368.666 | AT24: 1467368.666 | AU24: =IF($AS23<VLOOKUP($B24,'sh1'!$N$16:$O$19,2,1)*$AD24,VLOOKUP($B24,'sh1'!$N$16:$O$19,2,1)*$AD24,$AS23) -> 1593306.88 | AV24: =IF($AS24<VLOOKUP($B24,'sh1'!$N$16:$O$19,2,1)*$AE24,VLOOKUP($B24,'sh1'!$N$16:$O$19,2,1)*$AE24,$AS24) -> 1593306.88 | AW24: 208886.1081 | AX24: 5|0|15|14
A25: 15 | B25: 29 | C25: 30 | R25: 0 | S25: =SUM($R$11:R25,$P$11:P25,$Q$11:Q25) -> 995816.8 | T25: 0 | U25: 0 | V25: =SUM(($B25='sh1'!$R$3:$R$214)*(IF($I$3="男",0,1)='sh1'!$Q$3:$Q$214)*('sh1'!$S$3:$S$214))/1000*AK25 -> 214.8718456 | W25: =SUM(($B25='sh1'!$R$3:$R$214)*(IF($I$3="男",0,1)='sh1'!$Q$3:$Q$214)*('sh1'!$S$3:$S$214))/1000*AQ25 -> 145.8930249 | X25: =SUM(($B25='sh1'!$R$3:$R$214)*(IF($I$3="男",0,1)='sh1'!$Q$3:$Q$214)*('sh1'!$S$3:$S$214))/1000*AW25 -> 70.52539982 | Y25: 0 | AA25: =-$Z25/VLOOKUP($A25,'sh1'!$N$7:$O$12,2,1) -> 0 | AB25: =SUM($AA$11:AA25) -> 0 | AC25: 995816.8 | AD25: 995816.8 | AE25: 995816.8 | AF25: 1209607.156 | AG25: =($AF25-$V25)*(1+3%)-$Z25/VLOOKUP($A25,'sh1'!$N$7:$O$12,2,1) -> 1245674.052 | AH25: 1245674.052 | AI25: =IF($AG24<VLOOKUP($B25,'sh1'!$N$16:$O$19,2,1)*$AD25,VLOOKUP($B25,'sh1'!$N$16:$O$19,2,1)*$AD25,$AG24) -> 1593306.88 | AJ25: =IF($AG25<VLOOKUP($B25,'sh1'!$N$16:$O$19,2,1)*$AE25,VLOOKUP($B25,'sh1'!$N$16:$O$19,2,1)*$AE25,$AG25) -> 1593306.88 | AK25: 383699.7243 | AL25: 1332783.621 | AM25: =($AL25-W25)*(1+4.5%)-$Z25/VLOOKUP($A25,'sh1'!$N$7:$O$12,2,1) -> 1392606.426 | AN25: 1392606.426 | AO25: =IF($AM24<VLOOKUP($B25,'sh1'!$N$16:$O$19,2,1)*$AD25,VLOOKUP($B25,'sh1'!$N$16:$O$19,2,1)*$AD25,$AM24) -> 1593306.88 | AP25: =IF($AM25<VLOOKUP($B25,'sh1'!$N$16:$O$19,2,1)*$AE25,VLOOKUP($B25,'sh1'!$N$16:$O$19,2,1)*$AE25,$AM25) -> 1593306.88 | AQ25: 260523.2588 | AR25: 1467368.666 | AS25: =($AR25-X25)*(1+6%)-$Z25/VLOOKUP($A25,'sh1'!$N$7:$O$12,2,1) -> 1555336.029 | AT25: 1555336.029 | AU25: =IF($AS24<VLOOKUP($B25,'sh1'!$N$16:$O$19,2,1)*$AD25,VLOOKUP($B25,'sh1'!$N$16:$O$19,2,1)*$AD25,$AS24) -> 1593306.88 | AV25: =IF($AS25<VLOOKUP($B25,'sh1'!$N$16:$O$19,2,1)*$AE25,VLOOKUP($B25,'sh1'!$N$16:$O$19,2,1)*$AE25,$AS25) -> 1593306.88 | AW25: 125938.214 | AX25: 5|0|15|15
A26: 16 | B26: 30 | C26: 31 | R26: 0 | S26: =SUM($R$11:R26,$P$11:P26,$Q$11:Q26) -> 995816.8 | T26: 0 | U26: 0 | V26: =SUM(($B26='sh1'!$R$3:$R$214)*(IF($I$3="男",0,1)='sh1'!$Q$3:$Q$214)*('sh1'!$S$3:$S$214))/1000*AK26 -> 208.5796966 | W26: =SUM(($B26='sh1'!$R$3:$R$214)*(IF($I$3="男",0,1)='sh1'!$Q$3:$Q$214)*('sh1'!$S$3:$S$214))/1000*AQ26 -> 120.4202724 | X26: =SUM(($B26='sh1'!$R$3:$R$214)*(IF($I$3="男",0,1)='sh1'!$Q$3:$Q$214)*('sh1'!$S$3:$S$214))/1000*AW26 -> 22.78251055 | Y26: 0 | AA26: =-$Z26/VLOOKUP($A26,'sh1'!$N$7:$O$12,2,1) -> 0 | AB26: =SUM($AA$11:AA26) -> 0 | AC26: 995816.8 | AD26: 995816.8 | AE26: 995816.8 | AF26: 1245674.052 | AG26: =($AF26-$V26)*(1+3%)-$Z26/VLOOKUP($A26,'sh1'!$N$7:$O$12,2,1) -> 1282829.437 | AH26: 1282829.437 | AI26: =IF($AG25<VLOOKUP($B26,'sh1'!$N$16:$O$19,2,1)*$AD26,VLOOKUP($B26,'sh1'!$N$16:$O$19,2,1)*$AD26,$AG25) -> 1593306.88 | AJ26: =IF($AG26<VLOOKUP($B26,'sh1'!$N$16:$O$19,2,1)*$AE26,VLOOKUP($B26,'sh1'!$N$16:$O$19,2,1)*$AE26,$AG26) -> 1593306.88 | AK26: 347632.8276 | AL26: 1392606.426 | AM26: =($AL26-W26)*(1+4.5%)-$Z26/VLOOKUP($A26,'sh1'!$N$7:$O$12,2,1) -> 1455147.876 | AN26: 1455147.876 | AO26: =IF($AM25<VLOOKUP($B26,'sh1'!$N$16:$O$19,2,1)*$AD26,VLOOKUP($B26,'sh1'!$N$16:$O$19,2,1)*$AD26,$AM25) -> 1593306.88 | AP26: =IF($AM26<VLOOKUP($B26,'sh1'!$N$16:$O$19,2,1)*$AE26,VLOOKUP($B26,'sh1'!$N$16:$O$19,2,1)*$AE26,$AM26) -> 1593306.88 | AQ26: 200700.454 | AR26: 1555336.029 | AS26: =($AR26-X26)*(1+6%)-$Z26/VLOOKUP($A26,'sh1'!$N$7:$O$12,2,1) -> 1648632.041 | AT26: 1648632.041 | AU26: =IF($AS25<VLOOKUP($B26,'sh1'!$N$16:$O$19,2,1)*$AD26,VLOOKUP($B26,'sh1'!$N$16:$O$19,2,1)*$AD26,$AS25) -> 1593306.88 | AV26: =IF($AS26<VLOOKUP($B26,'sh1'!$N$16:$O$19,2,1)*$AE26,VLOOKUP($B26,'sh1'!$N$16:$O$19,2,1)*$AE26,$AS26) -> 1648632.041 | AW26: 37970.85092 | AX26: 5|0|15|16
A27: 17 | B27: 31 | C27: 32 | R27: 0 | S27: =SUM($R$11:R27,$P$11:P27,$Q$11:Q27) -> 995816.8 | T27: 0 | U27: 0 | V27: =SUM(($B27='sh1'!$R$3:$R$214)*(IF($I$3="男",0,1)='sh1'!$Q$3:$Q$214)*('sh1'!$S$3:$S$214))/1000*AK27 -> 198.7055636 | W27: =SUM(($B27='sh1'!$R$3:$R$214)*(IF($I$3="男",0,1)='sh1'!$Q$3:$Q$214)*('sh1'!$S$3:$S$214))/1000*AQ27 -> 88.42176258 | X27: =SUM(($B27='sh1'!$R$3:$R$214)*(IF($I$3="男",0,1)='sh1'!$Q$3:$Q$214)*('sh1'!$S$3:$S$214))/1000*AW27 -> 0 | Y27: 0 | AA27: =-$Z27/VLOOKUP($A27,'sh1'!$N$7:$O$12,2,1) -> 0 | AB27: =SUM($AA$11:AA27) -> 0 | AC27: 995816.8 | AD27: 995816.8 | AE27: 995816.8 | AF27: 1282829.437 | AG27: =($AF27-$V27)*(1+3%)-$Z27/VLOOKUP($A27,'sh1'!$N$7:$O$12,2,1) -> 1321109.653 | AH27: 1321109.653 | AI27: =IF($AG26<VLOOKUP($B27,'sh1'!$N$16:$O$19,2,1)*$AD27,VLOOKUP($B27,'sh1'!$N$16:$O$19,2,1)*$AD27,$AG26) -> 1593306.88 | AJ27: =IF($AG27<VLOOKUP($B27,'sh1'!$N$16:$O$19,2,1)*$AE27,VLOOKUP($B27,'sh1'!$N$16:$O$19,2,1)*$AE27,$AG27) -> 1593306.88 | AK27: 310477.4432 | AL27: 1455147.876 | AM27: =($AL27-W27)*(1+4.5%)-$Z27/VLOOKUP($A27,'sh1'!$N$7:$O$12,2,1) -> 1520537.13 | AN27: 1520537.13 | AO27: =IF($AM26<VLOOKUP($B27,'sh1'!$N$16:$O$19,2,1)*$AD27,VLOOKUP($B27,'sh1'!$N$16:$O$19,2,1)*$AD27,$AM26) -> 1593306.88 | AP27: =IF($AM27<VLOOKUP($B27,'sh1'!$N$16:$O$19,2,1)*$AE27,VLOOKUP($B27,'sh1'!$N$16:$O$19,2,1)*$AE27,$AM27) -> 1593306.88 | AQ27: 138159.004 | AR27: 1648632.041 | AS27: =($AR27-X27)*(1+6%)-$Z27/VLOOKUP($A27,'sh1'!$N$7:$O$12,2,1) -> 1747549.964 | AT27: 1747549.964 | AU27: =IF($AS26<VLOOKUP($B27,'sh1'!$N$16:$O$19,2,1)*$AD27,VLOOKUP($B27,'sh1'!$N$16:$O$19,2,1)*$AD27,$AS26) -> 1648632.041 | AV27: =IF($AS27<VLOOKUP($B27,'sh1'!$N$16:$O$19,2,1)*$AE27,VLOOKUP($B27,'sh1'!$N$16:$O$19,2,1)*$AE27,$AS27) -> 1747549.964 | AW27: 0 | AX27: 5|0|15|17
A28: 18 | B28: 32 | C28: 33 | R28: 0 | S28: =SUM($R$11:R28,$P$11:P28,$Q$11:Q28) -> 995816.8 | T28: 0 | U28: 0 | V28: =SUM(($B28='sh1'!$R$3:$R$214)*(IF($I$3="男",0,1)='sh1'!$Q$3:$Q$214)*('sh1'!$S$3:$S$214))/1000*AK28 -> 185.0941142 | W28: =SUM(($B28='sh1'!$R$3:$R$214)*(IF($I$3="男",0,1)='sh1'!$Q$3:$Q$214)*('sh1'!$S$3:$S$214))/1000*AQ28 -> 49.48343024 | X28: =SUM(($B28='sh1'!$R$3:$R$214)*(IF($I$3="男",0,1)='sh1'!$Q$3:$Q$214)*('sh1'!$S$3:$S$214))/1000*AW28 -> 0 | Y28: 0 | AA28: =-$Z28/VLOOKUP($A28,'sh1'!$N$7:$O$12,2,1) -> 0 | AB28: =SUM($AA$11:AA28) -> 0 | AC28: 995816.8 | AD28: 995816.8 | AE28: 995816.8 | AF28: 1321109.653 | AG28: =($AF28-$V28)*(1+3%)-$Z28/VLOOKUP($A28,'sh1'!$N$7:$O$12,2,1) -> 1360552.296 | AH28: 1360552.296 | AI28: =IF($AG27<VLOOKUP($B28,'sh1'!$N$16:$O$19,2,1)*$AD28,VLOOKUP($B28,'sh1'!$N$16:$O$19,2,1)*$AD28,$AG27) -> 1593306.88 | AJ28: =IF($AG28<VLOOKUP($B28,'sh1'!$N$16:$O$19,2,1)*$AE28,VLOOKUP($B28,'sh1'!$N$16:$O$19,2,1)*$AE28,$AG28) -> 1593306.88 | AK28: 272197.2268 | AL28: 1520537.13 | AM28: =($AL28-W28)*(1+4.5%)-$Z28/VLOOKUP($A28,'sh1'!$N$7:$O$12,2,1) -> 1588909.59 | AN28: 1588909.59 | AO28: =IF($AM27<VLOOKUP($B28,'sh1'!$N$16:$O$19,2,1)*$AD28,VLOOKUP($B28,'sh1'!$N$16:$O$19,2,1)*$AD28,$AM27) -> 1593306.88 | AP28: =IF($AM28<VLOOKUP($B28,'sh1'!$N$16:$O$19,2,1)*$AE28,VLOOKUP($B28,'sh1'!$N$16:$O$19,2,1)*$AE28,$AM28) -> 1593306.88 | AQ28: 72769.75035 | AR28: 1747549.964 | AS28: =($AR28-X28)*(1+6%)-$Z28/VLOOKUP($A28,'sh1'!$N$7:$O$12,2,1) -> 1852402.962 | AT28: 1852402.962 | AU28: =IF($AS27<VLOOKUP($B28,'sh1'!$N$16:$O$19,2,1)*$AD28,VLOOKUP($B28,'sh1'!$N$16:$O$19,2,1)*$AD28,$AS27) -> 1747549.964 | AV28: =IF($AS28<VLOOKUP($B28,'sh1'!$N$16:$O$19,2,1)*$AE28,VLOOKUP($B28,'sh1'!$N$16:$O$19,2,1)*$AE28,$AS28) -> 1852402.962 | AW28: 0 | AX28: 5|0|15|18
A29: 19 | B29: 33 | C29: 34 | R29: 0 | S29: =SUM($R$11:R29,$P$11:P29,$Q$11:Q29) -> 995816.8 | T29: 0 | U29: 0 | V29: =SUM(($B29='sh1'!$R$3:$R$214)*(IF($I$3="男",0,1)='sh1'!$Q$3:$Q$214)*('sh1'!$S$3:$S$214))/1000*AK29 -> 169.9108464 | W29: =SUM(($B29='sh1'!$R$3:$R$214)*(IF($I$3="男",0,1)='sh1'!$Q$3:$Q$214)*('sh1'!$S$3:$S$214))/1000*AQ29 -> 3.210021484 | X29: =SUM(($B29='sh1'!$R$3:$R$214)*(IF($I$3="男",0,1)='sh1'!$Q$3:$Q$214)*('sh1'!$S$3:$S$214))/1000*AW29 -> 0 | Y29: 0 | AA29: =-$Z29/VLOOKUP($A29,'sh1'!$N$7:$O$12,2,1) -> 0 | AB29: =SUM($AA$11:AA29) -> 0 | AC29: 995816.8 | AD29: 995816.8 | AE29: 995816.8 | AF29: 1360552.296 | AG29: =($AF29-$V29)*(1+3%)-$Z29/VLOOKUP($A29,'sh1'!$N$7:$O$12,2,1) -> 1401193.857 | AH29: 1401193.857 | AI29: =IF($AG28<VLOOKUP($B29,'sh1'!$N$16:$O$19,2,1)*$AD29,VLOOKUP($B29,'sh1'!$N$16:$O$19,2,1)*$AD29,$AG28) -> 1593306.88 | AJ29: =IF($AG29<VLOOKUP($B29,'sh1'!$N$16:$O$19,2,1)*$AE29,VLOOKUP($B29,'sh1'!$N$16:$O$19,2,1)*$AE29,$AG29) -> 1593306.88 | AK29: 232754.5841 | AL29: 1588909.59 | AM29: =($AL29-W29)*(1+4.5%)-$Z29/VLOOKUP($A29,'sh1'!$N$7:$O$12,2,1) -> 1660407.167 | AN29: 1660407.167 | AO29: =IF($AM28<VLOOKUP($B29,'sh1'!$N$16:$O$19,2,1)*$AD29,VLOOKUP($B29,'sh1'!$N$16:$O$19,2,1)*$AD29,$AM28) -> 1593306.88 | AP29: =IF($AM29<VLOOKUP($B29,'sh1'!$N$16:$O$19,2,1)*$AE29,VLOOKUP($B29,'sh1'!$N$16:$O$19,2,1)*$AE29,$AM29) -> 1660407.167 | AQ29: 4397.289704 | AR29: 1852402.962 | AS29: =($AR29-X29)*(1+6%)-$Z29/VLOOKUP($A29,'sh1'!$N$7:$O$12,2,1) -> 1963547.139 | AT29: 1963547.139 | AU29: =IF($AS28<VLOOKUP($B29,'sh1'!$N$16:$O$19,2,1)*$AD29,VLOOKUP($B29,'sh1'!$N$16:$O$19,2,1)*$AD29,$AS28) -> 1852402.962 | AV29: =IF($AS29<VLOOKUP($B29,'sh1'!$N$16:$O$19,2,1)*$AE29,VLOOKUP($B29,'sh1'!$N$16:$O$19,2,1)*$AE29,$AS29) -> 1963547.139 | AW29: 0 | AX29: 5|0|15|19
A30: 20 | B30: 34 | C30: 35 | R30: 0 | S30: =SUM($R$11:R30,$P$11:P30,$Q$11:Q30) -> 995816.8 | T30: 0 | U30: 0 | V30: =SUM(($B30='sh1'!$R$3:$R$214)*(IF($I$3="男",0,1)='sh1'!$Q$3:$Q$214)*('sh1'!$S$3:$S$214))/1000*AK30 -> 151.7692885 | W30: =SUM(($B30='sh1'!$R$3:$R$214)*(IF($I$3="男",0,1)='sh1'!$Q$3:$Q$214)*('sh1'!$S$3:$S$214))/1000*AQ30 -> 0 | X30: =SUM(($B30='sh1'!$R$3:$R$214)*(IF($I$3="男",0,1)='sh1'!$Q$3:$Q$214)*('sh1'!$S$3:$S$214))/1000*AW30 -> 0 | Y30: 0 | AA30: =-$Z30/VLOOKUP($A30,'sh1'!$N$7:$O$12,2,1) -> 0 | AB30: =SUM($AA$11:AA30) -> 0 | AC30: 995816.8 | AD30: 995816.8 | AE30: 995816.8 | AF30: 1401193.857 | AG30: =($AF30-$V30)*(1+3%)-$Z30/VLOOKUP($A30,'sh1'!$N$7:$O$12,2,1) -> 1443073.35 | AH30: 1443073.35 | AI30: =IF($AG29<VLOOKUP($B30,'sh1'!$N$16:$O$19,2,1)*$AD30,VLOOKUP($B30,'sh1'!$N$16:$O$19,2,1)*$AD30,$AG29) -> 1593306.88 | AJ30: =IF($AG30<VLOOKUP($B30,'sh1'!$N$16:$O$19,2,1)*$AE30,VLOOKUP($B30,'sh1'!$N$16:$O$19,2,1)*$AE30,$AG30) -> 1593306.88 | AK30: 192113.0234 | AL30: 1660407.167 | AM30: =($AL30-W30)*(1+4.5%)-$Z30/VLOOKUP($A30,'sh1'!$N$7:$O$12,2,1) -> 1735125.49 | AN30: 1735125.49 | AO30: =IF($AM29<VLOOKUP($B30,'sh1'!$N$16:$O$19,2,1)*$AD30,VLOOKUP($B30,'sh1'!$N$16:$O$19,2,1)*$AD30,$AM29) -> 1660407.167 | AP30: =IF($AM30<VLOOKUP($B30,'sh1'!$N$16:$O$19,2,1)*$AE30,VLOOKUP($B30,'sh1'!$N$16:$O$19,2,1)*$AE30,$AM30) -> 1735125.49 | AQ30: 0 | AR30: 1963547.139 | AS30: =($AR30-X30)*(1+6%)-$Z30/VLOOKUP($A30,'sh1'!$N$7:$O$12,2,1) -> 2081359.968 | AT30: 2081359.968 | AU30: =IF($AS29<VLOOKUP($B30,'sh1'!$N$16:$O$19,2,1)*$AD30,VLOOKUP($B30,'sh1'!$N$16:$O$19,2,1)*$AD30,$AS29) -> 1963547.139 | AV30: =IF($AS30<VLOOKUP($B30,'sh1'!$N$16:$O$19,2,1)*$AE30,VLOOKUP($B30,'sh1'!$N$16:$O$19,2,1)*$AE30,$AS30) -> 2081359.968 | AW30: 0 | AX30: 5|0|15|20
A31: 21 | B31: 35 | C31: 36 | R31: 0 | S31: =SUM($R$11:R31,$P$11:P31,$Q$11:Q31) -> 995816.8 | T31: 0 | U31: 0 | V31: =SUM(($B31='sh1'!$R$3:$R$214)*(IF($I$3="男",0,1)='sh1'!$Q$3:$Q$214)*('sh1'!$S$3:$S$214))/1000*AK31 -> 127.6985006 | W31: =SUM(($B31='sh1'!$R$3:$R$214)*(IF($I$3="男",0,1)='sh1'!$Q$3:$Q$214)*('sh1'!$S$3:$S$214))/1000*AQ31 -> 0 | X31: =SUM(($B31='sh1'!$R$3:$R$214)*(IF($I$3="男",0,1)='sh1'!$Q$3:$Q$214)*('sh1'!$S$3:$S$214))/1000*AW31 -> 0 | Y31: 0 | AA31: =-$Z31/VLOOKUP($A31,'sh1'!$N$7:$O$12,2,1) -> 0 | AB31: =SUM($AA$11:AA31) -> 0 | AC31: 995816.8 | AD31: 995816.8 | AE31: 995816.8 | AF31: 1443073.35 | AG31: =($AF31-$V31)*(1+3%)-$Z31/VLOOKUP($A31,'sh1'!$N$7:$O$12,2,1) -> 1486234.021 | AH31: 1486234.021 | AI31: =IF($AG30<VLOOKUP($B31,'sh1'!$N$16:$O$19,2,1)*$AD31,VLOOKUP($B31,'sh1'!$N$16:$O$19,2,1)*$AD31,$AG30) -> 1593306.88 | AJ31: =IF($AG31<VLOOKUP($B31,'sh1'!$N$16:$O$19,2,1)*$AE31,VLOOKUP($B31,'sh1'!$N$16:$O$19,2,1)*$AE31,$AG31) -> 1593306.88 | AK31: 150233.5301 | AL31: 1735125.49 | AM31: =($AL31-W31)*(1+4.5%)-$Z31/VLOOKUP($A31,'sh1'!$N$7:$O$12,2,1) -> 1813206.137 | AN31: 1813206.137 | AO31: =IF($AM30<VLOOKUP($B31,'sh1'!$N$16:$O$19,2,1)*$AD31,VLOOKUP($B31,'sh1'!$N$16:$O$19,2,1)*$AD31,$AM30) -> 1735125.49 | AP31: =IF($AM31<VLOOKUP($B31,'sh1'!$N$16:$O$19,2,1)*$AE31,VLOOKUP($B31,'sh1'!$N$16:$O$19,2,1)*$AE31,$AM31) -> 1813206.137 | AQ31: 0 | AR31: 2081359.968 | AS31: =($AR31-X31)*(1+6%)-$Z31/VLOOKUP($A31,'sh1'!$N$7:$O$12,2,1) -> 2206241.566 | AT31: 2206241.566 | AU31: =IF($AS30<VLOOKUP($B31,'sh1'!$N$16:$O$19,2,1)*$AD31,VLOOKUP($B31,'sh1'!$N$16:$O$19,2,1)*$AD31,$AS30) -> 2081359.968 | AV31: =IF($AS31<VLOOKUP($B31,'sh1'!$N$16:$O$19,2,1)*$AE31,VLOOKUP($B31,'sh1'!$N$16:$O$19,2,1)*$AE31,$AS31) -> 2206241.566 | AW31: 0 | AX31: 5|0|15|21
A32: 22 | B32: 36 | C32: 37 | R32: 0 | S32: =SUM($R$11:R32,$P$11:P32,$Q$11:Q32) -> 995816.8 | T32: 0 | U32: 0 | V32: =SUM(($B32='sh1'!$R$3:$R$214)*(IF($I$3="男",0,1)='sh1'!$Q$3:$Q$214)*('sh1'!$S$3:$S$214))/1000*AK32 -> 98.50703032 | W32: =SUM(($B32='sh1'!$R$3:$R$214)*(IF($I$3="男",0,1)='sh1'!$Q$3:$Q$214)*('sh1'!$S$3:$S$214))/1000*AQ32 -> 0 | X32: =SUM(($B32='sh1'!$R$3:$R$214)*(IF($I$3="男",0,1)='sh1'!$Q$3:$Q$214)*('sh1'!$S$3:$S$214))/1000*AW32 -> 0 | Y32: 0 | AA32: =-$Z32/VLOOKUP($A32,'sh1'!$N$7:$O$12,2,1) -> 0 | AB32: =SUM($AA$11:AA32) -> 0 | AC32: 995816.8 | AD32: 995816.8 | AE32: 995816.8 | AF32: 1486234.021 | AG32: =($AF32-$V32)*(1+3%)-$Z32/VLOOKUP($A32,'sh1'!$N$7:$O$12,2,1) -> 1530719.579 | AH32: 1530719.579 | AI32: =IF($AG31<VLOOKUP($B32,'sh1'!$N$16:$O$19,2,1)*$AD32,VLOOKUP($B32,'sh1'!$N$16:$O$19,2,1)*$AD32,$AG31) -> 1593306.88 | AJ32: =IF($AG32<VLOOKUP($B32,'sh1'!$N$16:$O$19,2,1)*$AE32,VLOOKUP($B32,'sh1'!$N$16:$O$19,2,1)*$AE32,$AG32) -> 1593306.88 | AK32: 107072.859 | AL32: 1813206.137 | AM32: =($AL32-W32)*(1+4.5%)-$Z32/VLOOKUP($A32,'sh1'!$N$7:$O$12,2,1) -> 1894800.413 | AN32: 1894800.413 | AO32: =IF($AM31<VLOOKUP($B32,'sh1'!$N$16:$O$19,2,1)*$AD32,VLOOKUP($B32,'sh1'!$N$16:$O$19,2,1)*$AD32,$AM31) -> 1813206.137 | AP32: =IF($AM32<VLOOKUP($B32,'sh1'!$N$16:$O$19,2,1)*$AE32,VLOOKUP($B32,'sh1'!$N$16:$O$19,2,1)*$AE32,$AM32) -> 1894800.413 | AQ32: 0 | AR32: 2206241.566 | AS32: =($AR32-X32)*(1+6%)-$Z32/VLOOKUP($A32,'sh1'!$N$7:$O$12,2,1) -> 2338616.06 | AT32: 2338616.06 | AU32: =IF($AS31<VLOOKUP($B32,'sh1'!$N$16:$O$19,2,1)*$AD32,VLOOKUP($B32,'sh1'!$N$16:$O$19,2,1)*$AD32,$AS31) -> 2206241.566 | AV32: =IF($AS32<VLOOKUP($B32,'sh1'!$N$16:$O$19,2,1)*$AE32,VLOOKUP($B32,'sh1'!$N$16:$O$19,2,1)*$AE32,$AS32) -> 2338616.06 | AW32: 0 | AX32: 5|0|15|22
A33: 23 | B33: 37 | C33: 38 | R33: 0 | S33: =SUM($R$11:R33,$P$11:P33,$Q$11:Q33) -> 995816.8 | T33: 0 | U33: 0 | V33: =SUM(($B33='sh1'!$R$3:$R$214)*(IF($I$3="男",0,1)='sh1'!$Q$3:$Q$214)*('sh1'!$S$3:$S$214))/1000*AK33 -> 62.58730066 | W33: =SUM(($B33='sh1'!$R$3:$R$214)*(IF($I$3="男",0,1)='sh1'!$Q$3:$Q$214)*('sh1'!$S$3:$S$214))/1000*AQ33 -> 0 | X33: =SUM(($B33='sh1'!$R$3:$R$214)*(IF($I$3="男",0,1)='sh1'!$Q$3:$Q$214)*('sh1'!$S$3:$S$214))/1000*AW33 -> 0 | Y33: 0 | AA33: =-$Z33/VLOOKUP($A33,'sh1'!$N$7:$O$12,2,1) -> 0 | AB33: =SUM($AA$11:AA33) -> 0 | AC33: 995816.8 | AD33: 995816.8 | AE33: 995816.8 | AF33: 1530719.579 | AG33: =($AF33-$V33)*(1+3%)-$Z33/VLOOKUP($A33,'sh1'!$N$7:$O$12,2,1) -> 1576576.702 | AH33: 1576576.702 | AI33: =IF($AG32<VLOOKUP($B33,'sh1'!$N$16:$O$19,2,1)*$AD33,VLOOKUP($B33,'sh1'!$N$16:$O$19,2,1)*$AD33,$AG32) -> 1593306.88 | AJ33: =IF($AG33<VLOOKUP($B33,'sh1'!$N$16:$O$19,2,1)*$AE33,VLOOKUP($B33,'sh1'!$N$16:$O$19,2,1)*$AE33,$AG33) -> 1593306.88 | AK33: 62587.30066 | AL33: 1894800.413 | AM33: =($AL33-W33)*(1+4.5%)-$Z33/VLOOKUP($A33,'sh1'!$N$7:$O$12,2,1) -> 1980066.432 | AN33: 1980066.432 | AO33: =IF($AM32<VLOOKUP($B33,'sh1'!$N$16:$O$19,2,1)*$AD33,VLOOKUP($B33,'sh1'!$N$16:$O$19,2,1)*$AD33,$AM32) -> 1894800.413 | AP33: =IF($AM33<VLOOKUP($B33,'sh1'!$N$16:$O$19,2,1)*$AE33,VLOOKUP($B33,'sh1'!$N$16:$O$19,2,1)*$AE33,$AM33) -> 1980066.432 | AQ33: 0 | AR33: 2338616.06 | AS33: =($AR33-X33)*(1+6%)-$Z33/VLOOKUP($A33,'sh1'!$N$7:$O$12,2,1) -> 2478933.023 | AT33: 2478933.023 | AU33: =IF($AS32<VLOOKUP($B33,'sh1'!$N$16:$O$19,2,1)*$AD33,VLOOKUP($B33,'sh1'!$N$16:$O$19,2,1)*$AD33,$AS32) -> 2338616.06 | AV33: =IF($AS33<VLOOKUP($B33,'sh1'!$N$16:$O$19,2,1)*$AE33,VLOOKUP($B33,'sh1'!$N$16:$O$19,2,1)*$AE33,$AS33) -> 2478933.023 | AW33: 0 | AX33: 5|0|15|23
A34: 24 | B34: 38 | C34: 39 | R34: 0 | S34: =SUM($R$11:R34,$P$11:P34,$Q$11:Q34) -> 995816.8 | T34: 0 | U34: 0 | V34: =SUM(($B34='sh1'!$R$3:$R$214)*(IF($I$3="男",0,1)='sh1'!$Q$3:$Q$214)*('sh1'!$S$3:$S$214))/1000*AK34 -> 18.06859245 | W34: =SUM(($B34='sh1'!$R$3:$R$214)*(IF($I$3="男",0,1)='sh1'!$Q$3:$Q$214)*('sh1'!$S$3:$S$214))/1000*AQ34 -> 0 | X34: =SUM(($B34='sh1'!$R$3:$R$214)*(IF($I$3="男",0,1)='sh1'!$Q$3:$Q$214)*('sh1'!$S$3:$S$214))/1000*AW34 -> 0 | Y34: 0 | AA34: =-$Z34/VLOOKUP($A34,'sh1'!$N$7:$O$12,2,1) -> 0 | AB34: =SUM($AA$11:AA34) -> 0 | AC34: 995816.8 | AD34: 995816.8 | AE34: 995816.8 | AF34: 1576576.702 | AG34: =($AF34-$V34)*(1+3%)-$Z34/VLOOKUP($A34,'sh1'!$N$7:$O$12,2,1) -> 1623855.392 | AH34: 1623855.392 | AI34: =IF($AG33<VLOOKUP($B34,'sh1'!$N$16:$O$19,2,1)*$AD34,VLOOKUP($B34,'sh1'!$N$16:$O$19,2,1)*$AD34,$AG33) -> 1593306.88 | AJ34: =IF($AG34<VLOOKUP($B34,'sh1'!$N$16:$O$19,2,1)*$AE34,VLOOKUP($B34,'sh1'!$N$16:$O$19,2,1)*$AE34,$AG34) -> 1623855.392 | AK34: 16730.1782 | AL34: 1980066.432 | AM34: =($AL34-W34)*(1+4.5%)-$Z34/VLOOKUP($A34,'sh1'!$N$7:$O$12,2,1) -> 2069169.421 | AN34: 2069169.421 | AO34: =IF($AM33<VLOOKUP($B34,'sh1'!$N$16:$O$19,2,1)*$AD34,VLOOKUP($B34,'sh1'!$N$16:$O$19,2,1)*$AD34,$AM33) -> 1980066.432 | AP34: =IF($AM34<VLOOKUP($B34,'sh1'!$N$16:$O$19,2,1)*$AE34,VLOOKUP($B34,'sh1'!$N$16:$O$19,2,1)*$AE34,$AM34) -> 2069169.421 | AQ34: 0 | AR34: 2478933.023 | AS34: =($AR34-X34)*(1+6%)-$Z34/VLOOKUP($A34,'sh1'!$N$7:$O$12,2,1) -> 2627669.005 | AT34: 2627669.005 | AU34: =IF($AS33<VLOOKUP($B34,'sh1'!$N$16:$O$19,2,1)*$AD34,VLOOKUP($B34,'sh1'!$N$16:$O$19,2,1)*$AD34,$AS33) -> 2478933.023 | AV34: =IF($AS34<VLOOKUP($B34,'sh1'!$N$16:$O$19,2,1)*$AE34,VLOOKUP($B34,'sh1'!$N$16:$O$19,2,1)*$AE34,$AS34) -> 2627669.005 | AW34: 0 | AX34: 5|0|15|24
A35: 25 | B35: 39 | C35: 40 | R35: 0 | S35: =SUM($R$11:R35,$P$11:P35,$Q$11:Q35) -> 995816.8 | T35: 0 | U35: 0 | V35: =SUM(($B35='sh1'!$R$3:$R$214)*(IF($I$3="男",0,1)='sh1'!$Q$3:$Q$214)*('sh1'!$S$3:$S$214))/1000*AK35 -> 0 | W35: =SUM(($B35='sh1'!$R$3:$R$214)*(IF($I$3="男",0,1)='sh1'!$Q$3:$Q$214)*('sh1'!$S$3:$S$214))/1000*AQ35 -> 0 | X35: =SUM(($B35='sh1'!$R$3:$R$214)*(IF($I$3="男",0,1)='sh1'!$Q$3:$Q$214)*('sh1'!$S$3:$S$214))/1000*AW35 -> 0 | Y35: 0 | AA35: =-$Z35/VLOOKUP($A35,'sh1'!$N$7:$O$12,2,1) -> 0 | AB35: =SUM($AA$11:AA35) -> 0 | AC35: 995816.8 | AD35: 995816.8 | AE35: 995816.8 | AF35: 1623855.392 | AG35: =($AF35-$V35)*(1+3%)-$Z35/VLOOKUP($A35,'sh1'!$N$7:$O$12,2,1) -> 1672571.054 | AH35: 1672571.054 | AI35: =IF($AG34<VLOOKUP($B35,'sh1'!$N$16:$O$19,2,1)*$AD35,VLOOKUP($B35,'sh1'!$N$16:$O$19,2,1)*$AD35,$AG34) -> 1623855.392 | AJ35: =IF($AG35<VLOOKUP($B35,'sh1'!$N$16:$O$19,2,1)*$AE35,VLOOKUP($B35,'sh1'!$N$16:$O$19,2,1)*$AE35,$AG35) -> 1672571.054 | AK35: 0 | AL35: 2069169.421 | AM35: =($AL35-W35)*(1+4.5%)-$Z35/VLOOKUP($A35,'sh1'!$N$7:$O$12,2,1) -> 2162282.045 | AN35: 2162282.045 | AO35: =IF($AM34<VLOOKUP($B35,'sh1'!$N$16:$O$19,2,1)*$AD35,VLOOKUP($B35,'sh1'!$N$16:$O$19,2,1)*$AD35,$AM34) -> 2069169.421 | AP35: =IF($AM35<VLOOKUP($B35,'sh1'!$N$16:$O$19,2,1)*$AE35,VLOOKUP($B35,'sh1'!$N$16:$O$19,2,1)*$AE35,$AM35) -> 2162282.045 | AQ35: 0 | AR35: 2627669.005 | AS35: =($AR35-X35)*(1+6%)-$Z35/VLOOKUP($A35,'sh1'!$N$7:$O$12,2,1) -> 2785329.145 | AT35: 2785329.145 | AU35: =IF($AS34<VLOOKUP($B35,'sh1'!$N$16:$O$19,2,1)*$AD35,VLOOKUP($B35,'sh1'!$N$16:$O$19,2,1)*$AD35,$AS34) -> 2627669.005 | AV35: =IF($AS35<VLOOKUP($B35,'sh1'!$N$16:$O$19,2,1)*$AE35,VLOOKUP($B35,'sh1'!$N$16:$O$19,2,1)*$AE35,$AS35) -> 2785329.145 | AW35: 0 | AX35: 5|0|15|25
A36: 26 | B36: 40 | C36: 41 | R36: 0 | S36: =SUM($R$11:R36,$P$11:P36,$Q$11:Q36) -> 995816.8 | T36: 0 | U36: 0 | V36: =SUM(($B36='sh1'!$R$3:$R$214)*(IF($I$3="男",0,1)='sh1'!$Q$3:$Q$214)*('sh1'!$S$3:$S$214))/1000*AK36 -> 0 | W36: =SUM(($B36='sh1'!$R$3:$R$214)*(IF($I$3="男",0,1)='sh1'!$Q$3:$Q$214)*('sh1'!$S$3:$S$214))/1000*AQ36 -> 0 | X36: =SUM(($B36='sh1'!$R$3:$R$214)*(IF($I$3="男",0,1)='sh1'!$Q$3:$Q$214)*('sh1'!$S$3:$S$214))/1000*AW36 -> 0 | Y36: 0 | AA36: =-$Z36/VLOOKUP($A36,'sh1'!$N$7:$O$12,2,1) -> 0 | AB36: =SUM($AA$11:AA36) -> 0 | AC36: 995816.8 | AD36: 995816.8 | AE36: 995816.8 | AF36: 1672571.054 | AG36: =($AF36-$V36)*(1+3%)-$Z36/VLOOKUP($A36,'sh1'!$N$7:$O$12,2,1) -> 1722748.186 | AH36: 1722748.186 | AI36: =IF($AG35<VLOOKUP($B36,'sh1'!$N$16:$O$19,2,1)*$AD36,VLOOKUP($B36,'sh1'!$N$16:$O$19,2,1)*$AD36,$AG35) -> 1672571.054 | AJ36: =IF($AG36<VLOOKUP($B36,'sh1'!$N$16:$O$19,2,1)*$AE36,VLOOKUP($B36,'sh1'!$N$16:$O$19,2,1)*$AE36,$AG36) -> 1722748.186 | AK36: 0 | AL36: 2162282.045 | AM36: =($AL36-W36)*(1+4.5%)-$Z36/VLOOKUP($A36,'sh1'!$N$7:$O$12,2,1) -> 2259584.737 | AN36: 2259584.737 | AO36: =IF($AM35<VLOOKUP($B36,'sh1'!$N$16:$O$19,2,1)*$AD36,VLOOKUP($B36,'sh1'!$N$16:$O$19,2,1)*$AD36,$AM35) -> 2162282.045 | AP36: =IF($AM36<VLOOKUP($B36,'sh1'!$N$16:$O$19,2,1)*$AE36,VLOOKUP($B36,'sh1'!$N$16:$O$19,2,1)*$AE36,$AM36) -> 2259584.737 | AQ36: 0 | AR36: 2785329.145 | AS36: =($AR36-X36)*(1+6%)-$Z36/VLOOKUP($A36,'sh1'!$N$7:$O$12,2,1) -> 2952448.894 | AT36: 2952448.894 | AU36: =IF($AS35<VLOOKUP($B36,'sh1'!$N$16:$O$19,2,1)*$AD36,VLOOKUP($B36,'sh1'!$N$16:$O$19,2,1)*$AD36,$AS35) -> 2785329.145 | AV36: =IF($AS36<VLOOKUP($B36,'sh1'!$N$16:$O$19,2,1)*$AE36,VLOOKUP($B36,'sh1'!$N$16:$O$19,2,1)*$AE36,$AS36) -> 2952448.894 | AW36: 0 | AX36: 5|0|15|26
A37: 27 | B37: 41 | C37: 42 | R37: 0 | S37: =SUM($R$11:R37,$P$11:P37,$Q$11:Q37) -> 995816.8 | T37: 0 | U37: 0 | V37: =SUM(($B37='sh1'!$R$3:$R$214)*(IF($I$3="男",0,1)='sh1'!$Q$3:$Q$214)*('sh1'!$S$3:$S$214))/1000*AK37 -> 0 | W37: =SUM(($B37='sh1'!$R$3:$R$214)*(IF($I$3="男",0,1)='sh1'!$Q$3:$Q$214)*('sh1'!$S$3:$S$214))/1000*AQ37 -> 0 | X37: =SUM(($B37='sh1'!$R$3:$R$214)*(IF($I$3="男",0,1)='sh1'!$Q$3:$Q$214)*('sh1'!$S$3:$S$214))/1000*AW37 -> 0 | Y37: 0 | AA37: =-$Z37/VLOOKUP($A37,'sh1'!$N$7:$O$12,2,1) -> 0 | AB37: =SUM($AA$11:AA37) -> 0 | AC37: 995816.8 | AD37: 995816.8 | AE37: 995816.8 | AF37: 1722748.186 | AG37: =($AF37-$V37)*(1+3%)-$Z37/VLOOKUP($A37,'sh1'!$N$7:$O$12,2,1) -> 1774430.631 | AH37: 1774430.631 | AI37: =IF($AG36<VLOOKUP($B37,'sh1'!$N$16:$O$19,2,1)*$AD37,VLOOKUP($B37,'sh1'!$N$16:$O$19,2,1)*$AD37,$AG36) -> 1722748.186 | AJ37: =IF($AG37<VLOOKUP($B37,'sh1'!$N$16:$O$19,2,1)*$AE37,VLOOKUP($B37,'sh1'!$N$16:$O$19,2,1)*$AE37,$AG37) -> 1774430.631 | AK37: 0 | AL37: 2259584.737 | AM37: =($AL37-W37)*(1+4.5%)-$Z37/VLOOKUP($A37,'sh1'!$N$7:$O$12,2,1) -> 2361266.05 | AN37: 2361266.05 | AO37: =IF($AM36<VLOOKUP($B37,'sh1'!$N$16:$O$19,2,1)*$AD37,VLOOKUP($B37,'sh1'!$N$16:$O$19,2,1)*$AD37,$AM36) -> 2259584.737 | AP37: =IF($AM37<VLOOKUP($B37,'sh1'!$N$16:$O$19,2,1)*$AE37,VLOOKUP($B37,'sh1'!$N$16:$O$19,2,1)*$AE37,$AM37) -> 2361266.05 | AQ37: 0 | AR37: 2952448.894 | AS37: =($AR37-X37)*(1+6%)-$Z37/VLOOKUP($A37,'sh1'!$N$7:$O$12,2,1) -> 3129595.827 | AT37: 3129595.827 | AU37: =IF($AS36<VLOOKUP($B37,'sh1'!$N$16:$O$19,2,1)*$AD37,VLOOKUP($B37,'sh1'!$N$16:$O$19,2,1)*$AD37,$AS36) -> 2952448.894 | AV37: =IF($AS37<VLOOKUP($B37,'sh1'!$N$16:$O$19,2,1)*$AE37,VLOOKUP($B37,'sh1'!$N$16:$O$19,2,1)*$AE37,$AS37) -> 3129595.827 | AW37: 0 | AX37: 5|0|15|27
A38: 28 | B38: 42 | C38: 43 | R38: 0 | S38: =SUM($R$11:R38,$P$11:P38,$Q$11:Q38) -> 995816.8 | T38: 0 | U38: 0 | V38: =SUM(($B38='sh1'!$R$3:$R$214)*(IF($I$3="男",0,1)='sh1'!$Q$3:$Q$214)*('sh1'!$S$3:$S$214))/1000*AK38 -> 0 | W38: =SUM(($B38='sh1'!$R$3:$R$214)*(IF($I$3="男",0,1)='sh1'!$Q$3:$Q$214)*('sh1'!$S$3:$S$214))/1000*AQ38 -> 0 | X38: =SUM(($B38='sh1'!$R$3:$R$214)*(IF($I$3="男",0,1)='sh1'!$Q$3:$Q$214)*('sh1'!$S$3:$S$214))/1000*AW38 -> 0 | Y38: 0 | AA38: =-$Z38/VLOOKUP($A38,'sh1'!$N$7:$O$12,2,1) -> 0 | AB38: =SUM($AA$11:AA38) -> 0 | AC38: 995816.8 | AD38: 995816.8 | AE38: 995816.8 | AF38: 1774430.631 | AG38: =($AF38-$V38)*(1+3%)-$Z38/VLOOKUP($A38,'sh1'!$N$7:$O$12,2,1) -> 1827663.55 | AH38: 1827663.55 | AI38: =IF($AG37<VLOOKUP($B38,'sh1'!$N$16:$O$19,2,1)*$AD38,VLOOKUP($B38,'sh1'!$N$16:$O$19,2,1)*$AD38,$AG37) -> 1774430.631 | AJ38: =IF($AG38<VLOOKUP($B38,'sh1'!$N$16:$O$19,2,1)*$AE38,VLOOKUP($B38,'sh1'!$N$16:$O$19,2,1)*$AE38,$AG38) -> 1827663.55 | AK38: 0 | AL38: 2361266.05 | AM38: =($AL38-W38)*(1+4.5%)-$Z38/VLOOKUP($A38,'sh1'!$N$7:$O$12,2,1) -> 2467523.023 | AN38: 2467523.023 | AO38: =IF($AM37<VLOOKUP($B38,'sh1'!$N$16:$O$19,2,1)*$AD38,VLOOKUP($B38,'sh1'!$N$16:$O$19,2,1)*$AD38,$AM37) -> 2361266.05 | AP38: =IF($AM38<VLOOKUP($B38,'sh1'!$N$16:$O$19,2,1)*$AE38,VLOOKUP($B38,'sh1'!$N$16:$O$19,2,1)*$AE38,$AM38) -> 2467523.023 | AQ38: 0 | AR38: 3129595.827 | AS38: =($AR38-X38)*(1+6%)-$Z38/VLOOKUP($A38,'sh1'!$N$7:$O$12,2,1) -> 3317371.577 | AT38: 3317371.577 | AU38: =IF($AS37<VLOOKUP($B38,'sh1'!$N$16:$O$19,2,1)*$AD38,VLOOKUP($B38,'sh1'!$N$16:$O$19,2,1)*$AD38,$AS37) -> 3129595.827 | AV38: =IF($AS38<VLOOKUP($B38,'sh1'!$N$16:$O$19,2,1)*$AE38,VLOOKUP($B38,'sh1'!$N$16:$O$19,2,1)*$AE38,$AS38) -> 3317371.577 | AW38: 0 | AX38: 5|0|15|28
A39: 29 | B39: 43 | C39: 44 | R39: 0 | S39: =SUM($R$11:R39,$P$11:P39,$Q$11:Q39) -> 995816.8 | T39: 0 | U39: 0 | V39: =SUM(($B39='sh1'!$R$3:$R$214)*(IF($I$3="男",0,1)='sh1'!$Q$3:$Q$214)*('sh1'!$S$3:$S$214))/1000*AK39 -> 0 | W39: =SUM(($B39='sh1'!$R$3:$R$214)*(IF($I$3="男",0,1)='sh1'!$Q$3:$Q$214)*('sh1'!$S$3:$S$214))/1000*AQ39 -> 0 | X39: =SUM(($B39='sh1'!$R$3:$R$214)*(IF($I$3="男",0,1)='sh1'!$Q$3:$Q$214)*('sh1'!$S$3:$S$214))/1000*AW39 -> 0 | Y39: 0 | AA39: =-$Z39/VLOOKUP($A39,'sh1'!$N$7:$O$12,2,1) -> 0 | AB39: =SUM($AA$11:AA39) -> 0 | AC39: 995816.8 | AD39: 995816.8 | AE39: 995816.8 | AF39: 1827663.55 | AG39: =($AF39-$V39)*(1+3%)-$Z39/VLOOKUP($A39,'sh1'!$N$7:$O$12,2,1) -> 1882493.457 | AH39: 1882493.457 | AI39: =IF($AG38<VLOOKUP($B39,'sh1'!$N$16:$O$19,2,1)*$AD39,VLOOKUP($B39,'sh1'!$N$16:$O$19,2,1)*$AD39,$AG38) -> 1827663.55 | AJ39: =IF($AG39<VLOOKUP($B39,'sh1'!$N$16:$O$19,2,1)*$AE39,VLOOKUP($B39,'sh1'!$N$16:$O$19,2,1)*$AE39,$AG39) -> 1882493.457 | AK39: 0 | AL39: 2467523.023 | AM39: =($AL39-W39)*(1+4.5%)-$Z39/VLOOKUP($A39,'sh1'!$N$7:$O$12,2,1) -> 2578561.559 | AN39: 2578561.559 | AO39: =IF($AM38<VLOOKUP($B39,'sh1'!$N$16:$O$19,2,1)*$AD39,VLOOKUP($B39,'sh1'!$N$16:$O$19,2,1)*$AD39,$AM38) -> 2467523.023 | AP39: =IF($AM39<VLOOKUP($B39,'sh1'!$N$16:$O$19,2,1)*$AE39,VLOOKUP($B39,'sh1'!$N$16:$O$19,2,1)*$AE39,$AM39) -> 2578561.559 | AQ39: 0 | AR39: 3317371.577 | AS39: =($AR39-X39)*(1+6%)-$Z39/VLOOKUP($A39,'sh1'!$N$7:$O$12,2,1) -> 3516413.872 | AT39: 3516413.872 | AU39: =IF($AS38<VLOOKUP($B39,'sh1'!$N$16:$O$19,2,1)*$AD39,VLOOKUP($B39,'sh1'!$N$16:$O$19,2,1)*$AD39,$AS38) -> 3317371.577 | AV39: =IF($AS39<VLOOKUP($B39,'sh1'!$N$16:$O$19,2,1)*$AE39,VLOOKUP($B39,'sh1'!$N$16:$O$19,2,1)*$AE39,$AS39) -> 3516413.872 | AW39: 0 | AX39: 5|0|15|29
A40: 30 | B40: 44 | C40: 45 | R40: 0 | S40: =SUM($R$11:R40,$P$11:P40,$Q$11:Q40) -> 995816.8 | T40: 0 | U40: 0 | V40: =SUM(($B40='sh1'!$R$3:$R$214)*(IF($I$3="男",0,1)='sh1'!$Q$3:$Q$214)*('sh1'!$S$3:$S$214))/1000*AK40 -> 0 | W40: =SUM(($B40='sh1'!$R$3:$R$214)*(IF($I$3="男",0,1)='sh1'!$Q$3:$Q$214)*('sh1'!$S$3:$S$214))/1000*AQ40 -> 0 | X40: =SUM(($B40='sh1'!$R$3:$R$214)*(IF($I$3="男",0,1)='sh1'!$Q$3:$Q$214)*('sh1'!$S$3:$S$214))/1000*AW40 -> 0 | Y40: 0 | AA40: =-$Z40/VLOOKUP($A40,'sh1'!$N$7:$O$12,2,1) -> 0 | AB40: =SUM($AA$11:AA40) -> 0 | AC40: 995816.8 | AD40: 995816.8 | AE40: 995816.8 | AF40: 1882493.457 | AG40: =($AF40-$V40)*(1+3%)-$Z40/VLOOKUP($A40,'sh1'!$N$7:$O$12,2,1) -> 1938968.26 | AH40: 1938968.26 | AI40: =IF($AG39<VLOOKUP($B40,'sh1'!$N$16:$O$19,2,1)*$AD40,VLOOKUP($B40,'sh1'!$N$16:$O$19,2,1)*$AD40,$AG39) -> 1882493.457 | AJ40: =IF($AG40<VLOOKUP($B40,'sh1'!$N$16:$O$19,2,1)*$AE40,VLOOKUP($B40,'sh1'!$N$16:$O$19,2,1)*$AE40,$AG40) -> 1938968.26 | AK40: 0 | AL40: 2578561.559 | AM40: =($AL40-W40)*(1+4.5%)-$Z40/VLOOKUP($A40,'sh1'!$N$7:$O$12,2,1) -> 2694596.829 | AN40: 2694596.829 | AO40: =IF($AM39<VLOOKUP($B40,'sh1'!$N$16:$O$19,2,1)*$AD40,VLOOKUP($B40,'sh1'!$N$16:$O$19,2,1)*$AD40,$AM39) -> 2578561.559 | AP40: =IF($AM40<VLOOKUP($B40,'sh1'!$N$16:$O$19,2,1)*$AE40,VLOOKUP($B40,'sh1'!$N$16:$O$19,2,1)*$AE40,$AM40) -> 2694596.829 | AQ40: 0 | AR40: 3516413.872 | AS40: =($AR40-X40)*(1+6%)-$Z40/VLOOKUP($A40,'sh1'!$N$7:$O$12,2,1) -> 3727398.704 | AT40: 3727398.704 | AU40: =IF($AS39<VLOOKUP($B40,'sh1'!$N$16:$O$19,2,1)*$AD40,VLOOKUP($B40,'sh1'!$N$16:$O$19,2,1)*$AD40,$AS39) -> 3516413.872 | AV40: =IF($AS40<VLOOKUP($B40,'sh1'!$N$16:$O$19,2,1)*$AE40,VLOOKUP($B40,'sh1'!$N$16:$O$19,2,1)*$AE40,$AS40) -> 3727398.704 | AW40: 0 | AX40: 5|0|15|30
A41: 31 | B41: 45 | C41: 46 | R41: 0 | S41: =SUM($R$11:R41,$P$11:P41,$Q$11:Q41) -> 995816.8 | T41: 0 | U41: 0 | V41: =SUM(($B41='sh1'!$R$3:$R$214)*(IF($I$3="男",0,1)='sh1'!$Q$3:$Q$214)*('sh1'!$S$3:$S$214))/1000*AK41 -> 0 | W41: =SUM(($B41='sh1'!$R$3:$R$214)*(IF($I$3="男",0,1)='sh1'!$Q$3:$Q$214)*('sh1'!$S$3:$S$214))/1000*AQ41 -> 0 | X41: =SUM(($B41='sh1'!$R$3:$R$214)*(IF($I$3="男",0,1)='sh1'!$Q$3:$Q$214)*('sh1'!$S$3:$S$214))/1000*AW41 -> 0 | Y41: 0 | AA41: =-$Z41/VLOOKUP($A41,'sh1'!$N$7:$O$12,2,1) -> 0 | AB41: =SUM($AA$11:AA41) -> 0 | AC41: 995816.8 | AD41: 995816.8 | AE41: 995816.8 | AF41: 1938968.26 | AG41: =($AF41-$V41)*(1+3%)-$Z41/VLOOKUP($A41,'sh1'!$N$7:$O$12,2,1) -> 1997137.308 | AH41: 1997137.308 | AI41: =IF($AG40<VLOOKUP($B41,'sh1'!$N$16:$O$19,2,1)*$AD41,VLOOKUP($B41,'sh1'!$N$16:$O$19,2,1)*$AD41,$AG40) -> 1938968.26 | AJ41: =IF($AG41<VLOOKUP($B41,'sh1'!$N$16:$O$19,2,1)*$AE41,VLOOKUP($B41,'sh1'!$N$16:$O$19,2,1)*$AE41,$AG41) -> 1997137.308 | AK41: 0 | AL41: 2694596.829 | AM41: =($AL41-W41)*(1+4.5%)-$Z41/VLOOKUP($A41,'sh1'!$N$7:$O$12,2,1) -> 2815853.686 | AN41: 2815853.686 | AO41: =IF($AM40<VLOOKUP($B41,'sh1'!$N$16:$O$19,2,1)*$AD41,VLOOKUP($B41,'sh1'!$N$16:$O$19,2,1)*$AD41,$AM40) -> 2694596.829 | AP41: =IF($AM41<VLOOKUP($B41,'sh1'!$N$16:$O$19,2,1)*$AE41,VLOOKUP($B41,'sh1'!$N$16:$O$19,2,1)*$AE41,$AM41) -> 2815853.686 | AQ41: 0 | AR41: 3727398.704 | AS41: =($AR41-X41)*(1+6%)-$Z41/VLOOKUP($A41,'sh1'!$N$7:$O$12,2,1) -> 3951042.626 | AT41: 3951042.626 | AU41: =IF($AS40<VLOOKUP($B41,'sh1'!$N$16:$O$19,2,1)*$AD41,VLOOKUP($B41,'sh1'!$N$16:$O$19,2,1)*$AD41,$AS40) -> 3727398.704 | AV41: =IF($AS41<VLOOKUP($B41,'sh1'!$N$16:$O$19,2,1)*$AE41,VLOOKUP($B41,'sh1'!$N$16:$O$19,2,1)*$AE41,$AS41) -> 3951042.626 | AW41: 0 | AX41: 5|0|15|31
A42: 32 | B42: 46 | C42: 47 | R42: 0 | S42: =SUM($R$11:R42,$P$11:P42,$Q$11:Q42) -> 995816.8 | T42: 0 | U42: 0 | V42: =SUM(($B42='sh1'!$R$3:$R$214)*(IF($I$3="男",0,1)='sh1'!$Q$3:$Q$214)*('sh1'!$S$3:$S$214))/1000*AK42 -> 0 | W42: =SUM(($B42='sh1'!$R$3:$R$214)*(IF($I$3="男",0,1)='sh1'!$Q$3:$Q$214)*('sh1'!$S$3:$S$214))/1000*AQ42 -> 0 | X42: =SUM(($B42='sh1'!$R$3:$R$214)*(IF($I$3="男",0,1)='sh1'!$Q$3:$Q$214)*('sh1'!$S$3:$S$214))/1000*AW42 -> 0 | Y42: 0 | AA42: =-$Z42/VLOOKUP($A42,'sh1'!$N$7:$O$12,2,1) -> 0 | AB42: =SUM($AA$11:AA42) -> 0 | AC42: 995816.8 | AD42: 995816.8 | AE42: =$S42+$AB42 -> 995816.8 | AF42: 1997137.308 | AG42: =($AF42-$V42)*(1+3%)-$Z42/VLOOKUP($A42,'sh1'!$N$7:$O$12,2,1) -> 2057051.427 | AH42: =IF($A42=1,95%*$AG42,IF($A42=2,97%*$AG42,IF($A42=3,98%*$AG42,IF(OR($A42=4,$A42=5),$AG42*99%,$AG42)))) -> 2057051.427 | AI42: =IF($AG41<VLOOKUP($B42,'sh1'!$N$16:$O$19,2,1)*$AD42,VLOOKUP($B42,'sh1'!$N$16:$O$19,2,1)*$AD42,$AG41) -> 1997137.308 | AJ42: =IF($AG42<VLOOKUP($B42,'sh1'!$N$16:$O$19,2,1)*$AE42,VLOOKUP($B42,'sh1'!$N$16:$O$19,2,1)*$AE42,$AG42) -> 2057051.427 | AK42: 0 | AL42: 2815853.686 | AM42: =($AL42-W42)*(1+4.5%)-$Z42/VLOOKUP($A42,'sh1'!$N$7:$O$12,2,1) -> 2942567.102 | AN42: =IF($A42=1,95%*$AM42,IF($A42=2,97%*$AM42,IF($A42=3,98%*$AM42,IF(OR($A42=4,$A42=5),$AM42*99%,$AM42)))) -> 2942567.102 | AO42: =IF($AM41<VLOOKUP($B42,'sh1'!$N$16:$O$19,2,1)*$AD42,VLOOKUP($B42,'sh1'!$N$16:$O$19,2,1)*$AD42,$AM41) -> 2815853.686 | AP42: =IF($AM42<VLOOKUP($B42,'sh1'!$N$16:$O$19,2,1)*$AE42,VLOOKUP($B42,'sh1'!$N$16:$O$19,2,1)*$AE42,$AM42) -> 2942567.102 | AQ42: 0 | AR42: 3951042.626 | AS42: =($AR42-X42)*(1+6%)-$Z42/VLOOKUP($A42,'sh1'!$N$7:$O$12,2,1) -> 4188105.184 | AT42: =IF($A42=1,95%*$AS42,IF($A42=2,97%*$AS42,IF($A42=3,98%*$AS42,IF(OR($A42=4,$A42=5),$AS42*99%,$AS42)))) -> 4188105.184 | AU42: =IF($AS41<VLOOKUP($B42,'sh1'!$N$16:$O$19,2,1)*$AD42,VLOOKUP($B42,'sh1'!$N$16:$O$19,2,1)*$AD42,$AS41) -> 3951042.626 | AV42: =IF($AS42<VLOOKUP($B42,'sh1'!$N$16:$O$19,2,1)*$AE42,VLOOKUP($B42,'sh1'!$N$16:$O$19,2,1)*$AE42,$AS42) -> 4188105.184 | AW42: 0 | AX42: 5|0|15|32
A43: 33 | B43: =$G$3+A43-1 -> 47 | C43: 48 | R43: 0 | S43: =SUM($R$11:R43,$P$11:P43,$Q$11:Q43) -> 995816.8 | T43: =-($P43+$Q43)*2%-$R43*1% -> 0 | U43: 0 | V43: =SUM(($B43='sh1'!$R$3:$R$214)*(IF($I$3="男",0,1)='sh1'!$Q$3:$Q$214)*('sh1'!$S$3:$S$214))/1000*AK43 -> 0 | W43: =SUM(($B43='sh1'!$R$3:$R$214)*(IF($I$3="男",0,1)='sh1'!$Q$3:$Q$214)*('sh1'!$S$3:$S$214))/1000*AQ43 -> 0 | X43: =SUM(($B43='sh1'!$R$3:$R$214)*(IF($I$3="男",0,1)='sh1'!$Q$3:$Q$214)*('sh1'!$S$3:$S$214))/1000*AW43 -> 0 | Y43: 0 | AA43: =-$Z43/VLOOKUP($A43,'sh1'!$N$7:$O$12,2,1) -> 0 | AB43: =SUM($AA$11:AA43) -> 0 | AC43: =$S43+$AB43 -> 995816.8 | AD43: 995816.8 | AE43: =$S43+$AB43 -> 995816.8 | AF43: 2057051.427 | AG43: =($AF43-$V43)*(1+3%)-$Z43/VLOOKUP($A43,'sh1'!$N$7:$O$12,2,1) -> 2118762.97 | AH43: =IF($A43=1,95%*$AG43,IF($A43=2,97%*$AG43,IF($A43=3,98%*$AG43,IF(OR($A43=4,$A43=5),$AG43*99%,$AG43)))) -> 2118762.97 | AI43: =IF($AG42<VLOOKUP($B43,'sh1'!$N$16:$O$19,2,1)*$AD43,VLOOKUP($B43,'sh1'!$N$16:$O$19,2,1)*$AD43,$AG42) -> 2057051.427 | AJ43: =IF($AG43<VLOOKUP($B43,'sh1'!$N$16:$O$19,2,1)*$AE43,VLOOKUP($B43,'sh1'!$N$16:$O$19,2,1)*$AE43,$AG43) -> 2118762.97 | AK43: 0 | AL43: 2942567.102 | AM43: =($AL43-W43)*(1+4.5%)-$Z43/VLOOKUP($A43,'sh1'!$N$7:$O$12,2,1) -> 3074982.621 | AN43: =IF($A43=1,95%*$AM43,IF($A43=2,97%*$AM43,IF($A43=3,98%*$AM43,IF(OR($A43=4,$A43=5),$AM43*99%,$AM43)))) -> 3074982.621 | AO43: =IF($AM42<VLOOKUP($B43,'sh1'!$N$16:$O$19,2,1)*$AD43,VLOOKUP($B43,'sh1'!$N$16:$O$19,2,1)*$AD43,$AM42) -> 2942567.102 | AP43: =IF($AM43<VLOOKUP($B43,'sh1'!$N$16:$O$19,2,1)*$AE43,VLOOKUP($B43,'sh1'!$N$16:$O$19,2,1)*$AE43,$AM43) -> 3074982.621 | AQ43: 0 | AR43: 4188105.184 | AS43: =($AR43-X43)*(1+6%)-$Z43/VLOOKUP($A43,'sh1'!$N$7:$O$12,2,1) -> 4439391.495 | AT43: =IF($A43=1,95%*$AS43,IF($A43=2,97%*$AS43,IF($A43=3,98%*$AS43,IF(OR($A43=4,$A43=5),$AS43*99%,$AS43)))) -> 4439391.495 | AU43: =IF($AS42<VLOOKUP($B43,'sh1'!$N$16:$O$19,2,1)*$AD43,VLOOKUP($B43,'sh1'!$N$16:$O$19,2,1)*$AD43,$AS42) -> 4188105.184 | AV43: =IF($AS43<VLOOKUP($B43,'sh1'!$N$16:$O$19,2,1)*$AE43,VLOOKUP($B43,'sh1'!$N$16:$O$19,2,1)*$AE43,$AS43) -> 4439391.495 | AW43: 0 | AX43: =$G$4&"|"&(IF($I$3="男",0,1))&"|"&$G$3&"|"&A43 -> 5|0|15|33
A44: 34 | B44: =$G$3+A44-1 -> 48 | C44: 49 | R44: 0 | S44: =SUM($R$11:R44,$P$11:P44,$Q$11:Q44) -> 995816.8 | T44: =-($P44+$Q44)*2%-$R44*1% -> 0 | U44: 0 | V44: =SUM(($B44='sh1'!$R$3:$R$214)*(IF($I$3="男",0,1)='sh1'!$Q$3:$Q$214)*('sh1'!$S$3:$S$214))/1000*AK44 -> 0 | W44: =SUM(($B44='sh1'!$R$3:$R$214)*(IF($I$3="男",0,1)='sh1'!$Q$3:$Q$214)*('sh1'!$S$3:$S$214))/1000*AQ44 -> 0 | X44: =SUM(($B44='sh1'!$R$3:$R$214)*(IF($I$3="男",0,1)='sh1'!$Q$3:$Q$214)*('sh1'!$S$3:$S$214))/1000*AW44 -> 0 | Y44: 0 | AA44: =-$Z44/VLOOKUP($A44,'sh1'!$N$7:$O$12,2,1) -> 0 | AB44: =SUM($AA$11:AA44) -> 0 | AC44: =$S44+$AB44 -> 995816.8 | AD44: 995816.8 | AE44: 995816.8 | AF44: 2118762.97 | AG44: =($AF44-$V44)*(1+3%)-$Z44/VLOOKUP($A44,'sh1'!$N$7:$O$12,2,1) -> 2182325.859 | AH44: 2182325.859 | AI44: =IF($AG43<VLOOKUP($B44,'sh1'!$N$16:$O$19,2,1)*$AD44,VLOOKUP($B44,'sh1'!$N$16:$O$19,2,1)*$AD44,$AG43) -> 2118762.97 | AJ44: =IF($AG44<VLOOKUP($B44,'sh1'!$N$16:$O$19,2,1)*$AE44,VLOOKUP($B44,'sh1'!$N$16:$O$19,2,1)*$AE44,$AG44) -> 2182325.859 | AK44: 0 | AL44: 3074982.621 | AM44: =($AL44-W44)*(1+4.5%)-$Z44/VLOOKUP($A44,'sh1'!$N$7:$O$12,2,1) -> 3213356.839 | AN44: 3213356.839 | AO44: =IF($AM43<VLOOKUP($B44,'sh1'!$N$16:$O$19,2,1)*$AD44,VLOOKUP($B44,'sh1'!$N$16:$O$19,2,1)*$AD44,$AM43) -> 3074982.621 | AP44: =IF($AM44<VLOOKUP($B44,'sh1'!$N$16:$O$19,2,1)*$AE44,VLOOKUP($B44,'sh1'!$N$16:$O$19,2,1)*$AE44,$AM44) -> 3213356.839 | AQ44: 0 | AR44: 4439391.495 | AS44: =($AR44-X44)*(1+6%)-$Z44/VLOOKUP($A44,'sh1'!$N$7:$O$12,2,1) -> 4705754.984 | AT44: 4705754.984 | AU44: =IF($AS43<VLOOKUP($B44,'sh1'!$N$16:$O$19,2,1)*$AD44,VLOOKUP($B44,'sh1'!$N$16:$O$19,2,1)*$AD44,$AS43) -> 4439391.495 | AV44: =IF($AS44<VLOOKUP($B44,'sh1'!$N$16:$O$19,2,1)*$AE44,VLOOKUP($B44,'sh1'!$N$16:$O$19,2,1)*$AE44,$AS44) -> 4705754.984 | AW44: 0 | AX44: =$G$4&"|"&(IF($I$3="男",0,1))&"|"&$G$3&"|"&A44 -> 5|0|15|34
A45: 35 | B45: 49 | C45: 50 | R45: 0 | S45: =SUM($R$11:R45,$P$11:P45,$Q$11:Q45) -> 995816.8 | T45: 0 | U45: 0 | V45: =SUM(($B45='sh1'!$R$3:$R$214)*(IF($I$3="男",0,1)='sh1'!$Q$3:$Q$214)*('sh1'!$S$3:$S$214))/1000*AK45 -> 0 | W45: =SUM(($B45='sh1'!$R$3:$R$214)*(IF($I$3="男",0,1)='sh1'!$Q$3:$Q$214)*('sh1'!$S$3:$S$214))/1000*AQ45 -> 0 | X45: =SUM(($B45='sh1'!$R$3:$R$214)*(IF($I$3="男",0,1)='sh1'!$Q$3:$Q$214)*('sh1'!$S$3:$S$214))/1000*AW45 -> 0 | Y45: 0 | AA45: =-$Z45/VLOOKUP($A45,'sh1'!$N$7:$O$12,2,1) -> 0 | AB45: =SUM($AA$11:AA45) -> 0 | AC45: 995816.8 | AD45: 995816.8 | AE45: 995816.8 | AF45: 2182325.859 | AG45: =($AF45-$V45)*(1+3%)-$Z45/VLOOKUP($A45,'sh1'!$N$7:$O$12,2,1) -> 2247795.635 | AH45: 2247795.635 | AI45: =IF($AG44<VLOOKUP($B45,'sh1'!$N$16:$O$19,2,1)*$AD45,VLOOKUP($B45,'sh1'!$N$16:$O$19,2,1)*$AD45,$AG44) -> 2182325.859 | AJ45: =IF($AG45<VLOOKUP($B45,'sh1'!$N$16:$O$19,2,1)*$AE45,VLOOKUP($B45,'sh1'!$N$16:$O$19,2,1)*$AE45,$AG45) -> 2247795.635 | AK45: 0 | AL45: 3213356.839 | AM45: =($AL45-W45)*(1+4.5%)-$Z45/VLOOKUP($A45,'sh1'!$N$7:$O$12,2,1) -> 3357957.897 | AN45: 3357957.897 | AO45: =IF($AM44<VLOOKUP($B45,'sh1'!$N$16:$O$19,2,1)*$AD45,VLOOKUP($B45,'sh1'!$N$16:$O$19,2,1)*$AD45,$AM44) -> 3213356.839 | AP45: =IF($AM45<VLOOKUP($B45,'sh1'!$N$16:$O$19,2,1)*$AE45,VLOOKUP($B45,'sh1'!$N$16:$O$19,2,1)*$AE45,$AM45) -> 3357957.897 | AQ45: 0 | AR45: 4705754.984 | AS45: =($AR45-X45)*(1+6%)-$Z45/VLOOKUP($A45,'sh1'!$N$7:$O$12,2,1) -> 4988100.283 | AT45: 4988100.283 | AU45: =IF($AS44<VLOOKUP($B45,'sh1'!$N$16:$O$19,2,1)*$AD45,VLOOKUP($B45,'sh1'!$N$16:$O$19,2,1)*$AD45,$AS44) -> 4705754.984 | AV45: =IF($AS45<VLOOKUP($B45,'sh1'!$N$16:$O$19,2,1)*$AE45,VLOOKUP($B45,'sh1'!$N$16:$O$19,2,1)*$AE45,$AS45) -> 4988100.283 | AW45: 0 | AX45: =$G$4&"|"&(IF($I$3="男",0,1))&"|"&$G$3&"|"&A45 -> 5|0|15|35
A46: 36 | B46: 50 | C46: 51 | R46: 0 | S46: =SUM($R$11:R46,$P$11:P46,$Q$11:Q46) -> 995816.8 | T46: 0 | U46: 0 | V46: =SUM(($B46='sh1'!$R$3:$R$214)*(IF($I$3="男",0,1)='sh1'!$Q$3:$Q$214)*('sh1'!$S$3:$S$214))/1000*AK46 -> 0 | W46: =SUM(($B46='sh1'!$R$3:$R$214)*(IF($I$3="男",0,1)='sh1'!$Q$3:$Q$214)*('sh1'!$S$3:$S$214))/1000*AQ46 -> 0 | X46: =SUM(($B46='sh1'!$R$3:$R$214)*(IF($I$3="男",0,1)='sh1'!$Q$3:$Q$214)*('sh1'!$S$3:$S$214))/1000*AW46 -> 0 | Y46: 0 | AA46: =-$Z46/VLOOKUP($A46,'sh1'!$N$7:$O$12,2,1) -> 0 | AB46: =SUM($AA$11:AA46) -> 0 | AC46: 995816.8 | AD46: 995816.8 | AE46: 995816.8 | AF46: 2247795.635 | AG46: =($AF46-$V46)*(1+3%)-$Z46/VLOOKUP($A46,'sh1'!$N$7:$O$12,2,1) -> 2315229.504 | AH46: 2315229.504 | AI46: =IF($AG45<VLOOKUP($B46,'sh1'!$N$16:$O$19,2,1)*$AD46,VLOOKUP($B46,'sh1'!$N$16:$O$19,2,1)*$AD46,$AG45) -> 2247795.635 | AJ46: =IF($AG46<VLOOKUP($B46,'sh1'!$N$16:$O$19,2,1)*$AE46,VLOOKUP($B46,'sh1'!$N$16:$O$19,2,1)*$AE46,$AG46) -> 2315229.504 | AK46: 0 | AL46: 3357957.897 | AM46: =($AL46-W46)*(1+4.5%)-$Z46/VLOOKUP($A46,'sh1'!$N$7:$O$12,2,1) -> 3509066.003 | AN46: 3509066.003 | AO46: =IF($AM45<VLOOKUP($B46,'sh1'!$N$16:$O$19,2,1)*$AD46,VLOOKUP($B46,'sh1'!$N$16:$O$19,2,1)*$AD46,$AM45) -> 3357957.897 | AP46: =IF($AM46<VLOOKUP($B46,'sh1'!$N$16:$O$19,2,1)*$AE46,VLOOKUP($B46,'sh1'!$N$16:$O$19,2,1)*$AE46,$AM46) -> 3509066.003 | AQ46: 0 | AR46: 4988100.283 | AS46: =($AR46-X46)*(1+6%)-$Z46/VLOOKUP($A46,'sh1'!$N$7:$O$12,2,1) -> 5287386.3 | AT46: 5287386.3 | AU46: =IF($AS45<VLOOKUP($B46,'sh1'!$N$16:$O$19,2,1)*$AD46,VLOOKUP($B46,'sh1'!$N$16:$O$19,2,1)*$AD46,$AS45) -> 4988100.283 | AV46: =IF($AS46<VLOOKUP($B46,'sh1'!$N$16:$O$19,2,1)*$AE46,VLOOKUP($B46,'sh1'!$N$16:$O$19,2,1)*$AE46,$AS46) -> 5287386.3 | AW46: 0 | AX46: 5|0|15|36
A47: 37 | B47: 51 | C47: 52 | R47: 0 | S47: =SUM($R$11:R47,$P$11:P47,$Q$11:Q47) -> 995816.8 | T47: 0 | U47: 0 | V47: =SUM(($B47='sh1'!$R$3:$R$214)*(IF($I$3="男",0,1)='sh1'!$Q$3:$Q$214)*('sh1'!$S$3:$S$214))/1000*AK47 -> 0 | W47: =SUM(($B47='sh1'!$R$3:$R$214)*(IF($I$3="男",0,1)='sh1'!$Q$3:$Q$214)*('sh1'!$S$3:$S$214))/1000*AQ47 -> 0 | X47: =SUM(($B47='sh1'!$R$3:$R$214)*(IF($I$3="男",0,1)='sh1'!$Q$3:$Q$214)*('sh1'!$S$3:$S$214))/1000*AW47 -> 0 | Y47: 0 | AA47: =-$Z47/VLOOKUP($A47,'sh1'!$N$7:$O$12,2,1) -> 0 | AB47: =SUM($AA$11:AA47) -> 0 | AC47: 995816.8 | AD47: 995816.8 | AE47: 995816.8 | AF47: 2315229.504 | AG47: =($AF47-$V47)*(1+3%)-$Z47/VLOOKUP($A47,'sh1'!$N$7:$O$12,2,1) -> 2384686.389 | AH47: 2384686.389 | AI47: =IF($AG46<VLOOKUP($B47,'sh1'!$N$16:$O$19,2,1)*$AD47,VLOOKUP($B47,'sh1'!$N$16:$O$19,2,1)*$AD47,$AG46) -> 2315229.504 | AJ47: =IF($AG47<VLOOKUP($B47,'sh1'!$N$16:$O$19,2,1)*$AE47,VLOOKUP($B47,'sh1'!$N$16:$O$19,2,1)*$AE47,$AG47) -> 2384686.389 | AK47: 0 | AL47: 3509066.003 | AM47: =($AL47-W47)*(1+4.5%)-$Z47/VLOOKUP($A47,'sh1'!$N$7:$O$12,2,1) -> 3666973.973 | AN47: 3666973.973 | AO47: =IF($AM46<VLOOKUP($B47,'sh1'!$N$16:$O$19,2,1)*$AD47,VLOOKUP($B47,'sh1'!$N$16:$O$19,2,1)*$AD47,$AM46) -> 3509066.003 | AP47: =IF($AM47<VLOOKUP($B47,'sh1'!$N$16:$O$19,2,1)*$AE47,VLOOKUP($B47,'sh1'!$N$16:$O$19,2,1)*$AE47,$AM47) -> 3666973.973 | AQ47: 0 | AR47: 5287386.3 | AS47: =($AR47-X47)*(1+6%)-$Z47/VLOOKUP($A47,'sh1'!$N$7:$O$12,2,1) -> 5604629.479 | AT47: 5604629.479 | AU47: =IF($AS46<VLOOKUP($B47,'sh1'!$N$16:$O$19,2,1)*$AD47,VLOOKUP($B47,'sh1'!$N$16:$O$19,2,1)*$AD47,$AS46) -> 5287386.3 | AV47: =IF($AS47<VLOOKUP($B47,'sh1'!$N$16:$O$19,2,1)*$AE47,VLOOKUP($B47,'sh1'!$N$16:$O$19,2,1)*$AE47,$AS47) -> 5604629.479 | AW47: 0 | AX47: 5|0|15|37
A48: 38 | B48: 52 | C48: 53 | R48: 0 | S48: =SUM($R$11:R48,$P$11:P48,$Q$11:Q48) -> 995816.8 | T48: 0 | U48: =$R48+$P48+$Q48+$T48 -> 0 | V48: =SUM(($B48='sh1'!$R$3:$R$214)*(IF($I$3="男",0,1)='sh1'!$Q$3:$Q$214)*('sh1'!$S$3:$S$214))/1000*AK48 -> 0 | W48: =SUM(($B48='sh1'!$R$3:$R$214)*(IF($I$3="男",0,1)='sh1'!$Q$3:$Q$214)*('sh1'!$S$3:$S$214))/1000*AQ48 -> 0 | X48: =SUM(($B48='sh1'!$R$3:$R$214)*(IF($I$3="男",0,1)='sh1'!$Q$3:$Q$214)*('sh1'!$S$3:$S$214))/1000*AW48 -> 0 | Y48: 0 | AA48: =-$Z48/VLOOKUP($A48,'sh1'!$N$7:$O$12,2,1) -> 0 | AB48: =SUM($AA$11:AA48) -> 0 | AC48: 995816.8 | AD48: 995816.8 | AE48: 995816.8 | AF48: 2384686.389 | AG48: =($AF48-$V48)*(1+3%)-$Z48/VLOOKUP($A48,'sh1'!$N$7:$O$12,2,1) -> 2456226.981 | AH48: 2456226.981 | AI48: =IF($AG47<VLOOKUP($B48,'sh1'!$N$16:$O$19,2,1)*$AD48,VLOOKUP($B48,'sh1'!$N$16:$O$19,2,1)*$AD48,$AG47) -> 2384686.389 | AJ48: =IF($AG48<VLOOKUP($B48,'sh1'!$N$16:$O$19,2,1)*$AE48,VLOOKUP($B48,'sh1'!$N$16:$O$19,2,1)*$AE48,$AG48) -> 2456226.981 | AK48: 0 | AL48: 3666973.973 | AM48: =($AL48-W48)*(1+4.5%)-$Z48/VLOOKUP($A48,'sh1'!$N$7:$O$12,2,1) -> 3831987.801 | AN48: 3831987.801 | AO48: =IF($AM47<VLOOKUP($B48,'sh1'!$N$16:$O$19,2,1)*$AD48,VLOOKUP($B48,'sh1'!$N$16:$O$19,2,1)*$AD48,$AM47) -> 3666973.973 | AP48: =IF($AM48<VLOOKUP($B48,'sh1'!$N$16:$O$19,2,1)*$AE48,VLOOKUP($B48,'sh1'!$N$16:$O$19,2,1)*$AE48,$AM48) -> 3831987.801 | AQ48: 0 | AR48: 5604629.479 | AS48: =($AR48-X48)*(1+6%)-$Z48/VLOOKUP($A48,'sh1'!$N$7:$O$12,2,1) -> 5940907.247 | AT48: 5940907.247 | AU48: =IF($AS47<VLOOKUP($B48,'sh1'!$N$16:$O$19,2,1)*$AD48,VLOOKUP($B48,'sh1'!$N$16:$O$19,2,1)*$AD48,$AS47) -> 5604629.479 | AV48: =IF($AS48<VLOOKUP($B48,'sh1'!$N$16:$O$19,2,1)*$AE48,VLOOKUP($B48,'sh1'!$N$16:$O$19,2,1)*$AE48,$AS48) -> 5940907.247 | AW48: 0 | AX48: 5|0|15|38
A49: 39 | B49: 53 | C49: 54 | R49: 0 | S49: =SUM($R$11:R49,$P$11:P49,$Q$11:Q49) -> 995816.8 | T49: 0 | U49: =$R49+$P49+$Q49+$T49 -> 0 | V49: =SUM(($B49='sh1'!$R$3:$R$214)*(IF($I$3="男",0,1)='sh1'!$Q$3:$Q$214)*('sh1'!$S$3:$S$214))/1000*AK49 -> 0 | W49: =SUM(($B49='sh1'!$R$3:$R$214)*(IF($I$3="男",0,1)='sh1'!$Q$3:$Q$214)*('sh1'!$S$3:$S$214))/1000*AQ49 -> 0 | X49: =SUM(($B49='sh1'!$R$3:$R$214)*(IF($I$3="男",0,1)='sh1'!$Q$3:$Q$214)*('sh1'!$S$3:$S$214))/1000*AW49 -> 0 | Y49: =IF($A49=7,(SUM($I38:$I47)+SUM($J38:$J47))*1%,IF($A49>=8,($I47+$J47)*1%,0)) -> 0 | AA49: =-$Z49/VLOOKUP($A49,'sh1'!$N$7:$O$12,2,1) -> 0 | AB49: =SUM($AA$11:AA49) -> 0 | AC49: 995816.8 | AD49: 995816.8 | AE49: 995816.8 | AF49: 2456226.981 | AG49: =($AF49-$V49)*(1+3%)-$Z49/VLOOKUP($A49,'sh1'!$N$7:$O$12,2,1) -> 2529913.79 | AH49: 2529913.79 | AI49: =IF($AG48<VLOOKUP($B49,'sh1'!$N$16:$O$19,2,1)*$AD49,VLOOKUP($B49,'sh1'!$N$16:$O$19,2,1)*$AD49,$AG48) -> 2456226.981 | AJ49: =IF($AG49<VLOOKUP($B49,'sh1'!$N$16:$O$19,2,1)*$AE49,VLOOKUP($B49,'sh1'!$N$16:$O$19,2,1)*$AE49,$AG49) -> 2529913.79 | AK49: 0 | AL49: 3831987.801 | AM49: =($AL49-W49)*(1+4.5%)-$Z49/VLOOKUP($A49,'sh1'!$N$7:$O$12,2,1) -> 4004427.253 | AN49: 4004427.253 | AO49: =IF($AM48<VLOOKUP($B49,'sh1'!$N$16:$O$19,2,1)*$AD49,VLOOKUP($B49,'sh1'!$N$16:$O$19,2,1)*$AD49,$AM48) -> 3831987.801 | AP49: =IF($AM49<VLOOKUP($B49,'sh1'!$N$16:$O$19,2,1)*$AE49,VLOOKUP($B49,'sh1'!$N$16:$O$19,2,1)*$AE49,$AM49) -> 4004427.253 | AQ49: 0 | AR49: 5940907.247 | AS49: =($AR49-X49)*(1+6%)-$Z49/VLOOKUP($A49,'sh1'!$N$7:$O$12,2,1) -> 6297361.682 | AT49: 6297361.682 | AU49: =IF($AS48<VLOOKUP($B49,'sh1'!$N$16:$O$19,2,1)*$AD49,VLOOKUP($B49,'sh1'!$N$16:$O$19,2,1)*$AD49,$AS48) -> 5940907.247 | AV49: =IF($AS49<VLOOKUP($B49,'sh1'!$N$16:$O$19,2,1)*$AE49,VLOOKUP($B49,'sh1'!$N$16:$O$19,2,1)*$AE49,$AS49) -> 6297361.682 | AW49: 0 | AX49: 5|0|15|39
A50: 40 | B50: 54 | C50: 55 | R50: 0 | S50: =SUM($R$11:R50,$P$11:P50,$Q$11:Q50) -> 995816.8 | T50: 0 | U50: 0 | V50: =SUM(($B50='sh1'!$R$3:$R$214)*(IF($I$3="男",0,1)='sh1'!$Q$3:$Q$214)*('sh1'!$S$3:$S$214))/1000*AK50 -> 0 | W50: =SUM(($B50='sh1'!$R$3:$R$214)*(IF($I$3="男",0,1)='sh1'!$Q$3:$Q$214)*('sh1'!$S$3:$S$214))/1000*AQ50 -> 0 | X50: =SUM(($B50='sh1'!$R$3:$R$214)*(IF($I$3="男",0,1)='sh1'!$Q$3:$Q$214)*('sh1'!$S$3:$S$214))/1000*AW50 -> 0 | Y50: =IF($A50=7,(SUM($I39:$I48)+SUM($J39:$J48))*1%,IF($A50>=8,($I48+$J48)*1%,0)) -> 0 | AA50: =-$Z50/VLOOKUP($A50,'sh1'!$N$7:$O$12,2,1) -> 0 | AB50: =SUM($AA$11:AA50) -> 0 | AC50: 995816.8 | AD50: 995816.8 | AE50: 995816.8 | AF50: 2529913.79 | AG50: =($AF50-$V50)*(1+3%)-$Z50/VLOOKUP($A50,'sh1'!$N$7:$O$12,2,1) -> 2605811.204 | AH50: 2605811.204 | AI50: =IF($AG49<VLOOKUP($B50,'sh1'!$N$16:$O$19,2,1)*$AD50,VLOOKUP($B50,'sh1'!$N$16:$O$19,2,1)*$AD50,$AG49) -> 2529913.79 | AJ50: =IF($AG50<VLOOKUP($B50,'sh1'!$N$16:$O$19,2,1)*$AE50,VLOOKUP($B50,'sh1'!$N$16:$O$19,2,1)*$AE50,$AG50) -> 2605811.204 | AK50: 0 | AL50: 4004427.253 | AM50: =($AL50-W50)*(1+4.5%)-$Z50/VLOOKUP($A50,'sh1'!$N$7:$O$12,2,1) -> 4184626.479 | AN50: 4184626.479 | AO50: =IF($AM49<VLOOKUP($B50,'sh1'!$N$16:$O$19,2,1)*$AD50,VLOOKUP($B50,'sh1'!$N$16:$O$19,2,1)*$AD50,$AM49) -> 4004427.253 | AP50: =IF($AM50<VLOOKUP($B50,'sh1'!$N$16:$O$19,2,1)*$AE50,VLOOKUP($B50,'sh1'!$N$16:$O$19,2,1)*$AE50,$AM50) -> 4184626.479 | AQ50: 0 | AR50: 6297361.682 | AS50: =($AR50-X50)*(1+6%)-$Z50/VLOOKUP($A50,'sh1'!$N$7:$O$12,2,1) -> 6675203.383 | AT50: 6675203.383 | AU50: =IF($AS49<VLOOKUP($B50,'sh1'!$N$16:$O$19,2,1)*$AD50,VLOOKUP($B50,'sh1'!$N$16:$O$19,2,1)*$AD50,$AS49) -> 6297361.682 | AV50: =IF($AS50<VLOOKUP($B50,'sh1'!$N$16:$O$19,2,1)*$AE50,VLOOKUP($B50,'sh1'!$N$16:$O$19,2,1)*$AE50,$AS50) -> 6675203.383 | AW50: 0 | AX50: 5|0|15|40
A51: 41 | B51: 55 | C51: 56 | R51: 0 | S51: =SUM($R$11:R51,$P$11:P51,$Q$11:Q51) -> 995816.8 | T51: 0 | U51: 0 | V51: =SUM(($B51='sh1'!$R$3:$R$214)*(IF($I$3="男",0,1)='sh1'!$Q$3:$Q$214)*('sh1'!$S$3:$S$214))/1000*AK51 -> 0 | W51: =SUM(($B51='sh1'!$R$3:$R$214)*(IF($I$3="男",0,1)='sh1'!$Q$3:$Q$214)*('sh1'!$S$3:$S$214))/1000*AQ51 -> 0 | X51: =SUM(($B51='sh1'!$R$3:$R$214)*(IF($I$3="男",0,1)='sh1'!$Q$3:$Q$214)*('sh1'!$S$3:$S$214))/1000*AW51 -> 0 | Y51: 0 | AA51: =-$Z51/VLOOKUP($A51,'sh1'!$N$7:$O$12,2,1) -> 0 | AB51: =SUM($AA$11:AA51) -> 0 | AC51: 995816.8 | AD51: 995816.8 | AE51: 995816.8 | AF51: 2605811.204 | AG51: =($AF51-$V51)*(1+3%)-$Z51/VLOOKUP($A51,'sh1'!$N$7:$O$12,2,1) -> 2683985.54 | AH51: 2683985.54 | AI51: =IF($AG50<VLOOKUP($B51,'sh1'!$N$16:$O$19,2,1)*$AD51,VLOOKUP($B51,'sh1'!$N$16:$O$19,2,1)*$AD51,$AG50) -> 2605811.204 | AJ51: =IF($AG51<VLOOKUP($B51,'sh1'!$N$16:$O$19,2,1)*$AE51,VLOOKUP($B51,'sh1'!$N$16:$O$19,2,1)*$AE51,$AG51) -> 2683985.54 | AK51: 0 | AL51: 4184626.479 | AM51: =($AL51-W51)*(1+4.5%)-$Z51/VLOOKUP($A51,'sh1'!$N$7:$O$12,2,1) -> 4372934.67 | AN51: 4372934.67 | AO51: =IF($AM50<VLOOKUP($B51,'sh1'!$N$16:$O$19,2,1)*$AD51,VLOOKUP($B51,'sh1'!$N$16:$O$19,2,1)*$AD51,$AM50) -> 4184626.479 | AP51: =IF($AM51<VLOOKUP($B51,'sh1'!$N$16:$O$19,2,1)*$AE51,VLOOKUP($B51,'sh1'!$N$16:$O$19,2,1)*$AE51,$AM51) -> 4372934.67 | AQ51: 0 | AR51: 6675203.383 | AS51: =($AR51-X51)*(1+6%)-$Z51/VLOOKUP($A51,'sh1'!$N$7:$O$12,2,1) -> 7075715.586 | AT51: 7075715.586 | AU51: =IF($AS50<VLOOKUP($B51,'sh1'!$N$16:$O$19,2,1)*$AD51,VLOOKUP($B51,'sh1'!$N$16:$O$19,2,1)*$AD51,$AS50) -> 6675203.383 | AV51: =IF($AS51<VLOOKUP($B51,'sh1'!$N$16:$O$19,2,1)*$AE51,VLOOKUP($B51,'sh1'!$N$16:$O$19,2,1)*$AE51,$AS51) -> 7075715.586 | AW51: 0 | AX51: 5|0|15|41
A52: 42 | B52: 56 | C52: =$G$3+A52 -> 57 | R52: =$I51+$J51 -> 0 | S52: =SUM($R$11:R52,$P$11:P52,$Q$11:Q52) -> 995816.8 | T52: 0 | U52: 0 | V52: =SUM(($B52='sh1'!$R$3:$R$214)*(IF($I$3="男",0,1)='sh1'!$Q$3:$Q$214)*('sh1'!$S$3:$S$214))/1000*AK52 -> 0 | W52: =SUM(($B52='sh1'!$R$3:$R$214)*(IF($I$3="男",0,1)='sh1'!$Q$3:$Q$214)*('sh1'!$S$3:$S$214))/1000*AQ52 -> 0 | X52: =SUM(($B52='sh1'!$R$3:$R$214)*(IF($I$3="男",0,1)='sh1'!$Q$3:$Q$214)*('sh1'!$S$3:$S$214))/1000*AW52 -> 0 | Y52: 0 | AA52: =-$Z52/VLOOKUP($A52,'sh1'!$N$7:$O$12,2,1) -> 0 | AB52: =SUM($AA$11:AA52) -> 0 | AC52: 995816.8 | AD52: =$S52+$AB51 -> 995816.8 | AE52: 995816.8 | AF52: =$AG51+$U52+$Y52 -> 2683985.54 | AG52: =($AF52-$V52)*(1+3%)-$Z52/VLOOKUP($A52,'sh1'!$N$7:$O$12,2,1) -> 2764505.106 | AH52: 2764505.106 | AI52: =IF($AG51<VLOOKUP($B52,'sh1'!$N$16:$O$19,2,1)*$AD52,VLOOKUP($B52,'sh1'!$N$16:$O$19,2,1)*$AD52,$AG51) -> 2683985.54 | AJ52: =IF($AG52<VLOOKUP($B52,'sh1'!$N$16:$O$19,2,1)*$AE52,VLOOKUP($B52,'sh1'!$N$16:$O$19,2,1)*$AE52,$AG52) -> 2764505.106 | AK52: =IF(AI52-AG51-U52<0,0,AI52-AG51-U52) -> 0 | AL52: =$AM51+$U52+$Y52 -> 4372934.67 | AM52: =($AL52-W52)*(1+4.5%)-$Z52/VLOOKUP($A52,'sh1'!$N$7:$O$12,2,1) -> 4569716.731 | AN52: 4569716.731 | AO52: =IF($AM51<VLOOKUP($B52,'sh1'!$N$16:$O$19,2,1)*$AD52,VLOOKUP($B52,'sh1'!$N$16:$O$19,2,1)*$AD52,$AM51) -> 4372934.67 | AP52: =IF($AM52<VLOOKUP($B52,'sh1'!$N$16:$O$19,2,1)*$AE52,VLOOKUP($B52,'sh1'!$N$16:$O$19,2,1)*$AE52,$AM52) -> 4569716.731 | AQ52: =IF(AO52-AM51-U52<0,0,AO52-AM51-U52) -> 0 | AR52: =$AS51+$U52+$Y52 -> 7075715.586 | AS52: =($AR52-X52)*(1+6%)-$Z52/VLOOKUP($A52,'sh1'!$N$7:$O$12,2,1) -> 7500258.521 | AT52: 7500258.521 | AU52: =IF($AS51<VLOOKUP($B52,'sh1'!$N$16:$O$19,2,1)*$AD52,VLOOKUP($B52,'sh1'!$N$16:$O$19,2,1)*$AD52,$AS51) -> 7075715.586 | AV52: =IF($AS52<VLOOKUP($B52,'sh1'!$N$16:$O$19,2,1)*$AE52,VLOOKUP($B52,'sh1'!$N$16:$O$19,2,1)*$AE52,$AS52) -> 7500258.521 | AW52: =IF(AU52-AS51-U52<0,0,AU52-AS51-U52) -> 0 | AX52: 5|0|15|42
A53: 43 | B53: 57 | C53: =$G$3+A53 -> 58 | R53: =$I52+$J52 -> 0 | S53: =SUM($R$11:R53,$P$11:P53,$Q$11:Q53) -> 995816.8 | T53: 0 | U53: 0 | V53: =SUM(($B53='sh1'!$R$3:$R$214)*(IF($I$3="男",0,1)='sh1'!$Q$3:$Q$214)*('sh1'!$S$3:$S$214))/1000*AK53 -> 0 | W53: =SUM(($B53='sh1'!$R$3:$R$214)*(IF($I$3="男",0,1)='sh1'!$Q$3:$Q$214)*('sh1'!$S$3:$S$214))/1000*AQ53 -> 0 | X53: =SUM(($B53='sh1'!$R$3:$R$214)*(IF($I$3="男",0,1)='sh1'!$Q$3:$Q$214)*('sh1'!$S$3:$S$214))/1000*AW53 -> 0 | Y53: 0 | AA53: =-$Z53/VLOOKUP($A53,'sh1'!$N$7:$O$12,2,1) -> 0 | AB53: =SUM($AA$11:AA53) -> 0 | AC53: 995816.8 | AD53: =$S53+$AB52 -> 995816.8 | AE53: 995816.8 | AF53: =$AG52+$U53+$Y53 -> 2764505.106 | AG53: =($AF53-$V53)*(1+3%)-$Z53/VLOOKUP($A53,'sh1'!$N$7:$O$12,2,1) -> 2847440.26 | AH53: 2847440.26 | AI53: =IF($AG52<VLOOKUP($B53,'sh1'!$N$16:$O$19,2,1)*$AD53,VLOOKUP($B53,'sh1'!$N$16:$O$19,2,1)*$AD53,$AG52) -> 2764505.106 | AJ53: =IF($AG53<VLOOKUP($B53,'sh1'!$N$16:$O$19,2,1)*$AE53,VLOOKUP($B53,'sh1'!$N$16:$O$19,2,1)*$AE53,$AG53) -> 2847440.26 | AK53: =IF(AI53-AG52-U53<0,0,AI53-AG52-U53) -> 0 | AL53: =$AM52+$U53+$Y53 -> 4569716.731 | AM53: =($AL53-W53)*(1+4.5%)-$Z53/VLOOKUP($A53,'sh1'!$N$7:$O$12,2,1) -> 4775353.983 | AN53: 4775353.983 | AO53: =IF($AM52<VLOOKUP($B53,'sh1'!$N$16:$O$19,2,1)*$AD53,VLOOKUP($B53,'sh1'!$N$16:$O$19,2,1)*$AD53,$AM52) -> 4569716.731 | AP53: =IF($AM53<VLOOKUP($B53,'sh1'!$N$16:$O$19,2,1)*$AE53,VLOOKUP($B53,'sh1'!$N$16:$O$19,2,1)*$AE53,$AM53) -> 4775353.983 | AQ53: =IF(AO53-AM52-U53<0,0,AO53-AM52-U53) -> 0 | AR53: =$AS52+$U53+$Y53 -> 7500258.521 | AS53: =($AR53-X53)*(1+6%)-$Z53/VLOOKUP($A53,'sh1'!$N$7:$O$12,2,1) -> 7950274.032 | AT53: 7950274.032 | AU53: =IF($AS52<VLOOKUP($B53,'sh1'!$N$16:$O$19,2,1)*$AD53,VLOOKUP($B53,'sh1'!$N$16:$O$19,2,1)*$AD53,$AS52) -> 7500258.521 | AV53: =IF($AS53<VLOOKUP($B53,'sh1'!$N$16:$O$19,2,1)*$AE53,VLOOKUP($B53,'sh1'!$N$16:$O$19,2,1)*$AE53,$AS53) -> 7950274.032 | AW53: =IF(AU53-AS52-U53<0,0,AU53-AS52-U53) -> 0 | AX53: 5|0|15|43
A54: 44 | B54: 58 | C54: =$G$3+A54 -> 59 | R54: =$I53+$J53 -> 0 | S54: =SUM($R$11:R54,$P$11:P54,$Q$11:Q54) -> 995816.8 | T54: 0 | U54: 0 | V54: =SUM(($B54='sh1'!$R$3:$R$214)*(IF($I$3="男",0,1)='sh1'!$Q$3:$Q$214)*('sh1'!$S$3:$S$214))/1000*AK54 -> 0 | W54: =SUM(($B54='sh1'!$R$3:$R$214)*(IF($I$3="男",0,1)='sh1'!$Q$3:$Q$214)*('sh1'!$S$3:$S$214))/1000*AQ54 -> 0 | X54: =SUM(($B54='sh1'!$R$3:$R$214)*(IF($I$3="男",0,1)='sh1'!$Q$3:$Q$214)*('sh1'!$S$3:$S$214))/1000*AW54 -> 0 | Y54: 0 | AA54: =-$Z54/VLOOKUP($A54,'sh1'!$N$7:$O$12,2,1) -> 0 | AB54: =SUM($AA$11:AA54) -> 0 | AC54: 995816.8 | AD54: 995816.8 | AE54: 995816.8 | AF54: 2847440.26 | AG54: =($AF54-$V54)*(1+3%)-$Z54/VLOOKUP($A54,'sh1'!$N$7:$O$12,2,1) -> 2932863.467 | AH54: 2932863.467 | AI54: =IF($AG53<VLOOKUP($B54,'sh1'!$N$16:$O$19,2,1)*$AD54,VLOOKUP($B54,'sh1'!$N$16:$O$19,2,1)*$AD54,$AG53) -> 2847440.26 | AJ54: =IF($AG54<VLOOKUP($B54,'sh1'!$N$16:$O$19,2,1)*$AE54,VLOOKUP($B54,'sh1'!$N$16:$O$19,2,1)*$AE54,$AG54) -> 2932863.467 | AK54: 0 | AL54: 4775353.983 | AM54: =($AL54-W54)*(1+4.5%)-$Z54/VLOOKUP($A54,'sh1'!$N$7:$O$12,2,1) -> 4990244.913 | AN54: 4990244.913 | AO54: =IF($AM53<VLOOKUP($B54,'sh1'!$N$16:$O$19,2,1)*$AD54,VLOOKUP($B54,'sh1'!$N$16:$O$19,2,1)*$AD54,$AM53) -> 4775353.983 | AP54: =IF($AM54<VLOOKUP($B54,'sh1'!$N$16:$O$19,2,1)*$AE54,VLOOKUP($B54,'sh1'!$N$16:$O$19,2,1)*$AE54,$AM54) -> 4990244.913 | AQ54: 0 | AR54: 7950274.032 | AS54: =($AR54-X54)*(1+6%)-$Z54/VLOOKUP($A54,'sh1'!$N$7:$O$12,2,1) -> 8427290.474 | AT54: 8427290.474 | AU54: =IF($AS53<VLOOKUP($B54,'sh1'!$N$16:$O$19,2,1)*$AD54,VLOOKUP($B54,'sh1'!$N$16:$O$19,2,1)*$AD54,$AS53) -> 7950274.032 | AV54: =IF($AS54<VLOOKUP($B54,'sh1'!$N$16:$O$19,2,1)*$AE54,VLOOKUP($B54,'sh1'!$N$16:$O$19,2,1)*$AE54,$AS54) -> 8427290.474 | AW54: 0 | AX54: 5|0|15|44
A55: 45 | B55: 59 | C55: 60 | R55: 0 | S55: =SUM($R$11:R55,$P$11:P55,$Q$11:Q55) -> 995816.8 | T55: 0 | U55: 0 | V55: =SUM(($B55='sh1'!$R$3:$R$214)*(IF($I$3="男",0,1)='sh1'!$Q$3:$Q$214)*('sh1'!$S$3:$S$214))/1000*AK55 -> 0 | W55: =SUM(($B55='sh1'!$R$3:$R$214)*(IF($I$3="男",0,1)='sh1'!$Q$3:$Q$214)*('sh1'!$S$3:$S$214))/1000*AQ55 -> 0 | X55: =SUM(($B55='sh1'!$R$3:$R$214)*(IF($I$3="男",0,1)='sh1'!$Q$3:$Q$214)*('sh1'!$S$3:$S$214))/1000*AW55 -> 0 | Y55: 0 | AA55: =-$Z55/VLOOKUP($A55,'sh1'!$N$7:$O$12,2,1) -> 0 | AB55: =SUM($AA$11:AA55) -> 0 | AC55: 995816.8 | AD55: 995816.8 | AE55: 995816.8 | AF55: 2932863.467 | AG55: =($AF55-$V55)*(1+3%)-$Z55/VLOOKUP($A55,'sh1'!$N$7:$O$12,2,1) -> 3020849.371 | AH55: 3020849.371 | AI55: =IF($AG54<VLOOKUP($B55,'sh1'!$N$16:$O$19,2,1)*$AD55,VLOOKUP($B55,'sh1'!$N$16:$O$19,2,1)*$AD55,$AG54) -> 2932863.467 | AJ55: =IF($AG55<VLOOKUP($B55,'sh1'!$N$16:$O$19,2,1)*$AE55,VLOOKUP($B55,'sh1'!$N$16:$O$19,2,1)*$AE55,$AG55) -> 3020849.371 | AK55: 0 | AL55: 4990244.913 | AM55: =($AL55-W55)*(1+4.5%)-$Z55/VLOOKUP($A55,'sh1'!$N$7:$O$12,2,1) -> 5214805.934 | AN55: 5214805.934 | AO55: =IF($AM54<VLOOKUP($B55,'sh1'!$N$16:$O$19,2,1)*$AD55,VLOOKUP($B55,'sh1'!$N$16:$O$19,2,1)*$AD55,$AM54) -> 4990244.913 | AP55: =IF($AM55<VLOOKUP($B55,'sh1'!$N$16:$O$19,2,1)*$AE55,VLOOKUP($B55,'sh1'!$N$16:$O$19,2,1)*$AE55,$AM55) -> 5214805.934 | AQ55: 0 | AR55: 8427290.474 | AS55: =($AR55-X55)*(1+6%)-$Z55/VLOOKUP($A55,'sh1'!$N$7:$O$12,2,1) -> 8932927.903 | AT55: 8932927.903 | AU55: =IF($AS54<VLOOKUP($B55,'sh1'!$N$16:$O$19,2,1)*$AD55,VLOOKUP($B55,'sh1'!$N$16:$O$19,2,1)*$AD55,$AS54) -> 8427290.474 | AV55: =IF($AS55<VLOOKUP($B55,'sh1'!$N$16:$O$19,2,1)*$AE55,VLOOKUP($B55,'sh1'!$N$16:$O$19,2,1)*$AE55,$AS55) -> 8932927.903 | AW55: 0 | AX55: 5|0|15|45
A56: 46 | B56: 60 | C56: 61 | R56: 0 | S56: =SUM($R$11:R56,$P$11:P56,$Q$11:Q56) -> 995816.8 | T56: 0 | U56: 0 | V56: =SUM(($B56='sh1'!$R$3:$R$214)*(IF($I$3="男",0,1)='sh1'!$Q$3:$Q$214)*('sh1'!$S$3:$S$214))/1000*AK56 -> 0 | W56: =SUM(($B56='sh1'!$R$3:$R$214)*(IF($I$3="男",0,1)='sh1'!$Q$3:$Q$214)*('sh1'!$S$3:$S$214))/1000*AQ56 -> 0 | X56: =SUM(($B56='sh1'!$R$3:$R$214)*(IF($I$3="男",0,1)='sh1'!$Q$3:$Q$214)*('sh1'!$S$3:$S$214))/1000*AW56 -> 0 | Y56: 0 | AA56: =-$Z56/VLOOKUP($A56,'sh1'!$N$7:$O$12,2,1) -> 0 | AB56: =SUM($AA$11:AA56) -> 0 | AC56: 995816.8 | AD56: 995816.8 | AE56: 995816.8 | AF56: 3020849.371 | AG56: =($AF56-$V56)*(1+3%)-$Z56/VLOOKUP($A56,'sh1'!$N$7:$O$12,2,1) -> 3111474.853 | AH56: 3111474.853 | AI56: =IF($AG55<VLOOKUP($B56,'sh1'!$N$16:$O$19,2,1)*$AD56,VLOOKUP($B56,'sh1'!$N$16:$O$19,2,1)*$AD56,$AG55) -> 3020849.371 | AJ56: =IF($AG56<VLOOKUP($B56,'sh1'!$N$16:$O$19,2,1)*$AE56,VLOOKUP($B56,'sh1'!$N$16:$O$19,2,1)*$AE56,$AG56) -> 3111474.853 | AK56: 0 | AL56: 5214805.934 | AM56: =($AL56-W56)*(1+4.5%)-$Z56/VLOOKUP($A56,'sh1'!$N$7:$O$12,2,1) -> 5449472.201 | AN56: 5449472.201 | AO56: =IF($AM55<VLOOKUP($B56,'sh1'!$N$16:$O$19,2,1)*$AD56,VLOOKUP($B56,'sh1'!$N$16:$O$19,2,1)*$AD56,$AM55) -> 5214805.934 | AP56: =IF($AM56<VLOOKUP($B56,'sh1'!$N$16:$O$19,2,1)*$AE56,VLOOKUP($B56,'sh1'!$N$16:$O$19,2,1)*$AE56,$AM56) -> 5449472.201 | AQ56: 0 | AR56: 8932927.903 | AS56: =($AR56-X56)*(1+6%)-$Z56/VLOOKUP($A56,'sh1'!$N$7:$O$12,2,1) -> 9468903.577 | AT56: 9468903.577 | AU56: =IF($AS55<VLOOKUP($B56,'sh1'!$N$16:$O$19,2,1)*$AD56,VLOOKUP($B56,'sh1'!$N$16:$O$19,2,1)*$AD56,$AS55) -> 8932927.903 | AV56: =IF($AS56<VLOOKUP($B56,'sh1'!$N$16:$O$19,2,1)*$AE56,VLOOKUP($B56,'sh1'!$N$16:$O$19,2,1)*$AE56,$AS56) -> 9468903.577 | AW56: 0 | AX56: 5|0|15|46
A57: 47 | B57: 61 | C57: 62 | R57: 0 | S57: =SUM($R$11:R57,$P$11:P57,$Q$11:Q57) -> 995816.8 | T57: 0 | U57: 0 | V57: =SUM(($B57='sh1'!$R$3:$R$214)*(IF($I$3="男",0,1)='sh1'!$Q$3:$Q$214)*('sh1'!$S$3:$S$214))/1000*AK57 -> 0 | W57: =SUM(($B57='sh1'!$R$3:$R$214)*(IF($I$3="男",0,1)='sh1'!$Q$3:$Q$214)*('sh1'!$S$3:$S$214))/1000*AQ57 -> 0 | X57: =SUM(($B57='sh1'!$R$3:$R$214)*(IF($I$3="男",0,1)='sh1'!$Q$3:$Q$214)*('sh1'!$S$3:$S$214))/1000*AW57 -> 0 | Y57: 0 | AA57: =-$Z57/VLOOKUP($A57,'sh1'!$N$7:$O$12,2,1) -> 0 | AB57: =SUM($AA$11:AA57) -> 0 | AC57: 995816.8 | AD57: 995816.8 | AE57: 995816.8 | AF57: 3111474.853 | AG57: =($AF57-$V57)*(1+3%)-$Z57/VLOOKUP($A57,'sh1'!$N$7:$O$12,2,1) -> 3204819.098 | AH57: 3204819.098 | AI57: =IF($AG56<VLOOKUP($B57,'sh1'!$N$16:$O$19,2,1)*$AD57,VLOOKUP($B57,'sh1'!$N$16:$O$19,2,1)*$AD57,$AG56) -> 3111474.853 | AJ57: =IF($AG57<VLOOKUP($B57,'sh1'!$N$16:$O$19,2,1)*$AE57,VLOOKUP($B57,'sh1'!$N$16:$O$19,2,1)*$AE57,$AG57) -> 3204819.098 | AK57: 0 | AL57: 5449472.201 | AM57: =($AL57-W57)*(1+4.5%)-$Z57/VLOOKUP($A57,'sh1'!$N$7:$O$12,2,1) -> 5694698.45 | AN57: 5694698.45 | AO57: =IF($AM56<VLOOKUP($B57,'sh1'!$N$16:$O$19,2,1)*$AD57,VLOOKUP($B57,'sh1'!$N$16:$O$19,2,1)*$AD57,$AM56) -> 5449472.201 | AP57: =IF($AM57<VLOOKUP($B57,'sh1'!$N$16:$O$19,2,1)*$AE57,VLOOKUP($B57,'sh1'!$N$16:$O$19,2,1)*$AE57,$AM57) -> 5694698.45 | AQ57: 0 | AR57: 9468903.577 | AS57: =($AR57-X57)*(1+6%)-$Z57/VLOOKUP($A57,'sh1'!$N$7:$O$12,2,1) -> 10037037.79 | AT57: 10037037.79 | AU57: =IF($AS56<VLOOKUP($B57,'sh1'!$N$16:$O$19,2,1)*$AD57,VLOOKUP($B57,'sh1'!$N$16:$O$19,2,1)*$AD57,$AS56) -> 9468903.577 | AV57: =IF($AS57<VLOOKUP($B57,'sh1'!$N$16:$O$19,2,1)*$AE57,VLOOKUP($B57,'sh1'!$N$16:$O$19,2,1)*$AE57,$AS57) -> 10037037.79 | AW57: 0 | AX57: 5|0|15|47
A58: 48 | B58: 62 | C58: 63 | R58: 0 | S58: =SUM($R$11:R58,$P$11:P58,$Q$11:Q58) -> 995816.8 | T58: 0 | U58: 0 | V58: =SUM(($B58='sh1'!$R$3:$R$214)*(IF($I$3="男",0,1)='sh1'!$Q$3:$Q$214)*('sh1'!$S$3:$S$214))/1000*AK58 -> 0 | W58: =SUM(($B58='sh1'!$R$3:$R$214)*(IF($I$3="男",0,1)='sh1'!$Q$3:$Q$214)*('sh1'!$S$3:$S$214))/1000*AQ58 -> 0 | X58: =SUM(($B58='sh1'!$R$3:$R$214)*(IF($I$3="男",0,1)='sh1'!$Q$3:$Q$214)*('sh1'!$S$3:$S$214))/1000*AW58 -> 0 | Y58: 0 | AA58: =-$Z58/VLOOKUP($A58,'sh1'!$N$7:$O$12,2,1) -> 0 | AB58: =SUM($AA$11:AA58) -> 0 | AC58: 995816.8 | AD58: 995816.8 | AE58: 995816.8 | AF58: 3204819.098 | AG58: =($AF58-$V58)*(1+3%)-$Z58/VLOOKUP($A58,'sh1'!$N$7:$O$12,2,1) -> 3300963.671 | AH58: 3300963.671 | AI58: =IF($AG57<VLOOKUP($B58,'sh1'!$N$16:$O$19,2,1)*$AD58,VLOOKUP($B58,'sh1'!$N$16:$O$19,2,1)*$AD58,$AG57) -> 3204819.098 | AJ58: =IF($AG58<VLOOKUP($B58,'sh1'!$N$16:$O$19,2,1)*$AE58,VLOOKUP($B58,'sh1'!$N$16:$O$19,2,1)*$AE58,$AG58) -> 3300963.671 | AK58: 0 | AL58: 5694698.45 | AM58: =($AL58-W58)*(1+4.5%)-$Z58/VLOOKUP($A58,'sh1'!$N$7:$O$12,2,1) -> 5950959.88 | AN58: 5950959.88 | AO58: =IF($AM57<VLOOKUP($B58,'sh1'!$N$16:$O$19,2,1)*$AD58,VLOOKUP($B58,'sh1'!$N$16:$O$19,2,1)*$AD58,$AM57) -> 5694698.45 | AP58: =IF($AM58<VLOOKUP($B58,'sh1'!$N$16:$O$19,2,1)*$AE58,VLOOKUP($B58,'sh1'!$N$16:$O$19,2,1)*$AE58,$AM58) -> 5950959.88 | AQ58: 0 | AR58: 10037037.79 | AS58: =($AR58-X58)*(1+6%)-$Z58/VLOOKUP($A58,'sh1'!$N$7:$O$12,2,1) -> 10639260.06 | AT58: 10639260.06 | AU58: =IF($AS57<VLOOKUP($B58,'sh1'!$N$16:$O$19,2,1)*$AD58,VLOOKUP($B58,'sh1'!$N$16:$O$19,2,1)*$AD58,$AS57) -> 10037037.79 | AV58: =IF($AS58<VLOOKUP($B58,'sh1'!$N$16:$O$19,2,1)*$AE58,VLOOKUP($B58,'sh1'!$N$16:$O$19,2,1)*$AE58,$AS58) -> 10639260.06 | AW58: 0 | AX58: 5|0|15|48
A59: 49 | B59: 63 | C59: 64 | R59: 0 | S59: =SUM($R$11:R59,$P$11:P59,$Q$11:Q59) -> 995816.8 | T59: 0 | U59: 0 | V59: =SUM(($B59='sh1'!$R$3:$R$214)*(IF($I$3="男",0,1)='sh1'!$Q$3:$Q$214)*('sh1'!$S$3:$S$214))/1000*AK59 -> 0 | W59: =SUM(($B59='sh1'!$R$3:$R$214)*(IF($I$3="男",0,1)='sh1'!$Q$3:$Q$214)*('sh1'!$S$3:$S$214))/1000*AQ59 -> 0 | X59: =SUM(($B59='sh1'!$R$3:$R$214)*(IF($I$3="男",0,1)='sh1'!$Q$3:$Q$214)*('sh1'!$S$3:$S$214))/1000*AW59 -> 0 | Y59: 0 | AA59: =-$Z59/VLOOKUP($A59,'sh1'!$N$7:$O$12,2,1) -> 0 | AB59: =SUM($AA$11:AA59) -> 0 | AC59: 995816.8 | AD59: 995816.8 | AE59: 995816.8 | AF59: 3300963.671 | AG59: =($AF59-$V59)*(1+3%)-$Z59/VLOOKUP($A59,'sh1'!$N$7:$O$12,2,1) -> 3399992.581 | AH59: 3399992.581 | AI59: =IF($AG58<VLOOKUP($B59,'sh1'!$N$16:$O$19,2,1)*$AD59,VLOOKUP($B59,'sh1'!$N$16:$O$19,2,1)*$AD59,$AG58) -> 3300963.671 | AJ59: =IF($AG59<VLOOKUP($B59,'sh1'!$N$16:$O$19,2,1)*$AE59,VLOOKUP($B59,'sh1'!$N$16:$O$19,2,1)*$AE59,$AG59) -> 3399992.581 | AK59: 0 | AL59: 5950959.88 | AM59: =($AL59-W59)*(1+4.5%)-$Z59/VLOOKUP($A59,'sh1'!$N$7:$O$12,2,1) -> 6218753.075 | AN59: 6218753.075 | AO59: =IF($AM58<VLOOKUP($B59,'sh1'!$N$16:$O$19,2,1)*$AD59,VLOOKUP($B59,'sh1'!$N$16:$O$19,2,1)*$AD59,$AM58) -> 5950959.88 | AP59: =IF($AM59<VLOOKUP($B59,'sh1'!$N$16:$O$19,2,1)*$AE59,VLOOKUP($B59,'sh1'!$N$16:$O$19,2,1)*$AE59,$AM59) -> 6218753.075 | AQ59: 0 | AR59: 10639260.06 | AS59: =($AR59-X59)*(1+6%)-$Z59/VLOOKUP($A59,'sh1'!$N$7:$O$12,2,1) -> 11277615.66 | AT59: 11277615.66 | AU59: =IF($AS58<VLOOKUP($B59,'sh1'!$N$16:$O$19,2,1)*$AD59,VLOOKUP($B59,'sh1'!$N$16:$O$19,2,1)*$AD59,$AS58) -> 10639260.06 | AV59: =IF($AS59<VLOOKUP($B59,'sh1'!$N$16:$O$19,2,1)*$AE59,VLOOKUP($B59,'sh1'!$N$16:$O$19,2,1)*$AE59,$AS59) -> 11277615.66 | AW59: 0 | AX59: 5|0|15|49
A60: 50 | B60: 64 | C60: 65 | R60: 0 | S60: =SUM($R$11:R60,$P$11:P60,$Q$11:Q60) -> 995816.8 | T60: 0 | U60: 0 | V60: =SUM(($B60='sh1'!$R$3:$R$214)*(IF($I$3="男",0,1)='sh1'!$Q$3:$Q$214)*('sh1'!$S$3:$S$214))/1000*AK60 -> 0 | W60: =SUM(($B60='sh1'!$R$3:$R$214)*(IF($I$3="男",0,1)='sh1'!$Q$3:$Q$214)*('sh1'!$S$3:$S$214))/1000*AQ60 -> 0 | X60: =SUM(($B60='sh1'!$R$3:$R$214)*(IF($I$3="男",0,1)='sh1'!$Q$3:$Q$214)*('sh1'!$S$3:$S$214))/1000*AW60 -> 0 | Y60: 0 | AA60: =-$Z60/VLOOKUP($A60,'sh1'!$N$7:$O$12,2,1) -> 0 | AB60: =SUM($AA$11:AA60) -> 0 | AC60: 995816.8 | AD60: 995816.8 | AE60: 995816.8 | AF60: 3399992.581 | AG60: =($AF60-$V60)*(1+3%)-$Z60/VLOOKUP($A60,'sh1'!$N$7:$O$12,2,1) -> 3501992.359 | AH60: 3501992.359 | AI60: =IF($AG59<VLOOKUP($B60,'sh1'!$N$16:$O$19,2,1)*$AD60,VLOOKUP($B60,'sh1'!$N$16:$O$19,2,1)*$AD60,$AG59) -> 3399992.581 | AJ60: =IF($AG60<VLOOKUP($B60,'sh1'!$N$16:$O$19,2,1)*$AE60,VLOOKUP($B60,'sh1'!$N$16:$O$19,2,1)*$AE60,$AG60) -> 3501992.359 | AK60: 0 | AL60: 6218753.075 | AM60: =($AL60-W60)*(1+4.5%)-$Z60/VLOOKUP($A60,'sh1'!$N$7:$O$12,2,1) -> 6498596.963 | AN60: 6498596.963 | AO60: =IF($AM59<VLOOKUP($B60,'sh1'!$N$16:$O$19,2,1)*$AD60,VLOOKUP($B60,'sh1'!$N$16:$O$19,2,1)*$AD60,$AM59) -> 6218753.075 | AP60: =IF($AM60<VLOOKUP($B60,'sh1'!$N$16:$O$19,2,1)*$AE60,VLOOKUP($B60,'sh1'!$N$16:$O$19,2,1)*$AE60,$AM60) -> 6498596.963 | AQ60: 0 | AR60: 11277615.66 | AS60: =($AR60-X60)*(1+6%)-$Z60/VLOOKUP($A60,'sh1'!$N$7:$O$12,2,1) -> 11954272.6 | AT60: 11954272.6 | AU60: =IF($AS59<VLOOKUP($B60,'sh1'!$N$16:$O$19,2,1)*$AD60,VLOOKUP($B60,'sh1'!$N$16:$O$19,2,1)*$AD60,$AS59) -> 11277615.66 | AV60: =IF($AS60<VLOOKUP($B60,'sh1'!$N$16:$O$19,2,1)*$AE60,VLOOKUP($B60,'sh1'!$N$16:$O$19,2,1)*$AE60,$AS60) -> 11954272.6 | AW60: 0 | AX60: 5|0|15|50
A61: 51 | B61: 65 | C61: 66 | R61: 0 | S61: =SUM($R$11:R61,$P$11:P61,$Q$11:Q61) -> 995816.8 | T61: 0 | U61: 0 | V61: =SUM(($B61='sh1'!$R$3:$R$214)*(IF($I$3="男",0,1)='sh1'!$Q$3:$Q$214)*('sh1'!$S$3:$S$214))/1000*AK61 -> 0 | W61: =SUM(($B61='sh1'!$R$3:$R$214)*(IF($I$3="男",0,1)='sh1'!$Q$3:$Q$214)*('sh1'!$S$3:$S$214))/1000*AQ61 -> 0 | X61: =SUM(($B61='sh1'!$R$3:$R$214)*(IF($I$3="男",0,1)='sh1'!$Q$3:$Q$214)*('sh1'!$S$3:$S$214))/1000*AW61 -> 0 | Y61: 0 | AA61: =-$Z61/VLOOKUP($A61,'sh1'!$N$7:$O$12,2,1) -> 0 | AB61: =SUM($AA$11:AA61) -> 0 | AC61: 995816.8 | AD61: 995816.8 | AE61: 995816.8 | AF61: 3501992.359 | AG61: =($AF61-$V61)*(1+3%)-$Z61/VLOOKUP($A61,'sh1'!$N$7:$O$12,2,1) -> 3607052.129 | AH61: 3607052.129 | AI61: =IF($AG60<VLOOKUP($B61,'sh1'!$N$16:$O$19,2,1)*$AD61,VLOOKUP($B61,'sh1'!$N$16:$O$19,2,1)*$AD61,$AG60) -> 3501992.359 | AJ61: =IF($AG61<VLOOKUP($B61,'sh1'!$N$16:$O$19,2,1)*$AE61,VLOOKUP($B61,'sh1'!$N$16:$O$19,2,1)*$AE61,$AG61) -> 3607052.129 | AK61: 0 | AL61: 6498596.963 | AM61: =($AL61-W61)*(1+4.5%)-$Z61/VLOOKUP($A61,'sh1'!$N$7:$O$12,2,1) -> 6791033.826 | AN61: 6791033.826 | AO61: =IF($AM60<VLOOKUP($B61,'sh1'!$N$16:$O$19,2,1)*$AD61,VLOOKUP($B61,'sh1'!$N$16:$O$19,2,1)*$AD61,$AM60) -> 6498596.963 | AP61: =IF($AM61<VLOOKUP($B61,'sh1'!$N$16:$O$19,2,1)*$AE61,VLOOKUP($B61,'sh1'!$N$16:$O$19,2,1)*$AE61,$AM61) -> 6791033.826 | AQ61: 0 | AR61: 11954272.6 | AS61: =($AR61-X61)*(1+6%)-$Z61/VLOOKUP($A61,'sh1'!$N$7:$O$12,2,1) -> 12671528.96 | AT61: 12671528.96 | AU61: =IF($AS60<VLOOKUP($B61,'sh1'!$N$16:$O$19,2,1)*$AD61,VLOOKUP($B61,'sh1'!$N$16:$O$19,2,1)*$AD61,$AS60) -> 11954272.6 | AV61: =IF($AS61<VLOOKUP($B61,'sh1'!$N$16:$O$19,2,1)*$AE61,VLOOKUP($B61,'sh1'!$N$16:$O$19,2,1)*$AE61,$AS61) -> 12671528.96 | AW61: 0 | AX61: 5|0|15|51
A62: 52 | B62: 66 | C62: 67 | R62: 0 | S62: =SUM($R$11:R62,$P$11:P62,$Q$11:Q62) -> 995816.8 | T62: 0 | U62: 0 | V62: =SUM(($B62='sh1'!$R$3:$R$214)*(IF($I$3="男",0,1)='sh1'!$Q$3:$Q$214)*('sh1'!$S$3:$S$214))/1000*AK62 -> 0 | W62: =SUM(($B62='sh1'!$R$3:$R$214)*(IF($I$3="男",0,1)='sh1'!$Q$3:$Q$214)*('sh1'!$S$3:$S$214))/1000*AQ62 -> 0 | X62: =SUM(($B62='sh1'!$R$3:$R$214)*(IF($I$3="男",0,1)='sh1'!$Q$3:$Q$214)*('sh1'!$S$3:$S$214))/1000*AW62 -> 0 | Y62: 0 | AA62: =-$Z62/VLOOKUP($A62,'sh1'!$N$7:$O$12,2,1) -> 0 | AB62: =SUM($AA$11:AA62) -> 0 | AC62: 995816.8 | AD62: 995816.8 | AE62: 995816.8 | AF62: 3607052.129 | AG62: =($AF62-$V62)*(1+3%)-$Z62/VLOOKUP($A62,'sh1'!$N$7:$O$12,2,1) -> 3715263.693 | AH62: 3715263.693 | AI62: =IF($AG61<VLOOKUP($B62,'sh1'!$N$16:$O$19,2,1)*$AD62,VLOOKUP($B62,'sh1'!$N$16:$O$19,2,1)*$AD62,$AG61) -> 3607052.129 | AJ62: =IF($AG62<VLOOKUP($B62,'sh1'!$N$16:$O$19,2,1)*$AE62,VLOOKUP($B62,'sh1'!$N$16:$O$19,2,1)*$AE62,$AG62) -> 3715263.693 | AK62: 0 | AL62: 6791033.826 | AM62: =($AL62-W62)*(1+4.5%)-$Z62/VLOOKUP($A62,'sh1'!$N$7:$O$12,2,1) -> 7096630.349 | AN62: 7096630.349 | AO62: =IF($AM61<VLOOKUP($B62,'sh1'!$N$16:$O$19,2,1)*$AD62,VLOOKUP($B62,'sh1'!$N$16:$O$19,2,1)*$AD62,$AM61) -> 6791033.826 | AP62: =IF($AM62<VLOOKUP($B62,'sh1'!$N$16:$O$19,2,1)*$AE62,VLOOKUP($B62,'sh1'!$N$16:$O$19,2,1)*$AE62,$AM62) -> 7096630.349 | AQ62: 0 | AR62: 12671528.96 | AS62: =($AR62-X62)*(1+6%)-$Z62/VLOOKUP($A62,'sh1'!$N$7:$O$12,2,1) -> 13431820.7 | AT62: 13431820.7 | AU62: =IF($AS61<VLOOKUP($B62,'sh1'!$N$16:$O$19,2,1)*$AD62,VLOOKUP($B62,'sh1'!$N$16:$O$19,2,1)*$AD62,$AS61) -> 12671528.96 | AV62: =IF($AS62<VLOOKUP($B62,'sh1'!$N$16:$O$19,2,1)*$AE62,VLOOKUP($B62,'sh1'!$N$16:$O$19,2,1)*$AE62,$AS62) -> 13431820.7 | AW62: 0 | AX62: 5|0|15|52
A63: 53 | B63: 67 | C63: 68 | R63: 0 | S63: =SUM($R$11:R63,$P$11:P63,$Q$11:Q63) -> 995816.8 | T63: 0 | U63: 0 | V63: =SUM(($B63='sh1'!$R$3:$R$214)*(IF($I$3="男",0,1)='sh1'!$Q$3:$Q$214)*('sh1'!$S$3:$S$214))/1000*AK63 -> 0 | W63: =SUM(($B63='sh1'!$R$3:$R$214)*(IF($I$3="男",0,1)='sh1'!$Q$3:$Q$214)*('sh1'!$S$3:$S$214))/1000*AQ63 -> 0 | X63: =SUM(($B63='sh1'!$R$3:$R$214)*(IF($I$3="男",0,1)='sh1'!$Q$3:$Q$214)*('sh1'!$S$3:$S$214))/1000*AW63 -> 0 | Y63: 0 | AA63: =-$Z63/VLOOKUP($A63,'sh1'!$N$7:$O$12,2,1) -> 0 | AB63: =SUM($AA$11:AA63) -> 0 | AC63: 995816.8 | AD63: 995816.8 | AE63: 995816.8 | AF63: 3715263.693 | AG63: =($AF63-$V63)*(1+3%)-$Z63/VLOOKUP($A63,'sh1'!$N$7:$O$12,2,1) -> 3826721.604 | AH63: 3826721.604 | AI63: =IF($AG62<VLOOKUP($B63,'sh1'!$N$16:$O$19,2,1)*$AD63,VLOOKUP($B63,'sh1'!$N$16:$O$19,2,1)*$AD63,$AG62) -> 3715263.693 | AJ63: =IF($AG63<VLOOKUP($B63,'sh1'!$N$16:$O$19,2,1)*$AE63,VLOOKUP($B63,'sh1'!$N$16:$O$19,2,1)*$AE63,$AG63) -> 3826721.604 | AK63: 0 | AL63: 7096630.349 | AM63: =($AL63-W63)*(1+4.5%)-$Z63/VLOOKUP($A63,'sh1'!$N$7:$O$12,2,1) -> 7415978.714 | AN63: 7415978.714 | AO63: =IF($AM62<VLOOKUP($B63,'sh1'!$N$16:$O$19,2,1)*$AD63,VLOOKUP($B63,'sh1'!$N$16:$O$19,2,1)*$AD63,$AM62) -> 7096630.349 | AP63: =IF($AM63<VLOOKUP($B63,'sh1'!$N$16:$O$19,2,1)*$AE63,VLOOKUP($B63,'sh1'!$N$16:$O$19,2,1)*$AE63,$AM63) -> 7415978.714 | AQ63: 0 | AR63: 13431820.7 | AS63: =($AR63-X63)*(1+6%)-$Z63/VLOOKUP($A63,'sh1'!$N$7:$O$12,2,1) -> 14237729.94 | AT63: 14237729.94 | AU63: =IF($AS62<VLOOKUP($B63,'sh1'!$N$16:$O$19,2,1)*$AD63,VLOOKUP($B63,'sh1'!$N$16:$O$19,2,1)*$AD63,$AS62) -> 13431820.7 | AV63: =IF($AS63<VLOOKUP($B63,'sh1'!$N$16:$O$19,2,1)*$AE63,VLOOKUP($B63,'sh1'!$N$16:$O$19,2,1)*$AE63,$AS63) -> 14237729.94 | AW63: 0 | AX63: 5|0|15|53
A64: 54 | B64: 68 | C64: 69 | R64: 0 | S64: =SUM($R$11:R64,$P$11:P64,$Q$11:Q64) -> 995816.8 | T64: 0 | U64: 0 | V64: =SUM(($B64='sh1'!$R$3:$R$214)*(IF($I$3="男",0,1)='sh1'!$Q$3:$Q$214)*('sh1'!$S$3:$S$214))/1000*AK64 -> 0 | W64: =SUM(($B64='sh1'!$R$3:$R$214)*(IF($I$3="男",0,1)='sh1'!$Q$3:$Q$214)*('sh1'!$S$3:$S$214))/1000*AQ64 -> 0 | X64: =SUM(($B64='sh1'!$R$3:$R$214)*(IF($I$3="男",0,1)='sh1'!$Q$3:$Q$214)*('sh1'!$S$3:$S$214))/1000*AW64 -> 0 | Y64: 0 | AA64: =-$Z64/VLOOKUP($A64,'sh1'!$N$7:$O$12,2,1) -> 0 | AB64: =SUM($AA$11:AA64) -> 0 | AC64: 995816.8 | AD64: 995816.8 | AE64: 995816.8 | AF64: 3826721.604 | AG64: =($AF64-$V64)*(1+3%)-$Z64/VLOOKUP($A64,'sh1'!$N$7:$O$12,2,1) -> 3941523.252 | AH64: 3941523.252 | AI64: =IF($AG63<VLOOKUP($B64,'sh1'!$N$16:$O$19,2,1)*$AD64,VLOOKUP($B64,'sh1'!$N$16:$O$19,2,1)*$AD64,$AG63) -> 3826721.604 | AJ64: =IF($AG64<VLOOKUP($B64,'sh1'!$N$16:$O$19,2,1)*$AE64,VLOOKUP($B64,'sh1'!$N$16:$O$19,2,1)*$AE64,$AG64) -> 3941523.252 | AK64: 0 | AL64: 7415978.714 | AM64: =($AL64-W64)*(1+4.5%)-$Z64/VLOOKUP($A64,'sh1'!$N$7:$O$12,2,1) -> 7749697.756 | AN64: 7749697.756 | AO64: =IF($AM63<VLOOKUP($B64,'sh1'!$N$16:$O$19,2,1)*$AD64,VLOOKUP($B64,'sh1'!$N$16:$O$19,2,1)*$AD64,$AM63) -> 7415978.714 | AP64: =IF($AM64<VLOOKUP($B64,'sh1'!$N$16:$O$19,2,1)*$AE64,VLOOKUP($B64,'sh1'!$N$16:$O$19,2,1)*$AE64,$AM64) -> 7749697.756 | AQ64: 0 | AR64: 14237729.94 | AS64: =($AR64-X64)*(1+6%)-$Z64/VLOOKUP($A64,'sh1'!$N$7:$O$12,2,1) -> 15091993.73 | AT64: 15091993.73 | AU64: =IF($AS63<VLOOKUP($B64,'sh1'!$N$16:$O$19,2,1)*$AD64,VLOOKUP($B64,'sh1'!$N$16:$O$19,2,1)*$AD64,$AS63) -> 14237729.94 | AV64: =IF($AS64<VLOOKUP($B64,'sh1'!$N$16:$O$19,2,1)*$AE64,VLOOKUP($B64,'sh1'!$N$16:$O$19,2,1)*$AE64,$AS64) -> 15091993.73 | AW64: 0 | AX64: 5|0|15|54
A65: 55 | B65: 69 | C65: 70 | R65: 0 | S65: =SUM($R$11:R65,$P$11:P65,$Q$11:Q65) -> 995816.8 | T65: 0 | U65: 0 | V65: =SUM(($B65='sh1'!$R$3:$R$214)*(IF($I$3="男",0,1)='sh1'!$Q$3:$Q$214)*('sh1'!$S$3:$S$214))/1000*AK65 -> 0 | W65: =SUM(($B65='sh1'!$R$3:$R$214)*(IF($I$3="男",0,1)='sh1'!$Q$3:$Q$214)*('sh1'!$S$3:$S$214))/1000*AQ65 -> 0 | X65: =SUM(($B65='sh1'!$R$3:$R$214)*(IF($I$3="男",0,1)='sh1'!$Q$3:$Q$214)*('sh1'!$S$3:$S$214))/1000*AW65 -> 0 | Y65: 0 | AA65: =-$Z65/VLOOKUP($A65,'sh1'!$N$7:$O$12,2,1) -> 0 | AB65: =SUM($AA$11:AA65) -> 0 | AC65: 995816.8 | AD65: 995816.8 | AE65: 995816.8 | AF65: 3941523.252 | AG65: =($AF65-$V65)*(1+3%)-$Z65/VLOOKUP($A65,'sh1'!$N$7:$O$12,2,1) -> 4059768.95 | AH65: 4059768.95 | AI65: =IF($AG64<VLOOKUP($B65,'sh1'!$N$16:$O$19,2,1)*$AD65,VLOOKUP($B65,'sh1'!$N$16:$O$19,2,1)*$AD65,$AG64) -> 3941523.252 | AJ65: =IF($AG65<VLOOKUP($B65,'sh1'!$N$16:$O$19,2,1)*$AE65,VLOOKUP($B65,'sh1'!$N$16:$O$19,2,1)*$AE65,$AG65) -> 4059768.95 | AK65: 0 | AL65: 7749697.756 | AM65: =($AL65-W65)*(1+4.5%)-$Z65/VLOOKUP($A65,'sh1'!$N$7:$O$12,2,1) -> 8098434.155 | AN65: 8098434.155 | AO65: =IF($AM64<VLOOKUP($B65,'sh1'!$N$16:$O$19,2,1)*$AD65,VLOOKUP($B65,'sh1'!$N$16:$O$19,2,1)*$AD65,$AM64) -> 7749697.756 | AP65: =IF($AM65<VLOOKUP($B65,'sh1'!$N$16:$O$19,2,1)*$AE65,VLOOKUP($B65,'sh1'!$N$16:$O$19,2,1)*$AE65,$AM65) -> 8098434.155 | AQ65: 0 | AR65: 15091993.73 | AS65: =($AR65-X65)*(1+6%)-$Z65/VLOOKUP($A65,'sh1'!$N$7:$O$12,2,1) -> 15997513.36 | AT65: 15997513.36 | AU65: =IF($AS64<VLOOKUP($B65,'sh1'!$N$16:$O$19,2,1)*$AD65,VLOOKUP($B65,'sh1'!$N$16:$O$19,2,1)*$AD65,$AS64) -> 15091993.73 | AV65: =IF($AS65<VLOOKUP($B65,'sh1'!$N$16:$O$19,2,1)*$AE65,VLOOKUP($B65,'sh1'!$N$16:$O$19,2,1)*$AE65,$AS65) -> 15997513.36 | AW65: 0 | AX65: 5|0|15|55
A66: 56 | B66: 70 | C66: 71 | R66: 0 | S66: =SUM($R$11:R66,$P$11:P66,$Q$11:Q66) -> 995816.8 | T66: 0 | U66: 0 | V66: =SUM(($B66='sh1'!$R$3:$R$214)*(IF($I$3="男",0,1)='sh1'!$Q$3:$Q$214)*('sh1'!$S$3:$S$214))/1000*AK66 -> 0 | W66: =SUM(($B66='sh1'!$R$3:$R$214)*(IF($I$3="男",0,1)='sh1'!$Q$3:$Q$214)*('sh1'!$S$3:$S$214))/1000*AQ66 -> 0 | X66: =SUM(($B66='sh1'!$R$3:$R$214)*(IF($I$3="男",0,1)='sh1'!$Q$3:$Q$214)*('sh1'!$S$3:$S$214))/1000*AW66 -> 0 | Y66: 0 | AA66: =-$Z66/VLOOKUP($A66,'sh1'!$N$7:$O$12,2,1) -> 0 | AB66: =SUM($AA$11:AA66) -> 0 | AC66: 995816.8 | AD66: 995816.8 | AE66: 995816.8 | AF66: 4059768.95 | AG66: =($AF66-$V66)*(1+3%)-$Z66/VLOOKUP($A66,'sh1'!$N$7:$O$12,2,1) -> 4181562.018 | AH66: 4181562.018 | AI66: =IF($AG65<VLOOKUP($B66,'sh1'!$N$16:$O$19,2,1)*$AD66,VLOOKUP($B66,'sh1'!$N$16:$O$19,2,1)*$AD66,$AG65) -> 4059768.95 | AJ66: =IF($AG66<VLOOKUP($B66,'sh1'!$N$16:$O$19,2,1)*$AE66,VLOOKUP($B66,'sh1'!$N$16:$O$19,2,1)*$AE66,$AG66) -> 4181562.018 | AK66: 0 | AL66: 8098434.155 | AM66: =($AL66-W66)*(1+4.5%)-$Z66/VLOOKUP($A66,'sh1'!$N$7:$O$12,2,1) -> 8462863.692 | AN66: 8462863.692 | AO66: =IF($AM65<VLOOKUP($B66,'sh1'!$N$16:$O$19,2,1)*$AD66,VLOOKUP($B66,'sh1'!$N$16:$O$19,2,1)*$AD66,$AM65) -> 8098434.155 | AP66: =IF($AM66<VLOOKUP($B66,'sh1'!$N$16:$O$19,2,1)*$AE66,VLOOKUP($B66,'sh1'!$N$16:$O$19,2,1)*$AE66,$AM66) -> 8462863.692 | AQ66: 0 | AR66: 15997513.36 | AS66: =($AR66-X66)*(1+6%)-$Z66/VLOOKUP($A66,'sh1'!$N$7:$O$12,2,1) -> 16957364.16 | AT66: 16957364.16 | AU66: =IF($AS65<VLOOKUP($B66,'sh1'!$N$16:$O$19,2,1)*$AD66,VLOOKUP($B66,'sh1'!$N$16:$O$19,2,1)*$AD66,$AS65) -> 15997513.36 | AV66: =IF($AS66<VLOOKUP($B66,'sh1'!$N$16:$O$19,2,1)*$AE66,VLOOKUP($B66,'sh1'!$N$16:$O$19,2,1)*$AE66,$AS66) -> 16957364.16 | AW66: 0 | AX66: 5|0|15|56
A67: 57 | B67: 71 | C67: 72 | R67: 0 | S67: =SUM($R$11:R67,$P$11:P67,$Q$11:Q67) -> 995816.8 | T67: 0 | U67: 0 | V67: =SUM(($B67='sh1'!$R$3:$R$214)*(IF($I$3="男",0,1)='sh1'!$Q$3:$Q$214)*('sh1'!$S$3:$S$214))/1000*AK67 -> 0 | W67: =SUM(($B67='sh1'!$R$3:$R$214)*(IF($I$3="男",0,1)='sh1'!$Q$3:$Q$214)*('sh1'!$S$3:$S$214))/1000*AQ67 -> 0 | X67: =SUM(($B67='sh1'!$R$3:$R$214)*(IF($I$3="男",0,1)='sh1'!$Q$3:$Q$214)*('sh1'!$S$3:$S$214))/1000*AW67 -> 0 | Y67: 0 | AA67: =-$Z67/VLOOKUP($A67,'sh1'!$N$7:$O$12,2,1) -> 0 | AB67: =SUM($AA$11:AA67) -> 0 | AC67: 995816.8 | AD67: 995816.8 | AE67: 995816.8 | AF67: 4181562.018 | AG67: =($AF67-$V67)*(1+3%)-$Z67/VLOOKUP($A67,'sh1'!$N$7:$O$12,2,1) -> 4307008.879 | AH67: 4307008.879 | AI67: =IF($AG66<VLOOKUP($B67,'sh1'!$N$16:$O$19,2,1)*$AD67,VLOOKUP($B67,'sh1'!$N$16:$O$19,2,1)*$AD67,$AG66) -> 4181562.018 | AJ67: =IF($AG67<VLOOKUP($B67,'sh1'!$N$16:$O$19,2,1)*$AE67,VLOOKUP($B67,'sh1'!$N$16:$O$19,2,1)*$AE67,$AG67) -> 4307008.879 | AK67: 0 | AL67: 8462863.692 | AM67: =($AL67-W67)*(1+4.5%)-$Z67/VLOOKUP($A67,'sh1'!$N$7:$O$12,2,1) -> 8843692.559 | AN67: 8843692.559 | AO67: =IF($AM66<VLOOKUP($B67,'sh1'!$N$16:$O$19,2,1)*$AD67,VLOOKUP($B67,'sh1'!$N$16:$O$19,2,1)*$AD67,$AM66) -> 8462863.692 | AP67: =IF($AM67<VLOOKUP($B67,'sh1'!$N$16:$O$19,2,1)*$AE67,VLOOKUP($B67,'sh1'!$N$16:$O$19,2,1)*$AE67,$AM67) -> 8843692.559 | AQ67: 0 | AR67: 16957364.16 | AS67: =($AR67-X67)*(1+6%)-$Z67/VLOOKUP($A67,'sh1'!$N$7:$O$12,2,1) -> 17974806.01 | AT67: 17974806.01 | AU67: =IF($AS66<VLOOKUP($B67,'sh1'!$N$16:$O$19,2,1)*$AD67,VLOOKUP($B67,'sh1'!$N$16:$O$19,2,1)*$AD67,$AS66) -> 16957364.16 | AV67: =IF($AS67<VLOOKUP($B67,'sh1'!$N$16:$O$19,2,1)*$AE67,VLOOKUP($B67,'sh1'!$N$16:$O$19,2,1)*$AE67,$AS67) -> 17974806.01 | AW67: 0 | AX67: 5|0|15|57
A68: 58 | B68: 72 | C68: 73 | R68: 0 | S68: =SUM($R$11:R68,$P$11:P68,$Q$11:Q68) -> 995816.8 | T68: 0 | U68: 0 | V68: =SUM(($B68='sh1'!$R$3:$R$214)*(IF($I$3="男",0,1)='sh1'!$Q$3:$Q$214)*('sh1'!$S$3:$S$214))/1000*AK68 -> 0 | W68: =SUM(($B68='sh1'!$R$3:$R$214)*(IF($I$3="男",0,1)='sh1'!$Q$3:$Q$214)*('sh1'!$S$3:$S$214))/1000*AQ68 -> 0 | X68: =SUM(($B68='sh1'!$R$3:$R$214)*(IF($I$3="男",0,1)='sh1'!$Q$3:$Q$214)*('sh1'!$S$3:$S$214))/1000*AW68 -> 0 | Y68: 0 | AA68: =-$Z68/VLOOKUP($A68,'sh1'!$N$7:$O$12,2,1) -> 0 | AB68: =SUM($AA$11:AA68) -> 0 | AC68: 995816.8 | AD68: 995816.8 | AE68: 995816.8 | AF68: 4307008.879 | AG68: =($AF68-$V68)*(1+3%)-$Z68/VLOOKUP($A68,'sh1'!$N$7:$O$12,2,1) -> 4436219.145 | AH68: 4436219.145 | AI68: =IF($AG67<VLOOKUP($B68,'sh1'!$N$16:$O$19,2,1)*$AD68,VLOOKUP($B68,'sh1'!$N$16:$O$19,2,1)*$AD68,$AG67) -> 4307008.879 | AJ68: =IF($AG68<VLOOKUP($B68,'sh1'!$N$16:$O$19,2,1)*$AE68,VLOOKUP($B68,'sh1'!$N$16:$O$19,2,1)*$AE68,$AG68) -> 4436219.145 | AK68: 0 | AL68: 8843692.559 | AM68: =($AL68-W68)*(1+4.5%)-$Z68/VLOOKUP($A68,'sh1'!$N$7:$O$12,2,1) -> 9241658.724 | AN68: 9241658.724 | AO68: =IF($AM67<VLOOKUP($B68,'sh1'!$N$16:$O$19,2,1)*$AD68,VLOOKUP($B68,'sh1'!$N$16:$O$19,2,1)*$AD68,$AM67) -> 8843692.559 | AP68: =IF($AM68<VLOOKUP($B68,'sh1'!$N$16:$O$19,2,1)*$AE68,VLOOKUP($B68,'sh1'!$N$16:$O$19,2,1)*$AE68,$AM68) -> 9241658.724 | AQ68: 0 | AR68: 17974806.01 | AS68: =($AR68-X68)*(1+6%)-$Z68/VLOOKUP($A68,'sh1'!$N$7:$O$12,2,1) -> 19053294.37 | AT68: 19053294.37 | AU68: =IF($AS67<VLOOKUP($B68,'sh1'!$N$16:$O$19,2,1)*$AD68,VLOOKUP($B68,'sh1'!$N$16:$O$19,2,1)*$AD68,$AS67) -> 17974806.01 | AV68: =IF($AS68<VLOOKUP($B68,'sh1'!$N$16:$O$19,2,1)*$AE68,VLOOKUP($B68,'sh1'!$N$16:$O$19,2,1)*$AE68,$AS68) -> 19053294.37 | AW68: 0 | AX68: 5|0|15|58
A69: 59 | B69: 73 | C69: 74 | R69: 0 | S69: =SUM($R$11:R69,$P$11:P69,$Q$11:Q69) -> 995816.8 | T69: 0 | U69: 0 | V69: =SUM(($B69='sh1'!$R$3:$R$214)*(IF($I$3="男",0,1)='sh1'!$Q$3:$Q$214)*('sh1'!$S$3:$S$214))/1000*AK69 -> 0 | W69: =SUM(($B69='sh1'!$R$3:$R$214)*(IF($I$3="男",0,1)='sh1'!$Q$3:$Q$214)*('sh1'!$S$3:$S$214))/1000*AQ69 -> 0 | X69: =SUM(($B69='sh1'!$R$3:$R$214)*(IF($I$3="男",0,1)='sh1'!$Q$3:$Q$214)*('sh1'!$S$3:$S$214))/1000*AW69 -> 0 | Y69: 0 | AA69: =-$Z69/VLOOKUP($A69,'sh1'!$N$7:$O$12,2,1) -> 0 | AB69: =SUM($AA$11:AA69) -> 0 | AC69: 995816.8 | AD69: 995816.8 | AE69: 995816.8 | AF69: 4436219.145 | AG69: =($AF69-$V69)*(1+3%)-$Z69/VLOOKUP($A69,'sh1'!$N$7:$O$12,2,1) -> 4569305.719 | AH69: 4569305.719 | AI69: =IF($AG68<VLOOKUP($B69,'sh1'!$N$16:$O$19,2,1)*$AD69,VLOOKUP($B69,'sh1'!$N$16:$O$19,2,1)*$AD69,$AG68) -> 4436219.145 | AJ69: =IF($AG69<VLOOKUP($B69,'sh1'!$N$16:$O$19,2,1)*$AE69,VLOOKUP($B69,'sh1'!$N$16:$O$19,2,1)*$AE69,$AG69) -> 4569305.719 | AK69: 0 | AL69: 9241658.724 | AM69: =($AL69-W69)*(1+4.5%)-$Z69/VLOOKUP($A69,'sh1'!$N$7:$O$12,2,1) -> 9657533.366 | AN69: 9657533.366 | AO69: =IF($AM68<VLOOKUP($B69,'sh1'!$N$16:$O$19,2,1)*$AD69,VLOOKUP($B69,'sh1'!$N$16:$O$19,2,1)*$AD69,$AM68) -> 9241658.724 | AP69: =IF($AM69<VLOOKUP($B69,'sh1'!$N$16:$O$19,2,1)*$AE69,VLOOKUP($B69,'sh1'!$N$16:$O$19,2,1)*$AE69,$AM69) -> 9657533.366 | AQ69: 0 | AR69: 19053294.37 | AS69: =($AR69-X69)*(1+6%)-$Z69/VLOOKUP($A69,'sh1'!$N$7:$O$12,2,1) -> 20196492.03 | AT69: 20196492.03 | AU69: =IF($AS68<VLOOKUP($B69,'sh1'!$N$16:$O$19,2,1)*$AD69,VLOOKUP($B69,'sh1'!$N$16:$O$19,2,1)*$AD69,$AS68) -> 19053294.37 | AV69: =IF($AS69<VLOOKUP($B69,'sh1'!$N$16:$O$19,2,1)*$AE69,VLOOKUP($B69,'sh1'!$N$16:$O$19,2,1)*$AE69,$AS69) -> 20196492.03 | AW69: 0 | AX69: 5|0|15|59
A70: 60 | B70: 74 | C70: 75 | R70: 0 | S70: =SUM($R$11:R70,$P$11:P70,$Q$11:Q70) -> 995816.8 | T70: 0 | U70: 0 | V70: =SUM(($B70='sh1'!$R$3:$R$214)*(IF($I$3="男",0,1)='sh1'!$Q$3:$Q$214)*('sh1'!$S$3:$S$214))/1000*AK70 -> 0 | W70: =SUM(($B70='sh1'!$R$3:$R$214)*(IF($I$3="男",0,1)='sh1'!$Q$3:$Q$214)*('sh1'!$S$3:$S$214))/1000*AQ70 -> 0 | X70: =SUM(($B70='sh1'!$R$3:$R$214)*(IF($I$3="男",0,1)='sh1'!$Q$3:$Q$214)*('sh1'!$S$3:$S$214))/1000*AW70 -> 0 | Y70: 0 | AA70: =-$Z70/VLOOKUP($A70,'sh1'!$N$7:$O$12,2,1) -> 0 | AB70: =SUM($AA$11:AA70) -> 0 | AC70: 995816.8 | AD70: 995816.8 | AE70: 995816.8 | AF70: 4569305.719 | AG70: =($AF70-$V70)*(1+3%)-$Z70/VLOOKUP($A70,'sh1'!$N$7:$O$12,2,1) -> 4706384.891 | AH70: 4706384.891 | AI70: =IF($AG69<VLOOKUP($B70,'sh1'!$N$16:$O$19,2,1)*$AD70,VLOOKUP($B70,'sh1'!$N$16:$O$19,2,1)*$AD70,$AG69) -> 4569305.719 | AJ70: =IF($AG70<VLOOKUP($B70,'sh1'!$N$16:$O$19,2,1)*$AE70,VLOOKUP($B70,'sh1'!$N$16:$O$19,2,1)*$AE70,$AG70) -> 4706384.891 | AK70: 0 | AL70: 9657533.366 | AM70: =($AL70-W70)*(1+4.5%)-$Z70/VLOOKUP($A70,'sh1'!$N$7:$O$12,2,1) -> 10092122.37 | AN70: 10092122.37 | AO70: =IF($AM69<VLOOKUP($B70,'sh1'!$N$16:$O$19,2,1)*$AD70,VLOOKUP($B70,'sh1'!$N$16:$O$19,2,1)*$AD70,$AM69) -> 9657533.366 | AP70: =IF($AM70<VLOOKUP($B70,'sh1'!$N$16:$O$19,2,1)*$AE70,VLOOKUP($B70,'sh1'!$N$16:$O$19,2,1)*$AE70,$AM70) -> 10092122.37 | AQ70: 0 | AR70: 20196492.03 | AS70: =($AR70-X70)*(1+6%)-$Z70/VLOOKUP($A70,'sh1'!$N$7:$O$12,2,1) -> 21408281.55 | AT70: 21408281.55 | AU70: =IF($AS69<VLOOKUP($B70,'sh1'!$N$16:$O$19,2,1)*$AD70,VLOOKUP($B70,'sh1'!$N$16:$O$19,2,1)*$AD70,$AS69) -> 20196492.03 | AV70: =IF($AS70<VLOOKUP($B70,'sh1'!$N$16:$O$19,2,1)*$AE70,VLOOKUP($B70,'sh1'!$N$16:$O$19,2,1)*$AE70,$AS70) -> 21408281.55 | AW70: 0 | AX70: 5|0|15|60
A71: 61 | B71: 75 | C71: 76 | R71: 0 | S71: =SUM($R$11:R71,$P$11:P71,$Q$11:Q71) -> 995816.8 | T71: 0 | U71: 0 | V71: =SUM(($B71='sh1'!$R$3:$R$214)*(IF($I$3="男",0,1)='sh1'!$Q$3:$Q$214)*('sh1'!$S$3:$S$214))/1000*AK71 -> 0 | W71: =SUM(($B71='sh1'!$R$3:$R$214)*(IF($I$3="男",0,1)='sh1'!$Q$3:$Q$214)*('sh1'!$S$3:$S$214))/1000*AQ71 -> 0 | X71: =SUM(($B71='sh1'!$R$3:$R$214)*(IF($I$3="男",0,1)='sh1'!$Q$3:$Q$214)*('sh1'!$S$3:$S$214))/1000*AW71 -> 0 | Y71: 0 | AA71: =-$Z71/VLOOKUP($A71,'sh1'!$N$7:$O$12,2,1) -> 0 | AB71: =SUM($AA$11:AA71) -> 0 | AC71: 995816.8 | AD71: 995816.8 | AE71: 995816.8 | AF71: 4706384.891 | AG71: =($AF71-$V71)*(1+3%)-$Z71/VLOOKUP($A71,'sh1'!$N$7:$O$12,2,1) -> 4847576.438 | AH71: 4847576.438 | AI71: =IF($AG70<VLOOKUP($B71,'sh1'!$N$16:$O$19,2,1)*$AD71,VLOOKUP($B71,'sh1'!$N$16:$O$19,2,1)*$AD71,$AG70) -> 4706384.891 | AJ71: =IF($AG71<VLOOKUP($B71,'sh1'!$N$16:$O$19,2,1)*$AE71,VLOOKUP($B71,'sh1'!$N$16:$O$19,2,1)*$AE71,$AG71) -> 4847576.438 | AK71: 0 | AL71: 10092122.37 | AM71: =($AL71-W71)*(1+4.5%)-$Z71/VLOOKUP($A71,'sh1'!$N$7:$O$12,2,1) -> 10546267.87 | AN71: 10546267.87 | AO71: =IF($AM70<VLOOKUP($B71,'sh1'!$N$16:$O$19,2,1)*$AD71,VLOOKUP($B71,'sh1'!$N$16:$O$19,2,1)*$AD71,$AM70) -> 10092122.37 | AP71: =IF($AM71<VLOOKUP($B71,'sh1'!$N$16:$O$19,2,1)*$AE71,VLOOKUP($B71,'sh1'!$N$16:$O$19,2,1)*$AE71,$AM71) -> 10546267.87 | AQ71: 0 | AR71: 21408281.55 | AS71: =($AR71-X71)*(1+6%)-$Z71/VLOOKUP($A71,'sh1'!$N$7:$O$12,2,1) -> 22692778.45 | AT71: 22692778.45 | AU71: =IF($AS70<VLOOKUP($B71,'sh1'!$N$16:$O$19,2,1)*$AD71,VLOOKUP($B71,'sh1'!$N$16:$O$19,2,1)*$AD71,$AS70) -> 21408281.55 | AV71: =IF($AS71<VLOOKUP($B71,'sh1'!$N$16:$O$19,2,1)*$AE71,VLOOKUP($B71,'sh1'!$N$16:$O$19,2,1)*$AE71,$AS71) -> 22692778.45 | AW71: 0 | AX71: 5|0|15|61
A72: 62 | B72: 76 | C72: 77 | R72: 0 | S72: =SUM($R$11:R72,$P$11:P72,$Q$11:Q72) -> 995816.8 | T72: 0 | U72: 0 | V72: =SUM(($B72='sh1'!$R$3:$R$214)*(IF($I$3="男",0,1)='sh1'!$Q$3:$Q$214)*('sh1'!$S$3:$S$214))/1000*AK72 -> 0 | W72: =SUM(($B72='sh1'!$R$3:$R$214)*(IF($I$3="男",0,1)='sh1'!$Q$3:$Q$214)*('sh1'!$S$3:$S$214))/1000*AQ72 -> 0 | X72: =SUM(($B72='sh1'!$R$3:$R$214)*(IF($I$3="男",0,1)='sh1'!$Q$3:$Q$214)*('sh1'!$S$3:$S$214))/1000*AW72 -> 0 | Y72: 0 | AA72: =-$Z72/VLOOKUP($A72,'sh1'!$N$7:$O$12,2,1) -> 0 | AB72: =SUM($AA$11:AA72) -> 0 | AC72: 995816.8 | AD72: 995816.8 | AE72: 995816.8 | AF72: 4847576.438 | AG72: =($AF72-$V72)*(1+3%)-$Z72/VLOOKUP($A72,'sh1'!$N$7:$O$12,2,1) -> 4993003.731 | AH72: 4993003.731 | AI72: =IF($AG71<VLOOKUP($B72,'sh1'!$N$16:$O$19,2,1)*$AD72,VLOOKUP($B72,'sh1'!$N$16:$O$19,2,1)*$AD72,$AG71) -> 4847576.438 | AJ72: =IF($AG72<VLOOKUP($B72,'sh1'!$N$16:$O$19,2,1)*$AE72,VLOOKUP($B72,'sh1'!$N$16:$O$19,2,1)*$AE72,$AG72) -> 4993003.731 | AK72: 0 | AL72: 10546267.87 | AM72: =($AL72-W72)*(1+4.5%)-$Z72/VLOOKUP($A72,'sh1'!$N$7:$O$12,2,1) -> 11020849.93 | AN72: 11020849.93 | AO72: =IF($AM71<VLOOKUP($B72,'sh1'!$N$16:$O$19,2,1)*$AD72,VLOOKUP($B72,'sh1'!$N$16:$O$19,2,1)*$AD72,$AM71) -> 10546267.87 | AP72: =IF($AM72<VLOOKUP($B72,'sh1'!$N$16:$O$19,2,1)*$AE72,VLOOKUP($B72,'sh1'!$N$16:$O$19,2,1)*$AE72,$AM72) -> 11020849.93 | AQ72: 0 | AR72: 22692778.45 | AS72: =($AR72-X72)*(1+6%)-$Z72/VLOOKUP($A72,'sh1'!$N$7:$O$12,2,1) -> 24054345.15 | AT72: 24054345.15 | AU72: =IF($AS71<VLOOKUP($B72,'sh1'!$N$16:$O$19,2,1)*$AD72,VLOOKUP($B72,'sh1'!$N$16:$O$19,2,1)*$AD72,$AS71) -> 22692778.45 | AV72: =IF($AS72<VLOOKUP($B72,'sh1'!$N$16:$O$19,2,1)*$AE72,VLOOKUP($B72,'sh1'!$N$16:$O$19,2,1)*$AE72,$AS72) -> 24054345.15 | AW72: 0 | AX72: 5|0|15|62
A73: 63 | B73: 77 | C73: 78 | R73: 0 | S73: =SUM($R$11:R73,$P$11:P73,$Q$11:Q73) -> 995816.8 | T73: 0 | U73: 0 | V73: =SUM(($B73='sh1'!$R$3:$R$214)*(IF($I$3="男",0,1)='sh1'!$Q$3:$Q$214)*('sh1'!$S$3:$S$214))/1000*AK73 -> 0 | W73: =SUM(($B73='sh1'!$R$3:$R$214)*(IF($I$3="男",0,1)='sh1'!$Q$3:$Q$214)*('sh1'!$S$3:$S$214))/1000*AQ73 -> 0 | X73: =SUM(($B73='sh1'!$R$3:$R$214)*(IF($I$3="男",0,1)='sh1'!$Q$3:$Q$214)*('sh1'!$S$3:$S$214))/1000*AW73 -> 0 | Y73: 0 | AA73: =-$Z73/VLOOKUP($A73,'sh1'!$N$7:$O$12,2,1) -> 0 | AB73: =SUM($AA$11:AA73) -> 0 | AC73: 995816.8 | AD73: 995816.8 | AE73: 995816.8 | AF73: 4993003.731 | AG73: =($AF73-$V73)*(1+3%)-$Z73/VLOOKUP($A73,'sh1'!$N$7:$O$12,2,1) -> 5142793.843 | AH73: 5142793.843 | AI73: =IF($AG72<VLOOKUP($B73,'sh1'!$N$16:$O$19,2,1)*$AD73,VLOOKUP($B73,'sh1'!$N$16:$O$19,2,1)*$AD73,$AG72) -> 4993003.731 | AJ73: =IF($AG73<VLOOKUP($B73,'sh1'!$N$16:$O$19,2,1)*$AE73,VLOOKUP($B73,'sh1'!$N$16:$O$19,2,1)*$AE73,$AG73) -> 5142793.843 | AK73: 0 | AL73: 11020849.93 | AM73: =($AL73-W73)*(1+4.5%)-$Z73/VLOOKUP($A73,'sh1'!$N$7:$O$12,2,1) -> 11516788.18 | AN73: 11516788.18 | AO73: =IF($AM72<VLOOKUP($B73,'sh1'!$N$16:$O$19,2,1)*$AD73,VLOOKUP($B73,'sh1'!$N$16:$O$19,2,1)*$AD73,$AM72) -> 11020849.93 | AP73: =IF($AM73<VLOOKUP($B73,'sh1'!$N$16:$O$19,2,1)*$AE73,VLOOKUP($B73,'sh1'!$N$16:$O$19,2,1)*$AE73,$AM73) -> 11516788.18 | AQ73: 0 | AR73: 24054345.15 | AS73: =($AR73-X73)*(1+6%)-$Z73/VLOOKUP($A73,'sh1'!$N$7:$O$12,2,1) -> 25497605.86 | AT73: 25497605.86 | AU73: =IF($AS72<VLOOKUP($B73,'sh1'!$N$16:$O$19,2,1)*$AD73,VLOOKUP($B73,'sh1'!$N$16:$O$19,2,1)*$AD73,$AS72) -> 24054345.15 | AV73: =IF($AS73<VLOOKUP($B73,'sh1'!$N$16:$O$19,2,1)*$AE73,VLOOKUP($B73,'sh1'!$N$16:$O$19,2,1)*$AE73,$AS73) -> 25497605.86 | AW73: 0 | AX73: 5|0|15|63
A74: 64 | B74: 78 | C74: 79 | R74: 0 | S74: =SUM($R$11:R74,$P$11:P74,$Q$11:Q74) -> 995816.8 | T74: 0 | U74: 0 | V74: =SUM(($B74='sh1'!$R$3:$R$214)*(IF($I$3="男",0,1)='sh1'!$Q$3:$Q$214)*('sh1'!$S$3:$S$214))/1000*AK74 -> 0 | W74: =SUM(($B74='sh1'!$R$3:$R$214)*(IF($I$3="男",0,1)='sh1'!$Q$3:$Q$214)*('sh1'!$S$3:$S$214))/1000*AQ74 -> 0 | X74: =SUM(($B74='sh1'!$R$3:$R$214)*(IF($I$3="男",0,1)='sh1'!$Q$3:$Q$214)*('sh1'!$S$3:$S$214))/1000*AW74 -> 0 | Y74: 0 | AA74: =-$Z74/VLOOKUP($A74,'sh1'!$N$7:$O$12,2,1) -> 0 | AB74: =SUM($AA$11:AA74) -> 0 | AC74: 995816.8 | AD74: 995816.8 | AE74: 995816.8 | AF74: 5142793.843 | AG74: =($AF74-$V74)*(1+3%)-$Z74/VLOOKUP($A74,'sh1'!$N$7:$O$12,2,1) -> 5297077.658 | AH74: 5297077.658 | AI74: =IF($AG73<VLOOKUP($B74,'sh1'!$N$16:$O$19,2,1)*$AD74,VLOOKUP($B74,'sh1'!$N$16:$O$19,2,1)*$AD74,$AG73) -> 5142793.843 | AJ74: =IF($AG74<VLOOKUP($B74,'sh1'!$N$16:$O$19,2,1)*$AE74,VLOOKUP($B74,'sh1'!$N$16:$O$19,2,1)*$AE74,$AG74) -> 5297077.658 | AK74: 0 | AL74: 11516788.18 | AM74: =($AL74-W74)*(1+4.5%)-$Z74/VLOOKUP($A74,'sh1'!$N$7:$O$12,2,1) -> 12035043.64 | AN74: 12035043.64 | AO74: =IF($AM73<VLOOKUP($B74,'sh1'!$N$16:$O$19,2,1)*$AD74,VLOOKUP($B74,'sh1'!$N$16:$O$19,2,1)*$AD74,$AM73) -> 11516788.18 | AP74: =IF($AM74<VLOOKUP($B74,'sh1'!$N$16:$O$19,2,1)*$AE74,VLOOKUP($B74,'sh1'!$N$16:$O$19,2,1)*$AE74,$AM74) -> 12035043.64 | AQ74: 0 | AR74: 25497605.86 | AS74: =($AR74-X74)*(1+6%)-$Z74/VLOOKUP($A74,'sh1'!$N$7:$O$12,2,1) -> 27027462.21 | AT74: 27027462.21 | AU74: =IF($AS73<VLOOKUP($B74,'sh1'!$N$16:$O$19,2,1)*$AD74,VLOOKUP($B74,'sh1'!$N$16:$O$19,2,1)*$AD74,$AS73) -> 25497605.86 | AV74: =IF($AS74<VLOOKUP($B74,'sh1'!$N$16:$O$19,2,1)*$AE74,VLOOKUP($B74,'sh1'!$N$16:$O$19,2,1)*$AE74,$AS74) -> 27027462.21 | AW74: 0 | AX74: 5|0|15|64
A75: 65 | B75: 79 | C75: 80 | R75: 0 | S75: =SUM($R$11:R75,$P$11:P75,$Q$11:Q75) -> 995816.8 | T75: 0 | U75: 0 | V75: =SUM(($B75='sh1'!$R$3:$R$214)*(IF($I$3="男",0,1)='sh1'!$Q$3:$Q$214)*('sh1'!$S$3:$S$214))/1000*AK75 -> 0 | W75: =SUM(($B75='sh1'!$R$3:$R$214)*(IF($I$3="男",0,1)='sh1'!$Q$3:$Q$214)*('sh1'!$S$3:$S$214))/1000*AQ75 -> 0 | X75: =SUM(($B75='sh1'!$R$3:$R$214)*(IF($I$3="男",0,1)='sh1'!$Q$3:$Q$214)*('sh1'!$S$3:$S$214))/1000*AW75 -> 0 | Y75: 0 | AA75: =-$Z75/VLOOKUP($A75,'sh1'!$N$7:$O$12,2,1) -> 0 | AB75: =SUM($AA$11:AA75) -> 0 | AC75: 995816.8 | AD75: =$S75+$AB74 -> 995816.8 | AE75: =$S75+$AB75 -> 995816.8 | AF75: 5297077.658 | AG75: =($AF75-$V75)*(1+3%)-$Z75/VLOOKUP($A75,'sh1'!$N$7:$O$12,2,1) -> 5455989.988 | AH75: =IF($A75=1,95%*$AG75,IF($A75=2,97%*$AG75,IF($A75=3,98%*$AG75,IF(OR($A75=4,$A75=5),$AG75*99%,$AG75)))) -> 5455989.988 | AI75: =IF($AG74<VLOOKUP($B75,'sh1'!$N$16:$O$19,2,1)*$AD75,VLOOKUP($B75,'sh1'!$N$16:$O$19,2,1)*$AD75,$AG74) -> 5297077.658 | AJ75: =IF($AG75<VLOOKUP($B75,'sh1'!$N$16:$O$19,2,1)*$AE75,VLOOKUP($B75,'sh1'!$N$16:$O$19,2,1)*$AE75,$AG75) -> 5455989.988 | AK75: 0 | AL75: 12035043.64 | AM75: =($AL75-W75)*(1+4.5%)-$Z75/VLOOKUP($A75,'sh1'!$N$7:$O$12,2,1) -> 12576620.61 | AN75: =IF($A75=1,95%*$AM75,IF($A75=2,97%*$AM75,IF($A75=3,98%*$AM75,IF(OR($A75=4,$A75=5),$AM75*99%,$AM75)))) -> 12576620.61 | AO75: =IF($AM74<VLOOKUP($B75,'sh1'!$N$16:$O$19,2,1)*$AD75,VLOOKUP($B75,'sh1'!$N$16:$O$19,2,1)*$AD75,$AM74) -> 12035043.64 | AP75: =IF($AM75<VLOOKUP($B75,'sh1'!$N$16:$O$19,2,1)*$AE75,VLOOKUP($B75,'sh1'!$N$16:$O$19,2,1)*$AE75,$AM75) -> 12576620.61 | AQ75: 0 | AR75: 27027462.21 | AS75: =($AR75-X75)*(1+6%)-$Z75/VLOOKUP($A75,'sh1'!$N$7:$O$12,2,1) -> 28649109.95 | AT75: =IF($A75=1,95%*$AS75,IF($A75=2,97%*$AS75,IF($A75=3,98%*$AS75,IF(OR($A75=4,$A75=5),$AS75*99%,$AS75)))) -> 28649109.95 | AU75: =IF($AS74<VLOOKUP($B75,'sh1'!$N$16:$O$19,2,1)*$AD75,VLOOKUP($B75,'sh1'!$N$16:$O$19,2,1)*$AD75,$AS74) -> 27027462.21 | AV75: =IF($AS75<VLOOKUP($B75,'sh1'!$N$16:$O$19,2,1)*$AE75,VLOOKUP($B75,'sh1'!$N$16:$O$19,2,1)*$AE75,$AS75) -> 28649109.95 | AW75: 0 | AX75: =$G$4&"|"&(IF($I$3="男",0,1))&"|"&$G$3&"|"&A75 -> 5|0|15|65
A76: 66 | B76: =$G$3+A76-1 -> 80 | C76: 81 | R76: 0 | S76: =SUM($R$11:R76,$P$11:P76,$Q$11:Q76) -> 995816.8 | T76: =-($P76+$Q76)*2%-$R76*1% -> 0 | U76: 0 | V76: =SUM(($B76='sh1'!$R$3:$R$214)*(IF($I$3="男",0,1)='sh1'!$Q$3:$Q$214)*('sh1'!$S$3:$S$214))/1000*AK76 -> 0 | W76: =SUM(($B76='sh1'!$R$3:$R$214)*(IF($I$3="男",0,1)='sh1'!$Q$3:$Q$214)*('sh1'!$S$3:$S$214))/1000*AQ76 -> 0 | X76: =SUM(($B76='sh1'!$R$3:$R$214)*(IF($I$3="男",0,1)='sh1'!$Q$3:$Q$214)*('sh1'!$S$3:$S$214))/1000*AW76 -> 0 | Y76: 0 | AA76: =-$Z76/VLOOKUP($A76,'sh1'!$N$7:$O$12,2,1) -> 0 | AB76: =SUM($AA$11:AA76) -> 0 | AC76: =$S76+$AB76 -> 995816.8 | AD76: =$S76+$AB75 -> 995816.8 | AE76: =$S76+$AB76 -> 995816.8 | AF76: =$AG75+$U76+$Y76 -> 5455989.988 | AG76: =($AF76-$V76)*(1+3%)-$Z76/VLOOKUP($A76,'sh1'!$N$7:$O$12,2,1) -> 5619669.687 | AH76: =IF($A76=1,95%*$AG76,IF($A76=2,97%*$AG76,IF($A76=3,98%*$AG76,IF(OR($A76=4,$A76=5),$AG76*99%,$AG76)))) -> 5619669.687 | AI76: =IF($AG75<VLOOKUP($B76,'sh1'!$N$16:$O$19,2,1)*$AD76,VLOOKUP($B76,'sh1'!$N$16:$O$19,2,1)*$AD76,$AG75) -> 5455989.988 | AJ76: =IF($AG76<VLOOKUP($B76,'sh1'!$N$16:$O$19,2,1)*$AE76,VLOOKUP($B76,'sh1'!$N$16:$O$19,2,1)*$AE76,$AG76) -> 5619669.687 | AK76: 0 | AL76: =$AM75+$U76+$Y76 -> 12576620.61 | AM76: =($AL76-W76)*(1+4.5%)-$Z76/VLOOKUP($A76,'sh1'!$N$7:$O$12,2,1) -> 13142568.53 | AN76: =IF($A76=1,95%*$AM76,IF($A76=2,97%*$AM76,IF($A76=3,98%*$AM76,IF(OR($A76=4,$A76=5),$AM76*99%,$AM76)))) -> 13142568.53 | AO76: =IF($AM75<VLOOKUP($B76,'sh1'!$N$16:$O$19,2,1)*$AD76,VLOOKUP($B76,'sh1'!$N$16:$O$19,2,1)*$AD76,$AM75) -> 12576620.61 | AP76: =IF($AM76<VLOOKUP($B76,'sh1'!$N$16:$O$19,2,1)*$AE76,VLOOKUP($B76,'sh1'!$N$16:$O$19,2,1)*$AE76,$AM76) -> 13142568.53 | AQ76: 0 | AR76: =$AS75+$U76+$Y76 -> 28649109.95 | AS76: =($AR76-X76)*(1+6%)-$Z76/VLOOKUP($A76,'sh1'!$N$7:$O$12,2,1) -> 30368056.54 | AT76: =IF($A76=1,95%*$AS76,IF($A76=2,97%*$AS76,IF($A76=3,98%*$AS76,IF(OR($A76=4,$A76=5),$AS76*99%,$AS76)))) -> 30368056.54 | AU76: =IF($AS75<VLOOKUP($B76,'sh1'!$N$16:$O$19,2,1)*$AD76,VLOOKUP($B76,'sh1'!$N$16:$O$19,2,1)*$AD76,$AS75) -> 28649109.95 | AV76: =IF($AS76<VLOOKUP($B76,'sh1'!$N$16:$O$19,2,1)*$AE76,VLOOKUP($B76,'sh1'!$N$16:$O$19,2,1)*$AE76,$AS76) -> 30368056.54 | AW76: 0 | AX76: =$G$4&"|"&(IF($I$3="男",0,1))&"|"&$G$3&"|"&A76 -> 5|0|15|66
A77: 67 | B77: 81 | C77: 82 | R77: 0 | S77: =SUM($R$11:R77,$P$11:P77,$Q$11:Q77) -> 995816.8 | T77: =-($P77+$Q77)*2%-$R77*1% -> 0 | U77: 0 | V77: =SUM(($B77='sh1'!$R$3:$R$214)*(IF($I$3="男",0,1)='sh1'!$Q$3:$Q$214)*('sh1'!$S$3:$S$214))/1000*AK77 -> 0 | W77: =SUM(($B77='sh1'!$R$3:$R$214)*(IF($I$3="男",0,1)='sh1'!$Q$3:$Q$214)*('sh1'!$S$3:$S$214))/1000*AQ77 -> 0 | X77: =SUM(($B77='sh1'!$R$3:$R$214)*(IF($I$3="男",0,1)='sh1'!$Q$3:$Q$214)*('sh1'!$S$3:$S$214))/1000*AW77 -> 0 | Y77: 0 | AA77: =-$Z77/VLOOKUP($A77,'sh1'!$N$7:$O$12,2,1) -> 0 | AB77: =SUM($AA$11:AA77) -> 0 | AC77: =$S77+$AB77 -> 995816.8 | AD77: =$S77+$AB76 -> 995816.8 | AE77: =$S77+$AB77 -> 995816.8 | AF77: =$AG76+$U77+$Y77 -> 5619669.687 | AG77: =($AF77-$V77)*(1+3%)-$Z77/VLOOKUP($A77,'sh1'!$N$7:$O$12,2,1) -> 5788259.778 | AH77: =IF($A77=1,95%*$AG77,IF($A77=2,97%*$AG77,IF($A77=3,98%*$AG77,IF(OR($A77=4,$A77=5),$AG77*99%,$AG77)))) -> 5788259.778 | AI77: =IF($AG76<VLOOKUP($B77,'sh1'!$N$16:$O$19,2,1)*$AD77,VLOOKUP($B77,'sh1'!$N$16:$O$19,2,1)*$AD77,$AG76) -> 5619669.687 | AJ77: =IF($AG77<VLOOKUP($B77,'sh1'!$N$16:$O$19,2,1)*$AE77,VLOOKUP($B77,'sh1'!$N$16:$O$19,2,1)*$AE77,$AG77) -> 5788259.778 | AK77: =IF(AI77-AG76-U77<0,0,AI77-AG76-U77) -> 0 | AL77: =$AM76+$U77+$Y77 -> 13142568.53 | AM77: =($AL77-W77)*(1+4.5%)-$Z77/VLOOKUP($A77,'sh1'!$N$7:$O$12,2,1) -> 13733984.12 | AN77: =IF($A77=1,95%*$AM77,IF($A77=2,97%*$AM77,IF($A77=3,98%*$AM77,IF(OR($A77=4,$A77=5),$AM77*99%,$AM77)))) -> 13733984.12 | AO77: =IF($AM76<VLOOKUP($B77,'sh1'!$N$16:$O$19,2,1)*$AD77,VLOOKUP($B77,'sh1'!$N$16:$O$19,2,1)*$AD77,$AM76) -> 13142568.53 | AP77: =IF($AM77<VLOOKUP($B77,'sh1'!$N$16:$O$19,2,1)*$AE77,VLOOKUP($B77,'sh1'!$N$16:$O$19,2,1)*$AE77,$AM77) -> 13733984.12 | AQ77: =IF(AO77-AM76-U77<0,0,AO77-AM76-U77) -> 0 | AR77: =$AS76+$U77+$Y77 -> 30368056.54 | AS77: =($AR77-X77)*(1+6%)-$Z77/VLOOKUP($A77,'sh1'!$N$7:$O$12,2,1) -> 32190139.94 | AT77: =IF($A77=1,95%*$AS77,IF($A77=2,97%*$AS77,IF($A77=3,98%*$AS77,IF(OR($A77=4,$A77=5),$AS77*99%,$AS77)))) -> 32190139.94 | AU77: =IF($AS76<VLOOKUP($B77,'sh1'!$N$16:$O$19,2,1)*$AD77,VLOOKUP($B77,'sh1'!$N$16:$O$19,2,1)*$AD77,$AS76) -> 30368056.54 | AV77: =IF($AS77<VLOOKUP($B77,'sh1'!$N$16:$O$19,2,1)*$AE77,VLOOKUP($B77,'sh1'!$N$16:$O$19,2,1)*$AE77,$AS77) -> 32190139.94 | AW77: =IF(AU77-AS76-U77<0,0,AU77-AS76-U77) -> 0 | AX77: =$G$4&"|"&(IF($I$3="男",0,1))&"|"&$G$3&"|"&A77 -> 5|0|15|67
A78: 68 | B78: 82 | C78: 83 | R78: 0 | S78: =SUM($R$11:R78,$P$11:P78,$Q$11:Q78) -> 995816.8 | T78: =-($P78+$Q78)*2%-$R78*1% -> 0 | U78: 0 | V78: =SUM(($B78='sh1'!$R$3:$R$214)*(IF($I$3="男",0,1)='sh1'!$Q$3:$Q$214)*('sh1'!$S$3:$S$214))/1000*AK78 -> 0 | W78: =SUM(($B78='sh1'!$R$3:$R$214)*(IF($I$3="男",0,1)='sh1'!$Q$3:$Q$214)*('sh1'!$S$3:$S$214))/1000*AQ78 -> 0 | X78: =SUM(($B78='sh1'!$R$3:$R$214)*(IF($I$3="男",0,1)='sh1'!$Q$3:$Q$214)*('sh1'!$S$3:$S$214))/1000*AW78 -> 0 | Y78: 0 | AA78: =-$Z78/VLOOKUP($A78,'sh1'!$N$7:$O$12,2,1) -> 0 | AB78: =SUM($AA$11:AA78) -> 0 | AC78: =$S78+$AB78 -> 995816.8 | AD78: 995816.8 | AE78: 995816.8 | AF78: =$AG77+$U78+$Y78 -> 5788259.778 | AG78: =($AF78-$V78)*(1+3%)-$Z78/VLOOKUP($A78,'sh1'!$N$7:$O$12,2,1) -> 5961907.571 | AH78: 5961907.571 | AI78: =IF($AG77<VLOOKUP($B78,'sh1'!$N$16:$O$19,2,1)*$AD78,VLOOKUP($B78,'sh1'!$N$16:$O$19,2,1)*$AD78,$AG77) -> 5788259.778 | AJ78: =IF($AG78<VLOOKUP($B78,'sh1'!$N$16:$O$19,2,1)*$AE78,VLOOKUP($B78,'sh1'!$N$16:$O$19,2,1)*$AE78,$AG78) -> 5961907.571 | AK78: =IF(AI78-AG77-U78<0,0,AI78-AG77-U78) -> 0 | AL78: =$AM77+$U78+$Y78 -> 13733984.12 | AM78: =($AL78-W78)*(1+4.5%)-$Z78/VLOOKUP($A78,'sh1'!$N$7:$O$12,2,1) -> 14352013.4 | AN78: 14352013.4 | AO78: =IF($AM77<VLOOKUP($B78,'sh1'!$N$16:$O$19,2,1)*$AD78,VLOOKUP($B78,'sh1'!$N$16:$O$19,2,1)*$AD78,$AM77) -> 13733984.12 | AP78: =IF($AM78<VLOOKUP($B78,'sh1'!$N$16:$O$19,2,1)*$AE78,VLOOKUP($B78,'sh1'!$N$16:$O$19,2,1)*$AE78,$AM78) -> 14352013.4 | AQ78: =IF(AO78-AM77-U78<0,0,AO78-AM77-U78) -> 0 | AR78: =$AS77+$U78+$Y78 -> 32190139.94 | AS78: =($AR78-X78)*(1+6%)-$Z78/VLOOKUP($A78,'sh1'!$N$7:$O$12,2,1) -> 34121548.33 | AT78: 34121548.33 | AU78: =IF($AS77<VLOOKUP($B78,'sh1'!$N$16:$O$19,2,1)*$AD78,VLOOKUP($B78,'sh1'!$N$16:$O$19,2,1)*$AD78,$AS77) -> 32190139.94 | AV78: =IF($AS78<VLOOKUP($B78,'sh1'!$N$16:$O$19,2,1)*$AE78,VLOOKUP($B78,'sh1'!$N$16:$O$19,2,1)*$AE78,$AS78) -> 34121548.33 | AW78: =IF(AU78-AS77-U78<0,0,AU78-AS77-U78) -> 0 | AX78: 5|0|15|68
A79: 69 | B79: 83 | C79: 84 | R79: 0 | S79: =SUM($R$11:R79,$P$11:P79,$Q$11:Q79) -> 995816.8 | T79: 0 | U79: 0 | V79: =SUM(($B79='sh1'!$R$3:$R$214)*(IF($I$3="男",0,1)='sh1'!$Q$3:$Q$214)*('sh1'!$S$3:$S$214))/1000*AK79 -> 0 | W79: =SUM(($B79='sh1'!$R$3:$R$214)*(IF($I$3="男",0,1)='sh1'!$Q$3:$Q$214)*('sh1'!$S$3:$S$214))/1000*AQ79 -> 0 | X79: =SUM(($B79='sh1'!$R$3:$R$214)*(IF($I$3="男",0,1)='sh1'!$Q$3:$Q$214)*('sh1'!$S$3:$S$214))/1000*AW79 -> 0 | Y79: 0 | AA79: =-$Z79/VLOOKUP($A79,'sh1'!$N$7:$O$12,2,1) -> 0 | AB79: =SUM($AA$11:AA79) -> 0 | AC79: 995816.8 | AD79: 995816.8 | AE79: 995816.8 | AF79: 5961907.571 | AG79: =($AF79-$V79)*(1+3%)-$Z79/VLOOKUP($A79,'sh1'!$N$7:$O$12,2,1) -> 6140764.799 | AH79: 6140764.799 | AI79: =IF($AG78<VLOOKUP($B79,'sh1'!$N$16:$O$19,2,1)*$AD79,VLOOKUP($B79,'sh1'!$N$16:$O$19,2,1)*$AD79,$AG78) -> 5961907.571 | AJ79: =IF($AG79<VLOOKUP($B79,'sh1'!$N$16:$O$19,2,1)*$AE79,VLOOKUP($B79,'sh1'!$N$16:$O$19,2,1)*$AE79,$AG79) -> 6140764.799 | AK79: =IF(AI79-AG78-U79<0,0,AI79-AG78-U79) -> 0 | AL79: 14352013.4 | AM79: =($AL79-W79)*(1+4.5%)-$Z79/VLOOKUP($A79,'sh1'!$N$7:$O$12,2,1) -> 14997854.01 | AN79: 14997854.01 | AO79: =IF($AM78<VLOOKUP($B79,'sh1'!$N$16:$O$19,2,1)*$AD79,VLOOKUP($B79,'sh1'!$N$16:$O$19,2,1)*$AD79,$AM78) -> 14352013.4 | AP79: =IF($AM79<VLOOKUP($B79,'sh1'!$N$16:$O$19,2,1)*$AE79,VLOOKUP($B79,'sh1'!$N$16:$O$19,2,1)*$AE79,$AM79) -> 14997854.01 | AQ79: =IF(AO79-AM78-U79<0,0,AO79-AM78-U79) -> 0 | AR79: 34121548.33 | AS79: =($AR79-X79)*(1+6%)-$Z79/VLOOKUP($A79,'sh1'!$N$7:$O$12,2,1) -> 36168841.23 | AT79: 36168841.23 | AU79: =IF($AS78<VLOOKUP($B79,'sh1'!$N$16:$O$19,2,1)*$AD79,VLOOKUP($B79,'sh1'!$N$16:$O$19,2,1)*$AD79,$AS78) -> 34121548.33 | AV79: =IF($AS79<VLOOKUP($B79,'sh1'!$N$16:$O$19,2,1)*$AE79,VLOOKUP($B79,'sh1'!$N$16:$O$19,2,1)*$AE79,$AS79) -> 36168841.23 | AW79: =IF(AU79-AS78-U79<0,0,AU79-AS78-U79) -> 0 | AX79: 5|0|15|69
A80: 70 | B80: 84 | C80: 85 | R80: 0 | S80: =SUM($R$11:R80,$P$11:P80,$Q$11:Q80) -> 995816.8 | T80: 0 | U80: 0 | V80: =SUM(($B80='sh1'!$R$3:$R$214)*(IF($I$3="男",0,1)='sh1'!$Q$3:$Q$214)*('sh1'!$S$3:$S$214))/1000*AK80 -> 0 | W80: =SUM(($B80='sh1'!$R$3:$R$214)*(IF($I$3="男",0,1)='sh1'!$Q$3:$Q$214)*('sh1'!$S$3:$S$214))/1000*AQ80 -> 0 | X80: =SUM(($B80='sh1'!$R$3:$R$214)*(IF($I$3="男",0,1)='sh1'!$Q$3:$Q$214)*('sh1'!$S$3:$S$214))/1000*AW80 -> 0 | Y80: 0 | AA80: =-$Z80/VLOOKUP($A80,'sh1'!$N$7:$O$12,2,1) -> 0 | AB80: =SUM($AA$11:AA80) -> 0 | AC80: 995816.8 | AD80: 995816.8 | AE80: 995816.8 | AF80: 6140764.799 | AG80: =($AF80-$V80)*(1+3%)-$Z80/VLOOKUP($A80,'sh1'!$N$7:$O$12,2,1) -> 6324987.743 | AH80: 6324987.743 | AI80: =IF($AG79<VLOOKUP($B80,'sh1'!$N$16:$O$19,2,1)*$AD80,VLOOKUP($B80,'sh1'!$N$16:$O$19,2,1)*$AD80,$AG79) -> 6140764.799 | AJ80: =IF($AG80<VLOOKUP($B80,'sh1'!$N$16:$O$19,2,1)*$AE80,VLOOKUP($B80,'sh1'!$N$16:$O$19,2,1)*$AE80,$AG80) -> 6324987.743 | AK80: 0 | AL80: 14997854.01 | AM80: =($AL80-W80)*(1+4.5%)-$Z80/VLOOKUP($A80,'sh1'!$N$7:$O$12,2,1) -> 15672757.44 | AN80: 15672757.44 | AO80: =IF($AM79<VLOOKUP($B80,'sh1'!$N$16:$O$19,2,1)*$AD80,VLOOKUP($B80,'sh1'!$N$16:$O$19,2,1)*$AD80,$AM79) -> 14997854.01 | AP80: =IF($AM80<VLOOKUP($B80,'sh1'!$N$16:$O$19,2,1)*$AE80,VLOOKUP($B80,'sh1'!$N$16:$O$19,2,1)*$AE80,$AM80) -> 15672757.44 | AQ80: 0 | AR80: 36168841.23 | AS80: =($AR80-X80)*(1+6%)-$Z80/VLOOKUP($A80,'sh1'!$N$7:$O$12,2,1) -> 38338971.71 | AT80: 38338971.71 | AU80: =IF($AS79<VLOOKUP($B80,'sh1'!$N$16:$O$19,2,1)*$AD80,VLOOKUP($B80,'sh1'!$N$16:$O$19,2,1)*$AD80,$AS79) -> 36168841.23 | AV80: =IF($AS80<VLOOKUP($B80,'sh1'!$N$16:$O$19,2,1)*$AE80,VLOOKUP($B80,'sh1'!$N$16:$O$19,2,1)*$AE80,$AS80) -> 38338971.71 | AW80: 0 | AX80: 5|0|15|70
A81: 71 | B81: 85 | C81: 86 | R81: 0 | S81: =SUM($R$11:R81,$P$11:P81,$Q$11:Q81) -> 995816.8 | T81: 0 | U81: =$R81+$P81+$Q81+$T81 -> 0 | V81: =SUM(($B81='sh1'!$R$3:$R$214)*(IF($I$3="男",0,1)='sh1'!$Q$3:$Q$214)*('sh1'!$S$3:$S$214))/1000*AK81 -> 0 | W81: =SUM(($B81='sh1'!$R$3:$R$214)*(IF($I$3="男",0,1)='sh1'!$Q$3:$Q$214)*('sh1'!$S$3:$S$214))/1000*AQ81 -> 0 | X81: =SUM(($B81='sh1'!$R$3:$R$214)*(IF($I$3="男",0,1)='sh1'!$Q$3:$Q$214)*('sh1'!$S$3:$S$214))/1000*AW81 -> 0 | Y81: 0 | AA81: =-$Z81/VLOOKUP($A81,'sh1'!$N$7:$O$12,2,1) -> 0 | AB81: =SUM($AA$11:AA81) -> 0 | AC81: 995816.8 | AD81: 995816.8 | AE81: 995816.8 | AF81: 6324987.743 | AG81: =($AF81-$V81)*(1+3%)-$Z81/VLOOKUP($A81,'sh1'!$N$7:$O$12,2,1) -> 6514737.375 | AH81: 6514737.375 | AI81: =IF($AG80<VLOOKUP($B81,'sh1'!$N$16:$O$19,2,1)*$AD81,VLOOKUP($B81,'sh1'!$N$16:$O$19,2,1)*$AD81,$AG80) -> 6324987.743 | AJ81: =IF($AG81<VLOOKUP($B81,'sh1'!$N$16:$O$19,2,1)*$AE81,VLOOKUP($B81,'sh1'!$N$16:$O$19,2,1)*$AE81,$AG81) -> 6514737.375 | AK81: 0 | AL81: 15672757.44 | AM81: =($AL81-W81)*(1+4.5%)-$Z81/VLOOKUP($A81,'sh1'!$N$7:$O$12,2,1) -> 16378031.52 | AN81: 16378031.52 | AO81: =IF($AM80<VLOOKUP($B81,'sh1'!$N$16:$O$19,2,1)*$AD81,VLOOKUP($B81,'sh1'!$N$16:$O$19,2,1)*$AD81,$AM80) -> 15672757.44 | AP81: =IF($AM81<VLOOKUP($B81,'sh1'!$N$16:$O$19,2,1)*$AE81,VLOOKUP($B81,'sh1'!$N$16:$O$19,2,1)*$AE81,$AM81) -> 16378031.52 | AQ81: 0 | AR81: 38338971.71 | AS81: =($AR81-X81)*(1+6%)-$Z81/VLOOKUP($A81,'sh1'!$N$7:$O$12,2,1) -> 40639310.01 | AT81: 40639310.01 | AU81: =IF($AS80<VLOOKUP($B81,'sh1'!$N$16:$O$19,2,1)*$AD81,VLOOKUP($B81,'sh1'!$N$16:$O$19,2,1)*$AD81,$AS80) -> 38338971.71 | AV81: =IF($AS81<VLOOKUP($B81,'sh1'!$N$16:$O$19,2,1)*$AE81,VLOOKUP($B81,'sh1'!$N$16:$O$19,2,1)*$AE81,$AS81) -> 40639310.01 | AW81: 0 | AX81: 5|0|15|71
A82: 72 | B82: 86 | C82: 87 | R82: 0 | S82: =SUM($R$11:R82,$P$11:P82,$Q$11:Q82) -> 995816.8 | T82: 0 | U82: 0 | V82: =SUM(($B82='sh1'!$R$3:$R$214)*(IF($I$3="男",0,1)='sh1'!$Q$3:$Q$214)*('sh1'!$S$3:$S$214))/1000*AK82 -> 0 | W82: =SUM(($B82='sh1'!$R$3:$R$214)*(IF($I$3="男",0,1)='sh1'!$Q$3:$Q$214)*('sh1'!$S$3:$S$214))/1000*AQ82 -> 0 | X82: =SUM(($B82='sh1'!$R$3:$R$214)*(IF($I$3="男",0,1)='sh1'!$Q$3:$Q$214)*('sh1'!$S$3:$S$214))/1000*AW82 -> 0 | Y82: =IF($A82=7,(SUM($I71:$I80)+SUM($J71:$J80))*1%,IF($A82>=8,($I80+$J80)*1%,0)) -> 0 | AA82: =-$Z82/VLOOKUP($A82,'sh1'!$N$7:$O$12,2,1) -> 0 | AB82: =SUM($AA$11:AA82) -> 0 | AC82: 995816.8 | AD82: 995816.8 | AE82: 995816.8 | AF82: 6514737.375 | AG82: =($AF82-$V82)*(1+3%)-$Z82/VLOOKUP($A82,'sh1'!$N$7:$O$12,2,1) -> 6710179.496 | AH82: 6710179.496 | AI82: =IF($AG81<VLOOKUP($B82,'sh1'!$N$16:$O$19,2,1)*$AD82,VLOOKUP($B82,'sh1'!$N$16:$O$19,2,1)*$AD82,$AG81) -> 6514737.375 | AJ82: =IF($AG82<VLOOKUP($B82,'sh1'!$N$16:$O$19,2,1)*$AE82,VLOOKUP($B82,'sh1'!$N$16:$O$19,2,1)*$AE82,$AG82) -> 6710179.496 | AK82: 0 | AL82: 16378031.52 | AM82: =($AL82-W82)*(1+4.5%)-$Z82/VLOOKUP($A82,'sh1'!$N$7:$O$12,2,1) -> 17115042.94 | AN82: 17115042.94 | AO82: =IF($AM81<VLOOKUP($B82,'sh1'!$N$16:$O$19,2,1)*$AD82,VLOOKUP($B82,'sh1'!$N$16:$O$19,2,1)*$AD82,$AM81) -> 16378031.52 | AP82: =IF($AM82<VLOOKUP($B82,'sh1'!$N$16:$O$19,2,1)*$AE82,VLOOKUP($B82,'sh1'!$N$16:$O$19,2,1)*$AE82,$AM82) -> 17115042.94 | AQ82: 0 | AR82: 40639310.01 | AS82: =($AR82-X82)*(1+6%)-$Z82/VLOOKUP($A82,'sh1'!$N$7:$O$12,2,1) -> 43077668.61 | AT82: 43077668.61 | AU82: =IF($AS81<VLOOKUP($B82,'sh1'!$N$16:$O$19,2,1)*$AD82,VLOOKUP($B82,'sh1'!$N$16:$O$19,2,1)*$AD82,$AS81) -> 40639310.01 | AV82: =IF($AS82<VLOOKUP($B82,'sh1'!$N$16:$O$19,2,1)*$AE82,VLOOKUP($B82,'sh1'!$N$16:$O$19,2,1)*$AE82,$AS82) -> 43077668.61 | AW82: 0 | AX82: 5|0|15|72
A83: 73 | B83: 87 | C83: 88 | R83: 0 | S83: =SUM($R$11:R83,$P$11:P83,$Q$11:Q83) -> 995816.8 | T83: 0 | U83: 0 | V83: =SUM(($B83='sh1'!$R$3:$R$214)*(IF($I$3="男",0,1)='sh1'!$Q$3:$Q$214)*('sh1'!$S$3:$S$214))/1000*AK83 -> 0 | W83: =SUM(($B83='sh1'!$R$3:$R$214)*(IF($I$3="男",0,1)='sh1'!$Q$3:$Q$214)*('sh1'!$S$3:$S$214))/1000*AQ83 -> 0 | X83: =SUM(($B83='sh1'!$R$3:$R$214)*(IF($I$3="男",0,1)='sh1'!$Q$3:$Q$214)*('sh1'!$S$3:$S$214))/1000*AW83 -> 0 | Y83: 0 | AA83: =-$Z83/VLOOKUP($A83,'sh1'!$N$7:$O$12,2,1) -> 0 | AB83: =SUM($AA$11:AA83) -> 0 | AC83: 995816.8 | AD83: 995816.8 | AE83: 995816.8 | AF83: 6710179.496 | AG83: =($AF83-$V83)*(1+3%)-$Z83/VLOOKUP($A83,'sh1'!$N$7:$O$12,2,1) -> 6911484.881 | AH83: 6911484.881 | AI83: =IF($AG82<VLOOKUP($B83,'sh1'!$N$16:$O$19,2,1)*$AD83,VLOOKUP($B83,'sh1'!$N$16:$O$19,2,1)*$AD83,$AG82) -> 6710179.496 | AJ83: =IF($AG83<VLOOKUP($B83,'sh1'!$N$16:$O$19,2,1)*$AE83,VLOOKUP($B83,'sh1'!$N$16:$O$19,2,1)*$AE83,$AG83) -> 6911484.881 | AK83: 0 | AL83: 17115042.94 | AM83: =($AL83-W83)*(1+4.5%)-$Z83/VLOOKUP($A83,'sh1'!$N$7:$O$12,2,1) -> 17885219.87 | AN83: 17885219.87 | AO83: =IF($AM82<VLOOKUP($B83,'sh1'!$N$16:$O$19,2,1)*$AD83,VLOOKUP($B83,'sh1'!$N$16:$O$19,2,1)*$AD83,$AM82) -> 17115042.94 | AP83: =IF($AM83<VLOOKUP($B83,'sh1'!$N$16:$O$19,2,1)*$AE83,VLOOKUP($B83,'sh1'!$N$16:$O$19,2,1)*$AE83,$AM83) -> 17885219.87 | AQ83: 0 | AR83: 43077668.61 | AS83: =($AR83-X83)*(1+6%)-$Z83/VLOOKUP($A83,'sh1'!$N$7:$O$12,2,1) -> 45662328.73 | AT83: 45662328.73 | AU83: =IF($AS82<VLOOKUP($B83,'sh1'!$N$16:$O$19,2,1)*$AD83,VLOOKUP($B83,'sh1'!$N$16:$O$19,2,1)*$AD83,$AS82) -> 43077668.61 | AV83: =IF($AS83<VLOOKUP($B83,'sh1'!$N$16:$O$19,2,1)*$AE83,VLOOKUP($B83,'sh1'!$N$16:$O$19,2,1)*$AE83,$AS83) -> 45662328.73 | AW83: 0 | AX83: 5|0|15|73
A84: 74 | B84: 88 | C84: 89 | R84: 0 | S84: =SUM($R$11:R84,$P$11:P84,$Q$11:Q84) -> 995816.8 | T84: 0 | U84: 0 | V84: =SUM(($B84='sh1'!$R$3:$R$214)*(IF($I$3="男",0,1)='sh1'!$Q$3:$Q$214)*('sh1'!$S$3:$S$214))/1000*AK84 -> 0 | W84: =SUM(($B84='sh1'!$R$3:$R$214)*(IF($I$3="男",0,1)='sh1'!$Q$3:$Q$214)*('sh1'!$S$3:$S$214))/1000*AQ84 -> 0 | X84: =SUM(($B84='sh1'!$R$3:$R$214)*(IF($I$3="男",0,1)='sh1'!$Q$3:$Q$214)*('sh1'!$S$3:$S$214))/1000*AW84 -> 0 | Y84: 0 | AA84: =-$Z84/VLOOKUP($A84,'sh1'!$N$7:$O$12,2,1) -> 0 | AB84: =SUM($AA$11:AA84) -> 0 | AC84: 995816.8 | AD84: 995816.8 | AE84: 995816.8 | AF84: 6911484.881 | AG84: =($AF84-$V84)*(1+3%)-$Z84/VLOOKUP($A84,'sh1'!$N$7:$O$12,2,1) -> 7118829.427 | AH84: 7118829.427 | AI84: =IF($AG83<VLOOKUP($B84,'sh1'!$N$16:$O$19,2,1)*$AD84,VLOOKUP($B84,'sh1'!$N$16:$O$19,2,1)*$AD84,$AG83) -> 6911484.881 | AJ84: =IF($AG84<VLOOKUP($B84,'sh1'!$N$16:$O$19,2,1)*$AE84,VLOOKUP($B84,'sh1'!$N$16:$O$19,2,1)*$AE84,$AG84) -> 7118829.427 | AK84: 0 | AL84: 17885219.87 | AM84: =($AL84-W84)*(1+4.5%)-$Z84/VLOOKUP($A84,'sh1'!$N$7:$O$12,2,1) -> 18690054.77 | AN84: 18690054.77 | AO84: =IF($AM83<VLOOKUP($B84,'sh1'!$N$16:$O$19,2,1)*$AD84,VLOOKUP($B84,'sh1'!$N$16:$O$19,2,1)*$AD84,$AM83) -> 17885219.87 | AP84: =IF($AM84<VLOOKUP($B84,'sh1'!$N$16:$O$19,2,1)*$AE84,VLOOKUP($B84,'sh1'!$N$16:$O$19,2,1)*$AE84,$AM84) -> 18690054.77 | AQ84: 0 | AR84: 45662328.73 | AS84: =($AR84-X84)*(1+6%)-$Z84/VLOOKUP($A84,'sh1'!$N$7:$O$12,2,1) -> 48402068.45 | AT84: 48402068.45 | AU84: =IF($AS83<VLOOKUP($B84,'sh1'!$N$16:$O$19,2,1)*$AD84,VLOOKUP($B84,'sh1'!$N$16:$O$19,2,1)*$AD84,$AS83) -> 45662328.73 | AV84: =IF($AS84<VLOOKUP($B84,'sh1'!$N$16:$O$19,2,1)*$AE84,VLOOKUP($B84,'sh1'!$N$16:$O$19,2,1)*$AE84,$AS84) -> 48402068.45 | AW84: 0 | AX84: 5|0|15|74
A85: 75 | B85: 89 | C85: 90 | R85: 0 | S85: =SUM($R$11:R85,$P$11:P85,$Q$11:Q85) -> 995816.8 | T85: 0 | U85: 0 | V85: =SUM(($B85='sh1'!$R$3:$R$214)*(IF($I$3="男",0,1)='sh1'!$Q$3:$Q$214)*('sh1'!$S$3:$S$214))/1000*AK85 -> 0 | W85: =SUM(($B85='sh1'!$R$3:$R$214)*(IF($I$3="男",0,1)='sh1'!$Q$3:$Q$214)*('sh1'!$S$3:$S$214))/1000*AQ85 -> 0 | X85: =SUM(($B85='sh1'!$R$3:$R$214)*(IF($I$3="男",0,1)='sh1'!$Q$3:$Q$214)*('sh1'!$S$3:$S$214))/1000*AW85 -> 0 | Y85: 0 | AA85: =-$Z85/VLOOKUP($A85,'sh1'!$N$7:$O$12,2,1) -> 0 | AB85: =SUM($AA$11:AA85) -> 0 | AC85: 995816.8 | AD85: 995816.8 | AE85: 995816.8 | AF85: 7118829.427 | AG85: =($AF85-$V85)*(1+3%)-$Z85/VLOOKUP($A85,'sh1'!$N$7:$O$12,2,1) -> 7332394.31 | AH85: 7332394.31 | AI85: =IF($AG84<VLOOKUP($B85,'sh1'!$N$16:$O$19,2,1)*$AD85,VLOOKUP($B85,'sh1'!$N$16:$O$19,2,1)*$AD85,$AG84) -> 7118829.427 | AJ85: =IF($AG85<VLOOKUP($B85,'sh1'!$N$16:$O$19,2,1)*$AE85,VLOOKUP($B85,'sh1'!$N$16:$O$19,2,1)*$AE85,$AG85) -> 7332394.31 | AK85: 0 | AL85: 18690054.77 | AM85: =($AL85-W85)*(1+4.5%)-$Z85/VLOOKUP($A85,'sh1'!$N$7:$O$12,2,1) -> 19531107.23 | AN85: 19531107.23 | AO85: =IF($AM84<VLOOKUP($B85,'sh1'!$N$16:$O$19,2,1)*$AD85,VLOOKUP($B85,'sh1'!$N$16:$O$19,2,1)*$AD85,$AM84) -> 18690054.77 | AP85: =IF($AM85<VLOOKUP($B85,'sh1'!$N$16:$O$19,2,1)*$AE85,VLOOKUP($B85,'sh1'!$N$16:$O$19,2,1)*$AE85,$AM85) -> 19531107.23 | AQ85: 0 | AR85: 48402068.45 | AS85: =($AR85-X85)*(1+6%)-$Z85/VLOOKUP($A85,'sh1'!$N$7:$O$12,2,1) -> 51306192.56 | AT85: 51306192.56 | AU85: =IF($AS84<VLOOKUP($B85,'sh1'!$N$16:$O$19,2,1)*$AD85,VLOOKUP($B85,'sh1'!$N$16:$O$19,2,1)*$AD85,$AS84) -> 48402068.45 | AV85: =IF($AS85<VLOOKUP($B85,'sh1'!$N$16:$O$19,2,1)*$AE85,VLOOKUP($B85,'sh1'!$N$16:$O$19,2,1)*$AE85,$AS85) -> 51306192.56 | AW85: 0 | AX85: 5|0|15|75
A86: 76 | B86: 90 | C86: =$G$3+A86 -> 91 | R86: =$I85+$J85 -> 0 | S86: =SUM($R$11:R86,$P$11:P86,$Q$11:Q86) -> 995816.8 | T86: 0 | U86: 0 | V86: =SUM(($B86='sh1'!$R$3:$R$214)*(IF($I$3="男",0,1)='sh1'!$Q$3:$Q$214)*('sh1'!$S$3:$S$214))/1000*AK86 -> 0 | W86: =SUM(($B86='sh1'!$R$3:$R$214)*(IF($I$3="男",0,1)='sh1'!$Q$3:$Q$214)*('sh1'!$S$3:$S$214))/1000*AQ86 -> 0 | X86: =SUM(($B86='sh1'!$R$3:$R$214)*(IF($I$3="男",0,1)='sh1'!$Q$3:$Q$214)*('sh1'!$S$3:$S$214))/1000*AW86 -> 0 | Y86: 0 | AA86: =-$Z86/VLOOKUP($A86,'sh1'!$N$7:$O$12,2,1) -> 0 | AB86: =SUM($AA$11:AA86) -> 0 | AC86: 995816.8 | AD86: 995816.8 | AE86: 995816.8 | AF86: 7332394.31 | AG86: =($AF86-$V86)*(1+3%)-$Z86/VLOOKUP($A86,'sh1'!$N$7:$O$12,2,1) -> 7552366.14 | AH86: 7552366.14 | AI86: =IF($AG85<VLOOKUP($B86,'sh1'!$N$16:$O$19,2,1)*$AD86,VLOOKUP($B86,'sh1'!$N$16:$O$19,2,1)*$AD86,$AG85) -> 7332394.31 | AJ86: =IF($AG86<VLOOKUP($B86,'sh1'!$N$16:$O$19,2,1)*$AE86,VLOOKUP($B86,'sh1'!$N$16:$O$19,2,1)*$AE86,$AG86) -> 7552366.14 | AK86: 0 | AL86: 19531107.23 | AM86: =($AL86-W86)*(1+4.5%)-$Z86/VLOOKUP($A86,'sh1'!$N$7:$O$12,2,1) -> 20410007.06 | AN86: 20410007.06 | AO86: =IF($AM85<VLOOKUP($B86,'sh1'!$N$16:$O$19,2,1)*$AD86,VLOOKUP($B86,'sh1'!$N$16:$O$19,2,1)*$AD86,$AM85) -> 19531107.23 | AP86: =IF($AM86<VLOOKUP($B86,'sh1'!$N$16:$O$19,2,1)*$AE86,VLOOKUP($B86,'sh1'!$N$16:$O$19,2,1)*$AE86,$AM86) -> 20410007.06 | AQ86: 0 | AR86: 51306192.56 | AS86: =($AR86-X86)*(1+6%)-$Z86/VLOOKUP($A86,'sh1'!$N$7:$O$12,2,1) -> 54384564.11 | AT86: 54384564.11 | AU86: =IF($AS85<VLOOKUP($B86,'sh1'!$N$16:$O$19,2,1)*$AD86,VLOOKUP($B86,'sh1'!$N$16:$O$19,2,1)*$AD86,$AS85) -> 51306192.56 | AV86: =IF($AS86<VLOOKUP($B86,'sh1'!$N$16:$O$19,2,1)*$AE86,VLOOKUP($B86,'sh1'!$N$16:$O$19,2,1)*$AE86,$AS86) -> 54384564.11 | AW86: 0 | AX86: 5|0|15|76
A87: 77 | B87: 91 | C87: 92 | R87: 0 | S87: =SUM($R$11:R87,$P$11:P87,$Q$11:Q87) -> 995816.8 | T87: 0 | U87: 0 | V87: =SUM(($B87='sh1'!$R$3:$R$214)*(IF($I$3="男",0,1)='sh1'!$Q$3:$Q$214)*('sh1'!$S$3:$S$214))/1000*AK87 -> 0 | W87: =SUM(($B87='sh1'!$R$3:$R$214)*(IF($I$3="男",0,1)='sh1'!$Q$3:$Q$214)*('sh1'!$S$3:$S$214))/1000*AQ87 -> 0 | X87: =SUM(($B87='sh1'!$R$3:$R$214)*(IF($I$3="男",0,1)='sh1'!$Q$3:$Q$214)*('sh1'!$S$3:$S$214))/1000*AW87 -> 0 | Y87: 0 | AA87: =-$Z87/VLOOKUP($A87,'sh1'!$N$7:$O$12,2,1) -> 0 | AB87: =SUM($AA$11:AA87) -> 0 | AC87: 995816.8 | AD87: 995816.8 | AE87: 995816.8 | AF87: 7552366.14 | AG87: =($AF87-$V87)*(1+3%)-$Z87/VLOOKUP($A87,'sh1'!$N$7:$O$12,2,1) -> 7778937.124 | AH87: 7778937.124 | AI87: =IF($AG86<VLOOKUP($B87,'sh1'!$N$16:$O$19,2,1)*$AD87,VLOOKUP($B87,'sh1'!$N$16:$O$19,2,1)*$AD87,$AG86) -> 7552366.14 | AJ87: =IF($AG87<VLOOKUP($B87,'sh1'!$N$16:$O$19,2,1)*$AE87,VLOOKUP($B87,'sh1'!$N$16:$O$19,2,1)*$AE87,$AG87) -> 7778937.124 | AK87: 0 | AL87: 20410007.06 | AM87: =($AL87-W87)*(1+4.5%)-$Z87/VLOOKUP($A87,'sh1'!$N$7:$O$12,2,1) -> 21328457.38 | AN87: 21328457.38 | AO87: =IF($AM86<VLOOKUP($B87,'sh1'!$N$16:$O$19,2,1)*$AD87,VLOOKUP($B87,'sh1'!$N$16:$O$19,2,1)*$AD87,$AM86) -> 20410007.06 | AP87: =IF($AM87<VLOOKUP($B87,'sh1'!$N$16:$O$19,2,1)*$AE87,VLOOKUP($B87,'sh1'!$N$16:$O$19,2,1)*$AE87,$AM87) -> 21328457.38 | AQ87: 0 | AR87: 54384564.11 | AS87: =($AR87-X87)*(1+6%)-$Z87/VLOOKUP($A87,'sh1'!$N$7:$O$12,2,1) -> 57647637.96 | AT87: 57647637.96 | AU87: =IF($AS86<VLOOKUP($B87,'sh1'!$N$16:$O$19,2,1)*$AD87,VLOOKUP($B87,'sh1'!$N$16:$O$19,2,1)*$AD87,$AS86) -> 54384564.11 | AV87: =IF($AS87<VLOOKUP($B87,'sh1'!$N$16:$O$19,2,1)*$AE87,VLOOKUP($B87,'sh1'!$N$16:$O$19,2,1)*$AE87,$AS87) -> 57647637.96 | AW87: 0 | AX87: 5|0|15|77
A88: 78 | B88: 92 | C88: 93 | R88: 0 | S88: =SUM($R$11:R88,$P$11:P88,$Q$11:Q88) -> 995816.8 | T88: 0 | U88: 0 | V88: =SUM(($B88='sh1'!$R$3:$R$214)*(IF($I$3="男",0,1)='sh1'!$Q$3:$Q$214)*('sh1'!$S$3:$S$214))/1000*AK88 -> 0 | W88: =SUM(($B88='sh1'!$R$3:$R$214)*(IF($I$3="男",0,1)='sh1'!$Q$3:$Q$214)*('sh1'!$S$3:$S$214))/1000*AQ88 -> 0 | X88: =SUM(($B88='sh1'!$R$3:$R$214)*(IF($I$3="男",0,1)='sh1'!$Q$3:$Q$214)*('sh1'!$S$3:$S$214))/1000*AW88 -> 0 | Y88: 0 | AA88: =-$Z88/VLOOKUP($A88,'sh1'!$N$7:$O$12,2,1) -> 0 | AB88: =SUM($AA$11:AA88) -> 0 | AC88: 995816.8 | AD88: 995816.8 | AE88: 995816.8 | AF88: 7778937.124 | AG88: =($AF88-$V88)*(1+3%)-$Z88/VLOOKUP($A88,'sh1'!$N$7:$O$12,2,1) -> 8012305.237 | AH88: 8012305.237 | AI88: =IF($AG87<VLOOKUP($B88,'sh1'!$N$16:$O$19,2,1)*$AD88,VLOOKUP($B88,'sh1'!$N$16:$O$19,2,1)*$AD88,$AG87) -> 7778937.124 | AJ88: =IF($AG88<VLOOKUP($B88,'sh1'!$N$16:$O$19,2,1)*$AE88,VLOOKUP($B88,'sh1'!$N$16:$O$19,2,1)*$AE88,$AG88) -> 8012305.237 | AK88: 0 | AL88: 21328457.38 | AM88: =($AL88-W88)*(1+4.5%)-$Z88/VLOOKUP($A88,'sh1'!$N$7:$O$12,2,1) -> 22288237.96 | AN88: 22288237.96 | AO88: =IF($AM87<VLOOKUP($B88,'sh1'!$N$16:$O$19,2,1)*$AD88,VLOOKUP($B88,'sh1'!$N$16:$O$19,2,1)*$AD88,$AM87) -> 21328457.38 | AP88: =IF($AM88<VLOOKUP($B88,'sh1'!$N$16:$O$19,2,1)*$AE88,VLOOKUP($B88,'sh1'!$N$16:$O$19,2,1)*$AE88,$AM88) -> 22288237.96 | AQ88: 0 | AR88: 57647637.96 | AS88: =($AR88-X88)*(1+6%)-$Z88/VLOOKUP($A88,'sh1'!$N$7:$O$12,2,1) -> 61106496.24 | AT88: 61106496.24 | AU88: =IF($AS87<VLOOKUP($B88,'sh1'!$N$16:$O$19,2,1)*$AD88,VLOOKUP($B88,'sh1'!$N$16:$O$19,2,1)*$AD88,$AS87) -> 57647637.96 | AV88: =IF($AS88<VLOOKUP($B88,'sh1'!$N$16:$O$19,2,1)*$AE88,VLOOKUP($B88,'sh1'!$N$16:$O$19,2,1)*$AE88,$AS88) -> 61106496.24 | AW88: 0 | AX88: 5|0|15|78
A89: 79 | B89: 93 | C89: 94 | R89: 0 | S89: =SUM($R$11:R89,$P$11:P89,$Q$11:Q89) -> 995816.8 | T89: 0 | U89: 0 | V89: =SUM(($B89='sh1'!$R$3:$R$214)*(IF($I$3="男",0,1)='sh1'!$Q$3:$Q$214)*('sh1'!$S$3:$S$214))/1000*AK89 -> 0 | W89: =SUM(($B89='sh1'!$R$3:$R$214)*(IF($I$3="男",0,1)='sh1'!$Q$3:$Q$214)*('sh1'!$S$3:$S$214))/1000*AQ89 -> 0 | X89: =SUM(($B89='sh1'!$R$3:$R$214)*(IF($I$3="男",0,1)='sh1'!$Q$3:$Q$214)*('sh1'!$S$3:$S$214))/1000*AW89 -> 0 | Y89: 0 | AA89: =-$Z89/VLOOKUP($A89,'sh1'!$N$7:$O$12,2,1) -> 0 | AB89: =SUM($AA$11:AA89) -> 0 | AC89: 995816.8 | AD89: 995816.8 | AE89: 995816.8 | AF89: 8012305.237 | AG89: =($AF89-$V89)*(1+3%)-$Z89/VLOOKUP($A89,'sh1'!$N$7:$O$12,2,1) -> 8252674.395 | AH89: 8252674.395 | AI89: =IF($AG88<VLOOKUP($B89,'sh1'!$N$16:$O$19,2,1)*$AD89,VLOOKUP($B89,'sh1'!$N$16:$O$19,2,1)*$AD89,$AG88) -> 8012305.237 | AJ89: =IF($AG89<VLOOKUP($B89,'sh1'!$N$16:$O$19,2,1)*$AE89,VLOOKUP($B89,'sh1'!$N$16:$O$19,2,1)*$AE89,$AG89) -> 8252674.395 | AK89: 0 | AL89: 22288237.96 | AM89: =($AL89-W89)*(1+4.5%)-$Z89/VLOOKUP($A89,'sh1'!$N$7:$O$12,2,1) -> 23291208.66 | AN89: 23291208.66 | AO89: =IF($AM88<VLOOKUP($B89,'sh1'!$N$16:$O$19,2,1)*$AD89,VLOOKUP($B89,'sh1'!$N$16:$O$19,2,1)*$AD89,$AM88) -> 22288237.96 | AP89: =IF($AM89<VLOOKUP($B89,'sh1'!$N$16:$O$19,2,1)*$AE89,VLOOKUP($B89,'sh1'!$N$16:$O$19,2,1)*$AE89,$AM89) -> 23291208.66 | AQ89: 0 | AR89: 61106496.24 | AS89: =($AR89-X89)*(1+6%)-$Z89/VLOOKUP($A89,'sh1'!$N$7:$O$12,2,1) -> 64772886.01 | AT89: 64772886.01 | AU89: =IF($AS88<VLOOKUP($B89,'sh1'!$N$16:$O$19,2,1)*$AD89,VLOOKUP($B89,'sh1'!$N$16:$O$19,2,1)*$AD89,$AS88) -> 61106496.24 | AV89: =IF($AS89<VLOOKUP($B89,'sh1'!$N$16:$O$19,2,1)*$AE89,VLOOKUP($B89,'sh1'!$N$16:$O$19,2,1)*$AE89,$AS89) -> 64772886.01 | AW89: 0 | AX89: 5|0|15|79
A90: 80 | B90: 94 | C90: 95 | R90: 0 | S90: =SUM($R$11:R90,$P$11:P90,$Q$11:Q90) -> 995816.8 | T90: 0 | U90: 0 | V90: =SUM(($B90='sh1'!$R$3:$R$214)*(IF($I$3="男",0,1)='sh1'!$Q$3:$Q$214)*('sh1'!$S$3:$S$214))/1000*AK90 -> 0 | W90: =SUM(($B90='sh1'!$R$3:$R$214)*(IF($I$3="男",0,1)='sh1'!$Q$3:$Q$214)*('sh1'!$S$3:$S$214))/1000*AQ90 -> 0 | X90: =SUM(($B90='sh1'!$R$3:$R$214)*(IF($I$3="男",0,1)='sh1'!$Q$3:$Q$214)*('sh1'!$S$3:$S$214))/1000*AW90 -> 0 | Y90: 0 | AA90: =-$Z90/VLOOKUP($A90,'sh1'!$N$7:$O$12,2,1) -> 0 | AB90: =SUM($AA$11:AA90) -> 0 | AC90: 995816.8 | AD90: 995816.8 | AE90: 995816.8 | AF90: 8252674.395 | AG90: =($AF90-$V90)*(1+3%)-$Z90/VLOOKUP($A90,'sh1'!$N$7:$O$12,2,1) -> 8500254.626 | AH90: 8500254.626 | AI90: =IF($AG89<VLOOKUP($B90,'sh1'!$N$16:$O$19,2,1)*$AD90,VLOOKUP($B90,'sh1'!$N$16:$O$19,2,1)*$AD90,$AG89) -> 8252674.395 | AJ90: =IF($AG90<VLOOKUP($B90,'sh1'!$N$16:$O$19,2,1)*$AE90,VLOOKUP($B90,'sh1'!$N$16:$O$19,2,1)*$AE90,$AG90) -> 8500254.626 | AK90: 0 | AL90: 23291208.66 | AM90: =($AL90-W90)*(1+4.5%)-$Z90/VLOOKUP($A90,'sh1'!$N$7:$O$12,2,1) -> 24339313.05 | AN90: 24339313.05 | AO90: =IF($AM89<VLOOKUP($B90,'sh1'!$N$16:$O$19,2,1)*$AD90,VLOOKUP($B90,'sh1'!$N$16:$O$19,2,1)*$AD90,$AM89) -> 23291208.66 | AP90: =IF($AM90<VLOOKUP($B90,'sh1'!$N$16:$O$19,2,1)*$AE90,VLOOKUP($B90,'sh1'!$N$16:$O$19,2,1)*$AE90,$AM90) -> 24339313.05 | AQ90: 0 | AR90: 64772886.01 | AS90: =($AR90-X90)*(1+6%)-$Z90/VLOOKUP($A90,'sh1'!$N$7:$O$12,2,1) -> 68659259.17 | AT90: 68659259.17 | AU90: =IF($AS89<VLOOKUP($B90,'sh1'!$N$16:$O$19,2,1)*$AD90,VLOOKUP($B90,'sh1'!$N$16:$O$19,2,1)*$AD90,$AS89) -> 64772886.01 | AV90: =IF($AS90<VLOOKUP($B90,'sh1'!$N$16:$O$19,2,1)*$AE90,VLOOKUP($B90,'sh1'!$N$16:$O$19,2,1)*$AE90,$AS90) -> 68659259.17 | AW90: 0 | AX90: 5|0|15|80
A91: 81 | B91: 95 | C91: 96 | R91: 0 | S91: =SUM($R$11:R91,$P$11:P91,$Q$11:Q91) -> 995816.8 | T91: 0 | U91: 0 | V91: =SUM(($B91='sh1'!$R$3:$R$214)*(IF($I$3="男",0,1)='sh1'!$Q$3:$Q$214)*('sh1'!$S$3:$S$214))/1000*AK91 -> 0 | W91: =SUM(($B91='sh1'!$R$3:$R$214)*(IF($I$3="男",0,1)='sh1'!$Q$3:$Q$214)*('sh1'!$S$3:$S$214))/1000*AQ91 -> 0 | X91: =SUM(($B91='sh1'!$R$3:$R$214)*(IF($I$3="男",0,1)='sh1'!$Q$3:$Q$214)*('sh1'!$S$3:$S$214))/1000*AW91 -> 0 | Y91: 0 | AA91: =-$Z91/VLOOKUP($A91,'sh1'!$N$7:$O$12,2,1) -> 0 | AB91: =SUM($AA$11:AA91) -> 0 | AC91: 995816.8 | AD91: 995816.8 | AE91: 995816.8 | AF91: 8500254.626 | AG91: =($AF91-$V91)*(1+3%)-$Z91/VLOOKUP($A91,'sh1'!$N$7:$O$12,2,1) -> 8755262.265 | AH91: 8755262.265 | AI91: =IF($AG90<VLOOKUP($B91,'sh1'!$N$16:$O$19,2,1)*$AD91,VLOOKUP($B91,'sh1'!$N$16:$O$19,2,1)*$AD91,$AG90) -> 8500254.626 | AJ91: =IF($AG91<VLOOKUP($B91,'sh1'!$N$16:$O$19,2,1)*$AE91,VLOOKUP($B91,'sh1'!$N$16:$O$19,2,1)*$AE91,$AG91) -> 8755262.265 | AK91: 0 | AL91: 24339313.05 | AM91: =($AL91-W91)*(1+4.5%)-$Z91/VLOOKUP($A91,'sh1'!$N$7:$O$12,2,1) -> 25434582.14 | AN91: 25434582.14 | AO91: =IF($AM90<VLOOKUP($B91,'sh1'!$N$16:$O$19,2,1)*$AD91,VLOOKUP($B91,'sh1'!$N$16:$O$19,2,1)*$AD91,$AM90) -> 24339313.05 | AP91: =IF($AM91<VLOOKUP($B91,'sh1'!$N$16:$O$19,2,1)*$AE91,VLOOKUP($B91,'sh1'!$N$16:$O$19,2,1)*$AE91,$AM91) -> 25434582.14 | AQ91: 0 | AR91: 68659259.17 | AS91: =($AR91-X91)*(1+6%)-$Z91/VLOOKUP($A91,'sh1'!$N$7:$O$12,2,1) -> 72778814.72 | AT91: 72778814.72 | AU91: =IF($AS90<VLOOKUP($B91,'sh1'!$N$16:$O$19,2,1)*$AD91,VLOOKUP($B91,'sh1'!$N$16:$O$19,2,1)*$AD91,$AS90) -> 68659259.17 | AV91: =IF($AS91<VLOOKUP($B91,'sh1'!$N$16:$O$19,2,1)*$AE91,VLOOKUP($B91,'sh1'!$N$16:$O$19,2,1)*$AE91,$AS91) -> 72778814.72 | AW91: 0 | AX91: 5|0|15|81
A92: 82 | B92: 96 | C92: 97 | R92: 0 | S92: =SUM($R$11:R92,$P$11:P92,$Q$11:Q92) -> 995816.8 | T92: 0 | U92: 0 | V92: =SUM(($B92='sh1'!$R$3:$R$214)*(IF($I$3="男",0,1)='sh1'!$Q$3:$Q$214)*('sh1'!$S$3:$S$214))/1000*AK92 -> 0 | W92: =SUM(($B92='sh1'!$R$3:$R$214)*(IF($I$3="男",0,1)='sh1'!$Q$3:$Q$214)*('sh1'!$S$3:$S$214))/1000*AQ92 -> 0 | X92: =SUM(($B92='sh1'!$R$3:$R$214)*(IF($I$3="男",0,1)='sh1'!$Q$3:$Q$214)*('sh1'!$S$3:$S$214))/1000*AW92 -> 0 | Y92: 0 | AA92: =-$Z92/VLOOKUP($A92,'sh1'!$N$7:$O$12,2,1) -> 0 | AB92: =SUM($AA$11:AA92) -> 0 | AC92: 995816.8 | AD92: 995816.8 | AE92: 995816.8 | AF92: 8755262.265 | AG92: =($AF92-$V92)*(1+3%)-$Z92/VLOOKUP($A92,'sh1'!$N$7:$O$12,2,1) -> 9017920.133 | AH92: 9017920.133 | AI92: =IF($AG91<VLOOKUP($B92,'sh1'!$N$16:$O$19,2,1)*$AD92,VLOOKUP($B92,'sh1'!$N$16:$O$19,2,1)*$AD92,$AG91) -> 8755262.265 | AJ92: =IF($AG92<VLOOKUP($B92,'sh1'!$N$16:$O$19,2,1)*$AE92,VLOOKUP($B92,'sh1'!$N$16:$O$19,2,1)*$AE92,$AG92) -> 9017920.133 | AK92: 0 | AL92: 25434582.14 | AM92: =($AL92-W92)*(1+4.5%)-$Z92/VLOOKUP($A92,'sh1'!$N$7:$O$12,2,1) -> 26579138.34 | AN92: 26579138.34 | AO92: =IF($AM91<VLOOKUP($B92,'sh1'!$N$16:$O$19,2,1)*$AD92,VLOOKUP($B92,'sh1'!$N$16:$O$19,2,1)*$AD92,$AM91) -> 25434582.14 | AP92: =IF($AM92<VLOOKUP($B92,'sh1'!$N$16:$O$19,2,1)*$AE92,VLOOKUP($B92,'sh1'!$N$16:$O$19,2,1)*$AE92,$AM92) -> 26579138.34 | AQ92: 0 | AR92: 72778814.72 | AS92: =($AR92-X92)*(1+6%)-$Z92/VLOOKUP($A92,'sh1'!$N$7:$O$12,2,1) -> 77145543.6 | AT92: 77145543.6 | AU92: =IF($AS91<VLOOKUP($B92,'sh1'!$N$16:$O$19,2,1)*$AD92,VLOOKUP($B92,'sh1'!$N$16:$O$19,2,1)*$AD92,$AS91) -> 72778814.72 | AV92: =IF($AS92<VLOOKUP($B92,'sh1'!$N$16:$O$19,2,1)*$AE92,VLOOKUP($B92,'sh1'!$N$16:$O$19,2,1)*$AE92,$AS92) -> 77145543.6 | AW92: 0 | AX92: 5|0|15|82
A93: 83 | B93: 97 | C93: 98 | R93: 0 | S93: =SUM($R$11:R93,$P$11:P93,$Q$11:Q93) -> 995816.8 | T93: 0 | U93: 0 | V93: =SUM(($B93='sh1'!$R$3:$R$214)*(IF($I$3="男",0,1)='sh1'!$Q$3:$Q$214)*('sh1'!$S$3:$S$214))/1000*AK93 -> 0 | W93: =SUM(($B93='sh1'!$R$3:$R$214)*(IF($I$3="男",0,1)='sh1'!$Q$3:$Q$214)*('sh1'!$S$3:$S$214))/1000*AQ93 -> 0 | X93: =SUM(($B93='sh1'!$R$3:$R$214)*(IF($I$3="男",0,1)='sh1'!$Q$3:$Q$214)*('sh1'!$S$3:$S$214))/1000*AW93 -> 0 | Y93: 0 | AA93: =-$Z93/VLOOKUP($A93,'sh1'!$N$7:$O$12,2,1) -> 0 | AB93: =SUM($AA$11:AA93) -> 0 | AC93: 995816.8 | AD93: 995816.8 | AE93: 995816.8 | AF93: 9017920.133 | AG93: =($AF93-$V93)*(1+3%)-$Z93/VLOOKUP($A93,'sh1'!$N$7:$O$12,2,1) -> 9288457.737 | AH93: 9288457.737 | AI93: =IF($AG92<VLOOKUP($B93,'sh1'!$N$16:$O$19,2,1)*$AD93,VLOOKUP($B93,'sh1'!$N$16:$O$19,2,1)*$AD93,$AG92) -> 9017920.133 | AJ93: =IF($AG93<VLOOKUP($B93,'sh1'!$N$16:$O$19,2,1)*$AE93,VLOOKUP($B93,'sh1'!$N$16:$O$19,2,1)*$AE93,$AG93) -> 9288457.737 | AK93: 0 | AL93: 26579138.34 | AM93: =($AL93-W93)*(1+4.5%)-$Z93/VLOOKUP($A93,'sh1'!$N$7:$O$12,2,1) -> 27775199.56 | AN93: 27775199.56 | AO93: =IF($AM92<VLOOKUP($B93,'sh1'!$N$16:$O$19,2,1)*$AD93,VLOOKUP($B93,'sh1'!$N$16:$O$19,2,1)*$AD93,$AM92) -> 26579138.34 | AP93: =IF($AM93<VLOOKUP($B93,'sh1'!$N$16:$O$19,2,1)*$AE93,VLOOKUP($B93,'sh1'!$N$16:$O$19,2,1)*$AE93,$AM93) -> 27775199.56 | AQ93: 0 | AR93: 77145543.6 | AS93: =($AR93-X93)*(1+6%)-$Z93/VLOOKUP($A93,'sh1'!$N$7:$O$12,2,1) -> 81774276.22 | AT93: 81774276.22 | AU93: =IF($AS92<VLOOKUP($B93,'sh1'!$N$16:$O$19,2,1)*$AD93,VLOOKUP($B93,'sh1'!$N$16:$O$19,2,1)*$AD93,$AS92) -> 77145543.6 | AV93: =IF($AS93<VLOOKUP($B93,'sh1'!$N$16:$O$19,2,1)*$AE93,VLOOKUP($B93,'sh1'!$N$16:$O$19,2,1)*$AE93,$AS93) -> 81774276.22 | AW93: 0 | AX93: 5|0|15|83
A94: 84 | B94: 98 | C94: 99 | R94: 0 | S94: =SUM($R$11:R94,$P$11:P94,$Q$11:Q94) -> 995816.8 | T94: 0 | U94: 0 | V94: =SUM(($B94='sh1'!$R$3:$R$214)*(IF($I$3="男",0,1)='sh1'!$Q$3:$Q$214)*('sh1'!$S$3:$S$214))/1000*AK94 -> 0 | W94: =SUM(($B94='sh1'!$R$3:$R$214)*(IF($I$3="男",0,1)='sh1'!$Q$3:$Q$214)*('sh1'!$S$3:$S$214))/1000*AQ94 -> 0 | X94: =SUM(($B94='sh1'!$R$3:$R$214)*(IF($I$3="男",0,1)='sh1'!$Q$3:$Q$214)*('sh1'!$S$3:$S$214))/1000*AW94 -> 0 | Y94: 0 | AA94: =-$Z94/VLOOKUP($A94,'sh1'!$N$7:$O$12,2,1) -> 0 | AB94: =SUM($AA$11:AA94) -> 0 | AC94: 995816.8 | AD94: 995816.8 | AE94: 995816.8 | AF94: 9288457.737 | AG94: =($AF94-$V94)*(1+3%)-$Z94/VLOOKUP($A94,'sh1'!$N$7:$O$12,2,1) -> 9567111.469 | AH94: 9567111.469 | AI94: =IF($AG93<VLOOKUP($B94,'sh1'!$N$16:$O$19,2,1)*$AD94,VLOOKUP($B94,'sh1'!$N$16:$O$19,2,1)*$AD94,$AG93) -> 9288457.737 | AJ94: =IF($AG94<VLOOKUP($B94,'sh1'!$N$16:$O$19,2,1)*$AE94,VLOOKUP($B94,'sh1'!$N$16:$O$19,2,1)*$AE94,$AG94) -> 9567111.469 | AK94: 0 | AL94: 27775199.56 | AM94: =($AL94-W94)*(1+4.5%)-$Z94/VLOOKUP($A94,'sh1'!$N$7:$O$12,2,1) -> 29025083.54 | AN94: 29025083.54 | AO94: =IF($AM93<VLOOKUP($B94,'sh1'!$N$16:$O$19,2,1)*$AD94,VLOOKUP($B94,'sh1'!$N$16:$O$19,2,1)*$AD94,$AM93) -> 27775199.56 | AP94: =IF($AM94<VLOOKUP($B94,'sh1'!$N$16:$O$19,2,1)*$AE94,VLOOKUP($B94,'sh1'!$N$16:$O$19,2,1)*$AE94,$AM94) -> 29025083.54 | AQ94: 0 | AR94: 81774276.22 | AS94: =($AR94-X94)*(1+6%)-$Z94/VLOOKUP($A94,'sh1'!$N$7:$O$12,2,1) -> 86680732.79 | AT94: 86680732.79 | AU94: =IF($AS93<VLOOKUP($B94,'sh1'!$N$16:$O$19,2,1)*$AD94,VLOOKUP($B94,'sh1'!$N$16:$O$19,2,1)*$AD94,$AS93) -> 81774276.22 | AV94: =IF($AS94<VLOOKUP($B94,'sh1'!$N$16:$O$19,2,1)*$AE94,VLOOKUP($B94,'sh1'!$N$16:$O$19,2,1)*$AE94,$AS94) -> 86680732.79 | AW94: 0 | AX94: 5|0|15|84
A95: 85 | B95: 99 | C95: 100 | R95: 0 | S95: =SUM($R$11:R95,$P$11:P95,$Q$11:Q95) -> 995816.8 | T95: 0 | U95: 0 | V95: =SUM(($B95='sh1'!$R$3:$R$214)*(IF($I$3="男",0,1)='sh1'!$Q$3:$Q$214)*('sh1'!$S$3:$S$214))/1000*AK95 -> 0 | W95: =SUM(($B95='sh1'!$R$3:$R$214)*(IF($I$3="男",0,1)='sh1'!$Q$3:$Q$214)*('sh1'!$S$3:$S$214))/1000*AQ95 -> 0 | X95: =SUM(($B95='sh1'!$R$3:$R$214)*(IF($I$3="男",0,1)='sh1'!$Q$3:$Q$214)*('sh1'!$S$3:$S$214))/1000*AW95 -> 0 | Y95: 0 | AA95: =-$Z95/VLOOKUP($A95,'sh1'!$N$7:$O$12,2,1) -> 0 | AB95: =SUM($AA$11:AA95) -> 0 | AC95: 995816.8 | AD95: 995816.8 | AE95: 995816.8 | AF95: 9567111.469 | AG95: =($AF95-$V95)*(1+3%)-$Z95/VLOOKUP($A95,'sh1'!$N$7:$O$12,2,1) -> 9854124.813 | AH95: 9854124.813 | AI95: =IF($AG94<VLOOKUP($B95,'sh1'!$N$16:$O$19,2,1)*$AD95,VLOOKUP($B95,'sh1'!$N$16:$O$19,2,1)*$AD95,$AG94) -> 9567111.469 | AJ95: =IF($AG95<VLOOKUP($B95,'sh1'!$N$16:$O$19,2,1)*$AE95,VLOOKUP($B95,'sh1'!$N$16:$O$19,2,1)*$AE95,$AG95) -> 9854124.813 | AK95: 0 | AL95: 29025083.54 | AM95: =($AL95-W95)*(1+4.5%)-$Z95/VLOOKUP($A95,'sh1'!$N$7:$O$12,2,1) -> 30331212.3 | AN95: 30331212.3 | AO95: =IF($AM94<VLOOKUP($B95,'sh1'!$N$16:$O$19,2,1)*$AD95,VLOOKUP($B95,'sh1'!$N$16:$O$19,2,1)*$AD95,$AM94) -> 29025083.54 | AP95: =IF($AM95<VLOOKUP($B95,'sh1'!$N$16:$O$19,2,1)*$AE95,VLOOKUP($B95,'sh1'!$N$16:$O$19,2,1)*$AE95,$AM95) -> 30331212.3 | AQ95: 0 | AR95: 86680732.79 | AS95: =($AR95-X95)*(1+6%)-$Z95/VLOOKUP($A95,'sh1'!$N$7:$O$12,2,1) -> 91881576.76 | AT95: 91881576.76 | AU95: =IF($AS94<VLOOKUP($B95,'sh1'!$N$16:$O$19,2,1)*$AD95,VLOOKUP($B95,'sh1'!$N$16:$O$19,2,1)*$AD95,$AS94) -> 86680732.79 | AV95: =IF($AS95<VLOOKUP($B95,'sh1'!$N$16:$O$19,2,1)*$AE95,VLOOKUP($B95,'sh1'!$N$16:$O$19,2,1)*$AE95,$AS95) -> 91881576.76 | AW95: 0 | AX95: 5|0|15|85
A96: 86 | B96: 100 | C96: 101 | R96: 0 | S96: =SUM($R$11:R96,$P$11:P96,$Q$11:Q96) -> 995816.8 | T96: 0 | U96: 0 | V96: =SUM(($B96='sh1'!$R$3:$R$214)*(IF($I$3="男",0,1)='sh1'!$Q$3:$Q$214)*('sh1'!$S$3:$S$214))/1000*AK96 -> 0 | W96: =SUM(($B96='sh1'!$R$3:$R$214)*(IF($I$3="男",0,1)='sh1'!$Q$3:$Q$214)*('sh1'!$S$3:$S$214))/1000*AQ96 -> 0 | X96: =SUM(($B96='sh1'!$R$3:$R$214)*(IF($I$3="男",0,1)='sh1'!$Q$3:$Q$214)*('sh1'!$S$3:$S$214))/1000*AW96 -> 0 | Y96: 0 | AA96: =-$Z96/VLOOKUP($A96,'sh1'!$N$7:$O$12,2,1) -> 0 | AB96: =SUM($AA$11:AA96) -> 0 | AC96: 995816.8 | AD96: 995816.8 | AE96: 995816.8 | AF96: 9854124.813 | AG96: =($AF96-$V96)*(1+3%)-$Z96/VLOOKUP($A96,'sh1'!$N$7:$O$12,2,1) -> 10149748.56 | AH96: 10149748.56 | AI96: =IF($AG95<VLOOKUP($B96,'sh1'!$N$16:$O$19,2,1)*$AD96,VLOOKUP($B96,'sh1'!$N$16:$O$19,2,1)*$AD96,$AG95) -> 9854124.813 | AJ96: =IF($AG96<VLOOKUP($B96,'sh1'!$N$16:$O$19,2,1)*$AE96,VLOOKUP($B96,'sh1'!$N$16:$O$19,2,1)*$AE96,$AG96) -> 10149748.56 | AK96: 0 | AL96: 30331212.3 | AM96: =($AL96-W96)*(1+4.5%)-$Z96/VLOOKUP($A96,'sh1'!$N$7:$O$12,2,1) -> 31696116.86 | AN96: 31696116.86 | AO96: =IF($AM95<VLOOKUP($B96,'sh1'!$N$16:$O$19,2,1)*$AD96,VLOOKUP($B96,'sh1'!$N$16:$O$19,2,1)*$AD96,$AM95) -> 30331212.3 | AP96: =IF($AM96<VLOOKUP($B96,'sh1'!$N$16:$O$19,2,1)*$AE96,VLOOKUP($B96,'sh1'!$N$16:$O$19,2,1)*$AE96,$AM96) -> 31696116.86 | AQ96: 0 | AR96: 91881576.76 | AS96: =($AR96-X96)*(1+6%)-$Z96/VLOOKUP($A96,'sh1'!$N$7:$O$12,2,1) -> 97394471.37 | AT96: 97394471.37 | AU96: =IF($AS95<VLOOKUP($B96,'sh1'!$N$16:$O$19,2,1)*$AD96,VLOOKUP($B96,'sh1'!$N$16:$O$19,2,1)*$AD96,$AS95) -> 91881576.76 | AV96: =IF($AS96<VLOOKUP($B96,'sh1'!$N$16:$O$19,2,1)*$AE96,VLOOKUP($B96,'sh1'!$N$16:$O$19,2,1)*$AE96,$AS96) -> 97394471.37 | AW96: 0 | AX96: 5|0|15|86
A97: 87 | B97: 101 | C97: 102 | R97: 0 | S97: =SUM($R$11:R97,$P$11:P97,$Q$11:Q97) -> 995816.8 | T97: 0 | U97: 0 | V97: =SUM(($B97='sh1'!$R$3:$R$214)*(IF($I$3="男",0,1)='sh1'!$Q$3:$Q$214)*('sh1'!$S$3:$S$214))/1000*AK97 -> 0 | W97: =SUM(($B97='sh1'!$R$3:$R$214)*(IF($I$3="男",0,1)='sh1'!$Q$3:$Q$214)*('sh1'!$S$3:$S$214))/1000*AQ97 -> 0 | X97: =SUM(($B97='sh1'!$R$3:$R$214)*(IF($I$3="男",0,1)='sh1'!$Q$3:$Q$214)*('sh1'!$S$3:$S$214))/1000*AW97 -> 0 | Y97: 0 | AA97: =-$Z97/VLOOKUP($A97,'sh1'!$N$7:$O$12,2,1) -> 0 | AB97: =SUM($AA$11:AA97) -> 0 | AC97: 995816.8 | AD97: 995816.8 | AE97: 995816.8 | AF97: 10149748.56 | AG97: =($AF97-$V97)*(1+3%)-$Z97/VLOOKUP($A97,'sh1'!$N$7:$O$12,2,1) -> 10454241.01 | AH97: 10454241.01 | AI97: =IF($AG96<VLOOKUP($B97,'sh1'!$N$16:$O$19,2,1)*$AD97,VLOOKUP($B97,'sh1'!$N$16:$O$19,2,1)*$AD97,$AG96) -> 10149748.56 | AJ97: =IF($AG97<VLOOKUP($B97,'sh1'!$N$16:$O$19,2,1)*$AE97,VLOOKUP($B97,'sh1'!$N$16:$O$19,2,1)*$AE97,$AG97) -> 10454241.01 | AK97: 0 | AL97: 31696116.86 | AM97: =($AL97-W97)*(1+4.5%)-$Z97/VLOOKUP($A97,'sh1'!$N$7:$O$12,2,1) -> 33122442.12 | AN97: 33122442.12 | AO97: =IF($AM96<VLOOKUP($B97,'sh1'!$N$16:$O$19,2,1)*$AD97,VLOOKUP($B97,'sh1'!$N$16:$O$19,2,1)*$AD97,$AM96) -> 31696116.86 | AP97: =IF($AM97<VLOOKUP($B97,'sh1'!$N$16:$O$19,2,1)*$AE97,VLOOKUP($B97,'sh1'!$N$16:$O$19,2,1)*$AE97,$AM97) -> 33122442.12 | AQ97: 0 | AR97: 97394471.37 | AS97: =($AR97-X97)*(1+6%)-$Z97/VLOOKUP($A97,'sh1'!$N$7:$O$12,2,1) -> 103238139.6 | AT97: 103238139.6 | AU97: =IF($AS96<VLOOKUP($B97,'sh1'!$N$16:$O$19,2,1)*$AD97,VLOOKUP($B97,'sh1'!$N$16:$O$19,2,1)*$AD97,$AS96) -> 97394471.37 | AV97: =IF($AS97<VLOOKUP($B97,'sh1'!$N$16:$O$19,2,1)*$AE97,VLOOKUP($B97,'sh1'!$N$16:$O$19,2,1)*$AE97,$AS97) -> 103238139.6 | AW97: 0 | AX97: 5|0|15|87
A98: 88 | B98: 102 | C98: 103 | R98: 0 | S98: =SUM($R$11:R98,$P$11:P98,$Q$11:Q98) -> 995816.8 | T98: 0 | U98: 0 | V98: =SUM(($B98='sh1'!$R$3:$R$214)*(IF($I$3="男",0,1)='sh1'!$Q$3:$Q$214)*('sh1'!$S$3:$S$214))/1000*AK98 -> 0 | W98: =SUM(($B98='sh1'!$R$3:$R$214)*(IF($I$3="男",0,1)='sh1'!$Q$3:$Q$214)*('sh1'!$S$3:$S$214))/1000*AQ98 -> 0 | X98: =SUM(($B98='sh1'!$R$3:$R$214)*(IF($I$3="男",0,1)='sh1'!$Q$3:$Q$214)*('sh1'!$S$3:$S$214))/1000*AW98 -> 0 | Y98: 0 | AA98: =-$Z98/VLOOKUP($A98,'sh1'!$N$7:$O$12,2,1) -> 0 | AB98: =SUM($AA$11:AA98) -> 0 | AC98: 995816.8 | AD98: 995816.8 | AE98: 995816.8 | AF98: 10454241.01 | AG98: =($AF98-$V98)*(1+3%)-$Z98/VLOOKUP($A98,'sh1'!$N$7:$O$12,2,1) -> 10767868.24 | AH98: 10767868.24 | AI98: =IF($AG97<VLOOKUP($B98,'sh1'!$N$16:$O$19,2,1)*$AD98,VLOOKUP($B98,'sh1'!$N$16:$O$19,2,1)*$AD98,$AG97) -> 10454241.01 | AJ98: =IF($AG98<VLOOKUP($B98,'sh1'!$N$16:$O$19,2,1)*$AE98,VLOOKUP($B98,'sh1'!$N$16:$O$19,2,1)*$AE98,$AG98) -> 10767868.24 | AK98: 0 | AL98: 33122442.12 | AM98: =($AL98-W98)*(1+4.5%)-$Z98/VLOOKUP($A98,'sh1'!$N$7:$O$12,2,1) -> 34612952.01 | AN98: 34612952.01 | AO98: =IF($AM97<VLOOKUP($B98,'sh1'!$N$16:$O$19,2,1)*$AD98,VLOOKUP($B98,'sh1'!$N$16:$O$19,2,1)*$AD98,$AM97) -> 33122442.12 | AP98: =IF($AM98<VLOOKUP($B98,'sh1'!$N$16:$O$19,2,1)*$AE98,VLOOKUP($B98,'sh1'!$N$16:$O$19,2,1)*$AE98,$AM98) -> 34612952.01 | AQ98: 0 | AR98: 103238139.6 | AS98: =($AR98-X98)*(1+6%)-$Z98/VLOOKUP($A98,'sh1'!$N$7:$O$12,2,1) -> 109432428 | AT98: 109432428 | AU98: =IF($AS97<VLOOKUP($B98,'sh1'!$N$16:$O$19,2,1)*$AD98,VLOOKUP($B98,'sh1'!$N$16:$O$19,2,1)*$AD98,$AS97) -> 103238139.6 | AV98: =IF($AS98<VLOOKUP($B98,'sh1'!$N$16:$O$19,2,1)*$AE98,VLOOKUP($B98,'sh1'!$N$16:$O$19,2,1)*$AE98,$AS98) -> 109432428 | AW98: 0 | AX98: 5|0|15|88
A99: 89 | B99: 103 | C99: 104 | R99: 0 | S99: =SUM($R$11:R99,$P$11:P99,$Q$11:Q99) -> 995816.8 | T99: 0 | U99: 0 | V99: =SUM(($B99='sh1'!$R$3:$R$214)*(IF($I$3="男",0,1)='sh1'!$Q$3:$Q$214)*('sh1'!$S$3:$S$214))/1000*AK99 -> 0 | W99: =SUM(($B99='sh1'!$R$3:$R$214)*(IF($I$3="男",0,1)='sh1'!$Q$3:$Q$214)*('sh1'!$S$3:$S$214))/1000*AQ99 -> 0 | X99: =SUM(($B99='sh1'!$R$3:$R$214)*(IF($I$3="男",0,1)='sh1'!$Q$3:$Q$214)*('sh1'!$S$3:$S$214))/1000*AW99 -> 0 | Y99: 0 | AA99: =-$Z99/VLOOKUP($A99,'sh1'!$N$7:$O$12,2,1) -> 0 | AB99: =SUM($AA$11:AA99) -> 0 | AC99: 995816.8 | AD99: 995816.8 | AE99: 995816.8 | AF99: 10767868.24 | AG99: =($AF99-$V99)*(1+3%)-$Z99/VLOOKUP($A99,'sh1'!$N$7:$O$12,2,1) -> 11090904.29 | AH99: 11090904.29 | AI99: =IF($AG98<VLOOKUP($B99,'sh1'!$N$16:$O$19,2,1)*$AD99,VLOOKUP($B99,'sh1'!$N$16:$O$19,2,1)*$AD99,$AG98) -> 10767868.24 | AJ99: =IF($AG99<VLOOKUP($B99,'sh1'!$N$16:$O$19,2,1)*$AE99,VLOOKUP($B99,'sh1'!$N$16:$O$19,2,1)*$AE99,$AG99) -> 11090904.29 | AK99: 0 | AL99: 34612952.01 | AM99: =($AL99-W99)*(1+4.5%)-$Z99/VLOOKUP($A99,'sh1'!$N$7:$O$12,2,1) -> 36170534.85 | AN99: 36170534.85 | AO99: =IF($AM98<VLOOKUP($B99,'sh1'!$N$16:$O$19,2,1)*$AD99,VLOOKUP($B99,'sh1'!$N$16:$O$19,2,1)*$AD99,$AM98) -> 34612952.01 | AP99: =IF($AM99<VLOOKUP($B99,'sh1'!$N$16:$O$19,2,1)*$AE99,VLOOKUP($B99,'sh1'!$N$16:$O$19,2,1)*$AE99,$AM99) -> 36170534.85 | AQ99: 0 | AR99: 109432428 | AS99: =($AR99-X99)*(1+6%)-$Z99/VLOOKUP($A99,'sh1'!$N$7:$O$12,2,1) -> 115998373.7 | AT99: 115998373.7 | AU99: =IF($AS98<VLOOKUP($B99,'sh1'!$N$16:$O$19,2,1)*$AD99,VLOOKUP($B99,'sh1'!$N$16:$O$19,2,1)*$AD99,$AS98) -> 109432428 | AV99: =IF($AS99<VLOOKUP($B99,'sh1'!$N$16:$O$19,2,1)*$AE99,VLOOKUP($B99,'sh1'!$N$16:$O$19,2,1)*$AE99,$AS99) -> 115998373.7 | AW99: 0 | AX99: 5|0|15|89
A100: 90 | B100: 104 | C100: 105 | R100: 0 | S100: =SUM($R$11:R100,$P$11:P100,$Q$11:Q100) -> 995816.8 | T100: 0 | U100: 0 | V100: =SUM(($B100='sh1'!$R$3:$R$214)*(IF($I$3="男",0,1)='sh1'!$Q$3:$Q$214)*('sh1'!$S$3:$S$214))/1000*AK100 -> 0 | W100: =SUM(($B100='sh1'!$R$3:$R$214)*(IF($I$3="男",0,1)='sh1'!$Q$3:$Q$214)*('sh1'!$S$3:$S$214))/1000*AQ100 -> 0 | X100: =SUM(($B100='sh1'!$R$3:$R$214)*(IF($I$3="男",0,1)='sh1'!$Q$3:$Q$214)*('sh1'!$S$3:$S$214))/1000*AW100 -> 0 | Y100: 0 | AA100: =-$Z100/VLOOKUP($A100,'sh1'!$N$7:$O$12,2,1) -> 0 | AB100: =SUM($AA$11:AA100) -> 0 | AC100: 995816.8 | AD100: 995816.8 | AE100: 995816.8 | AF100: 11090904.29 | AG100: =($AF100-$V100)*(1+3%)-$Z100/VLOOKUP($A100,'sh1'!$N$7:$O$12,2,1) -> 11423631.42 | AH100: 11423631.42 | AI100: =IF($AG99<VLOOKUP($B100,'sh1'!$N$16:$O$19,2,1)*$AD100,VLOOKUP($B100,'sh1'!$N$16:$O$19,2,1)*$AD100,$AG99) -> 11090904.29 | AJ100: =IF($AG100<VLOOKUP($B100,'sh1'!$N$16:$O$19,2,1)*$AE100,VLOOKUP($B100,'sh1'!$N$16:$O$19,2,1)*$AE100,$AG100) -> 11423631.42 | AK100: 0 | AL100: 36170534.85 | AM100: =($AL100-W100)*(1+4.5%)-$Z100/VLOOKUP($A100,'sh1'!$N$7:$O$12,2,1) -> 37798208.92 | AN100: 37798208.92 | AO100: =IF($AM99<VLOOKUP($B100,'sh1'!$N$16:$O$19,2,1)*$AD100,VLOOKUP($B100,'sh1'!$N$16:$O$19,2,1)*$AD100,$AM99) -> 36170534.85 | AP100: =IF($AM100<VLOOKUP($B100,'sh1'!$N$16:$O$19,2,1)*$AE100,VLOOKUP($B100,'sh1'!$N$16:$O$19,2,1)*$AE100,$AM100) -> 37798208.92 | AQ100: 0 | AR100: 115998373.7 | AS100: =($AR100-X100)*(1+6%)-$Z100/VLOOKUP($A100,'sh1'!$N$7:$O$12,2,1) -> 122958276.1 | AT100: 122958276.1 | AU100: =IF($AS99<VLOOKUP($B100,'sh1'!$N$16:$O$19,2,1)*$AD100,VLOOKUP($B100,'sh1'!$N$16:$O$19,2,1)*$AD100,$AS99) -> 115998373.7 | AV100: =IF($AS100<VLOOKUP($B100,'sh1'!$N$16:$O$19,2,1)*$AE100,VLOOKUP($B100,'sh1'!$N$16:$O$19,2,1)*$AE100,$AS100) -> 122958276.1 | AW100: 0 | AX100: 5|0|15|90
A101: 91 | B101: 105 | C101: 106 | R101: 0 | S101: =SUM($R$11:R101,$P$11:P101,$Q$11:Q101) -> 995816.8 | T101: 0 | U101: 0 | V101: =SUM(($B101='sh1'!$R$3:$R$214)*(IF($I$3="男",0,1)='sh1'!$Q$3:$Q$214)*('sh1'!$S$3:$S$214))/1000*AK101 -> 0 | W101: =SUM(($B101='sh1'!$R$3:$R$214)*(IF($I$3="男",0,1)='sh1'!$Q$3:$Q$214)*('sh1'!$S$3:$S$214))/1000*AQ101 -> 0 | X101: =SUM(($B101='sh1'!$R$3:$R$214)*(IF($I$3="男",0,1)='sh1'!$Q$3:$Q$214)*('sh1'!$S$3:$S$214))/1000*AW101 -> 0 | Y101: 0 | AA101: =-$Z101/VLOOKUP($A101,'sh1'!$N$7:$O$12,2,1) -> 0 | AB101: =SUM($AA$11:AA101) -> 0 | AC101: 995816.8 | AD101: 995816.8 | AE101: 995816.8 | AF101: 11423631.42 | AG101: =($AF101-$V101)*(1+3%)-$Z101/VLOOKUP($A101,'sh1'!$N$7:$O$12,2,1) -> 11766340.36 | AH101: 11766340.36 | AI101: =IF($AG100<VLOOKUP($B101,'sh1'!$N$16:$O$19,2,1)*$AD101,VLOOKUP($B101,'sh1'!$N$16:$O$19,2,1)*$AD101,$AG100) -> 11423631.42 | AJ101: =IF($AG101<VLOOKUP($B101,'sh1'!$N$16:$O$19,2,1)*$AE101,VLOOKUP($B101,'sh1'!$N$16:$O$19,2,1)*$AE101,$AG101) -> 11766340.36 | AK101: 0 | AL101: 37798208.92 | AM101: =($AL101-W101)*(1+4.5%)-$Z101/VLOOKUP($A101,'sh1'!$N$7:$O$12,2,1) -> 39499128.32 | AN101: 39499128.32 | AO101: =IF($AM100<VLOOKUP($B101,'sh1'!$N$16:$O$19,2,1)*$AD101,VLOOKUP($B101,'sh1'!$N$16:$O$19,2,1)*$AD101,$AM100) -> 37798208.92 | AP101: =IF($AM101<VLOOKUP($B101,'sh1'!$N$16:$O$19,2,1)*$AE101,VLOOKUP($B101,'sh1'!$N$16:$O$19,2,1)*$AE101,$AM101) -> 39499128.32 | AQ101: 0 | AR101: 122958276.1 | AS101: =($AR101-X101)*(1+6%)-$Z101/VLOOKUP($A101,'sh1'!$N$7:$O$12,2,1) -> 130335772.7 | AT101: 130335772.7 | AU101: =IF($AS100<VLOOKUP($B101,'sh1'!$N$16:$O$19,2,1)*$AD101,VLOOKUP($B101,'sh1'!$N$16:$O$19,2,1)*$AD101,$AS100) -> 122958276.1 | AV101: =IF($AS101<VLOOKUP($B101,'sh1'!$N$16:$O$19,2,1)*$AE101,VLOOKUP($B101,'sh1'!$N$16:$O$19,2,1)*$AE101,$AS101) -> 130335772.7 | AW101: 0 | AX101: 5|0|15|91
A102: 92 | B102: 106 | C102: 107 | R102: 0 | S102: =SUM($R$11:R102,$P$11:P102,$Q$11:Q102) -> 995816.8 | T102: 0 | U102: 0 | V102: =SUM(($B102='sh1'!$R$3:$R$214)*(IF($I$3="男",0,1)='sh1'!$Q$3:$Q$214)*('sh1'!$S$3:$S$214))/1000*AK102 -> 0 | W102: =SUM(($B102='sh1'!$R$3:$R$214)*(IF($I$3="男",0,1)='sh1'!$Q$3:$Q$214)*('sh1'!$S$3:$S$214))/1000*AQ102 -> 0 | X102: =SUM(($B102='sh1'!$R$3:$R$214)*(IF($I$3="男",0,1)='sh1'!$Q$3:$Q$214)*('sh1'!$S$3:$S$214))/1000*AW102 -> 0 | Y102: 0 | AA102: =-$Z102/VLOOKUP($A102,'sh1'!$N$7:$O$12,2,1) -> 0 | AB102: =SUM($AA$11:AA102) -> 0 | AC102: 995816.8 | AD102: 995816.8 | AE102: 995816.8 | AF102: 11766340.36 | AG102: =($AF102-$V102)*(1+3%)-$Z102/VLOOKUP($A102,'sh1'!$N$7:$O$12,2,1) -> 12119330.57 | AH102: 12119330.57 | AI102: =IF($AG101<VLOOKUP($B102,'sh1'!$N$16:$O$19,2,1)*$AD102,VLOOKUP($B102,'sh1'!$N$16:$O$19,2,1)*$AD102,$AG101) -> 11766340.36 | AJ102: =IF($AG102<VLOOKUP($B102,'sh1'!$N$16:$O$19,2,1)*$AE102,VLOOKUP($B102,'sh1'!$N$16:$O$19,2,1)*$AE102,$AG102) -> 12119330.57 | AK102: 0 | AL102: 39499128.32 | AM102: =($AL102-W102)*(1+4.5%)-$Z102/VLOOKUP($A102,'sh1'!$N$7:$O$12,2,1) -> 41276589.1 | AN102: 41276589.1 | AO102: =IF($AM101<VLOOKUP($B102,'sh1'!$N$16:$O$19,2,1)*$AD102,VLOOKUP($B102,'sh1'!$N$16:$O$19,2,1)*$AD102,$AM101) -> 39499128.32 | AP102: =IF($AM102<VLOOKUP($B102,'sh1'!$N$16:$O$19,2,1)*$AE102,VLOOKUP($B102,'sh1'!$N$16:$O$19,2,1)*$AE102,$AM102) -> 41276589.1 | AQ102: 0 | AR102: 130335772.7 | AS102: =($AR102-X102)*(1+6%)-$Z102/VLOOKUP($A102,'sh1'!$N$7:$O$12,2,1) -> 138155919.1 | AT102: 138155919.1 | AU102: =IF($AS101<VLOOKUP($B102,'sh1'!$N$16:$O$19,2,1)*$AD102,VLOOKUP($B102,'sh1'!$N$16:$O$19,2,1)*$AD102,$AS101) -> 130335772.7 | AV102: =IF($AS102<VLOOKUP($B102,'sh1'!$N$16:$O$19,2,1)*$AE102,VLOOKUP($B102,'sh1'!$N$16:$O$19,2,1)*$AE102,$AS102) -> 138155919.1 | AW102: 0 | AX102: 5|0|15|92
A103: 93 | B103: 107 | C103: 108 | R103: 0 | S103: =SUM($R$11:R103,$P$11:P103,$Q$11:Q103) -> 995816.8 | T103: 0 | U103: 0 | V103: =SUM(($B103='sh1'!$R$3:$R$214)*(IF($I$3="男",0,1)='sh1'!$Q$3:$Q$214)*('sh1'!$S$3:$S$214))/1000*AK103 -> 0 | W103: =SUM(($B103='sh1'!$R$3:$R$214)*(IF($I$3="男",0,1)='sh1'!$Q$3:$Q$214)*('sh1'!$S$3:$S$214))/1000*AQ103 -> 0 | X103: =SUM(($B103='sh1'!$R$3:$R$214)*(IF($I$3="男",0,1)='sh1'!$Q$3:$Q$214)*('sh1'!$S$3:$S$214))/1000*AW103 -> 0 | Y103: 0 | AA103: =-$Z103/VLOOKUP($A103,'sh1'!$N$7:$O$12,2,1) -> 0 | AB103: =SUM($AA$11:AA103) -> 0 | AC103: 995816.8 | AD103: 995816.8 | AE103: 995816.8 | AF103: 12119330.57 | AG103: =($AF103-$V103)*(1+3%)-$Z103/VLOOKUP($A103,'sh1'!$N$7:$O$12,2,1) -> 12482910.49 | AH103: 12482910.49 | AI103: =IF($AG102<VLOOKUP($B103,'sh1'!$N$16:$O$19,2,1)*$AD103,VLOOKUP($B103,'sh1'!$N$16:$O$19,2,1)*$AD103,$AG102) -> 12119330.57 | AJ103: =IF($AG103<VLOOKUP($B103,'sh1'!$N$16:$O$19,2,1)*$AE103,VLOOKUP($B103,'sh1'!$N$16:$O$19,2,1)*$AE103,$AG103) -> 12482910.49 | AK103: 0 | AL103: 41276589.1 | AM103: =($AL103-W103)*(1+4.5%)-$Z103/VLOOKUP($A103,'sh1'!$N$7:$O$12,2,1) -> 43134035.61 | AN103: 43134035.61 | AO103: =IF($AM102<VLOOKUP($B103,'sh1'!$N$16:$O$19,2,1)*$AD103,VLOOKUP($B103,'sh1'!$N$16:$O$19,2,1)*$AD103,$AM102) -> 41276589.1 | AP103: =IF($AM103<VLOOKUP($B103,'sh1'!$N$16:$O$19,2,1)*$AE103,VLOOKUP($B103,'sh1'!$N$16:$O$19,2,1)*$AE103,$AM103) -> 43134035.61 | AQ103: 0 | AR103: 138155919.1 | AS103: =($AR103-X103)*(1+6%)-$Z103/VLOOKUP($A103,'sh1'!$N$7:$O$12,2,1) -> 146445274.2 | AT103: 146445274.2 | AU103: =IF($AS102<VLOOKUP($B103,'sh1'!$N$16:$O$19,2,1)*$AD103,VLOOKUP($B103,'sh1'!$N$16:$O$19,2,1)*$AD103,$AS102) -> 138155919.1 | AV103: =IF($AS103<VLOOKUP($B103,'sh1'!$N$16:$O$19,2,1)*$AE103,VLOOKUP($B103,'sh1'!$N$16:$O$19,2,1)*$AE103,$AS103) -> 146445274.2 | AW103: 0 | AX103: 5|0|15|93
A104: 94 | B104: 108 | C104: 109 | R104: 0 | S104: =SUM($R$11:R104,$P$11:P104,$Q$11:Q104) -> 995816.8 | T104: 0 | U104: 0 | V104: =SUM(($B104='sh1'!$R$3:$R$214)*(IF($I$3="男",0,1)='sh1'!$Q$3:$Q$214)*('sh1'!$S$3:$S$214))/1000*AK104 -> 0 | W104: =SUM(($B104='sh1'!$R$3:$R$214)*(IF($I$3="男",0,1)='sh1'!$Q$3:$Q$214)*('sh1'!$S$3:$S$214))/1000*AQ104 -> 0 | X104: =SUM(($B104='sh1'!$R$3:$R$214)*(IF($I$3="男",0,1)='sh1'!$Q$3:$Q$214)*('sh1'!$S$3:$S$214))/1000*AW104 -> 0 | Y104: 0 | AA104: =-$Z104/VLOOKUP($A104,'sh1'!$N$7:$O$12,2,1) -> 0 | AB104: =SUM($AA$11:AA104) -> 0 | AC104: 995816.8 | AD104: 995816.8 | AE104: 995816.8 | AF104: 12482910.49 | AG104: =($AF104-$V104)*(1+3%)-$Z104/VLOOKUP($A104,'sh1'!$N$7:$O$12,2,1) -> 12857397.81 | AH104: 12857397.81 | AI104: =IF($AG103<VLOOKUP($B104,'sh1'!$N$16:$O$19,2,1)*$AD104,VLOOKUP($B104,'sh1'!$N$16:$O$19,2,1)*$AD104,$AG103) -> 12482910.49 | AJ104: =IF($AG104<VLOOKUP($B104,'sh1'!$N$16:$O$19,2,1)*$AE104,VLOOKUP($B104,'sh1'!$N$16:$O$19,2,1)*$AE104,$AG104) -> 12857397.81 | AK104: 0 | AL104: 43134035.61 | AM104: =($AL104-W104)*(1+4.5%)-$Z104/VLOOKUP($A104,'sh1'!$N$7:$O$12,2,1) -> 45075067.21 | AN104: 45075067.21 | AO104: =IF($AM103<VLOOKUP($B104,'sh1'!$N$16:$O$19,2,1)*$AD104,VLOOKUP($B104,'sh1'!$N$16:$O$19,2,1)*$AD104,$AM103) -> 43134035.61 | AP104: =IF($AM104<VLOOKUP($B104,'sh1'!$N$16:$O$19,2,1)*$AE104,VLOOKUP($B104,'sh1'!$N$16:$O$19,2,1)*$AE104,$AM104) -> 45075067.21 | AQ104: 0 | AR104: 146445274.2 | AS104: =($AR104-X104)*(1+6%)-$Z104/VLOOKUP($A104,'sh1'!$N$7:$O$12,2,1) -> 155231990.7 | AT104: 155231990.7 | AU104: =IF($AS103<VLOOKUP($B104,'sh1'!$N$16:$O$19,2,1)*$AD104,VLOOKUP($B104,'sh1'!$N$16:$O$19,2,1)*$AD104,$AS103) -> 146445274.2 | AV104: =IF($AS104<VLOOKUP($B104,'sh1'!$N$16:$O$19,2,1)*$AE104,VLOOKUP($B104,'sh1'!$N$16:$O$19,2,1)*$AE104,$AS104) -> 155231990.7 | AW104: 0 | AX104: 5|0|15|94
A105: 95 | B105: 109 | C105: 110 | R105: 0 | S105: =SUM($R$11:R105,$P$11:P105,$Q$11:Q105) -> 995816.8 | T105: 0 | U105: 0 | V105: =SUM(($B105='sh1'!$R$3:$R$214)*(IF($I$3="男",0,1)='sh1'!$Q$3:$Q$214)*('sh1'!$S$3:$S$214))/1000*AK105 -> 0 | W105: =SUM(($B105='sh1'!$R$3:$R$214)*(IF($I$3="男",0,1)='sh1'!$Q$3:$Q$214)*('sh1'!$S$3:$S$214))/1000*AQ105 -> 0 | X105: =SUM(($B105='sh1'!$R$3:$R$214)*(IF($I$3="男",0,1)='sh1'!$Q$3:$Q$214)*('sh1'!$S$3:$S$214))/1000*AW105 -> 0 | Y105: 0 | AA105: =-$Z105/VLOOKUP($A105,'sh1'!$N$7:$O$12,2,1) -> 0 | AB105: =SUM($AA$11:AA105) -> 0 | AC105: 995816.8 | AD105: 995816.8 | AE105: 995816.8 | AF105: 12857397.81 | AG105: =($AF105-$V105)*(1+3%)-$Z105/VLOOKUP($A105,'sh1'!$N$7:$O$12,2,1) -> 13243119.74 | AH105: 13243119.74 | AI105: =IF($AG104<VLOOKUP($B105,'sh1'!$N$16:$O$19,2,1)*$AD105,VLOOKUP($B105,'sh1'!$N$16:$O$19,2,1)*$AD105,$AG104) -> 12857397.81 | AJ105: =IF($AG105<VLOOKUP($B105,'sh1'!$N$16:$O$19,2,1)*$AE105,VLOOKUP($B105,'sh1'!$N$16:$O$19,2,1)*$AE105,$AG105) -> 13243119.74 | AK105: 0 | AL105: 45075067.21 | AM105: =($AL105-W105)*(1+4.5%)-$Z105/VLOOKUP($A105,'sh1'!$N$7:$O$12,2,1) -> 47103445.23 | AN105: 47103445.23 | AO105: =IF($AM104<VLOOKUP($B105,'sh1'!$N$16:$O$19,2,1)*$AD105,VLOOKUP($B105,'sh1'!$N$16:$O$19,2,1)*$AD105,$AM104) -> 45075067.21 | AP105: =IF($AM105<VLOOKUP($B105,'sh1'!$N$16:$O$19,2,1)*$AE105,VLOOKUP($B105,'sh1'!$N$16:$O$19,2,1)*$AE105,$AM105) -> 47103445.23 | AQ105: 0 | AR105: 155231990.7 | AS105: =($AR105-X105)*(1+6%)-$Z105/VLOOKUP($A105,'sh1'!$N$7:$O$12,2,1) -> 164545910.1 | AT105: 164545910.1 | AU105: =IF($AS104<VLOOKUP($B105,'sh1'!$N$16:$O$19,2,1)*$AD105,VLOOKUP($B105,'sh1'!$N$16:$O$19,2,1)*$AD105,$AS104) -> 155231990.7 | AV105: =IF($AS105<VLOOKUP($B105,'sh1'!$N$16:$O$19,2,1)*$AE105,VLOOKUP($B105,'sh1'!$N$16:$O$19,2,1)*$AE105,$AS105) -> 164545910.1 | AW105: 0 | AX105: 5|0|15|95
A106: 96 | B106: 110 | C106: 111 | R106: 0 | S106: =SUM($R$11:R106,$P$11:P106,$Q$11:Q106) -> 995816.8 | T106: 0 | U106: 0 | V106: =SUM(($B106='sh1'!$R$3:$R$214)*(IF($I$3="男",0,1)='sh1'!$Q$3:$Q$214)*('sh1'!$S$3:$S$214))/1000*AK106 -> 0 | W106: =SUM(($B106='sh1'!$R$3:$R$214)*(IF($I$3="男",0,1)='sh1'!$Q$3:$Q$214)*('sh1'!$S$3:$S$214))/1000*AQ106 -> 0 | X106: =SUM(($B106='sh1'!$R$3:$R$214)*(IF($I$3="男",0,1)='sh1'!$Q$3:$Q$214)*('sh1'!$S$3:$S$214))/1000*AW106 -> 0 | Y106: 0 | AA106: =-$Z106/VLOOKUP($A106,'sh1'!$N$7:$O$12,2,1) -> 0 | AB106: =SUM($AA$11:AA106) -> 0 | AC106: 995816.8 | AD106: 995816.8 | AE106: 995816.8 | AF106: 13243119.74 | AG106: =($AF106-$V106)*(1+3%)-$Z106/VLOOKUP($A106,'sh1'!$N$7:$O$12,2,1) -> 13640413.33 | AH106: 13640413.33 | AI106: =IF($AG105<VLOOKUP($B106,'sh1'!$N$16:$O$19,2,1)*$AD106,VLOOKUP($B106,'sh1'!$N$16:$O$19,2,1)*$AD106,$AG105) -> 13243119.74 | AJ106: =IF($AG106<VLOOKUP($B106,'sh1'!$N$16:$O$19,2,1)*$AE106,VLOOKUP($B106,'sh1'!$N$16:$O$19,2,1)*$AE106,$AG106) -> 13640413.33 | AK106: 0 | AL106: 47103445.23 | AM106: =($AL106-W106)*(1+4.5%)-$Z106/VLOOKUP($A106,'sh1'!$N$7:$O$12,2,1) -> 49223100.27 | AN106: 49223100.27 | AO106: =IF($AM105<VLOOKUP($B106,'sh1'!$N$16:$O$19,2,1)*$AD106,VLOOKUP($B106,'sh1'!$N$16:$O$19,2,1)*$AD106,$AM105) -> 47103445.23 | AP106: =IF($AM106<VLOOKUP($B106,'sh1'!$N$16:$O$19,2,1)*$AE106,VLOOKUP($B106,'sh1'!$N$16:$O$19,2,1)*$AE106,$AM106) -> 49223100.27 | AQ106: 0 | AR106: 164545910.1 | AS106: =($AR106-X106)*(1+6%)-$Z106/VLOOKUP($A106,'sh1'!$N$7:$O$12,2,1) -> 174418664.7 | AT106: 174418664.7 | AU106: =IF($AS105<VLOOKUP($B106,'sh1'!$N$16:$O$19,2,1)*$AD106,VLOOKUP($B106,'sh1'!$N$16:$O$19,2,1)*$AD106,$AS105) -> 164545910.1 | AV106: =IF($AS106<VLOOKUP($B106,'sh1'!$N$16:$O$19,2,1)*$AE106,VLOOKUP($B106,'sh1'!$N$16:$O$19,2,1)*$AE106,$AS106) -> 174418664.7 | AW106: 0 | AX106: 5|0|15|96
A107: 97 | B107: 111 | C107: 112 | R107: 0 | S107: =SUM($R$11:R107,$P$11:P107,$Q$11:Q107) -> 995816.8 | T107: 0 | U107: 0 | V107: =SUM(($B107='sh1'!$R$3:$R$214)*(IF($I$3="男",0,1)='sh1'!$Q$3:$Q$214)*('sh1'!$S$3:$S$214))/1000*AK107 -> 0 | W107: =SUM(($B107='sh1'!$R$3:$R$214)*(IF($I$3="男",0,1)='sh1'!$Q$3:$Q$214)*('sh1'!$S$3:$S$214))/1000*AQ107 -> 0 | X107: =SUM(($B107='sh1'!$R$3:$R$214)*(IF($I$3="男",0,1)='sh1'!$Q$3:$Q$214)*('sh1'!$S$3:$S$214))/1000*AW107 -> 0 | Y107: 0 | AA107: =-$Z107/VLOOKUP($A107,'sh1'!$N$7:$O$12,2,1) -> 0 | AB107: =SUM($AA$11:AA107) -> 0 | AC107: 995816.8 | AD107: =$S107+$AB106 -> 995816.8 | AE107: =$S107+$AB107 -> 995816.8 | AF107: 13640413.33 | AG107: =($AF107-$V107)*(1+3%)-$Z107/VLOOKUP($A107,'sh1'!$N$7:$O$12,2,1) -> 14049625.73 | AH107: =IF($A107=1,95%*$AG107,IF($A107=2,97%*$AG107,IF($A107=3,98%*$AG107,IF(OR($A107=4,$A107=5),$AG107*99%,$AG107)))) -> 14049625.73 | AI107: =IF($AG106<VLOOKUP($B107,'sh1'!$N$16:$O$19,2,1)*$AD107,VLOOKUP($B107,'sh1'!$N$16:$O$19,2,1)*$AD107,$AG106) -> 13640413.33 | AJ107: =IF($AG107<VLOOKUP($B107,'sh1'!$N$16:$O$19,2,1)*$AE107,VLOOKUP($B107,'sh1'!$N$16:$O$19,2,1)*$AE107,$AG107) -> 14049625.73 | AK107: 0 | AL107: 49223100.27 | AM107: =($AL107-W107)*(1+4.5%)-$Z107/VLOOKUP($A107,'sh1'!$N$7:$O$12,2,1) -> 51438139.78 | AN107: =IF($A107=1,95%*$AM107,IF($A107=2,97%*$AM107,IF($A107=3,98%*$AM107,IF(OR($A107=4,$A107=5),$AM107*99%,$AM107)))) -> 51438139.78 | AO107: =IF($AM106<VLOOKUP($B107,'sh1'!$N$16:$O$19,2,1)*$AD107,VLOOKUP($B107,'sh1'!$N$16:$O$19,2,1)*$AD107,$AM106) -> 49223100.27 | AP107: =IF($AM107<VLOOKUP($B107,'sh1'!$N$16:$O$19,2,1)*$AE107,VLOOKUP($B107,'sh1'!$N$16:$O$19,2,1)*$AE107,$AM107) -> 51438139.78 | AQ107: 0 | AR107: 174418664.7 | AS107: =($AR107-X107)*(1+6%)-$Z107/VLOOKUP($A107,'sh1'!$N$7:$O$12,2,1) -> 184883784.6 | AT107: =IF($A107=1,95%*$AS107,IF($A107=2,97%*$AS107,IF($A107=3,98%*$AS107,IF(OR($A107=4,$A107=5),$AS107*99%,$AS107)))) -> 184883784.6 | AU107: =IF($AS106<VLOOKUP($B107,'sh1'!$N$16:$O$19,2,1)*$AD107,VLOOKUP($B107,'sh1'!$N$16:$O$19,2,1)*$AD107,$AS106) -> 174418664.7 | AV107: =IF($AS107<VLOOKUP($B107,'sh1'!$N$16:$O$19,2,1)*$AE107,VLOOKUP($B107,'sh1'!$N$16:$O$19,2,1)*$AE107,$AS107) -> 184883784.6 | AW107: 0 | AX107: =$G$4&"|"&(IF($I$3="男",0,1))&"|"&$G$3&"|"&A107 -> 5|0|15|97
A108: 98 | B108: =$G$3+A108-1 -> 112 | C108: 113 | R108: 0 | S108: =SUM($R$11:R108,$P$11:P108,$Q$11:Q108) -> 995816.8 | T108: 0 | U108: 0 | V108: =SUM(($B108='sh1'!$R$3:$R$214)*(IF($I$3="男",0,1)='sh1'!$Q$3:$Q$214)*('sh1'!$S$3:$S$214))/1000*AK108 -> 0 | W108: =SUM(($B108='sh1'!$R$3:$R$214)*(IF($I$3="男",0,1)='sh1'!$Q$3:$Q$214)*('sh1'!$S$3:$S$214))/1000*AQ108 -> 0 | X108: =SUM(($B108='sh1'!$R$3:$R$214)*(IF($I$3="男",0,1)='sh1'!$Q$3:$Q$214)*('sh1'!$S$3:$S$214))/1000*AW108 -> 0 | Y108: 0 | AA108: =-$Z108/VLOOKUP($A108,'sh1'!$N$7:$O$12,2,1) -> 0 | AB108: =SUM($AA$11:AA108) -> 0 | AC108: 995816.8 | AD108: =$S108+$AB107 -> 995816.8 | AE108: =$S108+$AB108 -> 995816.8 | AF108: =$AG107+$U108+$Y108 -> 14049625.73 | AG108: =($AF108-$V108)*(1+3%)-$Z108/VLOOKUP($A108,'sh1'!$N$7:$O$12,2,1) -> 14471114.5 | AH108: =IF($A108=1,95%*$AG108,IF($A108=2,97%*$AG108,IF($A108=3,98%*$AG108,IF(OR($A108=4,$A108=5),$AG108*99%,$AG108)))) -> 14471114.5 | AI108: =IF($AG107<VLOOKUP($B108,'sh1'!$N$16:$O$19,2,1)*$AD108,VLOOKUP($B108,'sh1'!$N$16:$O$19,2,1)*$AD108,$AG107) -> 14049625.73 | AJ108: =IF($AG108<VLOOKUP($B108,'sh1'!$N$16:$O$19,2,1)*$AE108,VLOOKUP($B108,'sh1'!$N$16:$O$19,2,1)*$AE108,$AG108) -> 14471114.5 | AK108: 0 | AL108: =$AM107+$U108+$Y108 -> 51438139.78 | AM108: =($AL108-W108)*(1+4.5%)-$Z108/VLOOKUP($A108,'sh1'!$N$7:$O$12,2,1) -> 53752856.07 | AN108: =IF($A108=1,95%*$AM108,IF($A108=2,97%*$AM108,IF($A108=3,98%*$AM108,IF(OR($A108=4,$A108=5),$AM108*99%,$AM108)))) -> 53752856.07 | AO108: =IF($AM107<VLOOKUP($B108,'sh1'!$N$16:$O$19,2,1)*$AD108,VLOOKUP($B108,'sh1'!$N$16:$O$19,2,1)*$AD108,$AM107) -> 51438139.78 | AP108: =IF($AM108<VLOOKUP($B108,'sh1'!$N$16:$O$19,2,1)*$AE108,VLOOKUP($B108,'sh1'!$N$16:$O$19,2,1)*$AE108,$AM108) -> 53752856.07 | AQ108: 0 | AR108: =$AS107+$U108+$Y108 -> 184883784.6 | AS108: =($AR108-X108)*(1+6%)-$Z108/VLOOKUP($A108,'sh1'!$N$7:$O$12,2,1) -> 195976811.7 | AT108: =IF($A108=1,95%*$AS108,IF($A108=2,97%*$AS108,IF($A108=3,98%*$AS108,IF(OR($A108=4,$A108=5),$AS108*99%,$AS108)))) -> 195976811.7 | AU108: =IF($AS107<VLOOKUP($B108,'sh1'!$N$16:$O$19,2,1)*$AD108,VLOOKUP($B108,'sh1'!$N$16:$O$19,2,1)*$AD108,$AS107) -> 184883784.6 | AV108: =IF($AS108<VLOOKUP($B108,'sh1'!$N$16:$O$19,2,1)*$AE108,VLOOKUP($B108,'sh1'!$N$16:$O$19,2,1)*$AE108,$AS108) -> 195976811.7 | AW108: 0 | AX108: =$G$4&"|"&(IF($I$3="男",0,1))&"|"&$G$3&"|"&A108 -> 5|0|15|98
A109: 99 | B109: =$G$3+A109-1 -> 113 | C109: 114 | R109: 0 | S109: =SUM($R$11:R109,$P$11:P109,$Q$11:Q109) -> 995816.8 | T109: 0 | U109: 0 | V109: =SUM(($B109='sh1'!$R$3:$R$214)*(IF($I$3="男",0,1)='sh1'!$Q$3:$Q$214)*('sh1'!$S$3:$S$214))/1000*AK109 -> 0 | W109: =SUM(($B109='sh1'!$R$3:$R$214)*(IF($I$3="男",0,1)='sh1'!$Q$3:$Q$214)*('sh1'!$S$3:$S$214))/1000*AQ109 -> 0 | X109: =SUM(($B109='sh1'!$R$3:$R$214)*(IF($I$3="男",0,1)='sh1'!$Q$3:$Q$214)*('sh1'!$S$3:$S$214))/1000*AW109 -> 0 | Y109: 0 | AA109: =-$Z109/VLOOKUP($A109,'sh1'!$N$7:$O$12,2,1) -> 0 | AB109: =SUM($AA$11:AA109) -> 0 | AC109: 995816.8 | AD109: =$S109+$AB108 -> 995816.8 | AE109: =$S109+$AB109 -> 995816.8 | AF109: =$AG108+$U109+$Y109 -> 14471114.5 | AG109: =($AF109-$V109)*(1+3%)-$Z109/VLOOKUP($A109,'sh1'!$N$7:$O$12,2,1) -> 14905247.94 | AH109: =IF($A109=1,95%*$AG109,IF($A109=2,97%*$AG109,IF($A109=3,98%*$AG109,IF(OR($A109=4,$A109=5),$AG109*99%,$AG109)))) -> 14905247.94 | AI109: =IF($AG108<VLOOKUP($B109,'sh1'!$N$16:$O$19,2,1)*$AD109,VLOOKUP($B109,'sh1'!$N$16:$O$19,2,1)*$AD109,$AG108) -> 14471114.5 | AJ109: =IF($AG109<VLOOKUP($B109,'sh1'!$N$16:$O$19,2,1)*$AE109,VLOOKUP($B109,'sh1'!$N$16:$O$19,2,1)*$AE109,$AG109) -> 14905247.94 | AK109: 0 | AL109: =$AM108+$U109+$Y109 -> 53752856.07 | AM109: =($AL109-W109)*(1+4.5%)-$Z109/VLOOKUP($A109,'sh1'!$N$7:$O$12,2,1) -> 56171734.59 | AN109: =IF($A109=1,95%*$AM109,IF($A109=2,97%*$AM109,IF($A109=3,98%*$AM109,IF(OR($A109=4,$A109=5),$AM109*99%,$AM109)))) -> 56171734.59 | AO109: =IF($AM108<VLOOKUP($B109,'sh1'!$N$16:$O$19,2,1)*$AD109,VLOOKUP($B109,'sh1'!$N$16:$O$19,2,1)*$AD109,$AM108) -> 53752856.07 | AP109: =IF($AM109<VLOOKUP($B109,'sh1'!$N$16:$O$19,2,1)*$AE109,VLOOKUP($B109,'sh1'!$N$16:$O$19,2,1)*$AE109,$AM109) -> 56171734.59 | AQ109: 0 | AR109: =$AS108+$U109+$Y109 -> 195976811.7 | AS109: =($AR109-X109)*(1+6%)-$Z109/VLOOKUP($A109,'sh1'!$N$7:$O$12,2,1) -> 207735420.4 | AT109: =IF($A109=1,95%*$AS109,IF($A109=2,97%*$AS109,IF($A109=3,98%*$AS109,IF(OR($A109=4,$A109=5),$AS109*99%,$AS109)))) -> 207735420.4 | AU109: =IF($AS108<VLOOKUP($B109,'sh1'!$N$16:$O$19,2,1)*$AD109,VLOOKUP($B109,'sh1'!$N$16:$O$19,2,1)*$AD109,$AS108) -> 195976811.7 | AV109: =IF($AS109<VLOOKUP($B109,'sh1'!$N$16:$O$19,2,1)*$AE109,VLOOKUP($B109,'sh1'!$N$16:$O$19,2,1)*$AE109,$AS109) -> 207735420.4 | AW109: 0 | AX109: =$G$4&"|"&(IF($I$3="男",0,1))&"|"&$G$3&"|"&A109 -> 5|0|15|99
A110: 100 | B110: =$G$3+A110-1 -> 114 | C110: 115 | R110: 0 | S110: =SUM($R$11:R110,$P$11:P110,$Q$11:Q110) -> 995816.8 | T110: 0 | U110: 0 | V110: =SUM(($B110='sh1'!$R$3:$R$214)*(IF($I$3="男",0,1)='sh1'!$Q$3:$Q$214)*('sh1'!$S$3:$S$214))/1000*AK110 -> 0 | W110: =SUM(($B110='sh1'!$R$3:$R$214)*(IF($I$3="男",0,1)='sh1'!$Q$3:$Q$214)*('sh1'!$S$3:$S$214))/1000*AQ110 -> 0 | X110: =SUM(($B110='sh1'!$R$3:$R$214)*(IF($I$3="男",0,1)='sh1'!$Q$3:$Q$214)*('sh1'!$S$3:$S$214))/1000*AW110 -> 0 | Y110: 0 | AA110: =-$Z110/VLOOKUP($A110,'sh1'!$N$7:$O$12,2,1) -> 0 | AB110: =SUM($AA$11:AA110) -> 0 | AC110: 995816.8 | AD110: 995816.8 | AE110: 995816.8 | AF110: =$AG109+$U110+$Y110 -> 14905247.94 | AG110: =($AF110-$V110)*(1+3%)-$Z110/VLOOKUP($A110,'sh1'!$N$7:$O$12,2,1) -> 15352405.38 | AH110: 15352405.38 | AI110: =IF($AG109<VLOOKUP($B110,'sh1'!$N$16:$O$19,2,1)*$AD110,VLOOKUP($B110,'sh1'!$N$16:$O$19,2,1)*$AD110,$AG109) -> 14905247.94 | AJ110: =IF($AG110<VLOOKUP($B110,'sh1'!$N$16:$O$19,2,1)*$AE110,VLOOKUP($B110,'sh1'!$N$16:$O$19,2,1)*$AE110,$AG110) -> 15352405.38 | AK110: 0 | AL110: =$AM109+$U110+$Y110 -> 56171734.59 | AM110: =($AL110-W110)*(1+4.5%)-$Z110/VLOOKUP($A110,'sh1'!$N$7:$O$12,2,1) -> 58699462.65 | AN110: 58699462.65 | AO110: =IF($AM109<VLOOKUP($B110,'sh1'!$N$16:$O$19,2,1)*$AD110,VLOOKUP($B110,'sh1'!$N$16:$O$19,2,1)*$AD110,$AM109) -> 56171734.59 | AP110: =IF($AM110<VLOOKUP($B110,'sh1'!$N$16:$O$19,2,1)*$AE110,VLOOKUP($B110,'sh1'!$N$16:$O$19,2,1)*$AE110,$AM110) -> 58699462.65 | AQ110: 0 | AR110: =$AS109+$U110+$Y110 -> 207735420.4 | AS110: =($AR110-X110)*(1+6%)-$Z110/VLOOKUP($A110,'sh1'!$N$7:$O$12,2,1) -> 220199545.6 | AT110: 220199545.6 | AU110: =IF($AS109<VLOOKUP($B110,'sh1'!$N$16:$O$19,2,1)*$AD110,VLOOKUP($B110,'sh1'!$N$16:$O$19,2,1)*$AD110,$AS109) -> 207735420.4 | AV110: =IF($AS110<VLOOKUP($B110,'sh1'!$N$16:$O$19,2,1)*$AE110,VLOOKUP($B110,'sh1'!$N$16:$O$19,2,1)*$AE110,$AS110) -> 220199545.6 | AW110: 0 | AX110: 5|0|15|100
A111: 101 | B111: 115 | C111: 116 | R111: 0 | S111: =SUM($R$11:R111,$P$11:P111,$Q$11:Q111) -> 995816.8 | T111: 0 | U111: 0 | V111: =SUM(($B111='sh1'!$R$3:$R$214)*(IF($I$3="男",0,1)='sh1'!$Q$3:$Q$214)*('sh1'!$S$3:$S$214))/1000*AK111 -> 0 | W111: =SUM(($B111='sh1'!$R$3:$R$214)*(IF($I$3="男",0,1)='sh1'!$Q$3:$Q$214)*('sh1'!$S$3:$S$214))/1000*AQ111 -> 0 | X111: =SUM(($B111='sh1'!$R$3:$R$214)*(IF($I$3="男",0,1)='sh1'!$Q$3:$Q$214)*('sh1'!$S$3:$S$214))/1000*AW111 -> 0 | Y111: 0 | AA111: =-$Z111/VLOOKUP($A111,'sh1'!$N$7:$O$12,2,1) -> 0 | AB111: =SUM($AA$11:AA111) -> 0 | AC111: 995816.8 | AD111: 995816.8 | AE111: 995816.8 | AF111: 15352405.38 | AG111: =($AF111-$V111)*(1+3%)-$Z111/VLOOKUP($A111,'sh1'!$N$7:$O$12,2,1) -> 15812977.54 | AH111: 15812977.54 | AI111: =IF($AG110<VLOOKUP($B111,'sh1'!$N$16:$O$19,2,1)*$AD111,VLOOKUP($B111,'sh1'!$N$16:$O$19,2,1)*$AD111,$AG110) -> 15352405.38 | AJ111: =IF($AG111<VLOOKUP($B111,'sh1'!$N$16:$O$19,2,1)*$AE111,VLOOKUP($B111,'sh1'!$N$16:$O$19,2,1)*$AE111,$AG111) -> 15812977.54 | AK111: 0 | AL111: 58699462.65 | AM111: =($AL111-W111)*(1+4.5%)-$Z111/VLOOKUP($A111,'sh1'!$N$7:$O$12,2,1) -> 61340938.47 | AN111: 61340938.47 | AO111: =IF($AM110<VLOOKUP($B111,'sh1'!$N$16:$O$19,2,1)*$AD111,VLOOKUP($B111,'sh1'!$N$16:$O$19,2,1)*$AD111,$AM110) -> 58699462.65 | AP111: =IF($AM111<VLOOKUP($B111,'sh1'!$N$16:$O$19,2,1)*$AE111,VLOOKUP($B111,'sh1'!$N$16:$O$19,2,1)*$AE111,$AM111) -> 61340938.47 | AQ111: 0 | AR111: 220199545.6 | AS111: =($AR111-X111)*(1+6%)-$Z111/VLOOKUP($A111,'sh1'!$N$7:$O$12,2,1) -> 233411518.3 | AT111: 233411518.3 | AU111: =IF($AS110<VLOOKUP($B111,'sh1'!$N$16:$O$19,2,1)*$AD111,VLOOKUP($B111,'sh1'!$N$16:$O$19,2,1)*$AD111,$AS110) -> 220199545.6 | AV111: =IF($AS111<VLOOKUP($B111,'sh1'!$N$16:$O$19,2,1)*$AE111,VLOOKUP($B111,'sh1'!$N$16:$O$19,2,1)*$AE111,$AS111) -> 233411518.3 | AW111: 0 | AX111: 5|0|15|101
A112: 102 | B112: 116 | C112: 117 | R112: 0 | S112: =SUM($R$11:R112,$P$11:P112,$Q$11:Q112) -> 995816.8 | T112: 0 | U112: 0 | V112: =SUM(($B112='sh1'!$R$3:$R$214)*(IF($I$3="男",0,1)='sh1'!$Q$3:$Q$214)*('sh1'!$S$3:$S$214))/1000*AK112 -> 0 | W112: =SUM(($B112='sh1'!$R$3:$R$214)*(IF($I$3="男",0,1)='sh1'!$Q$3:$Q$214)*('sh1'!$S$3:$S$214))/1000*AQ112 -> 0 | X112: =SUM(($B112='sh1'!$R$3:$R$214)*(IF($I$3="男",0,1)='sh1'!$Q$3:$Q$214)*('sh1'!$S$3:$S$214))/1000*AW112 -> 0 | Y112: 0 | AA112: =-$Z112/VLOOKUP($A112,'sh1'!$N$7:$O$12,2,1) -> 0 | AB112: =SUM($AA$11:AA112) -> 0 | AC112: 995816.8 | AD112: 995816.8 | AE112: 995816.8 | AF112: 15812977.54 | AG112: =($AF112-$V112)*(1+3%)-$Z112/VLOOKUP($A112,'sh1'!$N$7:$O$12,2,1) -> 16287366.87 | AH112: 16287366.87 | AI112: =IF($AG111<VLOOKUP($B112,'sh1'!$N$16:$O$19,2,1)*$AD112,VLOOKUP($B112,'sh1'!$N$16:$O$19,2,1)*$AD112,$AG111) -> 15812977.54 | AJ112: =IF($AG112<VLOOKUP($B112,'sh1'!$N$16:$O$19,2,1)*$AE112,VLOOKUP($B112,'sh1'!$N$16:$O$19,2,1)*$AE112,$AG112) -> 16287366.87 | AK112: 0 | AL112: 61340938.47 | AM112: =($AL112-W112)*(1+4.5%)-$Z112/VLOOKUP($A112,'sh1'!$N$7:$O$12,2,1) -> 64101280.7 | AN112: 64101280.7 | AO112: =IF($AM111<VLOOKUP($B112,'sh1'!$N$16:$O$19,2,1)*$AD112,VLOOKUP($B112,'sh1'!$N$16:$O$19,2,1)*$AD112,$AM111) -> 61340938.47 | AP112: =IF($AM112<VLOOKUP($B112,'sh1'!$N$16:$O$19,2,1)*$AE112,VLOOKUP($B112,'sh1'!$N$16:$O$19,2,1)*$AE112,$AM112) -> 64101280.7 | AQ112: 0 | AR112: 233411518.3 | AS112: =($AR112-X112)*(1+6%)-$Z112/VLOOKUP($A112,'sh1'!$N$7:$O$12,2,1) -> 247416209.4 | AT112: 247416209.4 | AU112: =IF($AS111<VLOOKUP($B112,'sh1'!$N$16:$O$19,2,1)*$AD112,VLOOKUP($B112,'sh1'!$N$16:$O$19,2,1)*$AD112,$AS111) -> 233411518.3 | AV112: =IF($AS112<VLOOKUP($B112,'sh1'!$N$16:$O$19,2,1)*$AE112,VLOOKUP($B112,'sh1'!$N$16:$O$19,2,1)*$AE112,$AS112) -> 247416209.4 | AW112: 0 | AX112: 5|0|15|102
A113: 103 | B113: 117 | C113: 118 | R113: 0 | S113: =SUM($R$11:R113,$P$11:P113,$Q$11:Q113) -> 995816.8 | T113: 0 | U113: 0 | V113: =SUM(($B113='sh1'!$R$3:$R$214)*(IF($I$3="男",0,1)='sh1'!$Q$3:$Q$214)*('sh1'!$S$3:$S$214))/1000*AK113 -> 0 | W113: =SUM(($B113='sh1'!$R$3:$R$214)*(IF($I$3="男",0,1)='sh1'!$Q$3:$Q$214)*('sh1'!$S$3:$S$214))/1000*AQ113 -> 0 | X113: =SUM(($B113='sh1'!$R$3:$R$214)*(IF($I$3="男",0,1)='sh1'!$Q$3:$Q$214)*('sh1'!$S$3:$S$214))/1000*AW113 -> 0 | Y113: 0 | AA113: =-$Z113/VLOOKUP($A113,'sh1'!$N$7:$O$12,2,1) -> 0 | AB113: =SUM($AA$11:AA113) -> 0 | AC113: 995816.8 | AD113: 995816.8 | AE113: 995816.8 | AF113: 16287366.87 | AG113: =($AF113-$V113)*(1+3%)-$Z113/VLOOKUP($A113,'sh1'!$N$7:$O$12,2,1) -> 16775987.87 | AH113: 16775987.87 | AI113: =IF($AG112<VLOOKUP($B113,'sh1'!$N$16:$O$19,2,1)*$AD113,VLOOKUP($B113,'sh1'!$N$16:$O$19,2,1)*$AD113,$AG112) -> 16287366.87 | AJ113: =IF($AG113<VLOOKUP($B113,'sh1'!$N$16:$O$19,2,1)*$AE113,VLOOKUP($B113,'sh1'!$N$16:$O$19,2,1)*$AE113,$AG113) -> 16775987.87 | AK113: 0 | AL113: 64101280.7 | AM113: =($AL113-W113)*(1+4.5%)-$Z113/VLOOKUP($A113,'sh1'!$N$7:$O$12,2,1) -> 66985838.33 | AN113: 66985838.33 | AO113: =IF($AM112<VLOOKUP($B113,'sh1'!$N$16:$O$19,2,1)*$AD113,VLOOKUP($B113,'sh1'!$N$16:$O$19,2,1)*$AD113,$AM112) -> 64101280.7 | AP113: =IF($AM113<VLOOKUP($B113,'sh1'!$N$16:$O$19,2,1)*$AE113,VLOOKUP($B113,'sh1'!$N$16:$O$19,2,1)*$AE113,$AM113) -> 66985838.33 | AQ113: 0 | AR113: 247416209.4 | AS113: =($AR113-X113)*(1+6%)-$Z113/VLOOKUP($A113,'sh1'!$N$7:$O$12,2,1) -> 262261182 | AT113: 262261182 | AU113: =IF($AS112<VLOOKUP($B113,'sh1'!$N$16:$O$19,2,1)*$AD113,VLOOKUP($B113,'sh1'!$N$16:$O$19,2,1)*$AD113,$AS112) -> 247416209.4 | AV113: =IF($AS113<VLOOKUP($B113,'sh1'!$N$16:$O$19,2,1)*$AE113,VLOOKUP($B113,'sh1'!$N$16:$O$19,2,1)*$AE113,$AS113) -> 262261182 | AW113: 0 | AX113: 5|0|15|103
A114: 104 | B114: 118 | C114: 119 | R114: 0 | S114: =SUM($R$11:R114,$P$11:P114,$Q$11:Q114) -> 995816.8 | T114: 0 | U114: =$R114+$P114+$Q114+$T114 -> 0 | V114: =SUM(($B114='sh1'!$R$3:$R$214)*(IF($I$3="男",0,1)='sh1'!$Q$3:$Q$214)*('sh1'!$S$3:$S$214))/1000*AK114 -> 0 | W114: =SUM(($B114='sh1'!$R$3:$R$214)*(IF($I$3="男",0,1)='sh1'!$Q$3:$Q$214)*('sh1'!$S$3:$S$214))/1000*AQ114 -> 0 | X114: =SUM(($B114='sh1'!$R$3:$R$214)*(IF($I$3="男",0,1)='sh1'!$Q$3:$Q$214)*('sh1'!$S$3:$S$214))/1000*AW114 -> 0 | Y114: =IF($A114=7,(SUM($I103:$I112)+SUM($J103:$J112))*1%,IF($A114>=8,($I112+$J112)*1%,0)) -> 0 | AA114: =-$Z114/VLOOKUP($A114,'sh1'!$N$7:$O$12,2,1) -> 0 | AB114: =SUM($AA$11:AA114) -> 0 | AC114: 995816.8 | AD114: 995816.8 | AE114: 995816.8 | AF114: 16775987.87 | AG114: =($AF114-$V114)*(1+3%)-$Z114/VLOOKUP($A114,'sh1'!$N$7:$O$12,2,1) -> 17279267.51 | AH114: 17279267.51 | AI114: =IF($AG113<VLOOKUP($B114,'sh1'!$N$16:$O$19,2,1)*$AD114,VLOOKUP($B114,'sh1'!$N$16:$O$19,2,1)*$AD114,$AG113) -> 16775987.87 | AJ114: =IF($AG114<VLOOKUP($B114,'sh1'!$N$16:$O$19,2,1)*$AE114,VLOOKUP($B114,'sh1'!$N$16:$O$19,2,1)*$AE114,$AG114) -> 17279267.51 | AK114: 0 | AL114: 66985838.33 | AM114: =($AL114-W114)*(1+4.5%)-$Z114/VLOOKUP($A114,'sh1'!$N$7:$O$12,2,1) -> 70000201.06 | AN114: 70000201.06 | AO114: =IF($AM113<VLOOKUP($B114,'sh1'!$N$16:$O$19,2,1)*$AD114,VLOOKUP($B114,'sh1'!$N$16:$O$19,2,1)*$AD114,$AM113) -> 66985838.33 | AP114: =IF($AM114<VLOOKUP($B114,'sh1'!$N$16:$O$19,2,1)*$AE114,VLOOKUP($B114,'sh1'!$N$16:$O$19,2,1)*$AE114,$AM114) -> 70000201.06 | AQ114: 0 | AR114: 262261182 | AS114: =($AR114-X114)*(1+6%)-$Z114/VLOOKUP($A114,'sh1'!$N$7:$O$12,2,1) -> 277996852.9 | AT114: 277996852.9 | AU114: =IF($AS113<VLOOKUP($B114,'sh1'!$N$16:$O$19,2,1)*$AD114,VLOOKUP($B114,'sh1'!$N$16:$O$19,2,1)*$AD114,$AS113) -> 262261182 | AV114: =IF($AS114<VLOOKUP($B114,'sh1'!$N$16:$O$19,2,1)*$AE114,VLOOKUP($B114,'sh1'!$N$16:$O$19,2,1)*$AE114,$AS114) -> 277996852.9 | AW114: 0 | AX114: 5|0|15|104
A115: 105 | B115: 119 | C115: 120 | R115: 0 | S115: =SUM($R$11:R115,$P$11:P115,$Q$11:Q115) -> 995816.8 | T115: 0 | U115: 0 | V115: =SUM(($B115='sh1'!$R$3:$R$214)*(IF($I$3="男",0,1)='sh1'!$Q$3:$Q$214)*('sh1'!$S$3:$S$214))/1000*AK115 -> 0 | W115: =SUM(($B115='sh1'!$R$3:$R$214)*(IF($I$3="男",0,1)='sh1'!$Q$3:$Q$214)*('sh1'!$S$3:$S$214))/1000*AQ115 -> 0 | X115: =SUM(($B115='sh1'!$R$3:$R$214)*(IF($I$3="男",0,1)='sh1'!$Q$3:$Q$214)*('sh1'!$S$3:$S$214))/1000*AW115 -> 0 | Y115: =IF($A115=7,(SUM($I104:$I113)+SUM($J104:$J113))*1%,IF($A115>=8,($I113+$J113)*1%,0)) -> 0 | AA115: =-$Z115/VLOOKUP($A115,'sh1'!$N$7:$O$12,2,1) -> 0 | AB115: =SUM($AA$11:AA115) -> 0 | AC115: 995816.8 | AD115: 995816.8 | AE115: 995816.8 | AF115: 17279267.51 | AG115: =($AF115-$V115)*(1+3%)-$Z115/VLOOKUP($A115,'sh1'!$N$7:$O$12,2,1) -> 17797645.53 | AH115: 17797645.53 | AI115: =IF($AG114<VLOOKUP($B115,'sh1'!$N$16:$O$19,2,1)*$AD115,VLOOKUP($B115,'sh1'!$N$16:$O$19,2,1)*$AD115,$AG114) -> 17279267.51 | AJ115: =IF($AG115<VLOOKUP($B115,'sh1'!$N$16:$O$19,2,1)*$AE115,VLOOKUP($B115,'sh1'!$N$16:$O$19,2,1)*$AE115,$AG115) -> 17797645.53 | AK115: 0 | AL115: 70000201.06 | AM115: =($AL115-W115)*(1+4.5%)-$Z115/VLOOKUP($A115,'sh1'!$N$7:$O$12,2,1) -> 73150210.1 | AN115: 73150210.1 | AO115: =IF($AM114<VLOOKUP($B115,'sh1'!$N$16:$O$19,2,1)*$AD115,VLOOKUP($B115,'sh1'!$N$16:$O$19,2,1)*$AD115,$AM114) -> 70000201.06 | AP115: =IF($AM115<VLOOKUP($B115,'sh1'!$N$16:$O$19,2,1)*$AE115,VLOOKUP($B115,'sh1'!$N$16:$O$19,2,1)*$AE115,$AM115) -> 73150210.1 | AQ115: 0 | AR115: 277996852.9 | AS115: =($AR115-X115)*(1+6%)-$Z115/VLOOKUP($A115,'sh1'!$N$7:$O$12,2,1) -> 294676664.1 | AT115: 294676664.1 | AU115: =IF($AS114<VLOOKUP($B115,'sh1'!$N$16:$O$19,2,1)*$AD115,VLOOKUP($B115,'sh1'!$N$16:$O$19,2,1)*$AD115,$AS114) -> 277996852.9 | AV115: =IF($AS115<VLOOKUP($B115,'sh1'!$N$16:$O$19,2,1)*$AE115,VLOOKUP($B115,'sh1'!$N$16:$O$19,2,1)*$AE115,$AS115) -> 294676664.1 | AW115: 0 | AX115: 5|0|15|105
A116: 106 | B116: 120 | C116: 121 | R116: 0 | S116: =SUM($R$11:R116,$P$11:P116,$Q$11:Q116) -> 995816.8 | T116: 0 | U116: 0 | V116: =SUM(($B116='sh1'!$R$3:$R$214)*(IF($I$3="男",0,1)='sh1'!$Q$3:$Q$214)*('sh1'!$S$3:$S$214))/1000*AK116 -> 0 | W116: =SUM(($B116='sh1'!$R$3:$R$214)*(IF($I$3="男",0,1)='sh1'!$Q$3:$Q$214)*('sh1'!$S$3:$S$214))/1000*AQ116 -> 0 | X116: =SUM(($B116='sh1'!$R$3:$R$214)*(IF($I$3="男",0,1)='sh1'!$Q$3:$Q$214)*('sh1'!$S$3:$S$214))/1000*AW116 -> 0 | Y116: 0 | AA116: =-$Z116/VLOOKUP($A116,'sh1'!$N$7:$O$12,2,1) -> 0 | AB116: =SUM($AA$11:AA116) -> 0 | AC116: 995816.8 | AD116: 995816.8 | AE116: 995816.8 | AF116: 17797645.53 | AG116: =($AF116-$V116)*(1+3%)-$Z116/VLOOKUP($A116,'sh1'!$N$7:$O$12,2,1) -> 18331574.9 | AH116: 18331574.9 | AI116: =IF($AG115<VLOOKUP($B116,'sh1'!$N$16:$O$19,2,1)*$AD116,VLOOKUP($B116,'sh1'!$N$16:$O$19,2,1)*$AD116,$AG115) -> 17797645.53 | AJ116: =IF($AG116<VLOOKUP($B116,'sh1'!$N$16:$O$19,2,1)*$AE116,VLOOKUP($B116,'sh1'!$N$16:$O$19,2,1)*$AE116,$AG116) -> 18331574.9 | AK116: 0 | AL116: 73150210.1 | AM116: =($AL116-W116)*(1+4.5%)-$Z116/VLOOKUP($A116,'sh1'!$N$7:$O$12,2,1) -> 76441969.56 | AN116: 76441969.56 | AO116: =IF($AM115<VLOOKUP($B116,'sh1'!$N$16:$O$19,2,1)*$AD116,VLOOKUP($B116,'sh1'!$N$16:$O$19,2,1)*$AD116,$AM115) -> 73150210.1 | AP116: =IF($AM116<VLOOKUP($B116,'sh1'!$N$16:$O$19,2,1)*$AE116,VLOOKUP($B116,'sh1'!$N$16:$O$19,2,1)*$AE116,$AM116) -> 76441969.56 | AQ116: 0 | AR116: 294676664.1 | AS116: =($AR116-X116)*(1+6%)-$Z116/VLOOKUP($A116,'sh1'!$N$7:$O$12,2,1) -> 312357263.9 | AT116: 312357263.9 | AU116: =IF($AS115<VLOOKUP($B116,'sh1'!$N$16:$O$19,2,1)*$AD116,VLOOKUP($B116,'sh1'!$N$16:$O$19,2,1)*$AD116,$AS115) -> 294676664.1 | AV116: =IF($AS116<VLOOKUP($B116,'sh1'!$N$16:$O$19,2,1)*$AE116,VLOOKUP($B116,'sh1'!$N$16:$O$19,2,1)*$AE116,$AS116) -> 312357263.9 | AW116: 0 | AX116: 5|0|15|106

Sheet 计划书
A176: 客户基本信息
A177: 投保人姓名 | D177: =填写页面!D19 -> 金先生
A178: 被保人姓名 | D178: =填写页面!D20 -> 金先生
A179: 被保人性别 | D179: =填写页面!N20 -> 男
A180: 被保人年龄 | D180: =填写页面!I20 -> 15
A182: 保险计划
A183: =填写页面!B23 -> 珠江永鑫年年年金保险
A184: 年交保费 | D184: 交费期间 | F184: 基本保额 | H184: 保障期间
A185: =填写页面!N23 -> 180000 | D185: =填写页面!L23 -> 5 | F185: =填写页面!I23 -> 158704.2 | H185: =填写页面!G23 -> 10年
A186: =填写页面!B25 -> 珠江智胜宝终身寿险（万能型）
A187: 趸交保费 | F187: 保障期间
A188: =填写页面!N25 -> 1000 | F188: =填写页面!G25 -> 终身
A190: 保险责任
A191: 珠江永鑫年年年金保险
A192: （一）特别生存保险金
A193: 若被保险人于本合同生效后的第5个保单周年日及第6个保单周年日生存且本合同仍然有效，本公司将按给付时本合同基本保险金额对应的年交保险费的以下比例给付特别生存保险金： 一次交清的给付比例为20%，3年交的给付比例60%，5年交的给付比例100%。
A194: （二）生存保险金
A195: 自本合同生效后的第7个保单周年日起至第9个保单周年日止，若被保险人在每个保单周年日时仍生存且本合同仍然有效，本公司将于每个保单周年日按本合同基本保险金额给付生存保险金。 若被保险人于本合同生效后的第10个保单周年日前一日零时生存且本合同仍然有效，本公司将按本合同基本保险金额给付生存保险金。
A196: （三）身故保险金
A197: 若被保险人在本合同保险责任有效期内身故，本公司将给付身故保险金，本合同终止。身故保险金的数额为投保人累计已交保险费与被保险人身故之时本合同的现金价值两者中的较大者。
A198: 珠江智胜宝终身寿险（万能型）
A199: 身故保险金
A200: 被保险人在本合同保险责任有效期内身故，本公司将给付身故保险金，给付后个人账户价值为零，本合同终止。身故保险金的数额为以下两项中较大者： （1）本合同的基本保险金额乘以给付比例系数（见条款10.5）； （2）被保险人身故之日本合同的个人账户价值。 若在被保险人身故至身故保险金申请人提出申请期间发生个人账户价值部分领取的情况，本公司在给付身故保险金时将扣除上述部分领取金额。

Sheet 展示表
A2: 永鑫年年利益演示表 | H2: 智胜宝利益演示表
A3: 保单年度 | B3: 年末年龄 | C3: 年度保险费 | D3: 基本保额 | E3: 现金价值 | F3: 身故保险金 | G3: 特别生存保险金&生存保险金（保单年度末） | H3: 万能险部分领取实到金额 | I3: 部分领取累计实际扣除账户价值 | J3: 低档（最低保证利率3%） | M3: 中档 | P3: 高档
J4: 保单年度末万能险账户价值 | K4: 保单年度末万能险现金价值 | L4: 保单年度末万能险身故保险金 | M4: 保单年度末万能险账户价值 | N4: 保单年度末万能险现金价值 | O4: 保单年度末万能险身故保险金 | P4: 保单年度末万能险账户价值 | Q4: 保单年度末万能险现金价值 | R4: 保单年度末万能险身故保险金
A5: =利益演示!A11 -> 1 | B5: =利益演示!C11 -> 16 | C5: =利益演示!D11 -> 180000 | D5: =利益演示!F11 -> 158704.2 | E5: =利益演示!G11 -> 102778.2 | F5: =利益演示!H11 -> 180000 | G5: =利益演示!I11+利益演示!J11 -> 0 | H5: =利益演示!Z11 -> 0 | I5: =利益演示!AB11 -> 0 | J5: =利益演示!AG11 -> 1009.336552 | K5: =利益演示!AH11 -> 958.8697244 | L5: =利益演示!AJ11 -> 1200 | M5: =利益演示!AM11 -> 1024.035628 | N5: =利益演示!AN11 -> 972.8338466 | O5: =利益演示!AP11 -> 1200 | P5: =利益演示!AS11 -> 1038.734704 | Q5: =利益演示!AT11 -> 986.7979688 | R5: =利益演示!AV11 -> 1200
A6: =利益演示!A12 -> 2 | B6: =利益演示!C12 -> 17 | C6: =利益演示!D12 -> 180000 | D6: =利益演示!F12 -> 158704.2 | E6: =利益演示!G12 -> 267505.2 | F6: =利益演示!H12 -> 360000 | G6: =利益演示!I12+利益演示!J12 -> 0 | H6: =利益演示!Z12 -> 0 | I6: =利益演示!AB12 -> 0 | J6: =利益演示!AG12 -> 1039.557734 | K6: =利益演示!AH12 -> 1008.371002 | L6: =利益演示!AJ12 -> 1200 | M6: =利益演示!AM12 -> 1070.062066 | N6: =利益演示!AN12 -> 1037.960204 | O6: =利益演示!AP12 -> 1200 | P6: =利益演示!AS12 -> 1101.007504 | Q6: =利益演示!AT12 -> 1067.977279 | R6: =利益演示!AV12 -> 1200
A7: =利益演示!A13 -> 3 | B7: =利益演示!C13 -> 18 | C7: =利益演示!D13 -> 180000 | D7: =利益演示!F13 -> 158704.2 | E7: =利益演示!G13 -> 453223.8 | F7: =利益演示!H13 -> 540000 | G7: =利益演示!I13+利益演示!J13 -> 0 | H7: =利益演示!Z13 -> 0 | I7: =利益演示!AB13 -> 0 | J7: =利益演示!AG13 -> 1070.691584 | K7: =利益演示!AH13 -> 1049.277752 | L7: =利益演示!AJ13 -> 1200 | M7: =利益演示!AM13 -> 1118.171408 | N7: =利益演示!AN13 -> 1095.80798 | O7: =利益演示!AP13 -> 1200 | P7: =利益演示!AS13 -> 1167.034376 | Q7: =利益演示!AT13 -> 1143.693688 | R7: =利益演示!AV13 -> 1200
A8: =利益演示!A14 -> 4 | B8: =利益演示!C14 -> 19 | C8: =利益演示!D14 -> 180000 | D8: =利益演示!F14 -> 158704.2 | E8: =利益演示!G14 -> 656553.6 | F8: =利益演示!H14 -> 720000 | G8: =利益演示!I14+利益演示!J14 -> 0 | H8: =利益演示!Z14 -> 0 | I8: =利益演示!AB14 -> 0 | J8: =利益演示!AG14 -> 1102.632419 | K8: =利益演示!AH14 -> 1091.606095 | L8: =利益演示!AJ14 -> 1600 | M8: =利益演示!AM14 -> 1168.322963 | N8: =利益演示!AN14 -> 1156.639733 | O8: =利益演示!AP14 -> 1600 | P8: =利益演示!AS14 -> 1236.904987 | Q8: =利益演示!AT14 -> 1224.535937 | R8: =利益演示!AV14 -> 1600
A9: =利益演示!A15 -> 5 | B9: =利益演示!C15 -> 20 | C9: =利益演示!D15 -> 180000 | D9: =利益演示!F15 -> 158704.2 | E9: =利益演示!G15 -> 698686.2 | F9: =利益演示!H15 -> 900000 | G9: =利益演示!I15+利益演示!J15 -> 180000 | H9: =利益演示!Z15 -> 0 | I9: =利益演示!AB15 -> 0 | J9: =利益演示!AG15 -> 1135.532091 | K9: =利益演示!AH15 -> 1124.17677 | L9: =利益演示!AJ15 -> 1600 | M9: =利益演示!AM15 -> 1220.73961 | N9: =利益演示!AN15 -> 1208.532214 | O9: =利益演示!AP15 -> 1600 | P9: =利益演示!AS15 -> 1310.984578 | Q9: =利益演示!AT15 -> 1297.874732 | R9: =利益演示!AV15 -> 1600
A10: =利益演示!A16 -> 6 | B10: =利益演示!C16 -> 21 | C10: =利益演示!D16 ->  | D10: =利益演示!F16 -> 158704.2 | E10: =利益演示!G16 -> 557046 | F10: =利益演示!H16 -> 900000 | G10: =利益演示!I16+利益演示!J16 -> 180000 | H10: =利益演示!Z16 -> 0 | I10: =利益演示!AB16 -> 0 | J10: =利益演示!AG16 -> 184674.712 | K10: =利益演示!AH16 -> 184674.712 | L10: =利益演示!AJ16 -> 289600 | M10: =利益演示!AM16 -> 187453.2235 | N10: =利益演示!AN16 -> 187453.2235 | O10: =利益演示!AP16 -> 289600 | P10: =利益演示!AS16 -> 190239.6337 | Q10: =利益演示!AT16 -> 190239.6337 | R10: =利益演示!AV16 -> 289600
A11: =利益演示!A17 -> 7 | B11: =利益演示!C17 -> 22 | C11: =利益演示!D17 ->  | D11: =利益演示!F17 -> 158704.2 | E11: =利益演示!G17 -> 428853.6 | F11: =利益演示!H17 -> 900000 | G11: =利益演示!I17+利益演示!J17 -> 158704.2 | H11: =利益演示!Z17 -> 0 | I11: =利益演示!AB17 -> 0 | J11: =利益演示!AG17 -> 375530.9099 | K11: =利益演示!AH17 -> 375530.9099 | L11: =利益演示!AJ17 -> 577600 | M11: =利益演示!AM17 -> 383904.4544 | N11: =利益演示!AN17 -> 383904.4544 | O11: =利益演示!AP17 -> 577600 | P11: =利益演示!AS17 -> 392369.7619 | Q11: =利益演示!AT17 -> 392369.7619 | R11: =利益演示!AV17 -> 577600
A12: =利益演示!A18 -> 8 | B12: =利益演示!C18 -> 23 | C12: =利益演示!D18 ->  | D12: =利益演示!F18 -> 158704.2 | E12: =利益演示!G18 -> 293551.2 | F12: =利益演示!H18 -> 900000 | G12: =利益演示!I18+利益演示!J18 -> 158704.2 | H12: =利益演示!Z18 -> 0 | I12: =利益演示!AB18 -> 0 | J12: =利益演示!AG18 -> 550361.4504 | K12: =利益演示!AH18 -> 550361.4504 | L12: =利益演示!AJ18 -> 831526.72 | M12: =利益演示!AM18 -> 567130.1896 | N12: =利益演示!AN18 -> 567130.1896 | O12: =利益演示!AP18 -> 831526.72 | P12: =利益演示!AS18 -> 584247.5399 | Q12: =利益演示!AT18 -> 584247.5399 | R12: =利益演示!AV18 -> 831526.72
A13: =利益演示!A19 -> 9 | B13: =利益演示!C19 -> 24 | C13: =利益演示!D19 ->  | D13: =利益演示!F19 -> 158704.2 | E13: =利益演示!G19 -> 150741 | F13: =利益演示!H19 -> 900000 | G13: =利益演示!I19+利益演示!J19 -> 158704.2 | H13: =利益演示!Z19 -> 0 | I13: =利益演示!AB19 -> 0 | J13: =利益演示!AG19 -> 730178.0011 | K13: =利益演示!AH19 -> 730178.0011 | L13: =利益演示!AJ19 -> 1085453.44 | M13: =利益演示!AM19 -> 758342.1784 | N13: =利益演示!AN19 -> 758342.1784 | O13: =利益演示!AP19 -> 1085453.44 | P13: =利益演示!AS19 -> 787379.3033 | Q13: =利益演示!AT19 -> 787379.3033 | R13: =利益演示!AV19 -> 1085453.44
A14: =利益演示!A20 -> 10 | B14: =利益演示!C20 -> 25 | C14: =利益演示!D20 ->  | D14: =利益演示!F20 -> 158704.2 | E14: =利益演示!G20 -> 0 | F14: =利益演示!H20 -> 900000 | G14: =利益演示!I20+利益演示!J20 -> 158704.2 | H14: =利益演示!Z20 -> 0 | I14: =利益演示!AB20 -> 0 | J14: =利益演示!AG20 -> 915348.4387 | K14: =利益演示!AH20 -> 915348.4387 | L14: =利益演示!AJ20 -> 1339380.16 | M14: =利益演示!AM20 -> 958122.9766 | N14: =利益演示!AN20 -> 958122.9766 | O14: =利益演示!AP20 -> 1339380.16 | P14: =利益演示!AS20 -> 1002668.525 | Q14: =利益演示!AT20 -> 1002668.525 | R14: =利益演示!AV20 -> 1339380.16
A15: =利益演示!A21 -> 11 | B15: =利益演示!C21 -> 26 | C15: =利益演示!D21 -> 0 | D15: =利益演示!F21 -> 0 | E15: =利益演示!G21 -> 0 | F15: =利益演示!H21 -> 0 | G15: =利益演示!I21+利益演示!J21 -> 0 | H15: =利益演示!Z21 -> 0 | I15: =利益演示!AB21 -> 0 | J15: =利益演示!AG21 -> 1106032.808 | K15: =利益演示!AH21 -> 1106032.808 | L15: =利益演示!AJ21 -> 1593306.88 | M15: =利益演示!AM21 -> 1166859.589 | N15: =利益演示!AN21 -> 1166859.589 | O15: =利益演示!AP21 -> 1593306.88 | P15: =利益演示!AS21 -> 1230848.299 | Q15: =利益演示!AT21 -> 1230848.299 | R15: =利益演示!AV21 -> 1593306.88
A16: =利益演示!A22 -> 12 | B16: =利益演示!C22 -> 27 | C16: =利益演示!D22 -> 0 | D16: =利益演示!F22 -> 0 | E16: =利益演示!G22 -> 0 | F16: =利益演示!H22 -> 0 | G16: =利益演示!I22+利益演示!J22 -> 0 | H16: =利益演示!Z22 -> 0 | I16: =利益演示!AB22 -> 0 | J16: =利益演示!AG22 -> 1140612.556 | K16: =利益演示!AH22 -> 1140612.556 | L16: =利益演示!AJ22 -> 1593306.88 | M16: =利益演示!AM22 -> 1220817.279 | N16: =利益演示!AN22 -> 1220817.279 | O16: =利益演示!AP22 -> 1593306.88 | P16: =利益演示!AS22 -> 1306200.885 | Q16: =利益演示!AT22 -> 1306200.885 | R16: =利益演示!AV22 -> 1593306.88
A17: =利益演示!A23 -> 13 | B17: =利益演示!C23 -> 28 | C17: =利益演示!D23 -> 0 | D17: =利益演示!F23 -> 0 | E17: =利益演示!G23 -> 0 | F17: =利益演示!H23 -> 0 | G17: =利益演示!I23+利益演示!J23 -> 0 | H17: =利益演示!Z23 -> 0 | I17: =利益演示!AB23 -> 0 | J17: =利益演示!AG23 -> 1174597.795 | K17: =利益演示!AH23 -> 1174597.795 | L17: =利益演示!AJ23 -> 1593306.88 | M17: =利益演示!AM23 -> 1275559.431 | N17: =利益演示!AN23 -> 1275559.431 | O17: =利益演示!AP23 -> 1593306.88 | P17: =利益演示!AS23 -> 1384420.772 | Q17: =利益演示!AT23 -> 1384420.772 | R17: =利益演示!AV23 -> 1593306.88
A18: =利益演示!A24 -> 14 | B18: =利益演示!C24 -> 29 | C18: =利益演示!D24 -> 0 | D18: =利益演示!F24 -> 0 | E18: =利益演示!G24 -> 0 | F18: =利益演示!H24 -> 0 | G18: =利益演示!I24+利益演示!J24 -> 0 | H18: =利益演示!Z24 -> 0 | I18: =利益演示!AB24 -> 0 | J18: =利益演示!AG24 -> 1209607.156 | K18: =利益演示!AH24 -> 1209607.156 | L18: =利益演示!AJ24 -> 1593306.88 | M18: =利益演示!AM24 -> 1332783.621 | N18: =利益演示!AN24 -> 1332783.621 | O18: =利益演示!AP24 -> 1593306.88 | P18: =利益演示!AS24 -> 1467368.666 | Q18: =利益演示!AT24 -> 1467368.666 | R18: =利益演示!AV24 -> 1593306.88
A19: =利益演示!A25 -> 15 | B19: =利益演示!C25 -> 30 | C19: =利益演示!D25 -> 0 | D19: =利益演示!F25 -> 0 | E19: =利益演示!G25 -> 0 | F19: =利益演示!H25 -> 0 | G19: =利益演示!I25+利益演示!J25 -> 0 | H19: =利益演示!Z25 -> 0 | I19: =利益演示!AB25 -> 0 | J19: =利益演示!AG25 -> 1245674.052 | K19: =利益演示!AH25 -> 1245674.052 | L19: =利益演示!AJ25 -> 1593306.88 | M19: =利益演示!AM25 -> 1392606.426 | N19: =利益演示!AN25 -> 1392606.426 | O19: =利益演示!AP25 -> 1593306.88 | P19: =利益演示!AS25 -> 1555336.029 | Q19: =利益演示!AT25 -> 1555336.029 | R19: =利益演示!AV25 -> 1593306.88
A20: =利益演示!A26 -> 16 | B20: =利益演示!C26 -> 31 | C20: =利益演示!D26 -> 0 | D20: =利益演示!F26 -> 0 | E20: =利益演示!G26 -> 0 | F20: =利益演示!H26 -> 0 | G20: =利益演示!I26+利益演示!J26 -> 0 | H20: =利益演示!Z26 -> 0 | I20: =利益演示!AB26 -> 0 | J20: =利益演示!AG26 -> 1282829.437 | K20: =利益演示!AH26 -> 1282829.437 | L20: =利益演示!AJ26 -> 1593306.88 | M20: =利益演示!AM26 -> 1455147.876 | N20: =利益演示!AN26 -> 1455147.876 | O20: =利益演示!AP26 -> 1593306.88 | P20: =利益演示!AS26 -> 1648632.041 | Q20: =利益演示!AT26 -> 1648632.041 | R20: =利益演示!AV26 -> 1648632.041
A21: =利益演示!A27 -> 17 | B21: =利益演示!C27 -> 32 | C21: =利益演示!D27 -> 0 | D21: =利益演示!F27 -> 0 | E21: =利益演示!G27 -> 0 | F21: =利益演示!H27 -> 0 | G21: =利益演示!I27+利益演示!J27 -> 0 | H21: =利益演示!Z27 -> 0 | I21: =利益演示!AB27 -> 0 | J21: =利益演示!AG27 -> 1321109.653 | K21: =利益演示!AH27 -> 1321109.653 | L21: =利益演示!AJ27 -> 1593306.88 | M21: =利益演示!AM27 -> 1520537.13 | N21: =利益演示!AN27 -> 1520537.13 | O21: =利益演示!AP27 -> 1593306.88 | P21: =利益演示!AS27 -> 1747549.964 | Q21: =利益演示!AT27 -> 1747549.964 | R21: =利益演示!AV27 -> 1747549.964
A22: =利益演示!A28 -> 18 | B22: =利益演示!C28 -> 33 | C22: =利益演示!D28 -> 0 | D22: =利益演示!F28 -> 0 | E22: =利益演示!G28 -> 0 | F22: =利益演示!H28 -> 0 | G22: =利益演示!I28+利益演示!J28 -> 0 | H22: =利益演示!Z28 -> 0 | I22: =利益演示!AB28 -> 0 | J22: =利益演示!AG28 -> 1360552.296 | K22: =利益演示!AH28 -> 1360552.296 | L22: =利益演示!AJ28 -> 1593306.88 | M22: =利益演示!AM28 -> 1588909.59 | N22: =利益演示!AN28 -> 1588909.59 | O22: =利益演示!AP28 -> 1593306.88 | P22: =利益演示!AS28 -> 1852402.962 | Q22: =利益演示!AT28 -> 1852402.962 | R22: =利益演示!AV28 -> 1852402.962
A23: =利益演示!A29 -> 19 | B23: =利益演示!C29 -> 34 | C23: =利益演示!D29 -> 0 | D23: =利益演示!F29 -> 0 | E23: =利益演示!G29 -> 0 | F23: =利益演示!H29 -> 0 | G23: =利益演示!I29+利益演示!J29 -> 0 | H23: =利益演示!Z29 -> 0 | I23: =利益演示!AB29 -> 0 | J23: =利益演示!AG29 -> 1401193.857 | K23: =利益演示!AH29 -> 1401193.857 | L23: =利益演示!AJ29 -> 1593306.88 | M23: =利益演示!AM29 -> 1660407.167 | N23: =利益演示!AN29 -> 1660407.167 | O23: =利益演示!AP29 -> 1660407.167 | P23: =利益演示!AS29 -> 1963547.139 | Q23: =利益演示!AT29 -> 1963547.139 | R23: =利益演示!AV29 -> 1963547.139
A24: =利益演示!A30 -> 20 | B24: =利益演示!C30 -> 35 | C24: =利益演示!D30 -> 0 | D24: =利益演示!F30 -> 0 | E24: =利益演示!G30 -> 0 | F24: =利益演示!H30 -> 0 | G24: =利益演示!I30+利益演示!J30 -> 0 | H24: =利益演示!Z30 -> 0 | I24: =利益演示!AB30 -> 0 | J24: =利益演示!AG30 -> 1443073.35 | K24: =利益演示!AH30 -> 1443073.35 | L24: =利益演示!AJ30 -> 1593306.88 | M24: =利益演示!AM30 -> 1735125.49 | N24: =利益演示!AN30 -> 1735125.49 | O24: =利益演示!AP30 -> 1735125.49 | P24: =利益演示!AS30 -> 2081359.968 | Q24: =利益演示!AT30 -> 2081359.968 | R24: =利益演示!AV30 -> 2081359.968
A25: =利益演示!A31 -> 21 | B25: =利益演示!C31 -> 36 | C25: =利益演示!D31 -> 0 | D25: =利益演示!F31 -> 0 | E25: =利益演示!G31 -> 0 | F25: =利益演示!H31 -> 0 | G25: =利益演示!I31+利益演示!J31 -> 0 | H25: =利益演示!Z31 -> 0 | I25: =利益演示!AB31 -> 0 | J25: =利益演示!AG31 -> 1486234.021 | K25: =利益演示!AH31 -> 1486234.021 | L25: =利益演示!AJ31 -> 1593306.88 | M25: =利益演示!AM31 -> 1813206.137 | N25: =利益演示!AN31 -> 1813206.137 | O25: =利益演示!AP31 -> 1813206.137 | P25: =利益演示!AS31 -> 2206241.566 | Q25: =利益演示!AT31 -> 2206241.566 | R25: =利益演示!AV31 -> 2206241.566
A26: =利益演示!A32 -> 22 | B26: =利益演示!C32 -> 37 | C26: =利益演示!D32 -> 0 | D26: =利益演示!F32 -> 0 | E26: =利益演示!G32 -> 0 | F26: =利益演示!H32 -> 0 | G26: =利益演示!I32+利益演示!J32 -> 0 | H26: =利益演示!Z32 -> 0 | I26: =利益演示!AB32 -> 0 | J26: =利益演示!AG32 -> 1530719.579 | K26: =利益演示!AH32 -> 1530719.579 | L26: =利益演示!AJ32 -> 1593306.88 | M26: =利益演示!AM32 -> 1894800.413 | N26: =利益演示!AN32 -> 1894800.413 | O26: =利益演示!AP32 -> 1894800.413 | P26: =利益演示!AS32 -> 2338616.06 | Q26: =利益演示!AT32 -> 2338616.06 | R26: =利益演示!AV32 -> 2338616.06
A27: =利益演示!A33 -> 23 | B27: =利益演示!C33 -> 38 | C27: =利益演示!D33 -> 0 | D27: =利益演示!F33 -> 0 | E27: =利益演示!G33 -> 0 | F27: =利益演示!H33 -> 0 | G27: =利益演示!I33+利益演示!J33 -> 0 | H27: =利益演示!Z33 -> 0 | I27: =利益演示!AB33 -> 0 | J27: =利益演示!AG33 -> 1576576.702 | K27: =利益演示!AH33 -> 1576576.702 | L27: =利益演示!AJ33 -> 1593306.88 | M27: =利益演示!AM33 -> 1980066.432 | N27: =利益演示!AN33 -> 1980066.432 | O27: =利益演示!AP33 -> 1980066.432 | P27: =利益演示!AS33 -> 2478933.023 | Q27: =利益演示!AT33 -> 2478933.023 | R27: =利益演示!AV33 -> 2478933.023
A28: =利益演示!A34 -> 24 | B28: =利益演示!C34 -> 39 | C28: =利益演示!D34 -> 0 | D28: =利益演示!F34 -> 0 | E28: =利益演示!G34 -> 0 | F28: =利益演示!H34 -> 0 | G28: =利益演示!I34+利益演示!J34 -> 0 | H28: =利益演示!Z34 -> 0 | I28: =利益演示!AB34 -> 0 | J28: =利益演示!AG34 -> 1623855.392 | K28: =利益演示!AH34 -> 1623855.392 | L28: =利益演示!AJ34 -> 1623855.392 | M28: =利益演示!AM34 -> 2069169.421 | N28: =利益演示!AN34 -> 2069169.421 | O28: =利益演示!AP34 -> 2069169.421 | P28: =利益演示!AS34 -> 2627669.005 | Q28: =利益演示!AT34 -> 2627669.005 | R28: =利益演示!AV34 -> 2627669.005
A29: =利益演示!A35 -> 25 | B29: =利益演示!C35 -> 40 | C29: =利益演示!D35 -> 0 | D29: =利益演示!F35 -> 0 | E29: =利益演示!G35 -> 0 | F29: =利益演示!H35 -> 0 | G29: =利益演示!I35+利益演示!J35 -> 0 | H29: =利益演示!Z35 -> 0 | I29: =利益演示!AB35 -> 0 | J29: =利益演示!AG35 -> 1672571.054 | K29: =利益演示!AH35 -> 1672571.054 | L29: =利益演示!AJ35 -> 1672571.054 | M29: =利益演示!AM35 -> 2162282.045 | N29: =利益演示!AN35 -> 2162282.045 | O29: =利益演示!AP35 -> 2162282.045 | P29: =利益演示!AS35 -> 2785329.145 | Q29: =利益演示!AT35 -> 2785329.145 | R29: =利益演示!AV35 -> 2785329.145
A30: =利益演示!A36 -> 26 | B30: =利益演示!C36 -> 41 | C30: =利益演示!D36 -> 0 | D30: =利益演示!F36 -> 0 | E30: =利益演示!G36 -> 0 | F30: =利益演示!H36 -> 0 | G30: =利益演示!I36+利益演示!J36 -> 0 | H30: =利益演示!Z36 -> 0 | I30: =利益演示!AB36 -> 0 | J30: =利益演示!AG36 -> 1722748.186 | K30: =利益演示!AH36 -> 1722748.186 | L30: =利益演示!AJ36 -> 1722748.186 | M30: =利益演示!AM36 -> 2259584.737 | N30: =利益演示!AN36 -> 2259584.737 | O30: =利益演示!AP36 -> 2259584.737 | P30: =利益演示!AS36 -> 2952448.894 | Q30: =利益演示!AT36 -> 2952448.894 | R30: =利益演示!AV36 -> 2952448.894
A31: =利益演示!A37 -> 27 | B31: =利益演示!C37 -> 42 | C31: =利益演示!D37 -> 0 | D31: =利益演示!F37 -> 0 | E31: =利益演示!G37 -> 0 | F31: =利益演示!H37 -> 0 | G31: =利益演示!I37+利益演示!J37 -> 0 | H31: =利益演示!Z37 -> 0 | I31: =利益演示!AB37 -> 0 | J31: =利益演示!AG37 -> 1774430.631 | K31: =利益演示!AH37 -> 1774430.631 | L31: =利益演示!AJ37 -> 1774430.631 | M31: =利益演示!AM37 -> 2361266.05 | N31: =利益演示!AN37 -> 2361266.05 | O31: =利益演示!AP37 -> 2361266.05 | P31: =利益演示!AS37 -> 3129595.827 | Q31: =利益演示!AT37 -> 3129595.827 | R31: =利益演示!AV37 -> 3129595.827
A32: =利益演示!A38 -> 28 | B32: =利益演示!C38 -> 43 | C32: =利益演示!D38 -> 0 | D32: =利益演示!F38 -> 0 | E32: =利益演示!G38 -> 0 | F32: =利益演示!H38 -> 0 | G32: =利益演示!I38+利益演示!J38 -> 0 | H32: =利益演示!Z38 -> 0 | I32: =利益演示!AB38 -> 0 | J32: =利益演示!AG38 -> 1827663.55 | K32: =利益演示!AH38 -> 1827663.55 | L32: =利益演示!AJ38 -> 1827663.55 | M32: =利益演示!AM38 -> 2467523.023 | N32: =利益演示!AN38 -> 2467523.023 | O32: =利益演示!AP38 -> 2467523.023 | P32: =利益演示!AS38 -> 3317371.577 | Q32: =利益演示!AT38 -> 3317371.577 | R32: =利益演示!AV38 -> 3317371.577
A33: =利益演示!A39 -> 29 | B33: =利益演示!C39 -> 44 | C33: =利益演示!D39 -> 0 | D33: =利益演示!F39 -> 0 | E33: =利益演示!G39 -> 0 | F33: =利益演示!H39 -> 0 | G33: =利益演示!I39+利益演示!J39 -> 0 | H33: =利益演示!Z39 -> 0 | I33: =利益演示!AB39 -> 0 | J33: =利益演示!AG39 -> 1882493.457 | K33: =利益演示!AH39 -> 1882493.457 | L33: =利益演示!AJ39 -> 1882493.457 | M33: =利益演示!AM39 -> 2578561.559 | N33: =利益演示!AN39 -> 2578561.559 | O33: =利益演示!AP39 -> 2578561.559 | P33: =利益演示!AS39 -> 3516413.872 | Q33: =利益演示!AT39 -> 3516413.872 | R33: =利益演示!AV39 -> 3516413.872
A34: =利益演示!A40 -> 30 | B34: =利益演示!C40 -> 45 | C34: =利益演示!D40 -> 0 | D34: =利益演示!F40 -> 0 | E34: =利益演示!G40 -> 0 | F34: =利益演示!H40 -> 0 | G34: =利益演示!I40+利益演示!J40 -> 0 | H34: =利益演示!Z40 -> 0 | I34: =利益演示!AB40 -> 0 | J34: =利益演示!AG40 -> 1938968.26 | K34: =利益演示!AH40 -> 1938968.26 | L34: =利益演示!AJ40 -> 1938968.26 | M34: =利益演示!AM40 -> 2694596.829 | N34: =利益演示!AN40 -> 2694596.829 | O34: =利益演示!AP40 -> 2694596.829 | P34: =利益演示!AS40 -> 3727398.704 | Q34: =利益演示!AT40 -> 3727398.704 | R34: =利益演示!AV40 -> 3727398.704
A35: =利益演示!A41 -> 31 | B35: =利益演示!C41 -> 46 | C35: =利益演示!D41 -> 0 | D35: =利益演示!F41 -> 0 | E35: =利益演示!G41 -> 0 | F35: =利益演示!H41 -> 0 | G35: =利益演示!I41+利益演示!J41 -> 0 | H35: =利益演示!Z41 -> 0 | I35: =利益演示!AB41 -> 0 | J35: =利益演示!AG41 -> 1997137.308 | K35: =利益演示!AH41 -> 1997137.308 | L35: =利益演示!AJ41 -> 1997137.308 | M35: =利益演示!AM41 -> 2815853.686 | N35: =利益演示!AN41 -> 2815853.686 | O35: =利益演示!AP41 -> 2815853.686 | P35: =利益演示!AS41 -> 3951042.626 | Q35: =利益演示!AT41 -> 3951042.626 | R35: =利益演示!AV41 -> 3951042.626
A36: =利益演示!A42 -> 32 | B36: =利益演示!C42 -> 47 | C36: =利益演示!D42 -> 0 | D36: =利益演示!F42 -> 0 | E36: =利益演示!G42 -> 0 | F36: =利益演示!H42 -> 0 | G36: =利益演示!I42+利益演示!J42 -> 0 | H36: =利益演示!Z42 -> 0 | I36: =利益演示!AB42 -> 0 | J36: =利益演示!AG42 -> 2057051.427 | K36: =利益演示!AH42 -> 2057051.427 | L36: =利益演示!AJ42 -> 2057051.427 | M36: =利益演示!AM42 -> 2942567.102 | N36: =利益演示!AN42 -> 2942567.102 | O36: =利益演示!AP42 -> 2942567.102 | P36: =利益演示!AS42 -> 4188105.184 | Q36: =利益演示!AT42 -> 4188105.184 | R36: =利益演示!AV42 -> 4188105.184
A37: =利益演示!A43 -> 33 | B37: =利益演示!C43 -> 48 | C37: =利益演示!D43 -> 0 | D37: =利益演示!F43 -> 0 | E37: =利益演示!G43 -> 0 | F37: =利益演示!H43 -> 0 | G37: =利益演示!I43+利益演示!J43 -> 0 | H37: =利益演示!Z43 -> 0 | I37: =利益演示!AB43 -> 0 | J37: =利益演示!AG43 -> 2118762.97 | K37: =利益演示!AH43 -> 2118762.97 | L37: =利益演示!AJ43 -> 2118762.97 | M37: =利益演示!AM43 -> 3074982.621 | N37: =利益演示!AN43 -> 3074982.621 | O37: =利益演示!AP43 -> 3074982.621 | P37: =利益演示!AS43 -> 4439391.495 | Q37: =利益演示!AT43 -> 4439391.495 | R37: =利益演示!AV43 -> 4439391.495
A38: =利益演示!A44 -> 34 | B38: =利益演示!C44 -> 49 | C38: =利益演示!D44 -> 0 | D38: =利益演示!F44 -> 0 | E38: =利益演示!G44 -> 0 | F38: =利益演示!H44 -> 0 | G38: =利益演示!I44+利益演示!J44 -> 0 | H38: =利益演示!Z44 -> 0 | I38: =利益演示!AB44 -> 0 | J38: =利益演示!AG44 -> 2182325.859 | K38: =利益演示!AH44 -> 2182325.859 | L38: =利益演示!AJ44 -> 2182325.859 | M38: =利益演示!AM44 -> 3213356.839 | N38: =利益演示!AN44 -> 3213356.839 | O38: =利益演示!AP44 -> 3213356.839 | P38: =利益演示!AS44 -> 4705754.984 | Q38: =利益演示!AT44 -> 4705754.984 | R38: =利益演示!AV44 -> 4705754.984
A39: =利益演示!A45 -> 35 | B39: =利益演示!C45 -> 50 | C39: =利益演示!D45 -> 0 | D39: =利益演示!F45 -> 0 | E39: =利益演示!G45 -> 0 | F39: =利益演示!H45 -> 0 | G39: =利益演示!I45+利益演示!J45 -> 0 | H39: =利益演示!Z45 -> 0 | I39: =利益演示!AB45 -> 0 | J39: =利益演示!AG45 -> 2247795.635 | K39: =利益演示!AH45 -> 2247795.635 | L39: =利益演示!AJ45 -> 2247795.635 | M39: =利益演示!AM45 -> 3357957.897 | N39: =利益演示!AN45 -> 3357957.897 | O39: =利益演示!AP45 -> 3357957.897 | P39: =利益演示!AS45 -> 4988100.283 | Q39: =利益演示!AT45 -> 4988100.283 | R39: =利益演示!AV45 -> 4988100.283
A40: =利益演示!A46 -> 36 | B40: =利益演示!C46 -> 51 | C40: =利益演示!D46 -> 0 | D40: =利益演示!F46 -> 0 | E40: =利益演示!G46 -> 0 | F40: =利益演示!H46 -> 0 | G40: =利益演示!I46+利益演示!J46 -> 0 | H40: =利益演示!Z46 -> 0 | I40: =利益演示!AB46 -> 0 | J40: =利益演示!AG46 -> 2315229.504 | K40: =利益演示!AH46 -> 2315229.504 | L40: =利益演示!AJ46 -> 2315229.504 | M40: =利益演示!AM46 -> 3509066.003 | N40: =利益演示!AN46 -> 3509066.003 | O40: =利益演示!AP46 -> 3509066.003 | P40: =利益演示!AS46 -> 5287386.3 | Q40: =利益演示!AT46 -> 5287386.3 | R40: =利益演示!AV46 -> 5287386.3
A41: =利益演示!A47 -> 37 | B41: =利益演示!C47 -> 52 | C41: =利益演示!D47 -> 0 | D41: =利益演示!F47 -> 0 | E41: =利益演示!G47 -> 0 | F41: =利益演示!H47 -> 0 | G41: =利益演示!I47+利益演示!J47 -> 0 | H41: =利益演示!Z47 -> 0 | I41: =利益演示!AB47 -> 0 | J41: =利益演示!AG47 -> 2384686.389 | K41: =利益演示!AH47 -> 2384686.389 | L41: =利益演示!AJ47 -> 2384686.389 | M41: =利益演示!AM47 -> 3666973.973 | N41: =利益演示!AN47 -> 3666973.973 | O41: =利益演示!AP47 -> 3666973.973 | P41: =利益演示!AS47 -> 5604629.479 | Q41: =利益演示!AT47 -> 5604629.479 | R41: =利益演示!AV47 -> 5604629.479
A42: =利益演示!A48 -> 38 | B42: =利益演示!C48 -> 53 | C42: =利益演示!D48 -> 0 | D42: =利益演示!F48 -> 0 | E42: =利益演示!G48 -> 0 | F42: =利益演示!H48 -> 0 | G42: =利益演示!I48+利益演示!J48 -> 0 | H42: =利益演示!Z48 -> 0 | I42: =利益演示!AB48 -> 0 | J42: =利益演示!AG48 -> 2456226.981 | K42: =利益演示!AH48 -> 2456226.981 | L42: =利益演示!AJ48 -> 2456226.981 | M42: =利益演示!AM48 -> 3831987.801 | N42: =利益演示!AN48 -> 3831987.801 | O42: =利益演示!AP48 -> 3831987.801 | P42: =利益演示!AS48 -> 5940907.247 | Q42: =利益演示!AT48 -> 5940907.247 | R42: =利益演示!AV48 -> 5940907.247
A43: =利益演示!A49 -> 39 | B43: =利益演示!C49 -> 54 | C43: =利益演示!D49 -> 0 | D43: =利益演示!F49 -> 0 | E43: =利益演示!G49 -> 0 | F43: =利益演示!H49 -> 0 | G43: =利益演示!I49+利益演示!J49 -> 0 | H43: =利益演示!Z49 -> 0 | I43: =利益演示!AB49 -> 0 | J43: =利益演示!AG49 -> 2529913.79 | K43: =利益演示!AH49 -> 2529913.79 | L43: =利益演示!AJ49 -> 2529913.79 | M43: =利益演示!AM49 -> 4004427.253 | N43: =利益演示!AN49 -> 4004427.253 | O43: =利益演示!AP49 -> 4004427.253 | P43: =利益演示!AS49 -> 6297361.682 | Q43: =利益演示!AT49 -> 6297361.682 | R43: =利益演示!AV49 -> 6297361.682
A44: =利益演示!A50 -> 40 | B44: =利益演示!C50 -> 55 | C44: =利益演示!D50 -> 0 | D44: =利益演示!F50 -> 0 | E44: =利益演示!G50 -> 0 | F44: =利益演示!H50 -> 0 | G44: =利益演示!I50+利益演示!J50 -> 0 | H44: =利益演示!Z50 -> 0 | I44: =利益演示!AB50 -> 0 | J44: =利益演示!AG50 -> 2605811.204 | K44: =利益演示!AH50 -> 2605811.204 | L44: =利益演示!AJ50 -> 2605811.204 | M44: =利益演示!AM50 -> 4184626.479 | N44: =利益演示!AN50 -> 4184626.479 | O44: =利益演示!AP50 -> 4184626.479 | P44: =利益演示!AS50 -> 6675203.383 | Q44: =利益演示!AT50 -> 6675203.383 | R44: =利益演示!AV50 -> 6675203.383
A45: =利益演示!A51 -> 41 | B45: =利益演示!C51 -> 56 | C45: =利益演示!D51 -> 0 | D45: =利益演示!F51 -> 0 | E45: =利益演示!G51 -> 0 | F45: =利益演示!H51 -> 0 | G45: =利益演示!I51+利益演示!J51 -> 0 | H45: =利益演示!Z51 -> 0 | I45: =利益演示!AB51 -> 0 | J45: =利益演示!AG51 -> 2683985.54 | K45: =利益演示!AH51 -> 2683985.54 | L45: =利益演示!AJ51 -> 2683985.54 | M45: =利益演示!AM51 -> 4372934.67 | N45: =利益演示!AN51 -> 4372934.67 | O45: =利益演示!AP51 -> 4372934.67 | P45: =利益演示!AS51 -> 7075715.586 | Q45: =利益演示!AT51 -> 7075715.586 | R45: =利益演示!AV51 -> 7075715.586
A46: =利益演示!A52 -> 42 | B46: =利益演示!C52 -> 57 | C46: =利益演示!D52 -> 0 | D46: =利益演示!F52 -> 0 | E46: =利益演示!G52 -> 0 | F46: =利益演示!H52 -> 0 | G46: =利益演示!I52+利益演示!J52 -> 0 | H46: =利益演示!Z52 -> 0 | I46: =利益演示!AB52 -> 0 | J46: =利益演示!AG52 -> 2764505.106 | K46: =利益演示!AH52 -> 2764505.106 | L46: =利益演示!AJ52 -> 2764505.106 | M46: =利益演示!AM52 -> 4569716.731 | N46: =利益演示!AN52 -> 4569716.731 | O46: =利益演示!AP52 -> 4569716.731 | P46: =利益演示!AS52 -> 7500258.521 | Q46: =利益演示!AT52 -> 7500258.521 | R46: =利益演示!AV52 -> 7500258.521
A47: =利益演示!A53 -> 43 | B47: =利益演示!C53 -> 58 | C47: =利益演示!D53 -> 0 | D47: =利益演示!F53 -> 0 | E47: =利益演示!G53 -> 0 | F47: =利益演示!H53 -> 0 | G47: =利益演示!I53+利益演示!J53 -> 0 | H47: =利益演示!Z53 -> 0 | I47: =利益演示!AB53 -> 0 | J47: =利益演示!AG53 -> 2847440.26 | K47: =利益演示!AH53 -> 2847440.26 | L47: =利益演示!AJ53 -> 2847440.26 | M47: =利益演示!AM53 -> 4775353.983 | N47: =利益演示!AN53 -> 4775353.983 | O47: =利益演示!AP53 -> 4775353.983 | P47: =利益演示!AS53 -> 7950274.032 | Q47: =利益演示!AT53 -> 7950274.032 | R47: =利益演示!AV53 -> 7950274.032
A48: =利益演示!A54 -> 44 | B48: =利益演示!C54 -> 59 | C48: =利益演示!D54 -> 0 | D48: =利益演示!F54 -> 0 | E48: =利益演示!G54 -> 0 | F48: =利益演示!H54 -> 0 | G48: =利益演示!I54+利益演示!J54 -> 0 | H48: =利益演示!Z54 -> 0 | I48: =利益演示!AB54 -> 0 | J48: =利益演示!AG54 -> 2932863.467 | K48: =利益演示!AH54 -> 2932863.467 | L48: =利益演示!AJ54 -> 2932863.467 | M48: =利益演示!AM54 -> 4990244.913 | N48: =利益演示!AN54 -> 4990244.913 | O48: =利益演示!AP54 -> 4990244.913 | P48: =利益演示!AS54 -> 8427290.474 | Q48: =利益演示!AT54 -> 8427290.474 | R48: =利益演示!AV54 -> 8427290.474
A49: =利益演示!A55 -> 45 | B49: =利益演示!C55 -> 60 | C49: =利益演示!D55 -> 0 | D49: =利益演示!F55 -> 0 | E49: =利益演示!G55 -> 0 | F49: =利益演示!H55 -> 0 | G49: =利益演示!I55+利益演示!J55 -> 0 | H49: =利益演示!Z55 -> 0 | I49: =利益演示!AB55 -> 0 | J49: =利益演示!AG55 -> 3020849.371 | K49: =利益演示!AH55 -> 3020849.371 | L49: =利益演示!AJ55 -> 3020849.371 | M49: =利益演示!AM55 -> 5214805.934 | N49: =利益演示!AN55 -> 5214805.934 | O49: =利益演示!AP55 -> 5214805.934 | P49: =利益演示!AS55 -> 8932927.903 | Q49: =利益演示!AT55 -> 8932927.903 | R49: =利益演示!AV55 -> 8932927.903
A50: =利益演示!A56 -> 46 | B50: =利益演示!C56 -> 61 | C50: =利益演示!D56 -> 0 | D50: =利益演示!F56 -> 0 | E50: =利益演示!G56 -> 0 | F50: =利益演示!H56 -> 0 | G50: =利益演示!I56+利益演示!J56 -> 0 | H50: =利益演示!Z56 -> 0 | I50: =利益演示!AB56 -> 0 | J50: =利益演示!AG56 -> 3111474.853 | K50: =利益演示!AH56 -> 3111474.853 | L50: =利益演示!AJ56 -> 3111474.853 | M50: =利益演示!AM56 -> 5449472.201 | N50: =利益演示!AN56 -> 5449472.201 | O50: =利益演示!AP56 -> 5449472.201 | P50: =利益演示!AS56 -> 9468903.577 | Q50: =利益演示!AT56 -> 9468903.577 | R50: =利益演示!AV56 -> 9468903.577
A51: =利益演示!A57 -> 47 | B51: =利益演示!C57 -> 62 | C51: =利益演示!D57 -> 0 | D51: =利益演示!F57 -> 0 | E51: =利益演示!G57 -> 0 | F51: =利益演示!H57 -> 0 | G51: =利益演示!I57+利益演示!J57 -> 0 | H51: =利益演示!Z57 -> 0 | I51: =利益演示!AB57 -> 0 | J51: =利益演示!AG57 -> 3204819.098 | K51: =利益演示!AH57 -> 3204819.098 | L51: =利益演示!AJ57 -> 3204819.098 | M51: =利益演示!AM57 -> 5694698.45 | N51: =利益演示!AN57 -> 5694698.45 | O51: =利益演示!AP57 -> 5694698.45 | P51: =利益演示!AS57 -> 10037037.79 | Q51: =利益演示!AT57 -> 10037037.79 | R51: =利益演示!AV57 -> 10037037.79
A52: =利益演示!A58 -> 48 | B52: =利益演示!C58 -> 63 | C52: =利益演示!D58 -> 0 | D52: =利益演示!F58 -> 0 | E52: =利益演示!G58 -> 0 | F52: =利益演示!H58 -> 0 | G52: =利益演示!I58+利益演示!J58 -> 0 | H52: =利益演示!Z58 -> 0 | I52: =利益演示!AB58 -> 0 | J52: =利益演示!AG58 -> 3300963.671 | K52: =利益演示!AH58 -> 3300963.671 | L52: =利益演示!AJ58 -> 3300963.671 | M52: =利益演示!AM58 -> 5950959.88 | N52: =利益演示!AN58 -> 5950959.88 | O52: =利益演示!AP58 -> 5950959.88 | P52: =利益演示!AS58 -> 10639260.06 | Q52: =利益演示!AT58 -> 10639260.06 | R52: =利益演示!AV58 -> 10639260.06
A53: =利益演示!A59 -> 49 | B53: =利益演示!C59 -> 64 | C53: =利益演示!D59 -> 0 | D53: =利益演示!F59 -> 0 | E53: =利益演示!G59 -> 0 | F53: =利益演示!H59 -> 0 | G53: =利益演示!I59+利益演示!J59 -> 0 | H53: =利益演示!Z59 -> 0 | I53: =利益演示!AB59 -> 0 | J53: =利益演示!AG59 -> 3399992.581 | K53: =利益演示!AH59 -> 3399992.581 | L53: =利益演示!AJ59 -> 3399992.581 | M53: =利益演示!AM59 -> 6218753.075 | N53: =利益演示!AN59 -> 6218753.075 | O53: =利益演示!AP59 -> 6218753.075 | P53: =利益演示!AS59 -> 11277615.66 | Q53: =利益演示!AT59 -> 11277615.66 | R53: =利益演示!AV59 -> 11277615.66
A54: =利益演示!A60 -> 50 | B54: =利益演示!C60 -> 65 | C54: =利益演示!D60 -> 0 | D54: =利益演示!F60 -> 0 | E54: =利益演示!G60 -> 0 | F54: =利益演示!H60 -> 0 | G54: =利益演示!I60+利益演示!J60 -> 0 | H54: =利益演示!Z60 -> 0 | I54: =利益演示!AB60 -> 0 | J54: =利益演示!AG60 -> 3501992.359 | K54: =利益演示!AH60 -> 3501992.359 | L54: =利益演示!AJ60 -> 3501992.359 | M54: =利益演示!AM60 -> 6498596.963 | N54: =利益演示!AN60 -> 6498596.963 | O54: =利益演示!AP60 -> 6498596.963 | P54: =利益演示!AS60 -> 11954272.6 | Q54: =利益演示!AT60 -> 11954272.6 | R54: =利益演示!AV60 -> 11954272.6
A55: =利益演示!A61 -> 51 | B55: =利益演示!C61 -> 66 | C55: =利益演示!D61 -> 0 | D55: =利益演示!F61 -> 0 | E55: =利益演示!G61 -> 0 | F55: =利益演示!H61 -> 0 | G55: =利益演示!I61+利益演示!J61 -> 0 | H55: =利益演示!Z61 -> 0 | I55: =利益演示!AB61 -> 0 | J55: =利益演示!AG61 -> 3607052.129 | K55: =利益演示!AH61 -> 3607052.129 | L55: =利益演示!AJ61 -> 3607052.129 | M55: =利益演示!AM61 -> 6791033.826 | N55: =利益演示!AN61 -> 6791033.826 | O55: =利益演示!AP61 -> 6791033.826 | P55: =利益演示!AS61 -> 12671528.96 | Q55: =利益演示!AT61 -> 12671528.96 | R55: =利益演示!AV61 -> 12671528.96
A56: =利益演示!A62 -> 52 | B56: =利益演示!C62 -> 67 | C56: =利益演示!D62 -> 0 | D56: =利益演示!F62 -> 0 | E56: =利益演示!G62 -> 0 | F56: =利益演示!H62 -> 0 | G56: =利益演示!I62+利益演示!J62 -> 0 | H56: =利益演示!Z62 -> 0 | I56: =利益演示!AB62 -> 0 | J56: =利益演示!AG62 -> 3715263.693 | K56: =利益演示!AH62 -> 3715263.693 | L56: =利益演示!AJ62 -> 3715263.693 | M56: =利益演示!AM62 -> 7096630.349 | N56: =利益演示!AN62 -> 7096630.349 | O56: =利益演示!AP62 -> 7096630.349 | P56: =利益演示!AS62 -> 13431820.7 | Q56: =利益演示!AT62 -> 13431820.7 | R56: =利益演示!AV62 -> 13431820.7
A57: =利益演示!A63 -> 53 | B57: =利益演示!C63 -> 68 | C57: =利益演示!D63 -> 0 | D57: =利益演示!F63 -> 0 | E57: =利益演示!G63 -> 0 | F57: =利益演示!H63 -> 0 | G57: =利益演示!I63+利益演示!J63 -> 0 | H57: =利益演示!Z63 -> 0 | I57: =利益演示!AB63 -> 0 | J57: =利益演示!AG63 -> 3826721.604 | K57: =利益演示!AH63 -> 3826721.604 | L57: =利益演示!AJ63 -> 3826721.604 | M57: =利益演示!AM63 -> 7415978.714 | N57: =利益演示!AN63 -> 7415978.714 | O57: =利益演示!AP63 -> 7415978.714 | P57: =利益演示!AS63 -> 14237729.94 | Q57: =利益演示!AT63 -> 14237729.94 | R57: =利益演示!AV63 -> 14237729.94
A58: =利益演示!A64 -> 54 | B58: =利益演示!C64 -> 69 | C58: =利益演示!D64 -> 0 | D58: =利益演示!F64 -> 0 | E58: =利益演示!G64 -> 0 | F58: =利益演示!H64 -> 0 | G58: =利益演示!I64+利益演示!J64 -> 0 | H58: =利益演示!Z64 -> 0 | I58: =利益演示!AB64 -> 0 | J58: =利益演示!AG64 -> 3941523.252 | K58: =利益演示!AH64 -> 3941523.252 | L58: =利益演示!AJ64 -> 3941523.252 | M58: =利益演示!AM64 -> 7749697.756 | N58: =利益演示!AN64 -> 7749697.756 | O58: =利益演示!AP64 -> 7749697.756 | P58: =利益演示!AS64 -> 15091993.73 | Q58: =利益演示!AT64 -> 15091993.73 | R58: =利益演示!AV64 -> 15091993.73
A59: =利益演示!A65 -> 55 | B59: =利益演示!C65 -> 70 | C59: =利益演示!D65 -> 0 | D59: =利益演示!F65 -> 0 | E59: =利益演示!G65 -> 0 | F59: =利益演示!H65 -> 0 | G59: =利益演示!I65+利益演示!J65 -> 0 | H59: =利益演示!Z65 -> 0 | I59: =利益演示!AB65 -> 0 | J59: =利益演示!AG65 -> 4059768.95 | K59: =利益演示!AH65 -> 4059768.95 | L59: =利益演示!AJ65 -> 4059768.95 | M59: =利益演示!AM65 -> 8098434.155 | N59: =利益演示!AN65 -> 8098434.155 | O59: =利益演示!AP65 -> 8098434.155 | P59: =利益演示!AS65 -> 15997513.36 | Q59: =利益演示!AT65 -> 15997513.36 | R59: =利益演示!AV65 -> 15997513.36
A60: =利益演示!A66 -> 56 | B60: =利益演示!C66 -> 71 | C60: =利益演示!D66 -> 0 | D60: =利益演示!F66 -> 0 | E60: =利益演示!G66 -> 0 | F60: =利益演示!H66 -> 0 | G60: =利益演示!I66+利益演示!J66 -> 0 | H60: =利益演示!Z66 -> 0 | I60: =利益演示!AB66 -> 0 | J60: =利益演示!AG66 -> 4181562.018 | K60: =利益演示!AH66 -> 4181562.018 | L60: =利益演示!AJ66 -> 4181562.018 | M60: =利益演示!AM66 -> 8462863.692 | N60: =利益演示!AN66 -> 8462863.692 | O60: =利益演示!AP66 -> 8462863.692 | P60: =利益演示!AS66 -> 16957364.16 | Q60: =利益演示!AT66 -> 16957364.16 | R60: =利益演示!AV66 -> 16957364.16
A61: =利益演示!A67 -> 57 | B61: =利益演示!C67 -> 72 | C61: =利益演示!D67 -> 0 | D61: =利益演示!F67 -> 0 | E61: =利益演示!G67 -> 0 | F61: =利益演示!H67 -> 0 | G61: =利益演示!I67+利益演示!J67 -> 0 | H61: =利益演示!Z67 -> 0 | I61: =利益演示!AB67 -> 0 | J61: =利益演示!AG67 -> 4307008.879 | K61: =利益演示!AH67 -> 4307008.879 | L61: =利益演示!AJ67 -> 4307008.879 | M61: =利益演示!AM67 -> 8843692.559 | N61: =利益演示!AN67 -> 8843692.559 | O61: =利益演示!AP67 -> 8843692.559 | P61: =利益演示!AS67 -> 17974806.01 | Q61: =利益演示!AT67 -> 17974806.01 | R61: =利益演示!AV67 -> 17974806.01
A62: =利益演示!A68 -> 58 | B62: =利益演示!C68 -> 73 | C62: =利益演示!D68 -> 0 | D62: =利益演示!F68 -> 0 | E62: =利益演示!G68 -> 0 | F62: =利益演示!H68 -> 0 | G62: =利益演示!I68+利益演示!J68 -> 0 | H62: =利益演示!Z68 -> 0 | I62: =利益演示!AB68 -> 0 | J62: =利益演示!AG68 -> 4436219.145 | K62: =利益演示!AH68 -> 4436219.145 | L62: =利益演示!AJ68 -> 4436219.145 | M62: =利益演示!AM68 -> 9241658.724 | N62: =利益演示!AN68 -> 9241658.724 | O62: =利益演示!AP68 -> 9241658.724 | P62: =利益演示!AS68 -> 19053294.37 | Q62: =利益演示!AT68 -> 19053294.37 | R62: =利益演示!AV68 -> 19053294.37
A63: =利益演示!A69 -> 59 | B63: =利益演示!C69 -> 74 | C63: =利益演示!D69 -> 0 | D63: =利益演示!F69 -> 0 | E63: =利益演示!G69 -> 0 | F63: =利益演示!H69 -> 0 | G63: =利益演示!I69+利益演示!J69 -> 0 | H63: =利益演示!Z69 -> 0 | I63: =利益演示!AB69 -> 0 | J63: =利益演示!AG69 -> 4569305.719 | K63: =利益演示!AH69 -> 4569305.719 | L63: =利益演示!AJ69 -> 4569305.719 | M63: =利益演示!AM69 -> 9657533.366 | N63: =利益演示!AN69 -> 9657533.366 | O63: =利益演示!AP69 -> 9657533.366 | P63: =利益演示!AS69 -> 20196492.03 | Q63: =利益演示!AT69 -> 20196492.03 | R63: =利益演示!AV69 -> 20196492.03
A64: =利益演示!A70 -> 60 | B64: =利益演示!C70 -> 75 | C64: =利益演示!D70 -> 0 | D64: =利益演示!F70 -> 0 | E64: =利益演示!G70 -> 0 | F64: =利益演示!H70 -> 0 | G64: =利益演示!I70+利益演示!J70 -> 0 | H64: =利益演示!Z70 -> 0 | I64: =利益演示!AB70 -> 0 | J64: =利益演示!AG70 -> 4706384.891 | K64: =利益演示!AH70 -> 4706384.891 | L64: =利益演示!AJ70 -> 4706384.891 | M64: =利益演示!AM70 -> 10092122.37 | N64: =利益演示!AN70 -> 10092122.37 | O64: =利益演示!AP70 -> 10092122.37 | P64: =利益演示!AS70 -> 21408281.55 | Q64: =利益演示!AT70 -> 21408281.55 | R64: =利益演示!AV70 -> 21408281.55
A65: =利益演示!A71 -> 61 | B65: =利益演示!C71 -> 76 | C65: =利益演示!D71 -> 0 | D65: =利益演示!F71 -> 0 | E65: =利益演示!G71 -> 0 | F65: =利益演示!H71 -> 0 | G65: =利益演示!I71+利益演示!J71 -> 0 | H65: =利益演示!Z71 -> 0 | I65: =利益演示!AB71 -> 0 | J65: =利益演示!AG71 -> 4847576.438 | K65: =利益演示!AH71 -> 4847576.438 | L65: =利益演示!AJ71 -> 4847576.438 | M65: =利益演示!AM71 -> 10546267.87 | N65: =利益演示!AN71 -> 10546267.87 | O65: =利益演示!AP71 -> 10546267.87 | P65: =利益演示!AS71 -> 22692778.45 | Q65: =利益演示!AT71 -> 22692778.45 | R65: =利益演示!AV71 -> 22692778.45
A66: =利益演示!A72 -> 62 | B66: =利益演示!C72 -> 77 | C66: =利益演示!D72 -> 0 | D66: =利益演示!F72 -> 0 | E66: =利益演示!G72 -> 0 | F66: =利益演示!H72 -> 0 | G66: =利益演示!I72+利益演示!J72 -> 0 | H66: =利益演示!Z72 -> 0 | I66: =利益演示!AB72 -> 0 | J66: =利益演示!AG72 -> 4993003.731 | K66: =利益演示!AH72 -> 4993003.731 | L66: =利益演示!AJ72 -> 4993003.731 | M66: =利益演示!AM72 -> 11020849.93 | N66: =利益演示!AN72 -> 11020849.93 | O66: =利益演示!AP72 -> 11020849.93 | P66: =利益演示!AS72 -> 24054345.15 | Q66: =利益演示!AT72 -> 24054345.15 | R66: =利益演示!AV72 -> 24054345.15
A67: =利益演示!A73 -> 63 | B67: =利益演示!C73 -> 78 | C67: =利益演示!D73 -> 0 | D67: =利益演示!F73 -> 0 | E67: =利益演示!G73 -> 0 | F67: =利益演示!H73 -> 0 | G67: =利益演示!I73+利益演示!J73 -> 0 | H67: =利益演示!Z73 -> 0 | I67: =利益演示!AB73 -> 0 | J67: =利益演示!AG73 -> 5142793.843 | K67: =利益演示!AH73 -> 5142793.843 | L67: =利益演示!AJ73 -> 5142793.843 | M67: =利益演示!AM73 -> 11516788.18 | N67: =利益演示!AN73 -> 11516788.18 | O67: =利益演示!AP73 -> 11516788.18 | P67: =利益演示!AS73 -> 25497605.86 | Q67: =利益演示!AT73 -> 25497605.86 | R67: =利益演示!AV73 -> 25497605.86
A68: =利益演示!A74 -> 64 | B68: =利益演示!C74 -> 79 | C68: =利益演示!D74 -> 0 | D68: =利益演示!F74 -> 0 | E68: =利益演示!G74 -> 0 | F68: =利益演示!H74 -> 0 | G68: =利益演示!I74+利益演示!J74 -> 0 | H68: =利益演示!Z74 -> 0 | I68: =利益演示!AB74 -> 0 | J68: =利益演示!AG74 -> 5297077.658 | K68: =利益演示!AH74 -> 5297077.658 | L68: =利益演示!AJ74 -> 5297077.658 | M68: =利益演示!AM74 -> 12035043.64 | N68: =利益演示!AN74 -> 12035043.64 | O68: =利益演示!AP74 -> 12035043.64 | P68: =利益演示!AS74 -> 27027462.21 | Q68: =利益演示!AT74 -> 27027462.21 | R68: =利益演示!AV74 -> 27027462.21
A69: =利益演示!A75 -> 65 | B69: =利益演示!C75 -> 80 | C69: =利益演示!D75 -> 0 | D69: =利益演示!F75 -> 0 | E69: =利益演示!G75 -> 0 | F69: =利益演示!H75 -> 0 | G69: =利益演示!I75+利益演示!J75 -> 0 | H69: =利益演示!Z75 -> 0 | I69: =利益演示!AB75 -> 0 | J69: =利益演示!AG75 -> 5455989.988 | K69: =利益演示!AH75 -> 5455989.988 | L69: =利益演示!AJ75 -> 5455989.988 | M69: =利益演示!AM75 -> 12576620.61 | N69: =利益演示!AN75 -> 12576620.61 | O69: =利益演示!AP75 -> 12576620.61 | P69: =利益演示!AS75 -> 28649109.95 | Q69: =利益演示!AT75 -> 28649109.95 | R69: =利益演示!AV75 -> 28649109.95
A70: =利益演示!A76 -> 66 | B70: =利益演示!C76 -> 81 | C70: =利益演示!D76 -> 0 | D70: =利益演示!F76 -> 0 | E70: =利益演示!G76 -> 0 | F70: =利益演示!H76 -> 0 | G70: =利益演示!I76+利益演示!J76 -> 0 | H70: =利益演示!Z76 -> 0 | I70: =利益演示!AB76 -> 0 | J70: =利益演示!AG76 -> 5619669.687 | K70: =利益演示!AH76 -> 5619669.687 | L70: =利益演示!AJ76 -> 5619669.687 | M70: =利益演示!AM76 -> 13142568.53 | N70: =利益演示!AN76 -> 13142568.53 | O70: =利益演示!AP76 -> 13142568.53 | P70: =利益演示!AS76 -> 30368056.54 | Q70: =利益演示!AT76 -> 30368056.54 | R70: =利益演示!AV76 -> 30368056.54
A71: =利益演示!A77 -> 67 | B71: =利益演示!C77 -> 82 | C71: =利益演示!D77 -> 0 | D71: =利益演示!F77 -> 0 | E71: =利益演示!G77 -> 0 | F71: =利益演示!H77 -> 0 | G71: =利益演示!I77+利益演示!J77 -> 0 | H71: =利益演示!Z77 -> 0 | I71: =利益演示!AB77 -> 0 | J71: =利益演示!AG77 -> 5788259.778 | K71: =利益演示!AH77 -> 5788259.778 | L71: =利益演示!AJ77 -> 5788259.778 | M71: =利益演示!AM77 -> 13733984.12 | N71: =利益演示!AN77 -> 13733984.12 | O71: =利益演示!AP77 -> 13733984.12 | P71: =利益演示!AS77 -> 32190139.94 | Q71: =利益演示!AT77 -> 32190139.94 | R71: =利益演示!AV77 -> 32190139.94
A72: =利益演示!A78 -> 68 | B72: =利益演示!C78 -> 83 | C72: =利益演示!D78 -> 0 | D72: =利益演示!F78 -> 0 | E72: =利益演示!G78 -> 0 | F72: =利益演示!H78 -> 0 | G72: =利益演示!I78+利益演示!J78 -> 0 | H72: =利益演示!Z78 -> 0 | I72: =利益演示!AB78 -> 0 | J72: =利益演示!AG78 -> 5961907.571 | K72: =利益演示!AH78 -> 5961907.571 | L72: =利益演示!AJ78 -> 5961907.571 | M72: =利益演示!AM78 -> 14352013.4 | N72: =利益演示!AN78 -> 14352013.4 | O72: =利益演示!AP78 -> 14352013.4 | P72: =利益演示!AS78 -> 34121548.33 | Q72: =利益演示!AT78 -> 34121548.33 | R72: =利益演示!AV78 -> 34121548.33
A73: =利益演示!A79 -> 69 | B73: =利益演示!C79 -> 84 | C73: =利益演示!D79 -> 0 | D73: =利益演示!F79 -> 0 | E73: =利益演示!G79 -> 0 | F73: =利益演示!H79 -> 0 | G73: =利益演示!I79+利益演示!J79 -> 0 | H73: =利益演示!Z79 -> 0 | I73: =利益演示!AB79 -> 0 | J73: =利益演示!AG79 -> 6140764.799 | K73: =利益演示!AH79 -> 6140764.799 | L73: =利益演示!AJ79 -> 6140764.799 | M73: =利益演示!AM79 -> 14997854.01 | N73: =利益演示!AN79 -> 14997854.01 | O73: =利益演示!AP79 -> 14997854.01 | P73: =利益演示!AS79 -> 36168841.23 | Q73: =利益演示!AT79 -> 36168841.23 | R73: =利益演示!AV79 -> 36168841.23
A74: =利益演示!A80 -> 70 | B74: =利益演示!C80 -> 85 | C74: =利益演示!D80 -> 0 | D74: =利益演示!F80 -> 0 | E74: =利益演示!G80 -> 0 | F74: =利益演示!H80 -> 0 | G74: =利益演示!I80+利益演示!J80 -> 0 | H74: =利益演示!Z80 -> 0 | I74: =利益演示!AB80 -> 0 | J74: =利益演示!AG80 -> 6324987.743 | K74: =利益演示!AH80 -> 6324987.743 | L74: =利益演示!AJ80 -> 6324987.743 | M74: =利益演示!AM80 -> 15672757.44 | N74: =利益演示!AN80 -> 15672757.44 | O74: =利益演示!AP80 -> 15672757.44 | P74: =利益演示!AS80 -> 38338971.71 | Q74: =利益演示!AT80 -> 38338971.71 | R74: =利益演示!AV80 -> 38338971.71
A75: =利益演示!A81 -> 71 | B75: =利益演示!C81 -> 86 | C75: =利益演示!D81 -> 0 | D75: =利益演示!F81 -> 0 | E75: =利益演示!G81 -> 0 | F75: =利益演示!H81 -> 0 | G75: =利益演示!I81+利益演示!J81 -> 0 | H75: =利益演示!Z81 -> 0 | I75: =利益演示!AB81 -> 0 | J75: =利益演示!AG81 -> 6514737.375 | K75: =利益演示!AH81 -> 6514737.375 | L75: =利益演示!AJ81 -> 6514737.375 | M75: =利益演示!AM81 -> 16378031.52 | N75: =利益演示!AN81 -> 16378031.52 | O75: =利益演示!AP81 -> 16378031.52 | P75: =利益演示!AS81 -> 40639310.01 | Q75: =利益演示!AT81 -> 40639310.01 | R75: =利益演示!AV81 -> 40639310.01
A76: =利益演示!A82 -> 72 | B76: =利益演示!C82 -> 87 | C76: =利益演示!D82 -> 0 | D76: =利益演示!F82 -> 0 | E76: =利益演示!G82 -> 0 | F76: =利益演示!H82 -> 0 | G76: =利益演示!I82+利益演示!J82 -> 0 | H76: =利益演示!Z82 -> 0 | I76: =利益演示!AB82 -> 0 | J76: =利益演示!AG82 -> 6710179.496 | K76: =利益演示!AH82 -> 6710179.496 | L76: =利益演示!AJ82 -> 6710179.496 | M76: =利益演示!AM82 -> 17115042.94 | N76: =利益演示!AN82 -> 17115042.94 | O76: =利益演示!AP82 -> 17115042.94 | P76: =利益演示!AS82 -> 43077668.61 | Q76: =利益演示!AT82 -> 43077668.61 | R76: =利益演示!AV82 -> 43077668.61
A77: =利益演示!A83 -> 73 | B77: =利益演示!C83 -> 88 | C77: =利益演示!D83 -> 0 | D77: =利益演示!F83 -> 0 | E77: =利益演示!G83 -> 0 | F77: =利益演示!H83 -> 0 | G77: =利益演示!I83+利益演示!J83 -> 0 | H77: =利益演示!Z83 -> 0 | I77: =利益演示!AB83 -> 0 | J77: =利益演示!AG83 -> 6911484.881 | K77: =利益演示!AH83 -> 6911484.881 | L77: =利益演示!AJ83 -> 6911484.881 | M77: =利益演示!AM83 -> 17885219.87 | N77: =利益演示!AN83 -> 17885219.87 | O77: =利益演示!AP83 -> 17885219.87 | P77: =利益演示!AS83 -> 45662328.73 | Q77: =利益演示!AT83 -> 45662328.73 | R77: =利益演示!AV83 -> 45662328.73
A78: =利益演示!A84 -> 74 | B78: =利益演示!C84 -> 89 | C78: =利益演示!D84 -> 0 | D78: =利益演示!F84 -> 0 | E78: =利益演示!G84 -> 0 | F78: =利益演示!H84 -> 0 | G78: =利益演示!I84+利益演示!J84 -> 0 | H78: =利益演示!Z84 -> 0 | I78: =利益演示!AB84 -> 0 | J78: =利益演示!AG84 -> 7118829.427 | K78: =利益演示!AH84 -> 7118829.427 | L78: =利益演示!AJ84 -> 7118829.427 | M78: =利益演示!AM84 -> 18690054.77 | N78: =利益演示!AN84 -> 18690054.77 | O78: =利益演示!AP84 -> 18690054.77 | P78: =利益演示!AS84 -> 48402068.45 | Q78: =利益演示!AT84 -> 48402068.45 | R78: =利益演示!AV84 -> 48402068.45
A79: =利益演示!A85 -> 75 | B79: =利益演示!C85 -> 90 | C79: =利益演示!D85 -> 0 | D79: =利益演示!F85 -> 0 | E79: =利益演示!G85 -> 0 | F79: =利益演示!H85 -> 0 | G79: =利益演示!I85+利益演示!J85 -> 0 | H79: =利益演示!Z85 -> 0 | I79: =利益演示!AB85 -> 0 | J79: =利益演示!AG85 -> 7332394.31 | K79: =利益演示!AH85 -> 7332394.31 | L79: =利益演示!AJ85 -> 7332394.31 | M79: =利益演示!AM85 -> 19531107.23 | N79: =利益演示!AN85 -> 19531107.23 | O79: =利益演示!AP85 -> 19531107.23 | P79: =利益演示!AS85 -> 51306192.56 | Q79: =利益演示!AT85 -> 51306192.56 | R79: =利益演示!AV85 -> 51306192.56
A80: =利益演示!A86 -> 76 | B80: =利益演示!C86 -> 91 | C80: =利益演示!D86 -> 0 | D80: =利益演示!F86 -> 0 | E80: =利益演示!G86 -> 0 | F80: =利益演示!H86 -> 0 | G80: =利益演示!I86+利益演示!J86 -> 0 | H80: =利益演示!Z86 -> 0 | I80: =利益演示!AB86 -> 0 | J80: =利益演示!AG86 -> 7552366.14 | K80: =利益演示!AH86 -> 7552366.14 | L80: =利益演示!AJ86 -> 7552366.14 | M80: =利益演示!AM86 -> 20410007.06 | N80: =利益演示!AN86 -> 20410007.06 | O80: =利益演示!AP86 -> 20410007.06 | P80: =利益演示!AS86 -> 54384564.11 | Q80: =利益演示!AT86 -> 54384564.11 | R80: =利益演示!AV86 -> 54384564.11
A81: =利益演示!A87 -> 77 | B81: =利益演示!C87 -> 92 | C81: =利益演示!D87 -> 0 | D81: =利益演示!F87 -> 0 | E81: =利益演示!G87 -> 0 | F81: =利益演示!H87 -> 0 | G81: =利益演示!I87+利益演示!J87 -> 0 | H81: =利益演示!Z87 -> 0 | I81: =利益演示!AB87 -> 0 | J81: =利益演示!AG87 -> 7778937.124 | K81: =利益演示!AH87 -> 7778937.124 | L81: =利益演示!AJ87 -> 7778937.124 | M81: =利益演示!AM87 -> 21328457.38 | N81: =利益演示!AN87 -> 21328457.38 | O81: =利益演示!AP87 -> 21328457.38 | P81: =利益演示!AS87 -> 57647637.96 | Q81: =利益演示!AT87 -> 57647637.96 | R81: =利益演示!AV87 -> 57647637.96
A82: =利益演示!A88 -> 78 | B82: =利益演示!C88 -> 93 | C82: =利益演示!D88 -> 0 | D82: =利益演示!F88 -> 0 | E82: =利益演示!G88 -> 0 | F82: =利益演示!H88 -> 0 | G82: =利益演示!I88+利益演示!J88 -> 0 | H82: =利益演示!Z88 -> 0 | I82: =利益演示!AB88 -> 0 | J82: =利益演示!AG88 -> 8012305.237 | K82: =利益演示!AH88 -> 8012305.237 | L82: =利益演示!AJ88 -> 8012305.237 | M82: =利益演示!AM88 -> 22288237.96 | N82: =利益演示!AN88 -> 22288237.96 | O82: =利益演示!AP88 -> 22288237.96 | P82: =利益演示!AS88 -> 61106496.24 | Q82: =利益演示!AT88 -> 61106496.24 | R82: =利益演示!AV88 -> 61106496.24
A83: =利益演示!A89 -> 79 | B83: =利益演示!C89 -> 94 | C83: =利益演示!D89 -> 0 | D83: =利益演示!F89 -> 0 | E83: =利益演示!G89 -> 0 | F83: =利益演示!H89 -> 0 | G83: =利益演示!I89+利益演示!J89 -> 0 | H83: =利益演示!Z89 -> 0 | I83: =利益演示!AB89 -> 0 | J83: =利益演示!AG89 -> 8252674.395 | K83: =利益演示!AH89 -> 8252674.395 | L83: =利益演示!AJ89 -> 8252674.395 | M83: =利益演示!AM89 -> 23291208.66 | N83: =利益演示!AN89 -> 23291208.66 | O83: =利益演示!AP89 -> 23291208.66 | P83: =利益演示!AS89 -> 64772886.01 | Q83: =利益演示!AT89 -> 64772886.01 | R83: =利益演示!AV89 -> 64772886.01
A84: =利益演示!A90 -> 80 | B84: =利益演示!C90 -> 95 | C84: =利益演示!D90 -> 0 | D84: =利益演示!F90 -> 0 | E84: =利益演示!G90 -> 0 | F84: =利益演示!H90 -> 0 | G84: =利益演示!I90+利益演示!J90 -> 0 | H84: =利益演示!Z90 -> 0 | I84: =利益演示!AB90 -> 0 | J84: =利益演示!AG90 -> 8500254.626 | K84: =利益演示!AH90 -> 8500254.626 | L84: =利益演示!AJ90 -> 8500254.626 | M84: =利益演示!AM90 -> 24339313.05 | N84: =利益演示!AN90 -> 24339313.05 | O84: =利益演示!AP90 -> 24339313.05 | P84: =利益演示!AS90 -> 68659259.17 | Q84: =利益演示!AT90 -> 68659259.17 | R84: =利益演示!AV90 -> 68659259.17
A85: =利益演示!A91 -> 81 | B85: =利益演示!C91 -> 96 | C85: =利益演示!D91 -> 0 | D85: =利益演示!F91 -> 0 | E85: =利益演示!G91 -> 0 | F85: =利益演示!H91 -> 0 | G85: =利益演示!I91+利益演示!J91 -> 0 | H85: =利益演示!Z91 -> 0 | I85: =利益演示!AB91 -> 0 | J85: =利益演示!AG91 -> 8755262.265 | K85: =利益演示!AH91 -> 8755262.265 | L85: =利益演示!AJ91 -> 8755262.265 | M85: =利益演示!AM91 -> 25434582.14 | N85: =利益演示!AN91 -> 25434582.14 | O85: =利益演示!AP91 -> 25434582.14 | P85: =利益演示!AS91 -> 72778814.72 | Q85: =利益演示!AT91 -> 72778814.72 | R85: =利益演示!AV91 -> 72778814.72
A86: =利益演示!A92 -> 82 | B86: =利益演示!C92 -> 97 | C86: =利益演示!D92 -> 0 | D86: =利益演示!F92 -> 0 | E86: =利益演示!G92 -> 0 | F86: =利益演示!H92 -> 0 | G86: =利益演示!I92+利益演示!J92 -> 0 | H86: =利益演示!Z92 -> 0 | I86: =利益演示!AB92 -> 0 | J86: =利益演示!AG92 -> 9017920.133 | K86: =利益演示!AH92 -> 9017920.133 | L86: =利益演示!AJ92 -> 9017920.133 | M86: =利益演示!AM92 -> 26579138.34 | N86: =利益演示!AN92 -> 26579138.34 | O86: =利益演示!AP92 -> 26579138.34 | P86: =利益演示!AS92 -> 77145543.6 | Q86: =利益演示!AT92 -> 77145543.6 | R86: =利益演示!AV92 -> 77145543.6
A87: =利益演示!A93 -> 83 | B87: =利益演示!C93 -> 98 | C87: =利益演示!D93 -> 0 | D87: =利益演示!F93 -> 0 | E87: =利益演示!G93 -> 0 | F87: =利益演示!H93 -> 0 | G87: =利益演示!I93+利益演示!J93 -> 0 | H87: =利益演示!Z93 -> 0 | I87: =利益演示!AB93 -> 0 | J87: =利益演示!AG93 -> 9288457.737 | K87: =利益演示!AH93 -> 9288457.737 | L87: =利益演示!AJ93 -> 9288457.737 | M87: =利益演示!AM93 -> 27775199.56 | N87: =利益演示!AN93 -> 27775199.56 | O87: =利益演示!AP93 -> 27775199.56 | P87: =利益演示!AS93 -> 81774276.22 | Q87: =利益演示!AT93 -> 81774276.22 | R87: =利益演示!AV93 -> 81774276.22
A88: =利益演示!A94 -> 84 | B88: =利益演示!C94 -> 99 | C88: =利益演示!D94 -> 0 | D88: =利益演示!F94 -> 0 | E88: =利益演示!G94 -> 0 | F88: =利益演示!H94 -> 0 | G88: =利益演示!I94+利益演示!J94 -> 0 | H88: =利益演示!Z94 -> 0 | I88: =利益演示!AB94 -> 0 | J88: =利益演示!AG94 -> 9567111.469 | K88: =利益演示!AH94 -> 9567111.469 | L88: =利益演示!AJ94 -> 9567111.469 | M88: =利益演示!AM94 -> 29025083.54 | N88: =利益演示!AN94 -> 29025083.54 | O88: =利益演示!AP94 -> 29025083.54 | P88: =利益演示!AS94 -> 86680732.79 | Q88: =利益演示!AT94 -> 86680732.79 | R88: =利益演示!AV94 -> 86680732.79
A89: =利益演示!A95 -> 85 | B89: =利益演示!C95 -> 100 | C89: =利益演示!D95 -> 0 | D89: =利益演示!F95 -> 0 | E89: =利益演示!G95 -> 0 | F89: =利益演示!H95 -> 0 | G89: =利益演示!I95+利益演示!J95 -> 0 | H89: =利益演示!Z95 -> 0 | I89: =利益演示!AB95 -> 0 | J89: =利益演示!AG95 -> 9854124.813 | K89: =利益演示!AH95 -> 9854124.813 | L89: =利益演示!AJ95 -> 9854124.813 | M89: =利益演示!AM95 -> 30331212.3 | N89: =利益演示!AN95 -> 30331212.3 | O89: =利益演示!AP95 -> 30331212.3 | P89: =利益演示!AS95 -> 91881576.76 | Q89: =利益演示!AT95 -> 91881576.76 | R89: =利益演示!AV95 -> 91881576.76
A90: =利益演示!A96 -> 86 | B90: =利益演示!C96 -> 101 | C90: =利益演示!D96 -> 0 | D90: =利益演示!F96 -> 0 | E90: =利益演示!G96 -> 0 | F90: =利益演示!H96 -> 0 | G90: =利益演示!I96+利益演示!J96 -> 0 | H90: =利益演示!Z96 -> 0 | I90: =利益演示!AB96 -> 0 | J90: =利益演示!AG96 -> 10149748.56 | K90: =利益演示!AH96 -> 10149748.56 | L90: =利益演示!AJ96 -> 10149748.56 | M90: =利益演示!AM96 -> 31696116.86 | N90: =利益演示!AN96 -> 31696116.86 | O90: =利益演示!AP96 -> 31696116.86 | P90: =利益演示!AS96 -> 97394471.37 | Q90: =利益演示!AT96 -> 97394471.37 | R90: =利益演示!AV96 -> 97394471.37
A91: =利益演示!A97 -> 87 | B91: =利益演示!C97 -> 102 | C91: =利益演示!D97 -> 0 | D91: =利益演示!F97 -> 0 | E91: =利益演示!G97 -> 0 | F91: =利益演示!H97 -> 0 | G91: =利益演示!I97+利益演示!J97 -> 0 | H91: =利益演示!Z97 -> 0 | I91: =利益演示!AB97 -> 0 | J91: =利益演示!AG97 -> 10454241.01 | K91: =利益演示!AH97 -> 10454241.01 | L91: =利益演示!AJ97 -> 10454241.01 | M91: =利益演示!AM97 -> 33122442.12 | N91: =利益演示!AN97 -> 33122442.12 | O91: =利益演示!AP97 -> 33122442.12 | P91: =利益演示!AS97 -> 103238139.6 | Q91: =利益演示!AT97 -> 103238139.6 | R91: =利益演示!AV97 -> 103238139.6
A92: =利益演示!A98 -> 88 | B92: =利益演示!C98 -> 103 | C92: =利益演示!D98 -> 0 | D92: =利益演示!F98 -> 0 | E92: =利益演示!G98 -> 0 | F92: =利益演示!H98 -> 0 | G92: =利益演示!I98+利益演示!J98 -> 0 | H92: =利益演示!Z98 -> 0 | I92: =利益演示!AB98 -> 0 | J92: =利益演示!AG98 -> 10767868.24 | K92: =利益演示!AH98 -> 10767868.24 | L92: =利益演示!AJ98 -> 10767868.24 | M92: =利益演示!AM98 -> 34612952.01 | N92: =利益演示!AN98 -> 34612952.01 | O92: =利益演示!AP98 -> 34612952.01 | P92: =利益演示!AS98 -> 109432428 | Q92: =利益演示!AT98 -> 109432428 | R92: =利益演示!AV98 -> 109432428
A93: =利益演示!A99 -> 89 | B93: =利益演示!C99 -> 104 | C93: =利益演示!D99 -> 0 | D93: =利益演示!F99 -> 0 | E93: =利益演示!G99 -> 0 | F93: =利益演示!H99 -> 0 | G93: =利益演示!I99+利益演示!J99 -> 0 | H93: =利益演示!Z99 -> 0 | I93: =利益演示!AB99 -> 0 | J93: =利益演示!AG99 -> 11090904.29 | K93: =利益演示!AH99 -> 11090904.29 | L93: =利益演示!AJ99 -> 11090904.29 | M93: =利益演示!AM99 -> 36170534.85 | N93: =利益演示!AN99 -> 36170534.85 | O93: =利益演示!AP99 -> 36170534.85 | P93: =利益演示!AS99 -> 115998373.7 | Q93: =利益演示!AT99 -> 115998373.7 | R93: =利益演示!AV99 -> 115998373.7
A94: =利益演示!A100 -> 90 | B94: =利益演示!C100 -> 105 | C94: =利益演示!D100 -> 0 | D94: =利益演示!F100 -> 0 | E94: =利益演示!G100 -> 0 | F94: =利益演示!H100 -> 0 | G94: =利益演示!I100+利益演示!J100 -> 0 | H94: =利益演示!Z100 -> 0 | I94: =利益演示!AB100 -> 0 | J94: =利益演示!AG100 -> 11423631.42 | K94: =利益演示!AH100 -> 11423631.42 | L94: =利益演示!AJ100 -> 11423631.42 | M94: =利益演示!AM100 -> 37798208.92 | N94: =利益演示!AN100 -> 37798208.92 | O94: =利益演示!AP100 -> 37798208.92 | P94: =利益演示!AS100 -> 122958276.1 | Q94: =利益演示!AT100 -> 122958276.1 | R94: =利益演示!AV100 -> 122958276.1
A95: =利益演示!A101 -> 91 | B95: =利益演示!C101 -> 106 | C95: =利益演示!D101 -> 0 | D95: =利益演示!F101 -> 0 | E95: =利益演示!G101 -> 0 | F95: =利益演示!H101 -> 0 | G95: =利益演示!I101+利益演示!J101 -> 0 | H95: =利益演示!Z101 -> 0 | I95: =利益演示!AB101 -> 0 | J95: =利益演示!AG101 -> 11766340.36 | K95: =利益演示!AH101 -> 11766340.36 | L95: =利益演示!AJ101 -> 11766340.36 | M95: =利益演示!AM101 -> 39499128.32 | N95: =利益演示!AN101 -> 39499128.32 | O95: =利益演示!AP101 -> 39499128.32 | P95: =利益演示!AS101 -> 130335772.7 | Q95: =利益演示!AT101 -> 130335772.7 | R95: =利益演示!AV101 -> 130335772.7
A96: =利益演示!A102 -> 92 | B96: =利益演示!C102 -> 107 | C96: =利益演示!D102 -> 0 | D96: =利益演示!F102 -> 0 | E96: =利益演示!G102 -> 0 | F96: =利益演示!H102 -> 0 | G96: =利益演示!I102+利益演示!J102 -> 0 | H96: =利益演示!Z102 -> 0 | I96: =利益演示!AB102 -> 0 | J96: =利益演示!AG102 -> 12119330.57 | K96: =利益演示!AH102 -> 12119330.57 | L96: =利益演示!AJ102 -> 12119330.57 | M96: =利益演示!AM102 -> 41276589.1 | N96: =利益演示!AN102 -> 41276589.1 | O96: =利益演示!AP102 -> 41276589.1 | P96: =利益演示!AS102 -> 138155919.1 | Q96: =利益演示!AT102 -> 138155919.1 | R96: =利益演示!AV102 -> 138155919.1
A97: =利益演示!A103 -> 93 | B97: =利益演示!C103 -> 108 | C97: =利益演示!D103 -> 0 | D97: =利益演示!F103 -> 0 | E97: =利益演示!G103 -> 0 | F97: =利益演示!H103 -> 0 | G97: =利益演示!I103+利益演示!J103 -> 0 | H97: =利益演示!Z103 -> 0 | I97: =利益演示!AB103 -> 0 | J97: =利益演示!AG103 -> 12482910.49 | K97: =利益演示!AH103 -> 12482910.49 | L97: =利益演示!AJ103 -> 12482910.49 | M97: =利益演示!AM103 -> 43134035.61 | N97: =利益演示!AN103 -> 43134035.61 | O97: =利益演示!AP103 -> 43134035.61 | P97: =利益演示!AS103 -> 146445274.2 | Q97: =利益演示!AT103 -> 146445274.2 | R97: =利益演示!AV103 -> 146445274.2
A98: =利益演示!A104 -> 94 | B98: =利益演示!C104 -> 109 | C98: =利益演示!D104 -> 0 | D98: =利益演示!F104 -> 0 | E98: =利益演示!G104 -> 0 | F98: =利益演示!H104 -> 0 | G98: =利益演示!I104+利益演示!J104 -> 0 | H98: =利益演示!Z104 -> 0 | I98: =利益演示!AB104 -> 0 | J98: =利益演示!AG104 -> 12857397.81 | K98: =利益演示!AH104 -> 12857397.81 | L98: =利益演示!AJ104 -> 12857397.81 | M98: =利益演示!AM104 -> 45075067.21 | N98: =利益演示!AN104 -> 45075067.21 | O98: =利益演示!AP104 -> 45075067.21 | P98: =利益演示!AS104 -> 155231990.7 | Q98: =利益演示!AT104 -> 155231990.7 | R98: =利益演示!AV104 -> 155231990.7
A99: =利益演示!A105 -> 95 | B99: =利益演示!C105 -> 110 | C99: =利益演示!D105 -> 0 | D99: =利益演示!F105 -> 0 | E99: =利益演示!G105 -> 0 | F99: =利益演示!H105 -> 0 | G99: =利益演示!I105+利益演示!J105 -> 0 | H99: =利益演示!Z105 -> 0 | I99: =利益演示!AB105 -> 0 | J99: =利益演示!AG105 -> 13243119.74 | K99: =利益演示!AH105 -> 13243119.74 | L99: =利益演示!AJ105 -> 13243119.74 | M99: =利益演示!AM105 -> 47103445.23 | N99: =利益演示!AN105 -> 47103445.23 | O99: =利益演示!AP105 -> 47103445.23 | P99: =利益演示!AS105 -> 164545910.1 | Q99: =利益演示!AT105 -> 164545910.1 | R99: =利益演示!AV105 -> 164545910.1
A100: =利益演示!A106 -> 96 | B100: =利益演示!C106 -> 111 | C100: =利益演示!D106 -> 0 | D100: =利益演示!F106 -> 0 | E100: =利益演示!G106 -> 0 | F100: =利益演示!H106 -> 0 | G100: =利益演示!I106+利益演示!J106 -> 0 | H100: =利益演示!Z106 -> 0 | I100: =利益演示!AB106 -> 0 | J100: =利益演示!AG106 -> 13640413.33 | K100: =利益演示!AH106 -> 13640413.33 | L100: =利益演示!AJ106 -> 13640413.33 | M100: =利益演示!AM106 -> 49223100.27 | N100: =利益演示!AN106 -> 49223100.27 | O100: =利益演示!AP106 -> 49223100.27 | P100: =利益演示!AS106 -> 174418664.7 | Q100: =利益演示!AT106 -> 174418664.7 | R100: =利益演示!AV106 -> 174418664.7
A101: =利益演示!A107 -> 97 | B101: =利益演示!C107 -> 112 | C101: =利益演示!D107 -> 0 | D101: =利益演示!F107 -> 0 | E101: =利益演示!G107 -> 0 | F101: =利益演示!H107 -> 0 | G101: =利益演示!I107+利益演示!J107 -> 0 | H101: =利益演示!Z107 -> 0 | I101: =利益演示!AB107 -> 0 | J101: =利益演示!AG107 -> 14049625.73 | K101: =利益演示!AH107 -> 14049625.73 | L101: =利益演示!AJ107 -> 14049625.73 | M101: =利益演示!AM107 -> 51438139.78 | N101: =利益演示!AN107 -> 51438139.78 | O101: =利益演示!AP107 -> 51438139.78 | P101: =利益演示!AS107 -> 184883784.6 | Q101: =利益演示!AT107 -> 184883784.6 | R101: =利益演示!AV107 -> 184883784.6
A102: =利益演示!A108 -> 98 | B102: =利益演示!C108 -> 113 | C102: =利益演示!D108 -> 0 | D102: =利益演示!F108 -> 0 | E102: =利益演示!G108 -> 0 | F102: =利益演示!H108 -> 0 | G102: =利益演示!I108+利益演示!J108 -> 0 | H102: =利益演示!Z108 -> 0 | I102: =利益演示!AB108 -> 0 | J102: =利益演示!AG108 -> 14471114.5 | K102: =利益演示!AH108 -> 14471114.5 | L102: =利益演示!AJ108 -> 14471114.5 | M102: =利益演示!AM108 -> 53752856.07 | N102: =利益演示!AN108 -> 53752856.07 | O102: =利益演示!AP108 -> 53752856.07 | P102: =利益演示!AS108 -> 195976811.7 | Q102: =利益演示!AT108 -> 195976811.7 | R102: =利益演示!AV108 -> 195976811.7
A103: =利益演示!A109 -> 99 | B103: =利益演示!C109 -> 114 | C103: =利益演示!D109 -> 0 | D103: =利益演示!F109 -> 0 | E103: =利益演示!G109 -> 0 | F103: =利益演示!H109 -> 0 | G103: =利益演示!I109+利益演示!J109 -> 0 | H103: =利益演示!Z109 -> 0 | I103: =利益演示!AB109 -> 0 | J103: =利益演示!AG109 -> 14905247.94 | K103: =利益演示!AH109 -> 14905247.94 | L103: =利益演示!AJ109 -> 14905247.94 | M103: =利益演示!AM109 -> 56171734.59 | N103: =利益演示!AN109 -> 56171734.59 | O103: =利益演示!AP109 -> 56171734.59 | P103: =利益演示!AS109 -> 207735420.4 | Q103: =利益演示!AT109 -> 207735420.4 | R103: =利益演示!AV109 -> 207735420.4
A104: =利益演示!A110 -> 100 | B104: =利益演示!C110 -> 115 | C104: =利益演示!D110 -> 0 | D104: =利益演示!F110 -> 0 | E104: =利益演示!G110 -> 0 | F104: =利益演示!H110 -> 0 | G104: =利益演示!I110+利益演示!J110 -> 0 | H104: =利益演示!Z110 -> 0 | I104: =利益演示!AB110 -> 0 | J104: =利益演示!AG110 -> 15352405.38 | K104: =利益演示!AH110 -> 15352405.38 | L104: =利益演示!AJ110 -> 15352405.38 | M104: =利益演示!AM110 -> 58699462.65 | N104: =利益演示!AN110 -> 58699462.65 | O104: =利益演示!AP110 -> 58699462.65 | P104: =利益演示!AS110 -> 220199545.6 | Q104: =利益演示!AT110 -> 220199545.6 | R104: =利益演示!AV110 -> 220199545.6
A105: =利益演示!A111 -> 101 | B105: =利益演示!C111 -> 116 | C105: =利益演示!D111 -> 0 | D105: =利益演示!F111 -> 0 | E105: =利益演示!G111 -> 0 | F105: =利益演示!H111 -> 0 | G105: =利益演示!I111+利益演示!J111 -> 0 | H105: =利益演示!Z111 -> 0 | I105: =利益演示!AB111 -> 0 | J105: =利益演示!AG111 -> 15812977.54 | K105: =利益演示!AH111 -> 15812977.54 | L105: =利益演示!AJ111 -> 15812977.54 | M105: =利益演示!AM111 -> 61340938.47 | N105: =利益演示!AN111 -> 61340938.47 | O105: =利益演示!AP111 -> 61340938.47 | P105: =利益演示!AS111 -> 233411518.3 | Q105: =利益演示!AT111 -> 233411518.3 | R105: =利益演示!AV111 -> 233411518.3
A106: =利益演示!A112 -> 102 | B106: =利益演示!C112 -> 117 | C106: =利益演示!D112 -> 0 | D106: =利益演示!F112 -> 0 | E106: =利益演示!G112 -> 0 | F106: =利益演示!H112 -> 0 | G106: =利益演示!I112+利益演示!J112 -> 0 | H106: =利益演示!Z112 -> 0 | I106: =利益演示!AB112 -> 0 | J106: =利益演示!AG112 -> 16287366.87 | K106: =利益演示!AH112 -> 16287366.87 | L106: =利益演示!AJ112 -> 16287366.87 | M106: =利益演示!AM112 -> 64101280.7 | N106: =利益演示!AN112 -> 64101280.7 | O106: =利益演示!AP112 -> 64101280.7 | P106: =利益演示!AS112 -> 247416209.4 | Q106: =利益演示!AT112 -> 247416209.4 | R106: =利益演示!AV112 -> 247416209.4
A107: =利益演示!A113 -> 103 | B107: =利益演示!C113 -> 118 | C107: =利益演示!D113 -> 0 | D107: =利益演示!F113 -> 0 | E107: =利益演示!G113 -> 0 | F107: =利益演示!H113 -> 0 | G107: =利益演示!I113+利益演示!J113 -> 0 | H107: =利益演示!Z113 -> 0 | I107: =利益演示!AB113 -> 0 | J107: =利益演示!AG113 -> 16775987.87 | K107: =利益演示!AH113 -> 16775987.87 | L107: =利益演示!AJ113 -> 16775987.87 | M107: =利益演示!AM113 -> 66985838.33 | N107: =利益演示!AN113 -> 66985838.33 | O107: =利益演示!AP113 -> 66985838.33 | P107: =利益演示!AS113 -> 262261182 | Q107: =利益演示!AT113 -> 262261182 | R107: =利益演示!AV113 -> 262261182
A108: =利益演示!A114 -> 104 | B108: =利益演示!C114 -> 119 | C108: =利益演示!D114 -> 0 | D108: =利益演示!F114 -> 0 | E108: =利益演示!G114 -> 0 | F108: =利益演示!H114 -> 0 | G108: =利益演示!I114+利益演示!J114 -> 0 | H108: =利益演示!Z114 -> 0 | I108: =利益演示!AB114 -> 0 | J108: =利益演示!AG114 -> 17279267.51 | K108: =利益演示!AH114 -> 17279267.51 | L108: =利益演示!AJ114 -> 17279267.51 | M108: =利益演示!AM114 -> 70000201.06 | N108: =利益演示!AN114 -> 70000201.06 | O108: =利益演示!AP114 -> 70000201.06 | P108: =利益演示!AS114 -> 277996852.9 | Q108: =利益演示!AT114 -> 277996852.9 | R108: =利益演示!AV114 -> 277996852.9
A109: =利益演示!A115 -> 105 | B109: =利益演示!C115 -> 120 | C109: =利益演示!D115 -> 0 | D109: =利益演示!F115 -> 0 | E109: =利益演示!G115 -> 0 | F109: =利益演示!H115 -> 0 | G109: =利益演示!I115+利益演示!J115 -> 0 | H109: =利益演示!Z115 -> 0 | I109: =利益演示!AB115 -> 0 | J109: =利益演示!AG115 -> 17797645.53 | K109: =利益演示!AH115 -> 17797645.53 | L109: =利益演示!AJ115 -> 17797645.53 | M109: =利益演示!AM115 -> 73150210.1 | N109: =利益演示!AN115 -> 73150210.1 | O109: =利益演示!AP115 -> 73150210.1 | P109: =利益演示!AS115 -> 294676664.1 | Q109: =利益演示!AT115 -> 294676664.1 | R109: =利益演示!AV115 -> 294676664.1
A110: 106 | B110: 106 | C110: 0 | D110: 0 | E110: 0 | F110: 0 | G110: 0 | I110: 0 | J110: 0 | K110: 0 | L110: 0 | M110: 10105 | N110: 2161384.581 | O110: 2161384.581 | P110: 2161384.581 | Q110: 9006479.791 | R110: 9006479.791 | S110: 9006479.791 | T110: 36800728.84 | U110: 36800728.84 | V110: 36800728.84
A115: 本公司重要声明
A116: 1.本产品不收取保单管理费。 2.上表中所涉及的演示利率中，结算利率（低）为年利率3.0%（最低保证利率），结算利率（中）为年利率4.5%，结算利率（高）为年利率6.0%。 3.以上利益演示是基于公司的精算及其他假设，不代表公司的历史经营业绩，也不代表对公司未来经营业绩的预期，最低保证利率之上的投资收益是不确定的，实际保单账户利益可能低于中、高档利益演示水平。实际的账户结算利率以本公司公布的为准。
F122: 代理公司名称 | J122: 代理人姓名 | M122: 代理人电话
F123: =填写页面!D17 -> 永鑫 | J123: =填写页面!I17 -> 金先生 | M123: =填写页面!N17 -> 13900000000

Sheet 封底

Sheet sh1 (hidden)
A1: INSTERM | B1: PRMTERM | C1: SEX | D1: ISSAGE | E1: PAYDAY | F1: POLYR | G1: SA | H1: CASHVALUE | I1: n/n+1年现价比 | J1: n/n年保额现价比 | K1: & | N1: 特别生存金 | Q1: 风险保险费
A2: 10 | B2: 1 | C2: 0 | D2: 0 | E2: 5 | F2: 1 | G2: 190.27 | H2: 825.16 | J2: 0.2305855834 | K2: 1|0|0|1 | N2: 1 | O2: 0.2 | Q2: 性别 | R2: 到达年龄 | S2: 风险保险费 | V2: 男 | W2: 1 | X2: 1
A3: 10 | B3: 1 | C3: 0 | D3: 0 | E3: 5 | F3: 2 | G3: 190.27 | H3: 870.47 | I3: 1.054910563 | J3: 0.2185830643 | K3: 1|0|0|2 | N3: 3 | O3: 0.6 | Q3: 0 | R3: 0 | S3: 0.62 | V3: 女 | W3: 3
A4: 10 | B4: 1 | C4: 0 | D4: 0 | E4: 5 | F4: 3 | G4: 190.27 | H4: 918.31 | I4: 1.054958815 | J4: 0.2071958271 | K4: 1|0|0|3 | N4: 5 | O4: 1 | Q4: 0 | R4: 1 | S4: 0.47 | W4: 5
A5: 10 | B5: 1 | C5: 0 | D5: 0 | E5: 5 | F5: 4 | G5: 190.27 | H5: 968.8 | I5: 1.054981433 | J5: 0.1963976053 | K5: 1|0|0|4 | Q5: 0 | R5: 2 | S5: 0.35
A6: 10 | B6: 1 | C6: 0 | D6: 0 | E6: 5 | F6: 5 | G6: 190.27 | H6: 822.08 | I6: 0.8485549133 | J6: 0.231449494 | K6: 1|0|0|5 | N6: 手续费 | Q6: 0 | R6: 3 | S6: 0.28
A7: 10 | B7: 1 | C7: 0 | D7: 0 | E7: 5 | F7: 6 | G7: 190.27 | H7: 667.26 | I7: 0.8116728299 | J7: 0.2851512154 | K7: 1|0|0|6 | N7: 1 | O7: 0.95 | Q7: 0 | R7: 4 | S7: 0.23
A8: 10 | B8: 1 | C8: 0 | D8: 0 | E8: 5 | F8: 7 | G8: 190.27 | H8: 513.64 | I8: 0.7697749003 | J8: 0.3704345456 | K8: 1|0|0|7 | N8: 2 | O8: 0.97 | Q8: 0 | R8: 5 | S8: 0.2
A9: 10 | B9: 1 | C9: 0 | D9: 0 | E9: 5 | F9: 8 | G9: 190.27 | H9: 351.54 | I9: 0.6844093139 | J9: 0.5412470843 | K9: 1|0|0|8 | N9: 3 | O9: 0.98 | Q9: 0 | R9: 6 | S9: 0.18
A10: 10 | B10: 1 | C10: 0 | D10: 0 | E10: 5 | F10: 9 | G10: 190.27 | H10: 180.49 | I10: 0.5134266371 | J10: 1.054185827 | K10: 1|0|0|9 | N10: 4 | O10: 0.99 | Q10: 0 | R10: 7 | S10: 0.17
A11: 10 | B11: 1 | C11: 0 | D11: 0 | E11: 5 | F11: 10 | G11: 190.27 | H11: 0 | I11: 0 | J11: 0 | K11: 1|0|0|10 | N11: 5 | O11: 0.99 | Q11: 0 | R11: 8 | S11: 0.17
A12: 10 | B12: 1 | C12: 0 | D12: 1 | E12: 6 | F12: 1 | G12: 190.27 | H12: 825.15 | I12: 0 | J12: 0.2305883779 | K12: 1|0|1|1 | N12: 6 | O12: 1 | Q12: 0 | R12: 9 | S12: 0.18
A13: 10 | B13: 1 | C13: 0 | D13: 1 | E13: 6 | F13: 2 | G13: 190.27 | H13: 870.48 | I13: 1.054935466 | J13: 0.2185805533 | K13: 1|0|1|2 | Q13: 0 | R13: 10 | S13: 0.19
A14: 10 | B14: 1 | C14: 0 | D14: 1 | E14: 6 | F14: 3 | G14: 190.27 | H14: 918.32 | I14: 1.054958184 | J14: 0.2071935709 | K14: 1|0|1|3 | Q14: 0 | R14: 11 | S14: 0.2
A15: 10 | B15: 1 | C15: 0 | D15: 1 | E15: 6 | F15: 4 | G15: 190.27 | H15: 968.82 | I15: 1.054991724 | J15: 0.1963935509 | K15: 1|0|1|4 | N15: 给付比例 | Q15: 0 | R15: 12 | S15: 0.22
A16: 10 | B16: 1 | C16: 0 | D16: 1 | E16: 6 | F16: 5 | G16: 190.27 | H16: 822.1 | I16: 0.8485580397 | J16: 0.2314438633 | K16: 1|0|1|5 | N16: 0 | O16: 1.2 | Q16: 0 | R16: 13 | S16: 0.24
A17: 10 | B17: 1 | C17: 0 | D17: 1 | E17: 6 | F17: 6 | G17: 190.27 | H17: 667.29 | I17: 0.8116895755 | J17: 0.2851383956 | K17: 1|0|1|6 | N17: 18 | O17: 1.6 | Q17: 0 | R17: 14 | S17: 0.26
A18: 10 | B18: 1 | C18: 0 | D18: 1 | E18: 6 | F18: 7 | G18: 190.27 | H18: 513.66 | I18: 0.7697702648 | J18: 0.3704201223 | K18: 1|0|1|7 | N18: 41 | O18: 1.4 | Q18: 0 | R18: 15 | S18: 0.28
A19: 10 | B19: 1 | C19: 0 | D19: 1 | E19: 6 | F19: 8 | G19: 190.27 | H19: 351.56 | I19: 0.6844216018 | J19: 0.5412162931 | K19: 1|0|1|8 | N19: 61 | O19: 1.2 | Q19: 0 | R19: 16 | S19: 0.3
A20: 10 | B20: 1 | C20: 0 | D20: 1 | E20: 6 | F20: 9 | G20: 190.27 | H20: 180.5 | I20: 0.5134258733 | J20: 1.054127424 | K20: 1|0|1|9 | Q20: 0 | R20: 17 | S20: 0.32
A21: 10 | B21: 1 | C21: 0 | D21: 1 | E21: 6 | F21: 10 | G21: 190.27 | H21: 0 | I21: 0 | J21: 0 | K21: 1|0|1|10 | Q21: 0 | R21: 18 | S21: 0.33
A22: 10 | B22: 1 | C22: 0 | D22: 2 | E22: 7 | F22: 1 | G22: 190.27 | H22: 825.14 | I22: 0 | J22: 0.2305911724 | K22: 1|0|2|1 | Q22: 0 | R22: 19 | S22: 0.35
A23: 10 | B23: 1 | C23: 0 | D23: 2 | E23: 7 | F23: 2 | G23: 190.27 | H23: 870.48 | I23: 1.054948251 | J23: 0.2185805533 | K23: 1|0|2|2 | Q23: 0 | R23: 20 | S23: 0.36
A24: 10 | B24: 1 | C24: 0 | D24: 2 | E24: 7 | F24: 3 | G24: 190.27 | H24: 918.33 | I24: 1.054969672 | J24: 0.2071913147 | K24: 1|0|2|3 | Q24: 0 | R24: 21 | S24: 0.38
A25: 10 | B25: 1 | C25: 0 | D25: 2 | E25: 7 | F25: 4 | G25: 190.27 | H25: 968.83 | I25: 1.054991125 | J25: 0.1963915238 | K25: 1|0|2|4 | Q25: 0 | R25: 22 | S25: 0.39
A26: 10 | B26: 1 | C26: 0 | D26: 2 | E26: 7 | F26: 5 | G26: 190.27 | H26: 822.11 | I26: 0.8485596028 | J26: 0.231441048 | K26: 1|0|2|5 | Q26: 0 | R26: 23 | S26: 0.41
A27: 10 | B27: 1 | C27: 0 | D27: 2 | E27: 7 | F27: 6 | G27: 190.27 | H27: 667.3 | I27: 0.8116918661 | J27: 0.2851341226 | K27: 1|0|2|6 | Q27: 0 | R27: 24 | S27: 0.43
A28: 10 | B28: 1 | C28: 0 | D28: 2 | E28: 7 | F28: 7 | G28: 190.27 | H28: 513.68 | I28: 0.7697887007 | J28: 0.3704057 | K28: 1|0|2|7 | Q28: 0 | R28: 25 | S28: 0.45
A29: 10 | B29: 1 | C29: 0 | D29: 2 | E29: 7 | F29: 8 | G29: 190.27 | H29: 351.57 | I29: 0.6844144214 | J29: 0.5412008988 | K29: 1|0|2|8 | Q29: 0 | R29: 26 | S29: 0.47
A30: 10 | B30: 1 | C30: 0 | D30: 2 | E30: 7 | F30: 9 | G30: 190.27 | H30: 180.51 | I30: 0.5134397133 | J30: 1.054069027 | K30: 1|0|2|9 | Q30: 0 | R30: 27 | S30: 0.5
A31: 10 | B31: 1 | C31: 0 | D31: 2 | E31: 7 | F31: 10 | G31: 190.27 | H31: 0 | I31: 0 | J31: 0 | K31: 1|0|2|10 | Q31: 0 | R31: 28 | S31: 0.53
A32: 10 | B32: 1 | C32: 0 | D32: 3 | E32: 8 | F32: 1 | G32: 190.27 | H32: 825.14 | I32: 0 | J32: 0.2305911724 | K32: 1|0|3|1 | Q32: 0 | R32: 29 | S32: 0.56
A33: 10 | B33: 1 | C33: 0 | D33: 3 | E33: 8 | F33: 2 | G33: 190.27 | H33: 870.49 | I33: 1.05496037 | J33: 0.2185780423 | K33: 1|0|3|2 | Q33: 0 | R33: 30 | S33: 0.6
A34: 10 | B34: 1 | C34: 0 | D34: 3 | E34: 8 | F34: 3 | G34: 190.27 | H34: 918.34 | I34: 1.05496904 | J34: 0.2071890585 | K34: 1|0|3|3 | Q34: 0 | R34: 31 | S34: 0.64
A35: 10 | B35: 1 | C35: 0 | D35: 3 | E35: 8 | F35: 4 | G35: 190.27 | H35: 968.84 | I35: 1.054990526 | J35: 0.1963894967 | K35: 1|0|3|4 | Q35: 0 | R35: 32 | S35: 0.68
A36: 10 | B36: 1 | C36: 0 | D36: 3 | E36: 8 | F36: 5 | G36: 190.27 | H36: 822.12 | I36: 0.8485611659 | J36: 0.2314382329 | K36: 1|0|3|5 | Q36: 0 | R36: 33 | S36: 0.73
A37: 10 | B37: 1 | C37: 0 | D37: 3 | E37: 8 | F37: 6 | G37: 190.27 | H37: 667.31 | I37: 0.8116941566 | J37: 0.2851298497 | K37: 1|0|3|6 | Q37: 0 | R37: 34 | S37: 0.79
A38: 10 | B38: 1 | C38: 0 | D38: 3 | E38: 8 | F38: 7 | G38: 190.27 | H38: 513.69 | I38: 0.7697921506 | J38: 0.3703984894 | K38: 1|0|3|7 | Q38: 0 | R38: 35 | S38: 0.85
A39: 10 | B39: 1 | C39: 0 | D39: 3 | E39: 8 | F39: 8 | G39: 190.27 | H39: 351.59 | I39: 0.6844400319 | J39: 0.5411701129 | K39: 1|0|3|8 | Q39: 0 | R39: 36 | S39: 0.92
A40: 10 | B40: 1 | C40: 0 | D40: 3 | E40: 8 | F40: 9 | G40: 190.27 | H40: 180.52 | I40: 0.5134389488 | J40: 1.054010636 | K40: 1|0|3|9 | Q40: 0 | R40: 37 | S40: 1
A41: 10 | B41: 1 | C41: 0 | D41: 3 | E41: 8 | F41: 10 | G41: 190.27 | H41: 0 | I41: 0 | J41: 0 | K41: 1|0|3|10 | Q41: 0 | R41: 38 | S41: 1.08
A42: 10 | B42: 1 | C42: 0 | D42: 4 | E42: 9 | F42: 1 | G42: 190.26 | H42: 825.14 | I42: 0 | J42: 0.2305790533 | K42: 1|0|4|1 | Q42: 0 | R42: 39 | S42: 1.17
A43: 10 | B43: 1 | C43: 0 | D43: 4 | E43: 9 | F43: 2 | G43: 190.26 | H43: 870.49 | I43: 1.05496037 | J43: 0.2185665545 | K43: 1|0|4|2 | Q43: 0 | R43: 40 | S43: 1.27
A44: 10 | B44: 1 | C44: 0 | D44: 4 | E44: 9 | F44: 3 | G44: 190.26 | H44: 918.35 | I44: 1.054980528 | J44: 0.2071759133 | K44: 1|0|4|3 | Q44: 0 | R44: 41 | S44: 1.38
A45: 10 | B45: 1 | C45: 0 | D45: 4 | E45: 9 | F45: 4 | G45: 190.26 | H45: 968.85 | I45: 1.054989928 | J45: 0.1963771482 | K45: 1|0|4|4 | Q45: 0 | R45: 42 | S45: 1.5
A46: 10 | B46: 1 | C46: 0 | D46: 4 | E46: 9 | F46: 5 | G46: 190.26 | H46: 822.13 | I46: 0.848562729 | J46: 0.2314232542 | K46: 1|0|4|5 | Q46: 0 | R46: 43 | S46: 1.63
A47: 10 | B47: 1 | C47: 0 | D47: 4 | E47: 9 | F47: 6 | G47: 190.26 | H47: 667.32 | I47: 0.811696447 | J47: 0.2851105916 | K47: 1|0|4|6 | Q47: 0 | R47: 44 | S47: 1.77
A48: 10 | B48: 1 | C48: 0 | D48: 4 | E48: 9 | F48: 7 | G48: 190.26 | H48: 513.7 | I48: 0.7697956003 | J48: 0.3703718123 | K48: 1|0|4|7 | Q48: 0 | R48: 45 | S48: 1.93
A49: 10 | B49: 1 | C49: 0 | D49: 4 | E49: 9 | F49: 8 | G49: 190.26 | H49: 351.6 | I49: 0.6844461748 | J49: 0.5411262799 | K49: 1|0|4|8 | Q49: 0 | R49: 46 | S49: 2.1
A50: 10 | B50: 1 | C50: 0 | D50: 4 | E50: 9 | F50: 9 | G50: 190.26 | H50: 180.53 | I50: 0.5134527873 | J50: 1.053896859 | K50: 1|0|4|9 | Q50: 0 | R50: 47 | S50: 2.28
A51: 10 | B51: 1 | C51: 0 | D51: 4 | E51: 9 | F51: 10 | G51: 190.26 | H51: 0 | I51: 0 | J51: 0 | K51: 1|0|4|10 | Q51: 0 | R51: 48 | S51: 2.47
A52: 10 | B52: 1 | C52: 0 | D52: 5 | E52: 10 | F52: 1 | G52: 190.25 | H52: 825.14 | I52: 0 | J52: 0.2305669341 | K52: 1|0|5|1 | Q52: 0 | R52: 49 | S52: 2.68
A53: 10 | B53: 1 | C53: 0 | D53: 5 | E53: 10 | F53: 2 | G53: 190.25 | H53: 870.49 | I53: 1.05496037 | J53: 0.2185550667 | K53: 1|0|5|2 | Q53: 0 | R53: 50 | S53: 2.91
A54: 10 | B54: 1 | C54: 0 | D54: 5 | E54: 10 | F54: 3 | G54: 190.25 | H54: 918.35 | I54: 1.054980528 | J54: 0.2071650242 | K54: 1|0|5|3 | Q54: 0 | R54: 51 | S54: 3.15
A55: 10 | B55: 1 | C55: 0 | D55: 5 | E55: 10 | F55: 4 | G55: 190.25 | H55: 968.85 | I55: 1.054989928 | J55: 0.1963668267 | K55: 1|0|5|4 | Q55: 0 | R55: 52 | S55: 3.41
A56: 10 | B56: 1 | C56: 0 | D56: 5 | E56: 10 | F56: 5 | G56: 190.25 | H56: 822.14 | I56: 0.8485730505 | J56: 0.231408276 | K56: 1|0|5|5 | Q56: 0 | R56: 53 | S56: 3.69
A57: 10 | B57: 1 | C57: 0 | D57: 5 | E57: 10 | F57: 6 | G57: 190.25 | H57: 667.32 | I57: 0.8116865741 | J57: 0.2850956063 | K57: 1|0|5|6 | Q57: 0 | R57: 54 | S57: 3.98
A58: 10 | B58: 1 | C58: 0 | D58: 5 | E58: 10 | F58: 7 | G58: 190.25 | H58: 513.71 | I58: 0.7698105856 | J58: 0.3703451364 | K58: 1|0|5|7 | Q58: 0 | R58: 55 | S58: 4.3
A59: 10 | B59: 1 | C59: 0 | D59: 5 | E59: 10 | F59: 8 | G59: 190.25 | H59: 351.61 | I59: 0.6844523175 | J59: 0.5410824493 | K59: 1|0|5|8 | Q59: 0 | R59: 56 | S59: 4.64
A60: 10 | B60: 1 | C60: 0 | D60: 5 | E60: 10 | F60: 9 | G60: 190.25 | H60: 180.54 | I60: 0.513466625 | J60: 1.053783095 | K60: 1|0|5|9 | Q60: 0 | R60: 57 | S60: 5
A61: 10 | B61: 1 | C61: 0 | D61: 5 | E61: 10 | F61: 10 | G61: 190.25 | H61: 0 | I61: 0 | J61: 0 | K61: 1|0|5|10 | Q61: 0 | R61: 58 | S61: 5.39
A62: 10 | B62: 1 | C62: 0 | D62: 6 | E62: 11 | F62: 1 | G62: 190.24 | H62: 825.14 | I62: 0 | J62: 0.2305548149 | K62: 1|0|6|1 | Q62: 0 | R62: 59 | S62: 5.81
A63: 10 | B63: 1 | C63: 0 | D63: 6 | E63: 11 | F63: 2 | G63: 190.24 | H63: 870.5 | I63: 1.05497249 | J63: 0.2185410684 | K63: 1|0|6|2 | Q63: 0 | R63: 60 | S63: 6.26
A64: 10 | B64: 1 | C64: 0 | D64: 6 | E64: 11 | F64: 3 | G64: 190.24 | H64: 918.36 | I64: 1.054979897 | J64: 0.2071518794 | K64: 1|0|6|3 | Q64: 0 | R64: 61 | S64: 6.74
A65: 10 | B65: 1 | C65: 0 | D65: 6 | E65: 11 | F65: 4 | G65: 190.24 | H65: 968.85 | I65: 1.05497844 | J65: 0.1963565051 | K65: 1|0|6|4 | Q65: 0 | R65: 62 | S65: 7.26
A66: 10 | B66: 1 | C66: 0 | D66: 6 | E66: 11 | F66: 5 | G66: 190.24 | H66: 822.14 | I66: 0.8485730505 | J66: 0.2313961126 | K66: 1|0|6|5 | Q66: 0 | R66: 63 | S66: 7.82
A67: 10 | B67: 1 | C67: 0 | D67: 6 | E67: 11 | F67: 6 | G67: 190.24 | H67: 667.33 | I67: 0.8116987374 | J67: 0.285076349 | K67: 1|0|6|6 | Q67: 0 | R67: 64 | S67: 8.41
A68: 10 | B68: 1 | C68: 0 | D68: 6 | E68: 11 | F68: 7 | G68: 190.24 | H68: 513.72 | I68: 0.769814035 | J68: 0.3703184614 | K68: 1|0|6|7 | Q68: 0 | R68: 65 | S68: 9.04
A69: 10 | B69: 1 | C69: 0 | D69: 6 | E69: 11 | F69: 8 | G69: 190.24 | H69: 351.62 | I69: 0.6844584599 | J69: 0.5410386212 | K69: 1|0|6|8 | Q69: 0 | R69: 66 | S69: 9.74
A70: 10 | B70: 1 | C70: 0 | D70: 6 | E70: 11 | F70: 9 | G70: 190.24 | H70: 180.54 | I70: 0.5134520221 | J70: 1.053727706 | K70: 1|0|6|9 | Q70: 0 | R70: 67 | S70: 10.54
A71: 10 | B71: 1 | C71: 0 | D71: 6 | E71: 11 | F71: 10 | G71: 190.24 | H71: 0 | I71: 0 | J71: 0 | K71: 1|0|6|10 | Q71: 0 | R71: 68 | S71: 11.5
A72: 10 | B72: 1 | C72: 0 | D72: 7 | E72: 12 | F72: 1 | G72: 190.23 | H72: 825.14 | I72: 0 | J72: 0.2305426958 | K72: 1|0|7|1 | Q72: 0 | R72: 69 | S72: 12.69
A73: 10 | B73: 1 | C73: 0 | D73: 7 | E73: 12 | F73: 2 | G73: 190.23 | H73: 870.5 | I73: 1.05497249 | J73: 0.2185295807 | K73: 1|0|7|2 | Q73: 0 | R73: 70 | S73: 14.19
A74: 10 | B74: 1 | C74: 0 | D74: 7 | E74: 12 | F74: 3 | G74: 190.23 | H74: 918.36 | I74: 1.054979897 | J74: 0.2071409905 | K74: 1|0|7|3 | Q74: 0 | R74: 71 | S74: 16.11
A75: 10 | B75: 1 | C75: 0 | D75: 7 | E75: 12 | F75: 4 | G75: 190.23 | H75: 968.86 | I75: 1.054989329 | J75: 0.1963441571 | K75: 1|0|7|4 | Q75: 0 | R75: 72 | S75: 18.52
A76: 10 | B76: 1 | C76: 0 | D76: 7 | E76: 12 | F76: 5 | G76: 190.23 | H76: 822.14 | I76: 0.8485642921 | J76: 0.2313839492 | K76: 1|0|7|5 | Q76: 0 | R76: 73 | S76: 21.51
A77: 10 | B77: 1 | C77: 0 | D77: 7 | E77: 12 | F77: 6 | G77: 190.23 | H77: 667.33 | I77: 0.8116987374 | J77: 0.2850613639 | K77: 1|0|7|6 | Q77: 0 | R77: 74 | S77: 25.15
A78: 10 | B78: 1 | C78: 0 | D78: 7 | E78: 12 | F78: 7 | G78: 190.23 | H78: 513.72 | I78: 0.769814035 | J78: 0.3702989956 | K78: 1|0|7|7 | Q78: 0 | R78: 75 | S78: 29.49
A79: 10 | B79: 1 | C79: 0 | D79: 7 | E79: 12 | F79: 8 | G79: 190.23 | H79: 351.62 | I79: 0.6844584599 | J79: 0.5410101814 | K79: 1|0|7|8 | Q79: 0 | R79: 76 | S79: 34.55
A80: 10 | B80: 1 | C80: 0 | D80: 7 | E80: 12 | F80: 9 | G80: 190.23 | H80: 180.55 | I80: 0.5134804619 | J80: 1.053613957 | K80: 1|0|7|9 | Q80: 0 | R80: 77 | S80: 40.31
A81: 10 | B81: 1 | C81: 0 | D81: 7 | E81: 12 | F81: 10 | G81: 190.23 | H81: 0 | I81: 0 | J81: 0 | K81: 1|0|7|10 | Q81: 0 | R81: 78 | S81: 46.75
A82: 10 | B82: 1 | C82: 0 | D82: 8 | E82: 13 | F82: 1 | G82: 190.22 | H82: 825.15 | I82: 0 | J82: 0.2305277828 | K82: 1|0|8|1 | Q82: 0 | R82: 79 | S82: 53.8
A83: 10 | B83: 1 | C83: 0 | D83: 8 | E83: 13 | F83: 2 | G83: 190.22 | H83: 870.51 | I83: 1.054971823 | J83: 0.2185155828 | K83: 1|0|8|2 | Q83: 0 | R83: 80 | S83: 61.4
A84: 10 | B84: 1 | C84: 0 | D84: 8 | E84: 13 | F84: 3 | G84: 190.22 | H84: 918.36 | I84: 1.054967778 | J84: 0.2071301015 | K84: 1|0|8|3 | Q84: 0 | R84: 81 | S84: 69.49
A85: 10 | B85: 1 | C85: 0 | D85: 8 | E85: 13 | F85: 4 | G85: 190.22 | H85: 968.86 | I85: 1.054989329 | J85: 0.1963338356 | K85: 1|0|8|4 | Q85: 0 | R85: 82 | S85: 77.99
A86: 10 | B86: 1 | C86: 0 | D86: 8 | E86: 13 | F86: 5 | G86: 190.22 | H86: 822.15 | I86: 0.8485746135 | J86: 0.2313689716 | K86: 1|0|8|5 | Q86: 0 | R86: 83 | S86: 86.87
A87: 10 | B87: 1 | C87: 0 | D87: 8 | E87: 13 | F87: 6 | G87: 190.22 | H87: 667.33 | I87: 0.8116888646 | J87: 0.2850463789 | K87: 1|0|8|6 | Q87: 0 | R87: 84 | S87: 86.87
A88: 10 | B88: 1 | C88: 0 | D88: 8 | E88: 13 | F88: 7 | G88: 190.22 | H88: 513.73 | I88: 0.7698290201 | J88: 0.370272322 | K88: 1|0|8|7 | Q88: 0 | R88: 85 | S88: 86.87
A89: 10 | B89: 1 | C89: 0 | D89: 8 | E89: 13 | F89: 8 | G89: 190.22 | H89: 351.63 | I89: 0.684464602 | J89: 0.5409663567 | K89: 1|0|8|8 | Q89: 0 | R89: 86 | S89: 86.87
A90: 10 | B90: 1 | C90: 0 | D90: 8 | E90: 13 | F90: 9 | G90: 190.22 | H90: 180.55 | I90: 0.513465859 | J90: 1.053558571 | K90: 1|0|8|9 | Q90: 0 | R90: 87 | S90: 86.87
A91: 10 | B91: 1 | C91: 0 | D91: 8 | E91: 13 | F91: 10 | G91: 190.22 | H91: 0 | I91: 0 | J91: 0 | K91: 1|0|8|10 | Q91: 0 | R91: 88 | S91: 86.87
A92: 10 | B92: 1 | C92: 0 | D92: 9 | E92: 14 | F92: 1 | G92: 190.21 | H92: 825.15 | I92: 0 | J92: 0.2305156638 | K92: 1|0|9|1 | Q92: 0 | R92: 89 | S92: 86.87
A93: 10 | B93: 1 | C93: 0 | D93: 9 | E93: 14 | F93: 2 | G93: 190.21 | H93: 870.51 | I93: 1.054971823 | J93: 0.2185040953 | K93: 1|0|9|2 | Q93: 0 | R93: 90 | S93: 86.87
A94: 10 | B94: 1 | C94: 0 | D94: 9 | E94: 14 | F94: 3 | G94: 190.21 | H94: 918.37 | I94: 1.054979265 | J94: 0.2071169572 | K94: 1|0|9|3 | Q94: 0 | R94: 91 | S94: 86.87
A95: 10 | B95: 1 | C95: 0 | D95: 9 | E95: 14 | F95: 4 | G95: 190.21 | H95: 968.86 | I95: 1.054977841 | J95: 0.1963235142 | K95: 1|0|9|4 | Q95: 0 | R95: 92 | S95: 86.87
A96: 10 | B96: 1 | C96: 0 | D96: 9 | E96: 14 | F96: 5 | G96: 190.21 | H96: 822.15 | I96: 0.8485746135 | J96: 0.2313568084 | K96: 1|0|9|5 | Q96: 0 | R96: 93 | S96: 86.87
A97: 10 | B97: 1 | C97: 0 | D97: 9 | E97: 14 | F97: 6 | G97: 190.21 | H97: 667.33 | I97: 0.8116888646 | J97: 0.2850313938 | K97: 1|0|9|6 | Q97: 0 | R97: 94 | S97: 86.87
A98: 10 | B98: 1 | C98: 0 | D98: 9 | E98: 14 | F98: 7 | G98: 190.21 | H98: 513.73 | I98: 0.7698290201 | J98: 0.3702528566 | K98: 1|0|9|7 | Q98: 0 | R98: 95 | S98: 86.87
A99: 10 | B99: 1 | C99: 0 | D99: 9 | E99: 14 | F99: 8 | G99: 190.21 | H99: 351.63 | I99: 0.684464602 | J99: 0.5409379177 | K99: 1|0|9|8 | Q99: 0 | R99: 96 | S99: 86.87
A100: 10 | B100: 1 | C100: 0 | D100: 9 | E100: 14 | F100: 9 | G100: 190.21 | H100: 180.56 | I100: 0.513494298 | J100: 1.053444838 | K100: 1|0|9|9 | Q100: 0 | R100: 97 | S100: 86.87
A101: 10 | B101: 1 | C101: 0 | D101: 9 | E101: 14 | F101: 10 | G101: 190.21 | H101: 0 | I101: 0 | J101: 0 | K101: 1|0|9|10 | Q101: 0 | R101: 98 | S101: 86.87
A102: 10 | B102: 1 | C102: 0 | D102: 10 | E102: 15 | F102: 1 | G102: 190.2 | H102: 825.16 | I102: 0 | J102: 0.2305007514 | K102: 1|0|10|1 | Q102: 0 | R102: 99 | S102: 86.87
A103: 10 | B103: 1 | C103: 0 | D103: 10 | E103: 15 | F103: 2 | G103: 190.2 | H103: 870.51 | I103: 1.054959038 | J103: 0.2184926078 | K103: 1|0|10|2 | Q103: 0 | R103: 100 | S103: 86.87
A104: 10 | B104: 1 | C104: 0 | D104: 10 | E104: 15 | F104: 3 | G104: 190.2 | H104: 918.37 | I104: 1.054979265 | J104: 0.2071060684 | K104: 1|0|10|3 | Q104: 0 | R104: 101 | S104: 86.87
A105: 10 | B105: 1 | C105: 0 | D105: 10 | E105: 15 | F105: 4 | G105: 190.2 | H105: 968.86 | I105: 1.054977841 | J105: 0.1963131928 | K105: 1|0|10|4 | Q105: 0 | R105: 102 | S105: 86.87
A106: 10 | B106: 1 | C106: 0 | D106: 10 | E106: 15 | F106: 5 | G106: 190.2 | H106: 822.15 | I106: 0.8485746135 | J106: 0.2313446451 | K106: 1|0|10|5 | Q106: 0 | R106: 103 | S106: 86.87
A107: 10 | B107: 1 | C107: 0 | D107: 10 | E107: 15 | F107: 6 | G107: 190.2 | H107: 667.32 | I107: 0.8116767013 | J107: 0.2850206797 | K107: 1|0|10|6 | Q107: 0 | R107: 104 | S107: 86.87
A108: 10 | B108: 1 | C108: 0 | D108: 10 | E108: 15 | F108: 7 | G108: 190.2 | H108: 513.73 | I108: 0.7698405563 | J108: 0.3702333911 | K108: 1|0|10|7 | Q108: 0 | R108: 105 | S108: 86.87
A109: 10 | B109: 1 | C109: 0 | D109: 10 | E109: 15 | F109: 8 | G109: 190.2 | H109: 351.63 | I109: 0.684464602 | J109: 0.5409094787 | K109: 1|0|10|8 | Q109: 1 | R109: 0 | S109: 0.46
A110: 10 | B110: 1 | C110: 0 | D110: 10 | E110: 15 | F110: 9 | G110: 190.2 | H110: 180.56 | I110: 0.513494298 | J110: 1.053389455 | K110: 1|0|10|9 | Q110: 1 | R110: 1 | S110: 0.32
A111: 10 | B111: 1 | C111: 0 | D111: 10 | E111: 15 | F111: 10 | G111: 190.2 | H111: 0 | I111: 0 | J111: 0 | K111: 1|0|10|10 | Q111: 1 | R111: 2 | S111: 0.24
A112: 10 | B112: 1 | C112: 0 | D112: 11 | E112: 16 | F112: 1 | G112: 190.19 | H112: 825.17 | I112: 0 | J112: 0.2304858393 | K112: 1|0|11|1 | Q112: 1 | R112: 3 | S112: 0.18
A113: 10 | B113: 1 | C113: 0 | D113: 11 | E113: 16 | F113: 2 | G113: 190.19 | H113: 870.52 | I113: 1.054958372 | J113: 0.2184786105 | K113: 1|0|11|2 | Q113: 1 | R113: 4 | S113: 0.15
A114: 10 | B114: 1 | C114: 0 | D114: 11 | E114: 16 | F114: 3 | G114: 190.19 | H114: 918.37 | I114: 1.054967146 | J114: 0.2070951795 | K114: 1|0|11|3 | Q114: 1 | R114: 5 | S114: 0.13
A115: 10 | B115: 1 | C115: 0 | D115: 11 | E115: 16 | F115: 4 | G115: 190.19 | H115: 968.86 | I115: 1.054977841 | J115: 0.1963028714 | K115: 1|0|11|4 | Q115: 1 | R115: 6 | S115: 0.12
A116: 10 | B116: 1 | C116: 0 | D116: 11 | E116: 16 | F116: 5 | G116: 190.19 | H116: 822.15 | I116: 0.8485746135 | J116: 0.2313324819 | K116: 1|0|11|5 | Q116: 1 | R116: 7 | S116: 0.11
A117: 10 | B117: 1 | C117: 0 | D117: 11 | E117: 16 | F117: 6 | G117: 190.19 | H117: 667.32 | I117: 0.8116767013 | J117: 0.2850056944 | K117: 1|0|11|6 | Q117: 1 | R117: 8 | S117: 0.11
A118: 10 | B118: 1 | C118: 0 | D118: 11 | E118: 16 | F118: 7 | G118: 190.19 | H118: 513.73 | I118: 0.7698405563 | J118: 0.3702139256 | K118: 1|0|11|7 | Q118: 1 | R118: 9 | S118: 0.1
A119: 10 | B119: 1 | C119: 0 | D119: 11 | E119: 16 | F119: 8 | G119: 190.19 | H119: 351.64 | I119: 0.6844840675 | J119: 0.5408656581 | K119: 1|0|11|8 | Q119: 1 | R119: 10 | S119: 0.1
A120: 10 | B120: 1 | C120: 0 | D120: 11 | E120: 16 | F120: 9 | G120: 190.19 | H120: 180.56 | I120: 0.5134796951 | J120: 1.053334072 | K120: 1|0|11|9 | Q120: 1 | R120: 11 | S120: 0.11
A121: 10 | B121: 1 | C121: 0 | D121: 11 | E121: 16 | F121: 10 | G121: 190.19 | H121: 0 | I121: 0 | J121: 0 | K121: 1|0|11|10 | Q121: 1 | R121: 12 | S121: 0.11
A122: 10 | B122: 1 | C122: 0 | D122: 12 | E122: 17 | F122: 1 | G122: 190.18 | H122: 825.17 | I122: 0 | J122: 0.2304737206 | K122: 1|0|12|1 | Q122: 1 | R122: 13 | S122: 0.12
A123: 10 | B123: 1 | C123: 0 | D123: 12 | E123: 17 | F123: 2 | G123: 190.18 | H123: 870.52 | I123: 1.054958372 | J123: 0.2184671231 | K123: 1|0|12|2 | Q123: 1 | R123: 14 | S123: 0.12
A124: 10 | B124: 1 | C124: 0 | D124: 12 | E124: 17 | F124: 3 | G124: 190.18 | H124: 918.37 | I124: 1.054967146 | J124: 0.2070842906 | K124: 1|0|12|3 | Q124: 1 | R124: 15 | S124: 0.13
A125: 10 | B125: 1 | C125: 0 | D125: 12 | E125: 17 | F125: 4 | G125: 190.18 | H125: 968.86 | I125: 1.054977841 | J125: 0.19629255 | K125: 1|0|12|4 | Q125: 1 | R125: 16 | S125: 0.14
A126: 10 | B126: 1 | C126: 0 | D126: 12 | E126: 17 | F126: 5 | G126: 190.18 | H126: 822.15 | I126: 0.8485746135 | J126: 0.2313203187 | K126: 1|0|12|5 | Q126: 1 | R126: 17 | S126: 0.14
A127: 10 | B127: 1 | C127: 0 | D127: 12 | E127: 17 | F127: 6 | G127: 190.18 | H127: 667.32 | I127: 0.8116767013 | J127: 0.2849907091 | K127: 1|0|12|6 | Q127: 1 | R127: 18 | S127: 0.15
A128: 10 | B128: 1 | C128: 0 | D128: 12 | E128: 17 | F128: 7 | G128: 190.18 | H128: 513.73 | I128: 0.7698405563 | J128: 0.3701944601 | K128: 1|0|12|7 | Q128: 1 | R128: 19 | S128: 0.16
A129: 10 | B129: 1 | C129: 0 | D129: 12 | E129: 17 | F129: 8 | G129: 190.18 | H129: 351.64 | I129: 0.6844840675 | J129: 0.5408372199 | K129: 1|0|12|8 | Q129: 1 | R129: 20 | S129: 0.16
A130: 10 | B130: 1 | C130: 0 | D130: 12 | E130: 17 | F130: 9 | G130: 190.18 | H130: 180.56 | I130: 0.5134796951 | J130: 1.053278689 | K130: 1|0|12|9 | Q130: 1 | R130: 21 | S130: 0.17
A131: 10 | B131: 1 | C131: 0 | D131: 12 | E131: 17 | F131: 10 | G131: 190.18 | H131: 0 | I131: 0 | J131: 0 | K131: 1|0|12|10 | Q131: 1 | R131: 22 | S131: 0.18
A132: 10 | B132: 1 | C132: 0 | D132: 13 | E132: 18 | F132: 1 | G132: 190.17 | H132: 825.18 | I132: 0 | J132: 0.230458809 | K132: 1|0|13|1 | Q132: 1 | R132: 23 | S132: 0.19
A133: 10 | B133: 1 | C133: 0 | D133: 13 | E133: 18 | F133: 2 | G133: 190.17 | H133: 870.52 | I133: 1.054945588 | J133: 0.2184556357 | K133: 1|0|13|2 | Q133: 1 | R133: 24 | S133: 0.19
A134: 10 | B134: 1 | C134: 0 | D134: 13 | E134: 18 | F134: 3 | G134: 190.17 | H134: 918.37 | I134: 1.054967146 | J134: 0.2070734018 | K134: 1|0|13|3 | Q134: 1 | R134: 25 | S134: 0.2
A135: 10 | B135: 1 | C135: 0 | D135: 13 | E135: 18 | F135: 4 | G135: 190.17 | H135: 968.86 | I135: 1.054977841 | J135: 0.1962822286 | K135: 1|0|13|4 | Q135: 1 | R135: 26 | S135: 0.21
A136: 10 | B136: 1 | C136: 0 | D136: 13 | E136: 18 | F136: 5 | G136: 190.17 | H136: 822.15 | I136: 0.8485746135 | J136: 0.2313081554 | K136: 1|0|13|5 | Q136: 1 | R136: 27 | S136: 0.22
A137: 10 | B137: 1 | C137: 0 | D137: 13 | E137: 18 | F137: 6 | G137: 190.17 | H137: 667.31 | I137: 0.8116645381 | J137: 0.2849799943 | K137: 1|0|13|6 | Q137: 1 | R137: 28 | S137: 0.23
A138: 10 | B138: 1 | C138: 0 | D138: 13 | E138: 18 | F138: 7 | G138: 190.17 | H138: 513.73 | I138: 0.7698520927 | J138: 0.3701749946 | K138: 1|0|13|7 | Q138: 1 | R138: 29 | S138: 0.24
A139: 10 | B139: 1 | C139: 0 | D139: 13 | E139: 18 | F139: 8 | G139: 190.17 | H139: 351.64 | I139: 0.6844840675 | J139: 0.5408087817 | K139: 1|0|13|8 | Q139: 1 | R139: 30 | S139: 0.25
A140: 10 | B140: 1 | C140: 0 | D140: 13 | E140: 18 | F140: 9 | G140: 190.17 | H140: 180.57 | I140: 0.5135081333 | J140: 1.053164978 | K140: 1|0|13|9 | Q140: 1 | R140: 31 | S140: 0.26
A141: 10 | B141: 1 | C141: 0 | D141: 13 | E141: 18 | F141: 10 | G141: 190.17 | H141: 0 | I141: 0 | J141: 0 | K141: 1|0|13|10 | Q141: 1 | R141: 32 | S141: 0.28
A142: 10 | B142: 1 | C142: 0 | D142: 14 | E142: 19 | F142: 1 | G142: 190.16 | H142: 825.18 | I142: 0 | J142: 0.2304466904 | K142: 1|0|14|1 | Q142: 1 | R142: 33 | S142: 0.3
A143: 10 | B143: 1 | C143: 0 | D143: 14 | E143: 19 | F143: 2 | G143: 190.16 | H143: 870.52 | I143: 1.054945588 | J143: 0.2184441483 | K143: 1|0|14|2 | Q143: 1 | R143: 34 | S143: 0.32
A144: 10 | B144: 1 | C144: 0 | D144: 14 | E144: 19 | F144: 3 | G144: 190.16 | H144: 918.37 | I144: 1.054967146 | J144: 0.2070625129 | K144: 1|0|14|3 | Q144: 1 | R144: 35 | S144: 0.35
A145: 10 | B145: 1 | C145: 0 | D145: 14 | E145: 19 | F145: 4 | G145: 190.16 | H145: 968.86 | I145: 1.054977841 | J145: 0.1962719072 | K145: 1|0|14|4 | Q145: 1 | R145: 36 | S145: 0.38
A146: 10 | B146: 1 | C146: 0 | D146: 14 | E146: 19 | F146: 5 | G146: 190.16 | H146: 822.15 | I146: 0.8485746135 | J146: 0.2312959922 | K146: 1|0|14|5 | Q146: 1 | R146: 37 | S146: 0.41
A147: 10 | B147: 1 | C147: 0 | D147: 14 | E147: 19 | F147: 6 | G147: 190.16 | H147: 667.31 | I147: 0.8116645381 | J147: 0.2849650088 | K147: 1|0|14|6 | Q147: 1 | R147: 38 | S147: 0.45
A148: 10 | B148: 1 | C148: 0 | D148: 14 | E148: 19 | F148: 7 | G148: 190.16 | H148: 513.74 | I148: 0.7698670783 | J148: 0.3701483241 | K148: 1|0|14|7 | Q148: 1 | R148: 39 | S148: 0.49
A149: 10 | B149: 1 | C149: 0 | D149: 14 | E149: 19 | F149: 8 | G149: 190.16 | H149: 351.65 | I149: 0.6844902091 | J149: 0.5407649652 | K149: 1|0|14|8 | Q149: 1 | R149: 40 | S149: 0.54
A150: 10 | B150: 1 | C150: 0 | D150: 14 | E150: 19 | F150: 9 | G150: 190.16 | H150: 180.57 | I150: 0.5134935305 | J150: 1.053109597 | K150: 1|0|14|9 | Q150: 1 | R150: 41 | S150: 0.6
A151: 10 | B151: 1 | C151: 0 | D151: 14 | E151: 19 | F151: 10 | G151: 190.16 | H151: 0 | I151: 0 | J151: 0 | K151: 1|0|14|10 | Q151: 1 | R151: 42 | S151: 0.65
A152: 10 | B152: 1 | C152: 0 | D152: 15 | E152: 20 | F152: 1 | G152: 190.15 | H152: 825.19 | I152: 0 | J152: 0.2304317793 | K152: 1|0|15|1 | Q152: 1 | R152: 43 | S152: 0.72
A153: 10 | B153: 1 | C153: 0 | D153: 15 | E153: 20 | F153: 2 | G153: 190.15 | H153: 870.53 | I153: 1.054944922 | J153: 0.2184301517 | K153: 1|0|15|2 | Q153: 1 | R153: 44 | S153: 0.78
A154: 10 | B154: 1 | C154: 0 | D154: 15 | E154: 20 | F154: 3 | G154: 190.15 | H154: 918.37 | I154: 1.054955027 | J154: 0.2070516241 | K154: 1|0|15|3 | Q154: 1 | R154: 45 | S154: 0.86
A155: 10 | B155: 1 | C155: 0 | D155: 15 | E155: 20 | F155: 4 | G155: 190.15 | H155: 968.86 | I155: 1.054977841 | J155: 0.1962615858 | K155: 1|0|15|4 | Q155: 1 | R155: 46 | S155: 0.94
A156: 10 | B156: 1 | C156: 0 | D156: 15 | E156: 20 | F156: 5 | G156: 190.15 | H156: 822.15 | I156: 0.8485746135 | J156: 0.231283829 | K156: 1|0|15|5 | Q156: 1 | R156: 47 | S156: 1.02
A157: 10 | B157: 1 | C157: 0 | D157: 15 | E157: 20 | F157: 6 | G157: 190.15 | H157: 667.31 | I157: 0.8116645381 | J157: 0.2849500232 | K157: 1|0|15|6 | Q157: 1 | R157: 48 | S157: 1.11
A158: 10 | B158: 1 | C158: 0 | D158: 15 | E158: 20 | F158: 7 | G158: 190.15 | H158: 513.74 | I158: 0.7698670783 | J158: 0.370128859 | K158: 1|0|15|7 | Q158: 1 | R158: 49 | S158: 1.21
A159: 10 | B159: 1 | C159: 0 | D159: 15 | E159: 20 | F159: 8 | G159: 190.15 | H159: 351.65 | I159: 0.6844902091 | J159: 0.5407365278 | K159: 1|0|15|8 | Q159: 1 | R159: 50 | S159: 1.32
A160: 10 | B160: 1 | C160: 0 | D160: 15 | E160: 20 | F160: 9 | G160: 190.15 | H160: 180.58 | I160: 0.5135219679 | J160: 1.052995902 | K160: 1|0|15|9 | Q160: 1 | R160: 51 | S160: 1.44
A161: 10 | B161: 1 | C161: 0 | D161: 15 | E161: 20 | F161: 10 | G161: 190.15 | H161: 0 | I161: 0 | J161: 0 | K161: 1|0|15|10 | Q161: 1 | R161: 52 | S161: 1.57
A162: 10 | B162: 1 | C162: 0 | D162: 16 | E162: 21 | F162: 1 | G162: 190.14 | H162: 825.19 | I162: 0 | J162: 0.2304196609 | K162: 1|0|16|1 | Q162: 1 | R162: 53 | S162: 1.71
A163: 10 | B163: 1 | C163: 0 | D163: 16 | E163: 21 | F163: 2 | G163: 190.14 | H163: 870.53 | I163: 1.054944922 | J163: 0.2184186645 | K163: 1|0|16|2 | Q163: 1 | R163: 54 | S163: 1.86
A164: 10 | B164: 1 | C164: 0 | D164: 16 | E164: 21 | F164: 3 | G164: 190.14 | H164: 918.37 | I164: 1.054955027 | J164: 0.2070407352 | K164: 1|0|16|3 | Q164: 1 | R164: 55 | S164: 2.03
A165: 10 | B165: 1 | C165: 0 | D165: 16 | E165: 21 | F165: 4 | G165: 190.14 | H165: 968.86 | I165: 1.054977841 | J165: 0.1962512644 | K165: 1|0|16|4 | Q165: 1 | R165: 56 | S165: 2.21
A166: 10 | B166: 1 | C166: 0 | D166: 16 | E166: 21 | F166: 5 | G166: 190.14 | H166: 822.15 | I166: 0.8485746135 | J166: 0.2312716658 | K166: 1|0|16|5 | Q166: 1 | R166: 57 | S166: 2.4
A167: 10 | B167: 1 | C167: 0 | D167: 16 | E167: 21 | F167: 6 | G167: 190.14 | H167: 667.3 | I167: 0.8116523749 | J167: 0.2849393077 | K167: 1|0|16|6 | Q167: 1 | R167: 58 | S167: 2.61
A168: 10 | B168: 1 | C168: 0 | D168: 16 | E168: 21 | F168: 7 | G168: 190.14 | H168: 513.74 | I168: 0.7698786153 | J168: 0.3701093939 | K168: 1|0|16|7 | Q168: 1 | R168: 59 | S168: 2.84
A169: 10 | B169: 1 | C169: 0 | D169: 16 | E169: 21 | F169: 8 | G169: 190.14 | H169: 351.66 | I169: 0.6845096742 | J169: 0.5406927146 | K169: 1|0|16|8 | Q169: 1 | R169: 60 | S169: 3.09
A170: 10 | B170: 1 | C170: 0 | D170: 16 | E170: 21 | F170: 9 | G170: 190.14 | H170: 180.58 | I170: 0.5135073651 | J170: 1.052940525 | K170: 1|0|16|9 | Q170: 1 | R170: 61 | S170: 3.37
A171: 10 | B171: 1 | C171: 0 | D171: 16 | E171: 21 | F171: 10 | G171: 190.14 | H171: 0 | I171: 0 | J171: 0 | K171: 1|0|16|10 | Q171: 1 | R171: 62 | S171: 3.68
A172: 10 | B172: 1 | C172: 0 | D172: 17 | E172: 22 | F172: 1 | G172: 190.13 | H172: 825.2 | I172: 0 | J172: 0.2304047504 | K172: 1|0|17|1 | Q172: 1 | R172: 63 | S172: 4.06
A173: 10 | B173: 1 | C173: 0 | D173: 17 | E173: 22 | F173: 2 | G173: 190.13 | H173: 870.53 | I173: 1.054932138 | J173: 0.2184071772 | K173: 1|0|17|2 | Q173: 1 | R173: 64 | S173: 4.5
A174: 10 | B174: 1 | C174: 0 | D174: 17 | E174: 22 | F174: 3 | G174: 190.13 | H174: 918.37 | I174: 1.054955027 | J174: 0.2070298464 | K174: 1|0|17|3 | Q174: 1 | R174: 65 | S174: 5.02
A175: 10 | B175: 1 | C175: 0 | D175: 17 | E175: 22 | F175: 4 | G175: 190.13 | H175: 968.86 | I175: 1.054977841 | J175: 0.196240943 | K175: 1|0|17|4 | Q175: 1 | R175: 66 | S175: 5.63
A176: 10 | B176: 1 | C176: 0 | D176: 17 | E176: 22 | F176: 5 | G176: 190.13 | H176: 822.15 | I176: 0.8485746135 | J176: 0.2312595025 | K176: 1|0|17|5 | Q176: 1 | R176: 67 | S176: 6.33
A177: 10 | B177: 1 | C177: 0 | D177: 17 | E177: 22 | F177: 6 | G177: 190.13 | H177: 667.3 | I177: 0.8116523749 | J177: 0.2849243219 | K177: 1|0|17|6 | Q177: 1 | R177: 68 | S177: 7.12
A178: 10 | B178: 1 | C178: 0 | D178: 17 | E178: 22 | F178: 7 | G178: 190.13 | H178: 513.74 | I178: 0.7698786153 | J178: 0.3700899288 | K178: 1|0|17|7 | Q178: 1 | R178: 69 | S178: 8
A179: 10 | B179: 1 | C179: 0 | D179: 17 | E179: 22 | F179: 8 | G179: 190.13 | H179: 351.67 | I179: 0.6845291393 | J179: 0.5406489038 | K179: 1|0|17|8 | Q179: 1 | R179: 70 | S179: 9.01
A180: 10 | B180: 1 | C180: 0 | D180: 17 | E180: 22 | F180: 9 | G180: 190.13 | H180: 180.59 | I180: 0.5135211989 | J180: 1.052826845 | K180: 1|0|17|9 | Q180: 1 | R180: 71 | S180: 10.19
A181: 10 | B181: 1 | C181: 0 | D181: 17 | E181: 22 | F181: 10 | G181: 190.13 | H181: 0 | I181: 0 | J181: 0 | K181: 1|0|17|10 | Q181: 1 | R181: 72 | S181: 11.61
A182: 10 | B182: 1 | C182: 0 | D182: 18 | E182: 23 | F182: 1 | G182: 190.11 | H182: 825.2 | I182: 0 | J182: 0.2303805138 | K182: 1|0|18|1 | Q182: 1 | R182: 73 | S182: 13.35
A183: 10 | B183: 1 | C183: 0 | D183: 18 | E183: 23 | F183: 2 | G183: 190.11 | H183: 870.53 | I183: 1.054932138 | J183: 0.2183842027 | K183: 1|0|18|2 | Q183: 1 | R183: 74 | S183: 15.51
A184: 10 | B184: 1 | C184: 0 | D184: 18 | E184: 23 | F184: 3 | G184: 190.11 | H184: 918.37 | I184: 1.054955027 | J184: 0.2070080686 | K184: 1|0|18|3 | Q184: 1 | R184: 75 | S184: 18.13
A185: 10 | B185: 1 | C185: 0 | D185: 18 | E185: 23 | F185: 4 | G185: 190.11 | H185: 968.86 | I185: 1.054977841 | J185: 0.1962203001 | K185: 1|0|18|4 | Q185: 1 | R185: 76 | S185: 21.27
A186: 10 | B186: 1 | C186: 0 | D186: 18 | E186: 23 | F186: 5 | G186: 190.11 | H186: 822.15 | I186: 0.8485746135 | J186: 0.2312351761 | K186: 1|0|18|5 | Q186: 1 | R186: 77 | S186: 24.92
A187: 10 | B187: 1 | C187: 0 | D187: 18 | E187: 23 | F187: 6 | G187: 190.11 | H187: 667.3 | I187: 0.8116523749 | J187: 0.2848943504 | K187: 1|0|18|6 | Q187: 1 | R187: 78 | S187: 29.06
A188: 10 | B188: 1 | C188: 0 | D188: 18 | E188: 23 | F188: 7 | G188: 190.11 | H188: 513.75 | I188: 0.7698936011 | J188: 0.3700437956 | K188: 1|0|18|7 | Q188: 1 | R188: 79 | S188: 33.67
A189: 10 | B189: 1 | C189: 0 | D189: 18 | E189: 23 | F189: 8 | G189: 190.11 | H189: 351.68 | I189: 0.6845352798 | J189: 0.5405766606 | K189: 1|0|18|8 | Q189: 1 | R189: 80 | S189: 38.72
A190: 10 | B190: 1 | C190: 0 | D190: 18 | E190: 23 | F190: 9 | G190: 190.11 | H190: 180.6 | I190: 0.5135350318 | J190: 1.052657807 | K190: 1|0|18|9 | Q190: 1 | R190: 81 | S190: 44.16
A191: 10 | B191: 1 | C191: 0 | D191: 18 | E191: 23 | F191: 10 | G191: 190.11 | H191: 0 | I191: 0 | J191: 0 | K191: 1|0|18|10 | Q191: 1 | R191: 82 | S191: 49.98
A192: 10 | B192: 1 | C192: 0 | D192: 19 | E192: 24 | F192: 1 | G192: 190.1 | H192: 825.2 | I192: 0 | J192: 0.2303683955 | K192: 1|0|19|1 | Q192: 1 | R192: 83 | S192: 56.16
A193: 10 | B193: 1 | C193: 0 | D193: 19 | E193: 24 | F193: 2 | G193: 190.1 | H193: 870.53 | I193: 1.054932138 | J193: 0.2183727155 | K193: 1|0|19|2 | Q193: 1 | R193: 84 | S193: 56.16
A194: 10 | B194: 1 | C194: 0 | D194: 19 | E194: 24 | F194: 3 | G194: 190.1 | H194: 918.37 | I194: 1.054955027 | J194: 0.2069971798 | K194: 1|0|19|3 | Q194: 1 | R194: 85 | S194: 56.16
A195: 10 | B195: 1 | C195: 0 | D195: 19 | E195: 24 | F195: 4 | G195: 190.1 | H195: 968.86 | I195: 1.054977841 | J195: 0.1962099787 | K195: 1|0|19|4 | Q195: 1 | R195: 86 | S195: 56.16
A196: 10 | B196: 1 | C196: 0 | D196: 19 | E196: 24 | F196: 5 | G196: 190.1 | H196: 822.15 | I196: 0.8485746135 | J196: 0.2312230128 | K196: 1|0|19|5 | Q196: 1 | R196: 87 | S196: 56.16
A197: 10 | B197: 1 | C197: 0 | D197: 19 | E197: 24 | F197: 6 | G197: 190.1 | H197: 667.3 | I197: 0.8116523749 | J197: 0.2848793646 | K197: 1|0|19|6 | Q197: 1 | R197: 88 | S197: 56.16
A198: 10 | B198: 1 | C198: 0 | D198: 19 | E198: 24 | F198: 7 | G198: 190.1 | H198: 513.75 | I198: 0.7698936011 | J198: 0.3700243309 | K198: 1|0|19|7 | Q198: 1 | R198: 89 | S198: 56.16
A199: 10 | B199: 1 | C199: 0 | D199: 19 | E199: 24 | F199: 8 | G199: 190.1 | H199: 351.69 | I199: 0.6845547445 | J199: 0.5405328556 | K199: 1|0|19|8 | Q199: 1 | R199: 90 | S199: 56.16
A200: 10 | B200: 1 | C200: 0 | D200: 19 | E200: 24 | F200: 9 | G200: 190.1 | H200: 180.6 | I200: 0.5135204299 | J200: 1.052602436 | K200: 1|0|19|9 | Q200: 1 | R200: 91 | S200: 56.16
... 3861 more rows
